Workbook

Sheet Contents
A1: 80 | M1: ESC USE ONLY
D2: ESSENTIAL SERVICES COMMISSION
D3: Water Price Review
D4: Financial Model Template
B7: Table of Contents | F7: Water Business: | H7: =+N24 -> Barwon Water | I7: =+O24 -> BW
B8: Section & Sheet Titles | F8: Regulatory Period: | H8: 2018-19 to 2022-23 (Fourth) | N8: [Decision] | O8: [Month] | P8: [Year] | Q8: [Version]
F9: Model Name: | H9: =I7&"_Price Review Template_"&O9&P9&Q9 -> BW_Price Review Template_Mar2017- v1.2 | N9: Draft | O9: Mar | P9: 2017 | Q9: - v1.2 | R9: << Select
B10: a. | C10: =+KeyAssumptionsPriceControl_FO!B1 -> Key Assumptions Price Control | F10: Decision type: | H10: =+N9&" Decision" -> Draft Decision | N10: Draft | O10: Jan | P10: 2016 | Q10: - v1
B11: b. | C11: Expenditure Detail - Removed as it contained confidential information | N11: Final | O11: Feb | P11: 2017 | Q11: - v1.2
B12: c. | C12: =Opex_FO!B1 -> Operating Expenditure - Forecast | F12: Model Key: | O12: Mar | P12: 2018 | Q12: - v3
B13: d. | C13: =Opex_Breakdown!B1 -> Operating Expenditure - Breakdown | O13: Apr | P13: 2019 | Q13: - v3.1
B14: e. | C14: =+'Capex_FO input'!B1 -> Capital Expenditure - Forecast Input | G14: BLUE | H14: =+I7&" - DATA INPUT CELL" -> BW - DATA INPUT CELL | O14: May | P14: 2020 | Q14: - v4
B15: f. | C15: =Capex_FO_AC!B1 -> Capital Expenditure - Asset Category Breakdown | O15: Jun | P15: 2021 | Q15: - v4.1
B16: g. | C16: =ExpSummary_FO!B1 -> Expenditure Summary | G16: YELLOW | H16: NOTES / INSTRUCTIONS | O16: Jul | Q16: - v5
B17: h. | C17: =RollForward_FO!B1 -> Rolled forward regulatory asset base (RAB) | O17: Aug | Q17: - v5.1
B18: i. | C18: =PrevPerAdj_FO!B1 -> Previous period adjustments | G18: GREY | H18: MODEL PARAMETERS / ASSUMPTIONS | O18: Sep | Q18: - v6
B19: j. | C19: =RevenuePriceCap_FO!C1 -> Revenue forecast (price caps) | O19: Oct | Q19: - v6.1
B20: k. | C20: Revenue forecast (tariff basket) | G20: WHITE | H20: FORMULA / HARDCODED VALUES | O20: Nov | Q20: - v7
B21: l. | C21: =NotPres_FO!B1 -> Non Prescribed Services | O21: Dec | Q21: - v7.1
B22: m. | C22: ='Finance&Tax_FO'!B1 -> Cash, debt and tax assumptions | G22: ORANGE | H22: FORMULA DIFFERENT TO ADJACENT CELL
B23: n. | C23: ='Rev&RAV_FO'!B1 -> Revenue requirement detail | N23: [Business]
B24: o. | C24: =Indicators_FO!B1 -> Financial indicators | G24: GREEN | H24: DATA FROM 2013 DECISION OR PERFORMANCE REPORT | N24: Barwon Water | O24: =+VLOOKUP(N24,N25:O42,2,FALSE) -> BW
B25: p. | C25: =Outcomes!B1 -> Outcomes | N25: Barwon Water | O25: BW
B26: q. | C26: =GSL!B1 -> Guaranteed Service Levels (GSL) | G26: RED | H26: ERROR CHECK | N26: Central Highlands Water | O26: CHW
N27: City West Water | O27: CWW
N28: Coliban Water | O28: CW
N29: East Gippsland Water | O29: EGW
N30: Gippsland Water | O30: CGW
N31: Goulburn Valley Water | O31: GVW
N32: GWM Water | O32: GWMW | P32: diff model
N33: Lower Murray Water - Urban | O33: LMW-U | P33: diff model
N34: Lower Murray Water - Rural | O34: LMW-R
N35: North East Water | O35: NEW
N36: South East Water | O36: SEW
N37: South Gippsland Water | O37: SGW
N38: Southern Rural Water | O38: SRW | P38: diff model
N39: Wannon Water | O39: WNW
N40: Western Water | O40: WW
N41: Westernport Water | O41: WPW
N42: Yarra Valley Water | O42: YVW

Sheet KeyAssumptionsPriceControl_FO
A1: 80 | B1: Key Assumptions Price Control
B2: =+Contents!H7 -> Barwon Water
B3: Go to Table of Contents
L4: FIRST REG PERIOD | P4: SECOND REG PERIOD | U4: THIRD REG PERIOD | Z4: FOURTH REG PERIOD | AC4: FIFTH REG PERIOD
F6: Straight Line | K6: 2006 | L6: 2007 | M6: 2008 | N6: 2009 | O6: 2010 | P6: 2011 | Q6: 2012 | R6: 2013 | S6: 2014 | T6: 2015 | U6: 2016 | V6: 2017 | W6: 2018 | X6: 2019 | Y6: 2020 | Z6: 2021 | AA6: 2022 | AB6: 2023 | AC6: 2024 | AD6: 2025 | AE6: 2026 | AF6: 2027 | AG6: 2028
F7: Declining Balance | I7: 2003-04 | J7: 2004-05 | K7: =+CONCATENATE(K6-1,"-",RIGHT(K6,2)) -> 2005-06 | L7: =+CONCATENATE(L6-1,"-",RIGHT(L6,2)) -> 2006-07 | M7: 2007-08 | N7: 2008-09 | O7: 2009-10 | P7: 2010-11 | Q7: 2011-12 | R7: 2012-13 | S7: 2013-14 | T7: 2014-15 | U7: 2015-16 | V7: 2016-17 | W7: 2017-18 | X7: 2018-19 | Y7: 2019-20 | Z7: 2020-21 | AA7: 2021-22 | AB7: 2022-23 | AC7: 2023-24 | AD7: 2024-25 | AE7: 2025-26 | AF7: 2026-27 | AG7: 2027-28
E11: Inflation assumptions
W12: Estimate
F13: March quarter annual CPI | I13: 141.3 | J13: 144.1 | K13: 147.5 | L13: 151.9 | M13: 155.6 | N13: 162.2 | O13: 166.2 | P13: 171 | Q13: 176.7 | R13: 99.9 | S13: 102.4 | T13: 105.4 | U13: 106.8 | V13: 108.2 | W13: 110.5
F14: Inflation | J14: =+J13/I13-1 -> 0.01981599434 | K14: 0.02359472588 | L14: 0.02983050847 | M14: 0.02435813035 | N14: 0.04241645244 | O14: 0.02466091245 | P14: 0.02888086643 | Q14: 0.03333333333 | R14: 0.01584606678 | S14: =+IF(S13=0,$X$44,S13/R13-1) -> 0.02502502503 | T14: 0.029296875 | U14: 0.01328273245 | V14: 0.01310861423 | W14: 0.02125693161 | X14: 0.023 | Y14: 0.023 | Z14: 0.023 | AA14: 0.023 | AB14: 0.023 | AC14: 0.023 | AD14: 0.023 | AE14: 0.023 | AF14: 0.023 | AG14: 0.023
F15: Inflation factor | I15: 0.7871866295 | J15: 0.8027855153 | K15: 0.8217270195 | L15: 0.8462395543 | M15: 0.8668523677 | N15: 0.9036211699 | O15: 0.9259052925 | P15: 0.9526462396 | Q15: 0.9844011142 | R15: =+R13/$W$13 -> 0.9040723982 | S15: 0.9266968326 | T15: 0.9538461538 | U15: 0.9665158371 | V15: =+V13/$W$13 -> 0.9791855204 | W15: =+W13/$W$13 -> 1 | X15: =+W15*(1+X14) -> 1.023 | Y15: =+X15*(1+Y14) -> 1.046529 | Z15: 1.070599167 | AA15: 1.095222948 | AB15: 1.120413076 | AC15: 1.146182576 | AD15: 1.172544776 | AE15: 1.199513305 | AF15: 1.227102112 | AG15: 1.25532546
I16: CPI index re-referenced in 2012-13, shaded values have been hardcoded to lock in RAB value.
E21: Cost of debt - 10 year trailing average (Nominal)
V22: Estimate | W22: Estimate
E23: Cost of debt | L23: 0.06981666667 | M23: 0.07414 | N23: 0.0691525788 | O23: 0.07361870984 | P23: 0.07046784142 | Q23: 0.06308887941 | R23: 0.0526945046 | S23: 0.070525 | T23: 0.05360833333 | U23: 0.05270138413 | V23: 0.04908333333 | W23: 0.04908333333
E24: Re-financing weightings - average 10 yrs | L24: =1/10 -> 0.1 | M24: =1/10 -> 0.1 | N24: =1/10 -> 0.1 | O24: =1/10 -> 0.1 | P24: =1/10 -> 0.1 | Q24: 0.1 | R24: 0.1 | S24: 0.1 | T24: 0.1 | U24: 0.1 | V24: 0.1 | W24: 0.1 | X24: 0.1 | Y24: 0.1 | Z24: 0.1 | AA24: 0.1 | AB24: 0.1 | AC24: 0.1 | AD24: 0.1 | AE24: 0.1 | AF24: 0.1 | AG24: 0.1
E26: Cost of debt - 10 year trailing average | V26: =IF(U23<>"",SUMPRODUCT(L23:U23,L24:U24),"") -> 0.06498138982 | W26: =IF(V23<>"",SUMPRODUCT(M23:V23,M24:V24),"") -> 0.06290805649 | X26: =IF(W23<>"",SUMPRODUCT(N23:W23,N24:W24),"") -> 0.06040238982 | Y26: =IF(X23<>"",SUMPRODUCT(O23:X23,O24:X24),"") ->  | Z26: =IF(Y23<>"",SUMPRODUCT(P23:Y23,P24:Y24),"") -> 
E30: WACC assumptions (retained for historical purposes only) | U30: Regulatory Rate of Return (RRR) - Nominal
K32: 1st period | M32: 2nd period | O32: 3rd period | U32: Cost of Debt | X32: =+X26 -> 0.06040238982 | Y32: =+$X$32 -> 0.06040238982 | Z32: 0.06040238982 | AA32: 0.06040238982 | AB32: 0.06040238982 | AC32: 0.06040238982 | AD32: 0.06040238982 | AE32: 0.06040238982 | AF32: 0.06040238982 | AG32: 0.06040238982 | AI32: << Linked to Benchmark tax liability calculation (Rev&RAV_FO)
E33: Parameters
F34: Risk Free Rate (Real) | K34: =+HLOOKUP(Contents!$I$7&1,Determination_Lookup!$C$54:$BD$61,2,FALSE) -> 0.0267 | M34: =+HLOOKUP(Contents!$I$7&2,Determination_Lookup!$C$54:$BD$61,2,FALSE) -> 0.0323 | O34: =+HLOOKUP(Contents!$I$7&3,Determination_Lookup!$C$54:$BD$61,2,FALSE) -> 0.005959
F35: Debt Premium | K35: =+HLOOKUP(Contents!$I$7&1,Determination_Lookup!$C$54:$BD$61,3,FALSE) -> 0.0116 | M35: =+HLOOKUP(Contents!$I$7&2,Determination_Lookup!$C$54:$BD$61,3,FALSE) -> 0.0175 | O35: =+HLOOKUP(Contents!$I$7&3,Determination_Lookup!$C$54:$BD$61,3,FALSE) -> 0.0399
F36: Equity Premium | K36: =+HLOOKUP(Contents!$I$7&1,Determination_Lookup!$C$54:$BD$61,4,FALSE) -> 0.06 | M36: =+HLOOKUP(Contents!$I$7&2,Determination_Lookup!$C$54:$BD$61,4,FALSE) -> 0.06 | O36: =+HLOOKUP(Contents!$I$7&3,Determination_Lookup!$C$54:$BD$61,4,FALSE) -> 0.06 | U36: Regulatory Rate of Return (RRR) - Real
F37: Equity Beta | K37: =+HLOOKUP(Contents!$I$7&1,Determination_Lookup!$C$54:$BD$61,5,FALSE) -> 0.75 | M37: =+HLOOKUP(Contents!$I$7&2,Determination_Lookup!$C$54:$BD$61,5,FALSE) -> 0.65 | O37: =+HLOOKUP(Contents!$I$7&3,Determination_Lookup!$C$54:$BD$61,5,FALSE) -> 0.65
F38: Gearing (Debt/Assets) | K38: =+HLOOKUP(Contents!$I$7&1,Determination_Lookup!$C$54:$BD$61,6,FALSE) -> 0.6 | M38: =+HLOOKUP(Contents!$I$7&2,Determination_Lookup!$C$54:$BD$61,6,FALSE) -> 0.6 | O38: =+HLOOKUP(Contents!$I$7&3,Determination_Lookup!$C$54:$BD$61,6,FALSE) -> 0.6 | U38: Cost of Debt | X38: =(1+X32)/(1+X44)-1 -> 0.03656147587 | Y38: =+$X$38 -> 0.03656147587 | Z38: =+$X$38 -> 0.03656147587 | AA38: 0.03656147587 | AB38: 0.03656147587 | AC38: 0.03656147587 | AD38: 0.03656147587 | AE38: 0.03656147587 | AF38: 0.03656147587 | AG38: 0.03656147587
F39: Forecast Inflation | K39: =+HLOOKUP(Contents!$I$7&1,Determination_Lookup!$C$54:$BD$61,7,FALSE) -> 0.0255 | M39: =+HLOOKUP(Contents!$I$7&2,Determination_Lookup!$C$54:$BD$61,7,FALSE) -> 0.025 | O39: =+HLOOKUP(Contents!$I$7&3,Determination_Lookup!$C$54:$BD$61,7,FALSE) -> 0.0275
F40: Franking credit value | K40: =+HLOOKUP(Contents!$I$7&1,Determination_Lookup!$C$54:$BD$61,8,FALSE) -> 0.5 | M40: =+HLOOKUP(Contents!$I$7&2,Determination_Lookup!$C$54:$BD$61,8,FALSE) -> 0.5 | O40: =+HLOOKUP(Contents!$I$7&3,Determination_Lookup!$C$54:$BD$61,8,FALSE) -> 0.5 | U40: Return on Equity | X40: =IF(AG65<>0,(AG65/100),IF(AG63<>0,(AG63/100),(AG61/100))) -> 0.049 | Y40: =+$X$40 -> 0.049 | Z40: 0.049 | AA40: 0.049 | AB40: 0.049 | AC40: 0.049 | AD40: 0.049 | AE40: 0.049 | AF40: 0.049 | AG40: 0.049 | AI40: << Source: PREMO Assessment Matrix
E42: 'Vanilla' After Tax WACC (Real) | K42: =ROUND(((K34+K36*K37)*(1-K38))+((K34+K35)*K38),3) -> 0.052 | M42: =ROUND(((M34+M36*M37)*(1-M38))+((M34+M35)*M38),3) -> 0.058 | O42: =ROUND(((O34+O36*O37)*(1-O38))+((O34+O35)*O38),3) -> 0.045 | U42: RRR (real) | X42: =ROUND((X40*(1-X43)+X38*X43),3) -> 0.042 | Y42: 0.042 | Z42: 0.042 | AA42: 0.042 | AB42: 0.042 | AC42: 0.042 | AD42: 0.042 | AE42: 0.042 | AF42: 0.042 | AG42: 0.042
U43: Gearing | X43: 0.6 | Y43: =+X43 -> 0.6 | Z43: =+Y43 -> 0.6 | AA43: 0.6 | AB43: 0.6 | AC43: 0.6 | AD43: 0.6 | AE43: 0.6 | AF43: 0.6 | AG43: 0.6
U44: Forecast Inflation | X44: 0.023 | Y44: =+X44 -> 0.023 | Z44: 0.023 | AA44: 0.023 | AB44: 0.023 | AC44: 0.023 | AD44: 0.023 | AE44: 0.023 | AF44: 0.023 | AG44: 0.023
E46: Form of price control selected
E48: Price caps | I48: 2
U49: PREMO Graded Scoring System (for reference only) | AB49: PREMO Assessment Matrix (linked to Regulatory Rate of Return calculation above)
E50: Revenue cap / Hybrid Tariff Basket
V52: Water business | X52: ESC assessment | Z52: Difference | AD52: Water business self-assessment
V53: self-assessment | X53: of submission
AD54: Leading | AE54: Advanced | AF54: Standard | AG54: Basic
U55: Risk | V55: 3.5 | Z55: =IFERROR(IF(X55=0,"",X55-V55),"") ->  | AB55: ESC assessment of submission | AC55: Leading | AD55: 5.3
U56: Engagement | V56: 3.75 | Z56: =IFERROR(IF(X56=0,"",X56-V56),"") ->  | AC56: Advanced | AD56: 4.7 | AE56: 4.9
U57: Management | V57: 3.5 | Z57: =IFERROR(IF(X57=0,"",X57-V57),"") ->  | AC57: Standard | AD57: 4.1 | AE57: 4.3 | AF57: 4.5
U58: Outcomes | V58: 3.5 | Z58: =IFERROR(IF(X58=0,"",X58-V58),"") ->  | AC58: Basic | AF58: 3.9 | AG58: 4.1
U60: Total Score | V60: =SUM(V55:V58) -> 14.25 | X60: =SUM(X55:X58) -> 0 | Z60: =IFERROR(IF(X60=0,"",X60-V60),"") -> 
AB61: Water business self-assessment (Maximum allowable ROE) | AF61: Advanced | AG61: =+VLOOKUP(AF61,$AF$72:$AG$76,2,FALSE) -> 4.9
AB63: ROE Override (Must be less than Maximum allowable ROE) | AG63: =+IF(AF63<=AG61,AF63,"CHECK") -> 0
U64: Rating | V64: =IF(V60<4,"",IF(AND(V60>=4,V60<=7.25),"Basic",IF(AND(V60>=7.5,V60<=11.25),"Standard",IF(AND(V60>=11.5,V60<=15.25),"Advanced",IF(AND(V60>=15.5,V60<=16),"Leading"))))) -> Advanced | X64: =IF(X60<4,"",IF(AND(X60>=4,X60<=7.25),"Basic",IF(AND(X60>=7.5,X60<=11.25),"Standard",IF(AND(X60>=11.5,X60<=15.25),"Advanced",IF(AND(X60>=15.5,X60<=16),"Leading"))))) -> 
AB65: ESC assessment of submission | AG65: =IFERROR(IF(AF65=AF61,AG61,VLOOKUP(AF61&AF65,AF79:AG83,2,FALSE)),0) -> 0
AF67: Difference | AG67: =IFERROR(IF(AG65=0,"",AG65-AG61),"") -> 
U70: ESC USE ONLY
W71: [Select] | Y71: Rating | Z71: Aggregate score for overall PREMO rating | AF71: Business self assessment
W72: 1 | Y72: Leading | Z72: 15.5 to 16.0 | AF72: [Select]
W73: 1.25 | Y73: Advanced | Z73: 11.5 to 15.25 | AF73: Leading | AG73: =+AD55 -> 5.3
W74: 1.5 | Y74: Standard | Z74: 7.5 to 11.25 | AF74: Advanced | AG74: =+AE56 -> 4.9
W75: 1.75 | Y75: Basic | Z75: 4.0 to 7.25 | AF75: Standard | AG75: =+AF57 -> 4.5
W76: 2 | AF76: Basic | AG76: =+AG58 -> 4.1
W77: 2.25
W78: 2.5 | AF78: downgrading
W79: 2.75 | AF79: =AF54&AC58 -> StandardBasic | AG79: =+AF58 -> 3.9
W80: 3 | AF80: =+AE54&AC57 -> AdvancedStandard | AG80: =+AE57 -> 4.3
W81: 3.25 | AF81: =+AD54&AC56 -> LeadingAdvanced | AG81: =+AD56 -> 4.7
W82: 3.5 | AF82: =+AD54&AC57 -> LeadingStandard | AG82: =+AD57 -> 4.1
W83: 3.75 | AF83: =+AF61&"Basic" -> AdvancedBasic | AG83: CHECK
W84: 4

Sheet Opex_FO
B1: Operating Expenditure - Forecast
B2: =+Model_Name -> Barwon Water
B3: Go to Table of Contents
L4: FIRST REG PERIOD | P4: SECOND REG PERIOD | S4: THIRD REG PERIOD | X4: FOURTH REG PERIOD | AC4: FIFTH REG PERIOD
K5: 2006 | L5: 2007 | M5: 2008 | N5: 2009 | O5: 2010 | P5: 2011 | Q5: 2012 | R5: 2013 | S5: 2014 | T5: 2015 | U5: 2016 | V5: 2017 | W5: 2018 | X5: 2019 | Y5: 2020 | Z5: 2021 | AA5: 2022 | AB5: 2023 | AC5: 2024 | AD5: 2025 | AE5: 2026 | AF5: 2027 | AG5: 2028
B6: $m, 01/01/18 | K6: =+CONCATENATE(K5-1,"-",RIGHT(K5,2)) -> 2005-06 | L6: =+CONCATENATE(L5-1,"-",RIGHT(L5,2)) -> 2006-07 | M6: 2007-08 | N6: 2008-09 | O6: 2009-10 | P6: 2010-11 | Q6: 2011-12 | R6: 2012-13 | S6: 2013-14 | T6: 2014-15 | U6: 2015-16 | V6: 2016-17 | W6: 2017-18 | X6: 2018-19 | Y6: 2019-20 | Z6: 2020-21 | AA6: 2021-22 | AB6: 2022-23 | AC6: 2023-24 | AD6: 2024-25 | AE6: 2025-26 | AF6: 2026-27 | AG6: 2027-28
C9: Parameters | F9: 3rd period | H9: 4th period
D11: Cost efficiency improvement rate (% per annum) | F11: 0.01 | H11: =+SUM(X11:AB11)/5 -> 0.02253389274 | X11: 0.04613232134 | Y11: 0.02580368617 | Z11: 0.01248230032 | AA11: 0.008403197966 | AB11: 0.01984795792 | AC11: 0.0162483602 | AD11: 0.01612613445 | AE11: 0.01614676625 | AF11: 0.01616292719 | AG11: 0.01617902991
D13: Customer growth forecast (% per annum) | F13: =AVERAGE(T13:W13) -> 0.01857990485 | H13: =+SUM(X13:AB13)/5 -> 0.01625148962 | T13: =IF(T15="","",T15/S15-1) -> 0.0179532967 | U13: =IF(U15="","",U15/T15-1) -> 0.02161739107 | V13: 0.01880886024 | W13: 0.01594007137 | X13: 0.01608427379 | Y13: 0.01645875794 | Z13: 0.01643752211 | AA13: 0.01609587855 | AB13: 0.01618101571 | AC13: 0.0162483602 | AD13: 0.01612613445 | AE13: 0.01614676625 | AF13: 0.01616292719 | AG13: 0.01617902991
E14: Net baseline opex growth | F14: =IFERROR(F13-F11,"-") -> 0.008579904846 | H14: =IFERROR(H13-H11,"-") -> -0.006282403124
D15: Water customers (No.) - Residential & Non-Residential - [BED 1] | S15: =+Determination_Lookup!BF3 -> 145600 | T15: =+Determination_Lookup!BG3 -> 148214 | U15: =+Determination_Lookup!BH3 -> 151418 | V15: 154266 | W15: =+V$15*(1+W$13) -> 156725.011 | X15: =+W$15*(1+X$13) -> 159245.819 | Y15: =+X$15*(1+Y$13) -> 161866.8074 | Z15: 164527.4967 | AA15: 167175.7113 | AB15: 169880.7841 | AC15: 172641.0682 | AD15: 175425.1013 | AE15: 178257.6494 | AF15: 181138.8148 | AG15: 184069.4651 | AI15: << Used as normalising metric for dashboard graphs
D17: Sewer customers (No.) - Residential & Non-Residential - [BED 2] | S17: =+Determination_Lookup!BJ3 -> 130618 | T17: =+Determination_Lookup!BK3 -> 132877 | U17: =+Determination_Lookup!BL3 -> 135561 | V17: 137852 | W17: =+V$17*(1+W$13) -> 140049.3707 | X17: =+W$17*(1+X$13) -> 142301.9631 | Y17: =+X$17*(1+Y$13) -> 144644.0767 | Z17: 147021.6669 | AA17: 149388.1098 | AB17: 151805.3612 | AC17: 154271.9494 | AD17: 156759.7595 | AE17: 159290.9227 | AF17: 161865.5303 | AG17: 164484.3576 | AI17: << Used as normalising metric for dashboard graphs
D19: Total metered volume of water delivered to customers (ML) - [BED 10] | S19: =+Determination_Lookup!BB3 -> 29418.199 | T19: =+Determination_Lookup!BC3 -> 30533.21787 | U19: =+Determination_Lookup!BD3 -> 35080 | V19: 32939 | W19: =((RevenueTariffBasket_FO!W73+RevenueTariffBasket_FO!W82+RevenueTariffBasket_FO!W94+RevenueTariffBasket_FO!W97)/1000)+1257 -> 33425.99329 | X19: =((RevenueTariffBasket_FO!X73+RevenueTariffBasket_FO!X82+RevenueTariffBasket_FO!X94+RevenueTariffBasket_FO!X97)/1000)+1257 -> 34069.24339 | Y19: =((RevenueTariffBasket_FO!Y73+RevenueTariffBasket_FO!Y82+RevenueTariffBasket_FO!Y94+RevenueTariffBasket_FO!Y97)/1000)+1257 -> 34732.73015 | Z19: =((RevenueTariffBasket_FO!Z73+RevenueTariffBasket_FO!Z82+RevenueTariffBasket_FO!Z94+RevenueTariffBasket_FO!Z97)/1000)+1257 -> 35179.75691 | AA19: =((RevenueTariffBasket_FO!AA73+RevenueTariffBasket_FO!AA82+RevenueTariffBasket_FO!AA94+RevenueTariffBasket_FO!AA97)/1000)+1257 -> 35731.4281 | AB19: =((RevenueTariffBasket_FO!AB73+RevenueTariffBasket_FO!AB82+RevenueTariffBasket_FO!AB94+RevenueTariffBasket_FO!AB97)/1000)+1257 -> 36302.28976 | AC19: =((RevenueTariffBasket_FO!AC73+RevenueTariffBasket_FO!AC82+RevenueTariffBasket_FO!AC94+RevenueTariffBasket_FO!AC97)/1000)+1257 -> 37010.6176 | AD19: =((RevenueTariffBasket_FO!AD73+RevenueTariffBasket_FO!AD82+RevenueTariffBasket_FO!AD94+RevenueTariffBasket_FO!AD97)/1000)+1257 -> 37474.89251 | AE19: =((RevenueTariffBasket_FO!AE73+RevenueTariffBasket_FO!AE82+RevenueTariffBasket_FO!AE94+RevenueTariffBasket_FO!AE97)/1000)+1257 -> 38054.12041 | AF19: =((RevenueTariffBasket_FO!AF73+RevenueTariffBasket_FO!AF82+RevenueTariffBasket_FO!AF94+RevenueTariffBasket_FO!AF97)/1000)+1257 -> 38632.80414 | AG19: =((RevenueTariffBasket_FO!AG73+RevenueTariffBasket_FO!AG82+RevenueTariffBasket_FO!AG94+RevenueTariffBasket_FO!AG97)/1000)+1257 -> 39194.66184 | AI19: << Used as normalising metric for dashboard graphs
D20: Residential, Non-Residential & Recycled (Residential & Non-Residential)
C24: Baseline Forecast
D26: Baseline year - total prescribed operating expenditure in 2016-17: | V26: =+Opex_Breakdown!V37 -> 118.0041298
D28: Less non-controllable expenditure items incurred in 2016-17:
E29: External bulk water charges (excl. temporary purchases) | V29: =+Opex_Breakdown!V29 -> 21.64835413
E30: External temporary water purchases | V30: =+Opex_Breakdown!V30 -> 0.2503530055 | X30: Comparison with approved 2016-17 total controllable opex
E31: Licence fees | V31: =+Opex_Breakdown!V31 -> 0.3746377503 | X31: per 2013 determination model
E32: Environment Contribution | V32: =+Opex_Breakdown!V32 -> 6.789437104
E33: Other non-controllable | V33: =+Opex_Breakdown!V33 -> 5.232138679
V34: =SUM(V29:V33) -> 34.29492066 | Y34: 2016-17 | Z34: Difference | AA34: %
D36: Baseline year - total controllable operating expenditure in 2016-17: | V36: =+V26-V34 -> 83.70920918 | Y36: =+Determination_Lookup!AX3 -> 98.51134983 | Z36: =+V52-Y36 -> -15.22914065 | AA36: =+Z36/Y36 -> -0.1545927518
D38: Adjustments for non-recurring expenditure items incurred in 2016-17 and any efficiency savings to be realised from 2016-17: | X38: ($, 2017-18)
D40: 1 | E40: Rental - Mercer Street and Malop Street | V40: 0.427
D41: 2
D42: 3
D43: 4
D44: 5
D45: 6
D46: 7
D47: 8
D48: 9
D49: 10
V50: =SUM(V40:V49) -> 0.427
D52: Baseline controllable operating expenditure (2016-17) | V52: =+V36-V50 -> 83.28220918
D54: Adjusted Baseline controllable operating expenditure (Forecast) | W54: =+V52*(1+$W$13-$F$11) -> 83.77691145 | X54: =+$W$54*(1+X$13-X$11) -> 81.25957883 | Y54: =+X$54*(1+Y$13-Y$11) -> 80.5002139 | Z54: 80.8186101 | AA54: 81.44032185 | AB54: 81.1416849 | AC54: 81.1416849 | AD54: 81.1416849 | AE54: 81.1416849 | AF54: 81.1416849 | AG54: 81.1416849
C58: Operating expenditure - reconciliation
D61: Adjusted Baseline controllable operating expenditure (Forecast) | X61: =+X54 -> 81.25957883 | Y61: 80.5002139 | Z61: 80.8186101 | AA61: 81.44032185 | AB61: 81.1416849 | AC61: 81.1416849 | AD61: 81.1416849 | AE61: 81.1416849 | AF61: 81.1416849 | AG61: 81.1416849
H62: Controllable
D63: Forecast variations to baseline operating expenditure (above or below baseline) | H63: only
D65: 1 | E65: Biosolids - Sludge Removal costs - Contract increase due to gas price increase | H65: Sewerage | X65: 1.233571 | Y65: 1.233571 | Z65: 1.233571 | AA65: 1.233571 | AB65: 1.233571 | AC65: 1.233571 | AD65: 1.233571 | AE65: 1.233571 | AF65: 1.233571 | AG65: 1.233571
D66: 2 | E66: Labour increase due to EA increases of 3.25% and 3.00% and FTE increase | H66: Water | X66: 0.7535963431 | Y66: 0.8810748083 | Z66: 1.007318889 | AA66: 1.007318889 | AB66: 1.007318889 | AC66: 1.007318889 | AD66: 1.007318889 | AE66: 1.007318889 | AF66: 1.007318889 | AG66: 1.007318889
D67: 3 | E67: Labour increase due to EA increases of 3.25% and 3.00% and FTE increase | H67: Sewerage | X67: 0.4273021681 | Y67: 0.499584664 | Z67: 0.5711672425 | AA67: 0.5711672425 | AB67: 0.5711672425 | AC67: 0.5711672425 | AD67: 0.5711672425 | AE67: 0.5711672425 | AF67: 0.5711672425 | AG67: 0.5711672425
D68: 4 | E68: Labour increase due to EA increases of 3.25% and 3.00% and FTE increase | H68: Recycled Water | X68: 0.09781153757 | Y68: 0.1142078645 | Z68: 0.1305720447 | AA68: 0.1305720447 | AB68: 0.1305720447 | AC68: 0.1305720447 | AD68: 0.1305720447 | AE68: 0.1305720447 | AF68: 0.1305720447 | AG68: 0.1305720447
D69: 5 | E69: Customer preference 1 - Support for vulnerable customers that may have difficulty paying their bills | H69: Water | X69: 0.5 | Y69: 0.5 | Z69: 0.5 | AA69: 0.5 | AB69: 0.5 | AC69: 0.5 | AD69: 0.5 | AE69: 0.5 | AF69: 0.5 | AG69: 0.5
D70: 6 | E70: Customer preference 2 - Expanded water efficiency and literacy program | H70: Water | X70: 0.5 | Y70: 0.5 | Z70: 0.5 | AA70: 0.5 | AB70: 0.5 | AC70: 0.5 | AD70: 0.5 | AE70: 0.5 | AF70: 0.5 | AG70: 0.5
D71: 7 | E71: Customer preference 3 - Recognising Aboriginal values of water, with an emphasis on specfficl local colaborative projects | H71: Water | X71: 0.1125 | Y71: 0.1125 | Z71: 0.1125 | AA71: 0.1125 | AB71: 0.1125 | AC71: 0.1125 | AD71: 0.1125 | AE71: 0.1125 | AF71: 0.1125 | AG71: 0.1125
D72: 8 | E72: Customer preference 11 - Increased reimbursement for customers receiving a sewer spill to their property | H72: Water | X72: 0.175 | Y72: 0.175 | Z72: 0.175 | AA72: 0.175 | AB72: 0.175 | AC72: 0.175 | AD72: 0.175 | AE72: 0.175 | AF72: 0.175 | AG72: 0.175
D73: 9 | E73: Customer preference 14 - Education program to change community perception about using recycled water | H73: Recycled Water | X73: 0.1 | Y73: 0.1 | Z73: 0.1 | AA73: 0.1 | AB73: 0.1 | AC73: 0.1 | AD73: 0.1 | AE73: 0.1 | AF73: 0.1 | AG73: 0.1
D74: 10 | E74: Electricity price increases, solar commissioning and 4th tank | H74: Water | X74: 0.8134875137 | Y74: 0.7611846931 | Z74: 0.4026765476 | AA74: 0.4797867268 | AB74: 0.49919703 | AC74: 0.49919703 | AD74: 0.49919703 | AE74: 0.49919703 | AF74: 0.49919703 | AG74: 0.49919703
D75: 11 | E75: Electricity price increases, solar commissioning and 4th tank | H75: Sewerage | X75: 0.4612614983 | Y75: 0.4316048939 | Z75: 0.2283245711 | AA75: 0.2720473772 | AB75: 0.283053355 | AC75: 0.283053355 | AD75: 0.283053355 | AE75: 0.283053355 | AF75: 0.283053355 | AG75: 0.283053355
D76: 12 | E76: Electricity price increases, solar commissioning and 4th tank | H76: Recycled Water | X76: 0.1054469733 | Y76: 0.09866730668 | Z76: 0.05219628136 | AA76: 0.06219156079 | AB76: 0.06470758922 | AC76: 0.06470758922 | AD76: 0.06470758922 | AE76: 0.06470758922 | AF76: 0.06470758922 | AG76: 0.06470758922
D77: 13 | H77: [Service]
D78: 14 | H78: [Service]
D79: 15 | H79: [Service]
D81: Total changes required to baseline operating expenditure | X81: =SUM(X65:X80) -> 5.279977034 | Y81: 5.407395231 | Z81: 5.013326576 | AA81: 5.144154841 | AB81: 5.17708715 | AC81: 5.17708715 | AD81: 5.17708715 | AE81: 5.17708715 | AF81: 5.17708715 | AG81: 5.17708715
W82: % Change in baseline opex per annum | X82: =IFERROR(X81/X61,"-") -> 0.06497667241 | Y82: =IFERROR(Y81/Y61,"-") -> 0.06717243308 | Z82: 0.06203183363 | AA82: 0.06316471649 | AB82: 0.06380305212 | AC82: 0.06380305212 | AD82: 0.06380305212 | AE82: 0.06380305212 | AF82: 0.06380305212 | AG82: 0.06380305212
W83: % Change in baseline opex per reg period | AB83: =IFERROR(AVERAGE(X82:AB82),"-") -> 0.06422974155 | AG83: =IFERROR(AVERAGE(AC82:AG82),"-") -> 0.06380305212
D84: Total controllable operating expenditure | X84: =+X81+X61 -> 86.53955586 | Y84: 85.90760913 | Z84: 85.83193667 | AA84: 86.58447669 | AB84: 86.31877205 | AC84: 86.31877205 | AD84: 86.31877205 | AE84: 86.31877205 | AF84: 86.31877205 | AG84: 86.31877205
W85: Controllable Opex growth from baseline to 5th year | AB85: =IFERROR(AB84-V52,"-") -> 3.036562864 | AC85: =IFERROR(AB84/V52-1,"-") -> 0.0364611229
D86: Non-controllable operating expenditure
D87: External bulk water charges (excl. temporary purchases) | X87: =+Opex_Breakdown!X29 -> 0 | Y87: =+Opex_Breakdown!Y29 -> 0 | Z87: =+Opex_Breakdown!Z29 -> 0 | AA87: =+Opex_Breakdown!AA29 -> 0 | AB87: =+Opex_Breakdown!AB29 -> 0 | AC87: =+Opex_Breakdown!AC29 -> 5.518703443 | AD87: =+Opex_Breakdown!AD29 -> 5.518703443 | AE87: =+Opex_Breakdown!AE29 -> 5.518703443 | AF87: =+Opex_Breakdown!AF29 -> 5.518703443 | AG87: =+Opex_Breakdown!AG29 -> 5.518703443
D88: External temporary water purchases | X88: =+Opex_Breakdown!X30 -> 0 | Y88: =+Opex_Breakdown!Y30 -> 0 | Z88: =+Opex_Breakdown!Z30 -> 0 | AA88: =+Opex_Breakdown!AA30 -> 0 | AB88: =+Opex_Breakdown!AB30 -> 0 | AC88: =+Opex_Breakdown!AC30 -> 0 | AD88: =+Opex_Breakdown!AD30 -> 0 | AE88: =+Opex_Breakdown!AE30 -> 0 | AF88: =+Opex_Breakdown!AF30 -> 0 | AG88: =+Opex_Breakdown!AG30 -> 0
D89: Licence fees | X89: =+Opex_Breakdown!X31 -> 0.4588887122 | Y89: =+Opex_Breakdown!Y31 -> 0.4588887091 | Z89: =+Opex_Breakdown!Z31 -> 0.458888701 | AA89: =+Opex_Breakdown!AA31 -> 0.4588887069 | AB89: =+Opex_Breakdown!AB31 -> 0.4588887053 | AC89: =+Opex_Breakdown!AC31 -> 0.4588887053 | AD89: =+Opex_Breakdown!AD31 -> 0.4588887053 | AE89: =+Opex_Breakdown!AE31 -> 0.4588887053 | AF89: =+Opex_Breakdown!AF31 -> 0.4588887053 | AG89: =+Opex_Breakdown!AG31 -> 0.4588887053
D90: Environment Contribution | X90: =+Opex_Breakdown!X32 -> 8.204878049 | Y90: =+Opex_Breakdown!Y32 -> 8.004759072 | Z90: =+Opex_Breakdown!Z32 -> 8.204877817 | AA90: =+Opex_Breakdown!AA32 -> 8.004758845 | AB90: =+Opex_Breakdown!AB32 -> 7.809520825 | AC90: =+Opex_Breakdown!AC32 -> 7.809520825 | AD90: =+Opex_Breakdown!AD32 -> 7.809520825 | AE90: =+Opex_Breakdown!AE32 -> 7.809520825 | AF90: =+Opex_Breakdown!AF32 -> 7.809520825 | AG90: =+Opex_Breakdown!AG32 -> 7.809520825
D91: Other non-controllable | X91: =+Opex_Breakdown!X33 -> 4.878652683 | Y91: =+Opex_Breakdown!Y33 -> 4.667595003 | Z91: =+Opex_Breakdown!Z33 -> 4.439066409 | AA91: =+Opex_Breakdown!AA33 -> 4.191618923 | AB91: =+Opex_Breakdown!AB33 -> 3.923686384 | AC91: =+Opex_Breakdown!AC33 -> 3.923686384 | AD91: =+Opex_Breakdown!AD33 -> 3.923686384 | AE91: =+Opex_Breakdown!AE33 -> 3.923686384 | AF91: =+Opex_Breakdown!AF33 -> 3.923686384 | AG91: =+Opex_Breakdown!AG33 -> 3.923686384
D92: Total non-controllable operating expenditure | X92: =SUM(X87:X91) -> 13.54241944 | Y92: 13.13124278 | Z92: 13.10283293 | AA92: 12.65526648 | AB92: 12.19209591 | AC92: 17.71079936 | AD92: 17.71079936 | AE92: 17.71079936 | AF92: 17.71079936 | AG92: 17.71079936
W93: Non-controllable Opex growth from baseline to 5th year | AB93: =IFERROR(AB92-V34,"-") -> -22.10282475 | AC93: =IFERROR(AB92/V34-1,"-") -> -0.6444926631
D95: Total prescribed operating expenditure | X95: =+X92+X84 -> 100.0819753 | Y95: 99.03885191 | Z95: 98.9347696 | AA95: 99.23974317 | AB95: 98.51086796 | AC95: 104.0295714 | AD95: 104.0295714 | AE95: 104.0295714 | AF95: 104.0295714 | AG95: =+AG92+AG84 -> 104.0295714
W96: Prescribed Opex growth from baseline to 5th year | AB96: =IFERROR(AB95-(V52+V34),"-") -> -19.06626189 | AC96: =IFERROR((AB95/(V52+V34))-1,"-") -> -0.1621596131
W98: To reconcile to 'Opex_Breakdown' tab row 37 >> | X98: =+Opex_Breakdown!X37 -> 100.0819753 | Y98: =+Opex_Breakdown!Y37 -> 99.03885191 | Z98: =+Opex_Breakdown!Z37 -> 98.9347696 | AA98: =+Opex_Breakdown!AA37 -> 99.23974317 | AB98: =+Opex_Breakdown!AB37 -> 98.51086796 | AC98: =+Opex_Breakdown!AC37 -> 104.0295714 | AD98: =+Opex_Breakdown!AD37 -> 104.0295714 | AE98: =+Opex_Breakdown!AE37 -> 104.0295714 | AF98: =+Opex_Breakdown!AF37 -> 104.0295714 | AG98: =+Opex_Breakdown!AG37 -> 104.0295714
W99: Difference | X99: =+X98-X95 -> 0 | Y99: 0 | Z99: 0 | AA99: 0 | AB99: 0 | AC99: 0 | AD99: 0 | AE99: 0 | AF99: 0 | AG99: 0
W100: Test | X100: =+X98=X95 -> TRUE | Y100: TRUE | Z100: TRUE | AA100: TRUE | AB100: TRUE | AC100: TRUE | AD100: TRUE | AE100: TRUE | AF100: TRUE | AG100: TRUE
X139: =+X$160 -> 2018-19 | Y139: 2019-20 | Z139: 2020-21 | AA139: 2021-22 | AB139: 2022-23 | AC139: 2023-24 | AD139: 2024-25 | AE139: 2025-26 | AF139: 2026-27 | AG139: 2027-28
W140: Total controllable opex | X140: =+X84 -> 86.53955586 | Y140: 85.90760913 | Z140: 85.83193667 | AA140: 86.58447669 | AB140: 86.31877205 | AC140: 86.31877205 | AD140: 86.31877205 | AE140: 86.31877205 | AF140: 86.31877205 | AG140: 86.31877205
W141: Change - $ | Y141: =+Y140-X140 -> -0.6319467355 | Z141: -0.07567245374 | AA141: 0.7525400172 | AB141: -0.265704645 | AC141: 0 | AD141: 0 | AE141: 0 | AF141: 0 | AG141: 0
W142: Change - % | Y142: =IFERROR(Y141/X140,"") -> -0.007302403268 | Z142: -0.0008808585701 | AA142: 0.008767599176 | AB142: -0.003068733047 | AC142: 0 | AD142: 0 | AE142: 0 | AF142: 0 | AG142: 0
X144: =+X$160 -> 2018-19 | Y144: 2019-20 | Z144: 2020-21 | AA144: 2021-22 | AB144: 2022-23 | AC144: 2023-24 | AD144: 2024-25 | AE144: 2025-26 | AF144: 2026-27 | AG144: 2027-28
W145: Total non-controllable opex | X145: =+X92 -> 13.54241944 | Y145: 13.13124278 | Z145: 13.10283293 | AA145: 12.65526648 | AB145: 12.19209591 | AC145: 17.71079936 | AD145: 17.71079936 | AE145: 17.71079936 | AF145: 17.71079936 | AG145: 17.71079936
W146: Change - $ | Y146: =+Y145-X145 -> -0.4111766598 | Z146: -0.02840985708 | AA146: -0.4475664514 | AB146: -0.4631705611 | AC146: 5.518703443 | AD146: 0 | AE146: 0 | AF146: 0 | AG146: 0
W147: Change - % | Y147: =IFERROR(Y146/X145,"") -> -0.03036212706 | Z147: -0.002163531476 | AA147: -0.03415799117 | AB147: -0.03659903661 | AC147: 0.4526459997 | AD147: 0 | AE147: 0 | AF147: 0 | AG147: 0
X149: =+X$160 -> 2018-19 | Y149: 2019-20 | Z149: 2020-21 | AA149: 2021-22 | AB149: 2022-23 | AC149: 2023-24 | AD149: 2024-25 | AE149: 2025-26 | AF149: 2026-27 | AG149: 2027-28
W150: Total prescribed opex | X150: =+X140+X145 -> 100.0819753 | Y150: 99.03885191 | Z150: 98.9347696 | AA150: 99.23974317 | AB150: 98.51086796 | AC150: 104.0295714 | AD150: 104.0295714 | AE150: 104.0295714 | AF150: 104.0295714 | AG150: 104.0295714
W151: Change - $ | Y151: =+Y150-X150 -> -1.043123395 | Z151: -0.1040823108 | AA151: 0.3049735658 | AB151: -0.728875206 | AC151: 5.518703443 | AD151: 0 | AE151: 0 | AF151: 0 | AG151: 0
W152: Change - % | Y152: =IFERROR(Y151/X150,"") -> -0.01042268992 | Z152: -0.001050924045 | AA152: 0.003082572154 | AB152: -0.007344589806 | AC152: 0.05602126504 | AD152: 0 | AE152: 0 | AF152: 0 | AG152: 0
W155: Controllable vs. Non-controllable opex - % | X155: =+X$160 -> 2018-19 | Y155: 2019-20 | Z155: 2020-21 | AA155: 2021-22 | AB155: 2022-23 | AC155: 2023-24 | AD155: 2024-25 | AE155: 2025-26 | AF155: 2026-27 | AG155: 2027-28
W156: Controllable opex - % | X156: =+X84/X95 -> 0.864686729 | Y156: 0.8674132168 | Z156: 0.8675608891 | AA156: 0.8724778393 | AB156: 0.876236032 | AC156: 0.8297522606 | AD156: 0.8297522606 | AE156: 0.8297522606 | AF156: 0.8297522606 | AG156: 0.8297522606
W157: Non-controllable opex - % | X157: =+X92/X95 -> 0.135313271 | Y157: 0.1325867832 | Z157: 0.1324391109 | AA157: 0.1275221607 | AB157: 0.123763968 | AC157: 0.1702477394 | AD157: 0.1702477394 | AE157: 0.1702477394 | AF157: 0.1702477394 | AG157: 0.1702477394
X158: =SUM(X156:X157) -> 1 | Y158: 1 | Z158: 1 | AA158: 1 | AB158: 1 | AC158: 1 | AD158: 1 | AE158: 1 | AF158: 1 | AG158: 1
V160: =+V6 -> 2016-17 | W160: 2017-18 | X160: 2018-19 | Y160: 2019-20 | Z160: 2020-21 | AA160: 2021-22 | AB160: 2022-23 | AC160: 2023-24 | AD160: 2024-25 | AE160: 2025-26 | AF160: 2026-27 | AG160: 2027-28
U161: Third Reg period Opex | V161: =+V169-SUM(V162:V168) -> 83.70920918 | W161: =+W169-SUM(W162:W168) -> 86.34131429
U162: Adjusted baseline opex | X162: =+X61 -> 81.25957883 | Y162: 80.5002139 | Z162: 80.8186101 | AA162: 81.44032185 | AB162: 81.1416849 | AC162: 81.1416849 | AD162: 81.1416849 | AE162: 81.1416849 | AF162: 81.1416849 | AG162: 81.1416849
U163: Forecast variations to baseline operating expenditure | X163: =+X81 -> 5.279977034 | Y163: 5.407395231 | Z163: 5.013326576 | AA163: 5.144154841 | AB163: 5.17708715 | AC163: 5.17708715 | AD163: 5.17708715 | AE163: 5.17708715 | AF163: 5.17708715 | AG163: 5.17708715
U164: Licence fees | V164: =+V193 -> 0.3746377503 | W164: =+W193 -> 0.45888872 | X164: =+X89 -> 0.4588887122 | Y164: 0.4588887091 | Z164: 0.458888701 | AA164: 0.4588887069 | AB164: 0.4588887053 | AC164: 0.4588887053 | AD164: 0.4588887053 | AE164: 0.4588887053 | AF164: 0.4588887053 | AG164: 0.4588887053
U165: Environment Contribution | V165: =+V194 -> 6.789437104 | W165: =+W194 -> 6.651 | X165: =+X90 -> 8.204878049 | Y165: 8.004759072 | Z165: 8.204877817 | AA165: 8.004758845 | AB165: 7.809520825 | AC165: 7.809520825 | AD165: 7.809520825 | AE165: 7.809520825 | AF165: 7.809520825 | AG165: 7.809520825
U166: External bulk water charges | V166: =+V191 -> 21.64835413 | W166: =+W191 -> 0 | X166: =+X87 -> 0 | Y166: 0 | Z166: 0 | AA166: 0 | AB166: 0 | AC166: 5.518703443 | AD166: 5.518703443 | AE166: 5.518703443 | AF166: 5.518703443 | AG166: 5.518703443
U167: External temporary water purchases | V167: =+V192 -> 0.2503530055 | W167: =+W192 -> 0 | X167: =+X88 -> 0 | Y167: 0 | Z167: 0 | AA167: 0 | AB167: 0 | AC167: 0 | AD167: 0 | AE167: 0 | AF167: 0 | AG167: 0
U168: Other non-controllable | V168: =+V195 -> 5.232138679 | W168: =+W195 -> 5.073574 | X168: =+X91 -> 4.878652683 | Y168: 4.667595003 | Z168: 4.439066409 | AA168: 4.191618923 | AB168: 3.923686384 | AC168: 3.923686384 | AD168: 3.923686384 | AE168: 3.923686384 | AF168: 3.923686384 | AG168: 3.923686384
U169: Total prescribed opex | V169: =+Opex_Breakdown!V37 -> 118.0041298 | W169: =+Opex_Breakdown!W37 -> 98.52477701 | X169: =SUM(X162:X168) -> 100.0819753 | Y169: 99.03885191 | Z169: 98.9347696 | AA169: 99.23974317 | AB169: 98.51086796 | AC169: 104.0295714 | AD169: 104.0295714 | AE169: 104.0295714 | AF169: 104.0295714 | AG169: 104.0295714
X171: =+X$160 -> 2018-19 | Y171: 2019-20 | Z171: 2020-21 | AA171: 2021-22 | AB171: 2022-23 | AC171: 2023-24 | AD171: 2024-25 | AE171: 2025-26 | AF171: 2026-27 | AG171: 2027-28
W172: Adjusted baseline opex | X172: =+X162/X$169 -> 0.811930206 | Y172: 0.8128144899 | Z172: 0.8168878386 | AA172: 0.820642207 | AB172: 0.82368257 | AC172: 0.7799867269 | AD172: 0.7799867269 | AE172: 0.7799867269 | AF172: 0.7799867269 | AG172: 0.7799867269
W173: Forecast variations to baseline operating expenditure | X173: =+X163/X$169 -> 0.05275652302 | Y173: 0.05459872693 | Z173: 0.0506730505 | AA173: 0.05183563235 | AB173: 0.05255346194 | AC173: 0.04976553378 | AD173: 0.04976553378 | AE173: 0.04976553378 | AF173: 0.04976553378 | AG173: 0.04976553378
W174: Licence fees | X174: =+X164/X$169 -> 0.004585128449 | Y174: 0.00463342113 | Z174: 0.004638295544 | AA174: 0.004624041661 | AB174: 0.004658254615 | AC174: 0.004411137133 | AD174: 0.004411137133 | AE174: 0.004411137133 | AF174: 0.004411137133 | AG174: 0.004411137133
W175: Environment Contribution | X175: =+X165/X$169 -> 0.08198157584 | Y175: 0.08082443321 | Z175: 0.08293219714 | AA175: 0.08066081783 | AB175: 0.07927572852 | AC175: 0.0750702009 | AD175: 0.0750702009 | AE175: 0.0750702009 | AF175: 0.0750702009 | AG175: 0.0750702009
W176: External bulk water charges (excl. temporary purchases) | X176: =+X166/X$169 -> 0 | Y176: 0 | Z176: 0 | AA176: 0 | AB176: 0 | AC176: 0.0530493721 | AD176: 0.0530493721 | AE176: 0.0530493721 | AF176: 0.0530493721 | AG176: 0.0530493721
W177: External temporary water purchases | X177: =+X167/X$169 -> 0 | Y177: 0 | Z177: 0 | AA177: 0 | AB177: 0 | AC177: 0 | AD177: 0 | AE177: 0 | AF177: 0 | AG177: 0
W178: Other non-controllable | X178: =+X168/X$169 -> 0.04874656668 | Y178: 0.04712892883 | Z178: 0.04486861825 | AA178: 0.0422373012 | AB178: 0.03982998491 | AC178: 0.03771702922 | AD178: 0.03771702922 | AE178: 0.03771702922 | AF178: 0.03771702922 | AG178: 0.03771702922
W179: Total prescribed opex | X179: =+X169/X$169 -> 1 | Y179: 1 | Z179: 1 | AA179: 1 | AB179: 1 | AC179: 1 | AD179: 1 | AE179: 1 | AF179: 1 | AG179: 1
X181: =+X$160 -> 2018-19 | Y181: 2019-20 | Z181: 2020-21 | AA181: 2021-22 | AB181: 2022-23 | AC181: 2023-24 | AD181: 2024-25 | AE181: 2025-26 | AF181: 2026-27 | AG181: 2027-28
W182: Water | X182: =+SUMIF($H$65:$H$80,$W182,X$65:X$80) -> 2.854583857 | Y182: 2.929759501 | Z182: 2.697495437 | AA182: 2.774605616 | AB182: 2.794015919 | AC182: 2.794015919 | AD182: 2.794015919 | AE182: 2.794015919 | AF182: 2.794015919 | AG182: 2.794015919
W183: Sewerage | X183: 2.122134666 | Y183: 2.164760558 | Z183: 2.033062814 | AA183: 2.07678562 | AB183: 2.087791597 | AC183: 2.087791597 | AD183: 2.087791597 | AE183: 2.087791597 | AF183: 2.087791597 | AG183: 2.087791597
W184: Recycled Water | X184: 0.3032585108 | Y184: 0.3128751712 | Z184: 0.282768326 | AA184: 0.2927636054 | AB184: 0.2952796339 | AC184: 0.2952796339 | AD184: 0.2952796339 | AE184: 0.2952796339 | AF184: 0.2952796339 | AG184: 0.2952796339
W185: Rural water | X185: 0 | Y185: 0 | Z185: 0 | AA185: 0 | AB185: 0 | AC185: 0 | AD185: 0 | AE185: 0 | AF185: 0 | AG185: 0
W186: Bulk Water | X186: 0 | Y186: 0 | Z186: 0 | AA186: 0 | AB186: 0 | AC186: 0 | AD186: 0 | AE186: 0 | AF186: 0 | AG186: 0
W187: Forecast variations to baseline operating expenditure | X187: =SUM(X182:X186) -> 5.279977034 | Y187: 5.407395231 | Z187: 5.013326576 | AA187: 5.144154841 | AB187: 5.17708715 | AC187: 5.17708715 | AD187: 5.17708715 | AE187: 5.17708715 | AF187: 5.17708715 | AG187: 5.17708715
V190: =+V6 -> 2016-17 | W190: 2017-18 | X190: 2018-19 | Y190: 2019-20 | Z190: 2020-21 | AA190: 2021-22 | AB190: 2022-23 | AC190: 2023-24 | AD190: 2024-25 | AE190: 2025-26 | AF190: 2026-27 | AG190: 2027-28
U191: External bulk water charges (excl. temporary purchases) | V191: =+Opex_Breakdown!V29 -> 21.64835413 | W191: =+Opex_Breakdown!W29 -> 0 | X191: =+X87 -> 0 | Y191: 0 | Z191: 0 | AA191: 0 | AB191: 0 | AC191: 5.518703443 | AD191: 5.518703443 | AE191: 5.518703443 | AF191: 5.518703443 | AG191: 5.518703443
U192: External temporary water purchases | V192: =+Opex_Breakdown!V30 -> 0.2503530055 | W192: =+Opex_Breakdown!W30 -> 0 | X192: =+X88 -> 0 | Y192: 0 | Z192: 0 | AA192: 0 | AB192: 0 | AC192: 0 | AD192: 0 | AE192: 0 | AF192: 0 | AG192: 0
U193: Licence fees | V193: =+Opex_Breakdown!V31 -> 0.3746377503 | W193: =+Opex_Breakdown!W31 -> 0.45888872 | X193: =+X89 -> 0.4588887122 | Y193: 0.4588887091 | Z193: 0.458888701 | AA193: 0.4588887069 | AB193: 0.4588887053 | AC193: 0.4588887053 | AD193: 0.4588887053 | AE193: 0.4588887053 | AF193: 0.4588887053 | AG193: 0.4588887053
U194: Environment Contribution | V194: =+Opex_Breakdown!V32 -> 6.789437104 | W194: =+Opex_Breakdown!W32 -> 6.651 | X194: =+X90 -> 8.204878049 | Y194: 8.004759072 | Z194: 8.204877817 | AA194: 8.004758845 | AB194: 7.809520825 | AC194: 7.809520825 | AD194: 7.809520825 | AE194: 7.809520825 | AF194: 7.809520825 | AG194: 7.809520825
U195: Other non-controllable | V195: =+Opex_Breakdown!V33 -> 5.232138679 | W195: =+Opex_Breakdown!W33 -> 5.073574 | X195: =+X91 -> 4.878652683 | Y195: 4.667595003 | Z195: 4.439066409 | AA195: 4.191618923 | AB195: 3.923686384 | AC195: 3.923686384 | AD195: 3.923686384 | AE195: 3.923686384 | AF195: 3.923686384 | AG195: 3.923686384
U196: Total Non-controllable operating expenditure | V196: =+Opex_Breakdown!V34 -> 34.29492066 | W196: =+Opex_Breakdown!W34 -> 12.18346272 | X196: =SUM(X191:X195) -> 13.54241944 | Y196: 13.13124278 | Z196: 13.10283293 | AA196: 12.65526648 | AB196: 12.19209591 | AC196: 17.71079936 | AD196: 17.71079936 | AE196: 17.71079936 | AF196: 17.71079936 | AG196: 17.71079936
V198: ERROR CHECK | X198: =+X169=X95 -> TRUE | Y198: TRUE | Z198: TRUE | AA198: TRUE | AB198: TRUE | AC198: TRUE | AD198: TRUE | AE198: TRUE | AF198: TRUE | AG198: TRUE
X199: =+X187=X163 -> TRUE | Y199: TRUE | Z199: TRUE | AA199: TRUE | AB199: TRUE | AC199: TRUE | AD199: TRUE | AE199: TRUE | AF199: TRUE | AG199: TRUE
X200: =+X150=X169 -> TRUE | Y200: TRUE | Z200: TRUE | AA200: TRUE | AB200: TRUE | AC200: TRUE | AD200: TRUE | AE200: TRUE | AF200: TRUE | AG200: TRUE
X201: =+X196=X145 -> TRUE | Y201: TRUE | Z201: TRUE | AA201: TRUE | AB201: TRUE | AC201: TRUE | AD201: TRUE | AE201: TRUE | AF201: TRUE | AG201: TRUE

Sheet Opex_Breakdown
A1: 80 | B1: Operating Expenditure - Breakdown
B2: =+Contents!H7 -> Barwon Water
B3: Go to Table of Contents
L4: FIRST REG PERIOD | P4: SECOND REG PERIOD | U4: THIRD REG PERIOD | Z4: FOURTH REG PERIOD | AC4: FIFTH REG PERIOD
K6: 2006 | L6: 2007 | M6: 2008 | N6: 2009 | O6: 2010 | P6: 2011 | Q6: 2012 | R6: 2013 | S6: 2014 | T6: 2015 | U6: 2016 | V6: 2017 | W6: 2018 | X6: 2019 | Y6: 2020 | Z6: 2021 | AA6: 2022 | AB6: 2023 | AC6: 2024 | AD6: 2025 | AE6: 2026 | AF6: 2027 | AG6: 2028
B7: $m, 01/01/18 | K7: =+CONCATENATE(K6-1,"-",RIGHT(K6,2)) -> 2005-06 | L7: =+CONCATENATE(L6-1,"-",RIGHT(L6,2)) -> 2006-07 | M7: 2007-08 | N7: 2008-09 | O7: 2009-10 | P7: 2010-11 | Q7: 2011-12 | R7: 2012-13 | S7: 2013-14 | T7: 2014-15 | U7: 2015-16 | V7: 2016-17 | W7: 2017-18 | X7: =+CONCATENATE(X6-1,"-",RIGHT(X6,2)) -> 2018-19 | Y7: =+CONCATENATE(Y6-1,"-",RIGHT(Y6,2)) -> 2019-20 | Z7: =+CONCATENATE(Z6-1,"-",RIGHT(Z6,2)) -> 2020-21 | AA7: =+CONCATENATE(AA6-1,"-",RIGHT(AA6,2)) -> 2021-22 | AB7: =+CONCATENATE(AB6-1,"-",RIGHT(AB6,2)) -> 2022-23 | AC7: =+CONCATENATE(AC6-1,"-",RIGHT(AC6,2)) -> 2023-24 | AD7: 2024-25 | AE7: 2025-26 | AF7: 2026-27 | AG7: 2027-28
D10: Operating Expenditure Summary
E12: =C48 -> Water | K12: =+K57-K50-K54 -> 0 | L12: =+L57-L50-L54 -> 0 | M12: 0 | N12: 0 | O12: 0 | P12: 0 | Q12: =+Q57-Q50-Q54 -> 0 | R12: 40.39349456 | S12: 39.47652876 | T12: 35.84710165 | U12: 35.12940792 | V12: 41.03487383 | W12: 40.88987584 | X12: 40.40891529 | Y12: 40.19246357 | Z12: 41.11628665 | AA12: 41.61665405 | AB12: 41.44719255 | AC12: =+AC57-AC50-AC54 -> 41.44719255 | AD12: 41.44719255 | AE12: 41.44719255 | AF12: 41.44719255 | AG12: 41.44719255
E13: =C59 -> Sewerage | K13: =K68-K61-K65 -> 0 | L13: =L68-L61-L65 -> 0 | M13: 0 | N13: 0 | O13: 0 | P13: 0 | Q13: 0 | R13: 42.89389538 | S13: 41.57132823 | T13: 38.72094714 | U13: 37.91955125 | V13: 36.85685643 | W13: 38.7818431 | X13: 39.23113342 | Y13: 38.86720856 | Z13: 37.98688665 | AA13: 38.26326515 | AB13: 38.13938724 | AC13: =AC68-AC61-AC65 -> 38.13938724 | AD13: 38.13938724 | AE13: 38.13938724 | AF13: 38.13938724 | AG13: 38.13938724
E14: =C70 -> Recycled Water | K14: =K79-K72-K76 -> 0 | L14: =L79-L72-L76 -> 0 | M14: 0 | N14: 0 | O14: 0 | P14: 0 | Q14: 0 | R14: 2.454395598 | S14: 4.016418837 | T14: 6.381488029 | U14: 7.211964594 | V14: 5.817478919 | W14: 6.669595345 | X14: 6.899507149 | Y14: 6.847936998 | Z14: 6.728763366 | AA14: 6.704557489 | AB14: 6.732192262 | AC14: =AC79-AC72-AC76 -> 6.732192262 | AD14: 6.732192262 | AE14: 6.732192262 | AF14: 6.732192262 | AG14: 6.732192262
E15: =C81 -> Rural Water | K15: =K90-K83-K87 -> 0 | L15: =L90-L83-L87 -> 0 | M15: 0 | N15: 0 | O15: 0 | P15: 0 | Q15: 0 | R15: 0 | S15: 0 | T15: 0 | U15: 0 | V15: 0 | W15: 0 | X15: 0 | Y15: 0 | Z15: 0 | AA15: 0 | AB15: 0 | AC15: =AC90-AC83-AC87 -> 0 | AD15: 0 | AE15: 0 | AF15: 0 | AG15: 0
E16: Bulk Water | K16: =K100-K97 -> 0 | L16: =L100-L97 -> 0 | M16: 0 | N16: 0 | O16: 0 | P16: 0 | Q16: 0 | R16: 0 | S16: 0 | T16: 0 | U16: 0 | V16: 0 | W16: 0 | X16: 0 | Y16: 0 | Z16: 0 | AA16: 0 | AB16: 0 | AC16: =AC100-AC97 -> 0 | AD16: 0 | AE16: 0 | AF16: 0 | AG16: 0
E17: Total controllable operating expenditure | K17: =SUM(K12:K16) -> 0 | L17: 0 | M17: 0 | N17: 0 | O17: 0 | P17: 0 | Q17: 0 | R17: 85.74178554 | S17: 85.06427583 | T17: 80.94953681 | U17: 80.26092377 | V17: 83.70920918 | W17: 86.34131429 | X17: 86.53955586 | Y17: 85.90760913 | Z17: 85.83193667 | AA17: 86.58447669 | AB17: 86.31877205 | AC17: 86.31877205 | AD17: 86.31877205 | AE17: 86.31877205 | AF17: 86.31877205 | AG17: 86.31877205
V18: Controllable Opex for 3rd Reg Period | W18: =SUM(S17:W17) -> 416.3252599 | AA18: Controllable Opex for 4th Reg Period | AB18: =SUM(X17:AB17) -> 431.1823504
AA19: Controllable Opex growth from 3rd to 4th Reg Period | AB19: =IFERROR(AB18-W18,"-") -> 14.85709052 | AC19: =IFERROR(AB18/W18-1,"-") -> 0.03568625773
E20: Operations & Maintenance | K20: =K49+K60+K71+K82+K93 -> 0 | L20: 0 | M20: 0 | N20: 0 | O20: 0 | P20: 0 | Q20: 0 | R20: 31.15619047 | S20: 25.59254112 | T20: 22.79859753 | U20: 24.27699384 | V20: 22.43059986 | W20: 23.96644921 | X20: 24.31517664 | Y20: 24.34997981 | Z20: 24.10005116 | AA20: 24.23849201 | AB20: 24.21130095 | AC20: 24.21130095 | AD20: 24.21130095 | AE20: 24.21130095 | AF20: 24.21130095 | AG20: 24.21130095
E21: Treatment | K21: =K51+K62+K73+K84+K94 -> 0 | L21: 0 | M21: 0 | N21: 0 | O21: 0 | P21: 0 | Q21: 0 | R21: 23.95945519 | S21: 25.98674376 | T21: 26.22849502 | U21: 25.22331408 | V21: 23.41977177 | W21: 25.89349424 | X21: 26.89819452 | Y21: 26.62785885 | Z21: 25.95199571 | AA21: 25.67857687 | AB21: 25.37452577 | AC21: 25.37452577 | AD21: 25.37452577 | AE21: 25.37452577 | AF21: 25.37452577 | AG21: 25.37452577
E22: Customer Service and billing | K22: =K52+K63+K74+K85+K95 -> 0 | L22: 0 | M22: 0 | N22: 0 | O22: 0 | P22: 0 | Q22: 0 | R22: 6.528588115 | S22: 7.951447347 | T22: 6.606701599 | U22: 6.026567299 | V22: 5.590454871 | W22: 6.40693439 | X22: 6.418973805 | Y22: 6.431071857 | Z22: 6.431071893 | AA22: 6.43107186 | AB22: 6.431071922 | AC22: 6.431071922 | AD22: 6.431071922 | AE22: 6.431071922 | AF22: 6.431071922 | AG22: 6.431071922
E23: GSL Payments | K23: =K53+K64+K75+K86+K96 -> 0 | L23: 0 | M23: 0 | N23: 0 | O23: 0 | P23: 0 | Q23: 0 | R23: 0.01048156118 | S23: 0.003988695095 | T23: 0.001272123077 | U23: 0.002468993665 | V23: 0.02149120724 | W23: 0 | X23: 0 | Y23: 0 | Z23: 0 | AA23: 0 | AB23: 0 | AC23: 0 | AD23: 0 | AE23: 0 | AF23: 0 | AG23: 0
E24: Corporate | K24: =K55+K66+K77+K88+K98 -> 0 | L24: 0 | M24: 0 | N24: 0 | O24: 0 | P24: 0 | Q24: 0 | R24: 23.17314918 | S24: 25.52955491 | T24: 25.31447055 | U24: 24.73157955 | V24: 32.24689147 | W24: 30.07443645 | X24: 28.9072109 | Y24: 28.49869861 | Z24: 29.34881792 | AA24: 30.23633595 | AB24: 30.3018734 | AC24: 30.3018734 | AD24: 30.3018734 | AE24: 30.3018734 | AF24: 30.3018734 | AG24: 30.3018734
E25: Other operating expenditure | K25: =K56+K67+K78+K89+K99 -> 0 | L25: 0 | M25: 0 | N25: 0 | O25: 0 | P25: 0 | Q25: 0 | R25: 0.9139210198 | S25: 0 | T25: 0 | U25: 0 | V25: 0 | W25: 0 | X25: 0 | Y25: 0 | Z25: 0 | AA25: 0 | AB25: 0 | AC25: 0 | AD25: 0 | AE25: 0 | AF25: 0 | AG25: 0
E26: Total controllable operating expenditure | K26: =SUM(K20:K25) -> 0 | L26: =SUM(L20:L25) -> 0 | M26: 0 | N26: 0 | O26: 0 | P26: 0 | Q26: 0 | R26: 85.74178554 | S26: 85.06427583 | T26: 80.94953681 | U26: 80.26092377 | V26: 83.70920918 | W26: 86.34131429 | X26: 86.53955586 | Y26: 85.90760913 | Z26: 85.83193667 | AA26: 86.58447669 | AB26: 86.31877205 | AC26: 86.31877205 | AD26: 86.31877205 | AE26: 86.31877205 | AF26: 86.31877205 | AG26: 86.31877205
E29: External bulk water charges (excl. temporary purchases) | K29: =K50+K61+K72+K83 -> 0 | L29: 0 | M29: 0 | N29: 0 | O29: 0 | P29: 0 | Q29: 0 | R29: 0 | S29: 0.01835693121 | T29: 0 | U29: 0.1381068864 | V29: 21.64835413 | W29: 0 | X29: =X50+X61+X72+X83 -> 0 | Y29: =Y50+Y61+Y72+Y83 -> 0 | Z29: 0 | AA29: 0 | AB29: 0 | AC29: 5.518703443 | AD29: 5.518703443 | AE29: 5.518703443 | AF29: 5.518703443 | AG29: 5.518703443
E30: External temporary water purchases | K30: =+K102 -> 0 | L30: 0 | M30: 0 | N30: 0 | O30: 0 | P30: 0 | Q30: 0 | R30: 0 | S30: 0 | T30: 0 | U30: 0.4098342217 | V30: 0.2503530055 | W30: 0 | X30: 0 | Y30: 0 | Z30: 0 | AA30: 0 | AB30: 0 | AC30: 0 | AD30: 0 | AE30: 0 | AF30: 0 | AG30: 0
E31: Licence fees | K31: =+K109 -> 0 | L31: 0 | M31: 0 | N31: 0 | O31: 0 | P31: 0 | Q31: 0 | R31: 0.4108533398 | S31: 0.4177874653 | T31: 0.3591977286 | U31: 0.3437911628 | V31: 0.3746377503 | W31: 0.45888872 | X31: 0.4588887122 | Y31: 0.4588887091 | Z31: 0.458888701 | AA31: 0.4588887069 | AB31: 0.4588887053 | AC31: 0.4588887053 | AD31: 0.4588887053 | AE31: 0.4588887053 | AF31: 0.4588887053 | AG31: 0.4588887053
E32: Environment Contribution | K32: =K111 -> 0 | L32: 0 | M32: 0 | N32: 0 | O32: 0 | P32: 0 | Q32: 0 | R32: 4.83961629 | S32: 7.138539367 | T32: 6.957969231 | U32: 6.873703167 | V32: 6.789437104 | W32: 6.651 | X32: 8.204878049 | Y32: 8.004759072 | Z32: 8.204877817 | AA32: 8.004758845 | AB32: 7.809520825 | AC32: 7.809520825 | AD32: 7.809520825 | AE32: 7.809520825 | AF32: 7.809520825 | AG32: 7.809520825
E33: Other non-controllable | K33: =+K124 -> 0 | L33: 0 | M33: 0 | N33: 0 | O33: 0 | P33: 0 | Q33: 0 | R33: 4.673230369 | S33: 5.557227857 | T33: 5.404772862 | U33: 5.331424416 | V33: 5.232138679 | W33: 5.073574 | X33: 4.878652683 | Y33: 4.667595003 | Z33: 4.439066409 | AA33: 4.191618923 | AB33: 3.923686384 | AC33: 3.923686384 | AD33: 3.923686384 | AE33: 3.923686384 | AF33: 3.923686384 | AG33: =+AG124 -> 3.923686384
E34: Total non-controllable operating expenditure | K34: =SUM(K29:K33) -> 0 | L34: =SUM(L29:L33) -> 0 | M34: 0 | N34: 0 | O34: 0 | P34: 0 | Q34: 0 | R34: 9.923699999 | S34: 13.13191162 | T34: 12.72193982 | U34: 13.09685985 | V34: 34.29492066 | W34: 12.18346272 | X34: 13.54241944 | Y34: 13.13124278 | Z34: 13.10283293 | AA34: 12.65526648 | AB34: 12.19209591 | AC34: 17.71079936 | AD34: 17.71079936 | AE34: 17.71079936 | AF34: 17.71079936 | AG34: 17.71079936
V35: Non-controllable Opex for 3rd Reg Period | W35: =SUM(S34:W34) -> 85.42909468 | AA35: Non-controllable Opex for 4th Reg Period | AB35: =SUM(X34:AB34) -> 64.62385754
AA36: Non-controllable Opex growth from 3rd to 4th Reg Period | AB36: =IFERROR(AB35-W35,"-") -> -20.80523714 | AC36: =IFERROR(AB35/W35-1,"-") -> -0.2435380735
E37: Total prescribed operating expenditure | K37: =+K34+K17 -> 0 | L37: 0 | M37: 0 | N37: 0 | O37: 0 | P37: 0 | Q37: 0 | R37: 95.66548554 | S37: 98.19618745 | T37: 93.67147664 | U37: 93.35778362 | V37: 118.0041298 | W37: 98.52477701 | X37: 100.0819753 | Y37: 99.03885191 | Z37: 98.9347696 | AA37: 99.23974317 | AB37: 98.51086796 | AC37: 104.0295714 | AD37: 104.0295714 | AE37: 104.0295714 | AF37: 104.0295714 | AG37: 104.0295714
V38: Prescribed Opex for 3rd Reg Period | W38: =SUM(S37:W37) -> 501.7543546 | AA38: Prescribed Opex for 4th Reg Period | AB38: =SUM(X37:AB37) -> 495.8062079
AA39: Prescribed Opex growth from 3rd to 4th Reg Period | AB39: =IFERROR(AB38-W38,"-") -> -5.948146613 | AC39: =IFERROR(AB38/W38-1,"-") -> -0.01185469854
W40: To reconcile to 'Opex_FO' tab row 123>> | X40: =+Opex_FO!X95 -> 100.0819753 | Y40: =+Opex_FO!Y95 -> 99.03885191 | Z40: =+Opex_FO!Z95 -> 98.9347696 | AA40: =+Opex_FO!AA95 -> 99.23974317 | AB40: =+Opex_FO!AB95 -> 98.51086796 | AC40: =+Opex_FO!AC95 -> 104.0295714 | AD40: =+Opex_FO!AD95 -> 104.0295714 | AE40: =+Opex_FO!AE95 -> 104.0295714 | AF40: =+Opex_FO!AF95 -> 104.0295714 | AG40: =+Opex_FO!AG95 -> 104.0295714
W41: Difference | X41: =+X40-X37 -> 0 | Y41: 0 | Z41: 0 | AA41: 0 | AB41: 0 | AC41: 0 | AD41: 0 | AE41: 0 | AF41: 0 | AG41: 0
W42: Test | X42: =+X40=X37 -> TRUE | Y42: TRUE | Z42: TRUE | AA42: TRUE | AB42: TRUE | AC42: TRUE | AD42: TRUE | AE42: TRUE | AF42: TRUE | AG42: TRUE
B46: Total operating expenditure
C48: Water
D49: Operations & Maintenance | R49: 19.26278173 | S49: 15.2717013 | T49: 13.3829671 | U49: 13.85920615 | V49: 14.75125225 | W49: 15.05924821 | X49: 15.09270463 | Y49: 15.12342364 | Z49: 14.93054524 | AA49: 14.88945154 | AB49: 14.69015623 | AC49: 14.69015623 | AD49: 14.69015623 | AE49: 14.69015623 | AF49: 14.69015623 | AG49: 14.69015623
D50: External bulk charges (excl. temporary purchases) | R50: =+R131 -> 0 | S50: =+S131 -> 0.01835693121 | T50: =+T131 -> 0 | U50: 0.1381068864 | V50: 21.64835413 | W50: 0 | X50: 0 | Y50: 0 | Z50: 0 | AA50: 0 | AB50: 0 | AC50: 5.518703443 | AD50: 5.518703443 | AE50: 5.518703443 | AF50: 5.518703443 | AG50: 5.518703443 | AH50: see reconciliation below
D51: Treatment | R51: 5.533735242 | S51: 5.121067298 | T51: 4.838416899 | U51: 4.586653029 | V51: 4.478180481 | W51: 4.664333003 | X51: 4.831792417 | Y51: 4.819295528 | Z51: 4.768612447 | AA51: 4.778758764 | AB51: 4.794048013 | AC51: 4.794048013 | AD51: 4.794048013 | AE51: 4.794048013 | AF51: 4.794048013 | AG51: 4.794048013
D52: Customer Service and billing | R52: 3.802903565 | S52: 4.996929705 | T52: 4.109408239 | U52: 3.797839981 | V52: 2.778429019 | W52: 3.440921124 | X52: 3.446988089 | Y52: 3.453084605 | Z52: 4.11942297 | AA52: 4.127649354 | AB52: 4.103567226 | AC52: 4.103567226 | AD52: 4.103567226 | AE52: 4.103567226 | AF52: 4.103567226 | AG52: 4.103567226
D53: GSL Payments | R53: 0.00869618552 | S53: 0.003980860545 | T53: 0.001272123077 | U53: 0.0005539475113 | V53: 0.02122964929 | W53: 0 | X53: 0 | Y53: 0 | Z53: 0 | AA53: 0 | AB53: 0 | AC53: 0 | AD53: 0 | AE53: 0 | AF53: 0 | AG53: 0
D54: Licence Fees | R54: 0.1515171518 | S54: 0.1707191945 | T54: 0.1296581013 | U54: 0.1190732399 | V54: 0.2504635894 | W54: 0.3002413617 | X54: 0.3002413551 | Y54: 0.3002413521 | Z54: 0.3002413457 | AA54: 0.3002413503 | AB54: 0.3002413492 | AC54: 0.3002413492 | AD54: 0.3002413492 | AE54: 0.3002413492 | AF54: 0.3002413492 | AG54: 0.3002413492
D55: Corporate | R55: 10.87145682 | S55: 14.0828496 | T55: 13.51503729 | U55: 12.88515481 | V55: 19.00578243 | W55: 17.72537351 | X55: 17.03743015 | Y55: 16.79665979 | Z55: 17.297706 | AA55: 17.82079439 | AB55: 17.85942107 | AC55: 17.85942107 | AD55: 17.85942107 | AE55: 17.85942107 | AF55: 17.85942107 | AG55: 17.85942107
D56: Other operating expenditure | R56: 0.9139210198 | S56: 0 | T56: 0 | U56: 0 | V56: 0 | W56: 0 | X56: 0 | Y56: 0 | Z56: 0 | AA56: 0 | AB56: 0 | AC56: 0 | AD56: 0 | AE56: 0 | AF56: 0 | AG56: 0
C57: =+CONCATENATE("Total ",C48) -> Total Water | K57: =+SUM(K49:K56) -> 0 | L57: =+SUM(L49:L56) -> 0 | M57: 0 | N57: 0 | O57: 0 | P57: 0 | Q57: 0 | R57: 40.54501171 | S57: 39.66560488 | T57: 35.97675975 | U57: 35.38658804 | V57: 62.93369155 | W57: 41.19011721 | X57: 40.70915664 | Y57: 40.49270492 | Z57: 41.416528 | AA57: 41.9168954 | AB57: 41.74743389 | AC57: =+SUM(AC49:AC56) -> 47.26613734 | AD57: 47.26613734 | AE57: 47.26613734 | AF57: 47.26613734 | AG57: 47.26613734
C59: Sewerage
D60: =+D49 -> Operations & Maintenance | R60: 11.89340875 | S60: 10.32083982 | T60: 9.356454026 | U60: 9.945827497 | V60: 7.679347605 | W60: 8.907201009 | X60: 9.222472004 | Y60: 9.22655617 | Z60: 9.169505918 | AA60: 9.34904047 | AB60: 9.521144721 | AC60: 9.521144721 | AD60: 9.521144721 | AE60: 9.521144721 | AF60: 9.521144721 | AG60: 9.521144721
D61: =+D50 -> External bulk charges (excl. temporary purchases) | R61: =+R132 -> 0 | S61: =+S132 -> 0 | T61: =+T132 -> 0 | U61: 0 | V61: 0 | W61: 0 | X61: 0 | Y61: 0 | Z61: 0 | AA61: 0 | AB61: 0 | AC61: 0 | AD61: 0 | AE61: 0 | AF61: 0 | AG61: 0 | AH61: see reconciliation below
D62: Treatment | R62: 17.0324509 | S62: 18.04811582 | T62: 18.12293351 | U62: 17.64605395 | V62: 16.10990174 | W62: 17.40803424 | X62: 17.9273319 | Y62: 17.69098098 | Z62: 17.12596603 | AA62: 16.9328574 | AB62: 16.59536652 | AC62: 16.59536652 | AD62: 16.59536652 | AE62: 16.59536652 | AF62: 16.59536652 | AG62: 16.59536652
D63: Customer Service and billing | R63: 2.5559828 | S63: 2.708563129 | T63: 1.96362936 | U63: 1.659146467 | V63: 2.289013982 | W63: 2.414361103 | X63: 2.41922273 | Y63: 2.424108034 | Z63: 1.881702724 | AA63: 1.875006348 | AB63: 1.894609464 | AC63: 1.894609464 | AD63: 1.894609464 | AE63: 1.894609464 | AF63: 1.894609464 | AG63: 1.894609464
D64: GSL Payments | R64: 0.001785375656 | S64: 7.182348025e-06 | T64: 0 | U64: 0.001915046154 | V64: 0.0002129104872 | W64: 0 | X64: 0 | Y64: 0 | Z64: 0 | AA64: 0 | AB64: 0 | AC64: 0 | AD64: 0 | AE64: 0 | AF64: 0 | AG64: 0
D65: Licence Fees | R65: 0.25399544 | S65: 0.2402884042 | T65: 0.2172991531 | U65: 0.2140353939 | V65: 0.1010788682 | W65: 0.1291403566 | X65: 0.1291403556 | Y65: 0.1291403556 | Z65: 0.1291403542 | AA65: 0.1291403552 | AB65: 0.1291403549 | AC65: 0.1291403549 | AD65: 0.1291403549 | AE65: 0.1291403549 | AF65: 0.1291403549 | AG65: 0.1291403549
D66: Corporate | R66: 11.41026755 | S66: 10.49380228 | T66: 9.277930235 | U66: 8.666608295 | V66: 10.77838019 | W66: 10.05224675 | X66: 9.662106795 | Y66: 9.525563378 | Z66: 9.809711979 | AA66: 10.10636094 | AB66: 10.12826654 | AC66: 10.12826654 | AD66: 10.12826654 | AE66: 10.12826654 | AF66: 10.12826654 | AG66: 10.12826654
D67: Other operating expenditure | R67: 0 | S67: 0 | T67: 0 | U67: 0 | V67: 0 | W67: 0 | X67: 0 | Y67: 0 | Z67: 0 | AA67: 0 | AB67: 0 | AC67: 0 | AD67: 0 | AE67: 0 | AF67: 0 | AG67: 0
C68: =+CONCATENATE("Total ",C59) -> Total Sewerage | K68: =+SUM(K60:K67) -> 0 | L68: 0 | M68: 0 | N68: 0 | O68: 0 | P68: 0 | Q68: 0 | R68: 43.14789082 | S68: 41.81161664 | T68: 38.93824629 | U68: 38.13358665 | V68: 36.9579353 | W68: 38.91098346 | X68: 39.36027378 | Y68: 38.99634892 | Z68: 38.11602701 | AA68: 38.39240551 | AB68: 38.26852759 | AC68: =+SUM(AC60:AC67) -> 38.26852759 | AD68: 38.26852759 | AE68: 38.26852759 | AF68: 38.26852759 | AG68: 38.26852759
C70: Recycled Water
D71: =+D60 -> Operations & Maintenance | S71: 0 | T71: 0.05917640369 | U71: 0.4719601998 | V71: 0 | W71: 0 | X71: 0 | Y71: 0 | Z71: 0 | AA71: 0 | AB71: 0 | AC71: 0 | AD71: 0 | AE71: 0 | AF71: 0 | AG71: 0
D72: =+D61 -> External bulk charges (excl. temporary purchases) | R72: =+R133 -> 0 | S72: =+S133 -> 0 | T72: =+T133 -> 0 | U72: 0 | V72: 0 | W72: 0 | X72: 0 | Y72: 0 | Z72: 0 | AA72: 0 | AB72: 0 | AC72: 0 | AD72: 0 | AE72: 0 | AF72: 0 | AG72: 0 | AH72: see reconciliation below
D73: Treatment | R73: 1.393269046 | S73: 2.817560634 | T73: 3.267144602 | U73: 2.990607106 | V73: 2.831689549 | W73: 3.821126994 | X73: 4.139070212 | Y73: 4.11758234 | Z73: 4.057417226 | AA73: 3.966960709 | AB73: 3.985111244 | AC73: 3.985111244 | AD73: 3.985111244 | AE73: 3.985111244 | AF73: 3.985111244 | AG73: 3.985111244
D74: Customer Service and billing | R74: 0.1697017503 | S74: 0.2459545135 | T74: 0.5336640005 | U74: 0.5695808508 | V74: 0.52301187 | W74: 0.5516521633 | X74: 0.552762986 | Y74: 0.5538792185 | Z74: 0.4299461988 | AA74: 0.4284161582 | AB74: 0.4328952319 | AC74: 0.4328952319 | AD74: 0.4328952319 | AE74: 0.4328952319 | AF74: 0.4328952319 | AG74: 0.4328952319
D75: GSL Payments | R75: 0 | S75: 6.522022306e-07 | T75: 0 | U75: 0 | V75: 4.864745822e-05 | W75: 0 | X75: 0 | Y75: 0 | Z75: 0 | AA75: 0 | AB75: 0 | AC75: 0 | AD75: 0 | AE75: 0 | AF75: 0 | AG75: 0
D76: Licence Fees | R76: 0.00534074794 | S76: 0.006779866532 | T76: 0.01224047423 | U76: 0.01068252913 | V76: 0.02309529269 | W76: 0.02950700167 | X76: 0.02950700145 | Y76: 0.02950700143 | Z76: 0.02950700111 | AA76: 0.02950700135 | AB76: 0.02950700127 | AC76: 0.02950700127 | AD76: 0.02950700127 | AE76: 0.02950700127 | AF76: 0.02950700127 | AG76: 0.02950700127
D77: Corporate | R77: 0.8914248024 | S77: 0.952903038 | T77: 2.521503022 | U77: 3.179816438 | V77: 2.462728852 | W77: 2.296816188 | X77: 2.207673951 | Y77: 2.17647544 | Z77: 2.241399942 | AA77: 2.309180622 | AB77: 2.314185786 | AC77: 2.314185786 | AD77: 2.314185786 | AE77: 2.314185786 | AF77: 2.314185786 | AG77: 2.314185786
D78: Other operating expenditure | R78: 0 | S78: 0 | T78: 0 | U78: 0 | V78: 0 | W78: 0 | X78: 0 | Y78: 0 | Z78: 0 | AA78: 0 | AB78: 0 | AC78: 0 | AD78: 0 | AE78: 0 | AF78: 0 | AG78: 0
C79: =+CONCATENATE("Total ",C70) -> Total Recycled Water | K79: =+SUM(K71:K78) -> 0 | L79: =+SUM(L71:L78) -> 0 | M79: =+SUM(M71:M78) -> 0 | N79: =+SUM(N71:N78) -> 0 | O79: 0 | P79: 0 | Q79: 0 | R79: 2.459736346 | S79: 4.023198704 | T79: 6.393728503 | U79: 7.222647123 | V79: 5.840574211 | W79: 6.699102347 | X79: =+SUM(X71:X78) -> 6.929014151 | Y79: =+SUM(Y71:Y78) -> 6.877444 | Z79: =+SUM(Z71:Z78) -> 6.758270368 | AA79: =+SUM(AA71:AA78) -> 6.734064491 | AB79: =+SUM(AB71:AB78) -> 6.761699264 | AC79: =+SUM(AC71:AC78) -> 6.761699264 | AD79: 6.761699264 | AE79: 6.761699264 | AF79: 6.761699264 | AG79: 6.761699264
C81: Rural Water
D82: =+D60 -> Operations & Maintenance
D83: =+D61 -> External bulk charges (excl. temporary purchases) | R83: =+R134 -> 0 | S83: =+S134 -> 0 | T83: =+T134 -> 0 | U83: 0 | V83: 0 | W83: 0 | X83: 0 | Y83: 0 | Z83: 0 | AA83: 0 | AB83: 0 | AC83: 0 | AD83: 0 | AE83: 0 | AF83: 0 | AG83: 0 | AH83: see reconciliation below
D84: Treatment
D85: Customer Service and billing
D86: GSL Payments
D87: Licence Fees
D88: Corporate
D89: Other operating expenditure
C90: =+CONCATENATE("Total ",C81) -> Total Rural Water | K90: =+SUM(K82:K89) -> 0 | L90: 0 | M90: 0 | N90: 0 | O90: 0 | P90: 0 | Q90: 0 | R90: 0 | S90: 0 | T90: 0 | U90: 0 | V90: 0 | W90: 0 | X90: =+SUM(X82:X89) -> 0 | Y90: =+SUM(Y82:Y89) -> 0 | Z90: =+SUM(Z82:Z89) -> 0 | AA90: =+SUM(AA82:AA89) -> 0 | AB90: =+SUM(AB82:AB89) -> 0 | AC90: =+SUM(AC82:AC89) -> 0 | AD90: 0 | AE90: 0 | AF90: 0 | AG90: 0
C92: Bulk Water
D93: Operations & Maintenance
D94: Treatment
D95: Customer Service and billing
D96: GSL Payments
D97: Licence Fees
D98: Corporate
D99: Other operating expenditure
C100: Total Bulk water | K100: =+SUM(K93:K99) -> 0 | L100: 0 | M100: 0 | N100: 0 | O100: 0 | P100: 0 | Q100: 0 | R100: 0 | S100: 0 | T100: 0 | U100: 0 | V100: 0 | W100: 0 | X100: 0 | Y100: 0 | Z100: 0 | AA100: 0 | AB100: 0 | AC100: =+SUM(AC93:AC99) -> 0 | AD100: 0 | AE100: 0 | AF100: 0 | AG100: 0
C102: External temporary water purchases | U102: 0.4098342217 | V102: 0.2503530055 | AC102: 0 | AD102: 0 | AE102: 0 | AF102: 0 | AG102: 0
C105: Licence fees
D106: Essential Services Commission | R106: 0.1651716326 | S106: 0.1809664271 | T106: 0.1215390154 | U106: 0.08953176652 | V106: 0.1154500344 | W106: 0.19725072 | X106: 0.197250722 | Y106: 0.1972507222 | Z106: 0.1972507189 | AA106: 0.1972507223 | AB106: 0.1972507248 | AC106: 0.1972507248 | AD106: 0.1972507248 | AE106: 0.1972507248 | AF106: 0.1972507248 | AG106: 0.1972507248
D107: Department of Human Services | R107: 0.07046360766 | S107: 0.1663007483 | T107: 0.1736084357 | U107: 0.1829179846 | V107: 0.07222873911 | W107: 0.072525 | X107: 0.07252499512 | Y107: 0.07252499227 | Z107: 0.07252498832 | AA107: 0.07252499104 | AB107: 0.0725249906 | AC107: 0.0725249906 | AD107: 0.0725249906 | AE107: 0.0725249906 | AF107: 0.0725249906 | AG107: 0.0725249906
D108: Environment Protection Authority | R108: 0.1752180995 | S108: 0.07052028985 | T108: 0.06405027754 | U108: 0.07134141176 | V108: 0.1869589768 | W108: 0.189113 | X108: 0.1891129951 | Y108: 0.1891129946 | Z108: 0.1891129937 | AA108: 0.1891129935 | AB108: 0.18911299 | AC108: 0.18911299 | AD108: 0.18911299 | AE108: 0.18911299 | AF108: 0.18911299 | AG108: 0.18911299
C109: =+CONCATENATE("Total ",C105) -> Total Licence fees | K109: =+SUM(K106:K108) -> 0 | L109: =+SUM(L106:L108) -> 0 | M109: 0 | N109: 0 | O109: 0 | P109: 0 | Q109: 0 | R109: 0.4108533398 | S109: 0.4177874653 | T109: 0.3591977286 | U109: 0.3437911628 | V109: 0.3746377503 | W109: 0.45888872 | X109: =+SUM(X106:X108) -> 0.4588887122 | Y109: =+SUM(Y106:Y108) -> 0.4588887091 | Z109: =+SUM(Z106:Z108) -> 0.458888701 | AA109: =+SUM(AA106:AA108) -> 0.4588887069 | AB109: =+SUM(AB106:AB108) -> 0.4588887053 | AC109: =+SUM(AC106:AC108) -> 0.4588887053 | AD109: 0.4588887053 | AE109: 0.4588887053 | AF109: 0.4588887053 | AG109: 0.4588887053
C111: Environment Contribution | R111: 4.83961629 | S111: 7.138539367 | T111: 6.957969231 | U111: 6.873703167 | V111: 6.789437104 | W111: 6.651 | X111: 8.204878049 | Y111: 8.004759072 | Z111: 8.204877817 | AA111: 8.004758845 | AB111: 7.809520825 | AC111: 7.809520825 | AD111: 7.809520825 | AE111: 7.809520825 | AF111: 7.809520825 | AG111: 7.809520825
C113: Other non-controllable
D114: Finance Lease Biosolids Plant | R114: 4.673230369 | S114: 5.557227857 | T114: 5.404772862 | U114: 5.331424416 | V114: 5.232138679 | W114: 5.073574 | X114: 4.878652683 | Y114: 4.667595003 | Z114: 4.439066409 | AA114: 4.191618923 | AB114: 3.923686384 | AC114: 3.923686384 | AD114: 3.923686384 | AE114: 3.923686384 | AF114: 3.923686384 | AG114: 3.923686384
K124: =SUM(K114:K123) -> 0 | L124: 0 | M124: 0 | N124: 0 | O124: 0 | P124: 0 | Q124: 0 | R124: 4.673230369 | S124: 5.557227857 | T124: 5.404772862 | U124: 5.331424416 | V124: 5.232138679 | W124: 5.073574 | X124: 4.878652683 | Y124: 4.667595003 | Z124: 4.439066409 | AA124: 4.191618923 | AB124: 3.923686384 | AC124: 3.923686384 | AD124: 3.923686384 | AE124: 3.923686384 | AF124: 3.923686384 | AG124: 3.923686384
C127: External bulk charges (excl. temporary purchases)
C128: Reconciliation
C130: Service | R130: =+R7 -> 2012-13 | S130: 2013-14 | T130: 2014-15 | U130: 2015-16 | V130: 2016-17 | W130: 2017-18 | X130: 2018-19 | Y130: 2019-20 | Z130: 2020-21 | AA130: 2021-22 | AB130: 2022-23 | AC130: 2023-24 | AD130: 2024-25 | AE130: 2025-26 | AF130: 2026-27 | AG130: 2027-28
D131: Water | R131: =+SUMIF($I$138:$I$179,$D$131,R$138:R$179) -> 0 | S131: 0.01835693121 | T131: 0 | U131: 0.1381068864 | V131: 21.64835413 | W131: 0 | X131: 0 | Y131: 0 | Z131: 0 | AA131: 0 | AB131: 0 | AC131: 5.518703443 | AD131: 5.518703443 | AE131: 5.518703443 | AF131: 5.518703443 | AG131: 5.518703443
D132: Sewerage | R132: =+SUMIF($I$138:$I$179,$D$132,R$138:R$179) -> 0 | S132: 0 | T132: 0 | U132: 0 | V132: 0 | W132: 0 | X132: 0 | Y132: 0 | Z132: 0 | AA132: 0 | AB132: 0 | AC132: 0 | AD132: 0 | AE132: 0 | AF132: 0 | AG132: 0
D133: Recycled Water | R133: =+SUMIF($I$138:$I$179,$D$133,R$138:R$179) -> 0 | S133: 0 | T133: 0 | U133: 0 | V133: 0 | W133: 0 | X133: 0 | Y133: 0 | Z133: 0 | AA133: 0 | AB133: 0 | AC133: 0 | AD133: 0 | AE133: 0 | AF133: 0 | AG133: 0
D134: Rural Water | R134: =+SUMIF($I$138:$I$179,$D$134,R$138:R$179) -> 0 | S134: 0 | T134: 0 | U134: 0 | V134: 0 | W134: 0 | X134: 0 | Y134: 0 | Z134: 0 | AA134: 0 | AB134: 0 | AC134: 0 | AD134: 0 | AE134: 0 | AF134: 0 | AG134: 0
C135: Total External Bulk Charges | R135: =SUM(R131:R134) -> 0 | S135: =SUM(S131:S134) -> 0.01835693121 | T135: =SUM(T131:T134) -> 0 | U135: 0.1381068864 | V135: 21.64835413 | W135: 0 | X135: 0 | Y135: 0 | Z135: 0 | AA135: 0 | AB135: 0 | AC135: 5.518703443 | AD135: 5.518703443 | AE135: 5.518703443 | AF135: 5.518703443 | AG135: 5.518703443
C137: Description | H137: Source | I137: Service | J137: Price
B138: 1 | C138: MGP | H138: Melbourne Water | I138: Water | J138: Fixed | S138: 0 | T138: 0 | U138: 0 | V138: 21.64835413 | W138: 0 | X138: 0 | Y138: 0 | Z138: 0 | AA138: 0 | AB138: 0 | AC138: 5.518703443 | AD138: 5.518703443 | AE138: 5.518703443 | AF138: 5.518703443 | AG138: 5.518703443 | AJ138: ESC USE ONLY
B139: 2 | C139: Goulburn and Murray Headworks Contribution | H139: Goulburn-Murray Water | I139: Water | J139: Fixed | S139: 0.01835693121 | T139: 0 | U139: 0.1381068864 | V139: 0 | W139: 0 | X139: 0 | Y139: 0 | Z139: 0 | AA139: 0 | AB139: 0 | AC139: 0 | AD139: 0 | AE139: 0 | AF139: 0 | AG139: 0
B140: 3 | H140: [Source] | I140: [Service] | J140: [Price] | AJ140: [Service]
B141: 4 | H141: [Source] | I141: [Service] | J141: [Price] | AJ141: Water
B142: 5 | H142: [Source] | I142: [Service] | J142: [Price] | AJ142: Sewerage
B143: 6 | H143: [Source] | I143: [Service] | J143: [Price] | AJ143: Recycled Water
B144: 7 | H144: [Source] | I144: [Service] | J144: [Price] | AJ144: Rural Water
B145: 8 | H145: [Source] | I145: [Service] | J145: [Price]
B146: 9 | H146: [Source] | I146: [Service] | J146: [Price] | AJ146: [Source]
B147: 10 | H147: [Source] | I147: [Service] | J147: [Price] | AJ147: Melbourne Water
B148: 11 | H148: [Source] | I148: [Service] | J148: [Price] | AJ148: Goulburn-Murray Water
B149: 12 | H149: [Source] | I149: [Service] | J149: [Price] | AJ149: Other Sources
B150: 13 | H150: [Source] | I150: [Service] | J150: [Price]
B151: 14 | H151: [Source] | I151: [Service] | J151: [Price]
B152: 15 | H152: [Source] | I152: [Service] | J152: [Price]
B153: 16 | H153: [Source] | I153: [Service] | J153: [Price]
B154: 17 | H154: [Source] | I154: [Service] | J154: [Price]
B155: 18 | H155: [Source] | I155: [Service] | J155: [Price]
B156: 19 | H156: [Source] | I156: [Service] | J156: [Price]
B157: 20 | H157: [Source] | I157: [Service] | J157: [Price]
B158: 21 | H158: [Source] | I158: [Service] | J158: [Price]
B159: 22 | H159: [Source] | I159: [Service] | J159: [Price]
B160: 23 | H160: [Source] | I160: [Service] | J160: [Price]
B161: 24 | H161: [Source] | I161: [Service] | J161: [Price]
B162: 25 | H162: [Source] | I162: [Service] | J162: [Price]
B163: 26 | H163: [Source] | I163: [Service] | J163: [Price]
B164: 27 | H164: [Source] | I164: [Service] | J164: [Price]
B165: 28 | H165: [Source] | I165: [Service] | J165: [Price]
B166: 29 | H166: [Source] | I166: [Service] | J166: [Price]
B167: 30 | H167: [Source] | I167: [Service] | J167: [Price]
B168: 31 | H168: [Source] | I168: [Service] | J168: [Price]
B169: 32 | H169: [Source] | I169: [Service] | J169: [Price]
B170: 33 | H170: [Source] | I170: [Service] | J170: [Price]
B171: 34 | H171: [Source] | I171: [Service] | J171: [Price]
B172: 35 | H172: [Source] | I172: [Service] | J172: [Price]
B173: 36 | H173: [Source] | I173: [Service] | J173: [Price]
B174: 37 | H174: [Source] | I174: [Service] | J174: [Price]
B175: 38 | H175: [Source] | I175: [Service] | J175: [Price]
B176: 39 | H176: [Source] | I176: [Service] | J176: [Price]
B177: 40 | H177: [Source] | I177: [Service] | J177: [Price]

Sheet Capex_FO input
B1: Capital Expenditure - Forecast Input
B2: =+Contents!H7 -> Barwon Water
B3: Go to Table of Contents
C7: Input Summary | F7: FOURTH REG PERIOD | K7: FIFTH REG PERIOD
D9: =+O39 -> 2018-19 | E9: 2019-20 | F9: 2020-21 | G9: 2021-22 | H9: 2022-23 | I9: 2023-24 | J9: 2024-25 | K9: 2025-26 | L9: 2026-27 | M9: 2027-28 | P9: 4th Reg Period | S9: 5th Reg Period
C10: By Cost Driver | P10: Total | Q10: % of Total | S10: Total | T10: % of Total
C11: Net capital expenditure - Renewals | D11: =+SUMIF($F$42:$F$1277,"Renewals",AV$42:AV$1277) -> 37.37234694 | E11: 35.48857421 | F11: 39.11859828 | G11: 30.7842747 | H11: 25.9787471 | I11: 39.8937987 | J11: 22.62728083 | K11: 23.11183367 | L11: 21.26609877 | M11: 22.01818814 | P11: =SUM(D11:H11) -> 168.7425412 | Q11: =IFERROR(P11/$P$16,"-") -> 0.5134746529 | S11: =SUM(I11:M11) -> 128.9172001 | T11: =IFERROR(S11/$S$16,"-") -> 0.3390961831
C12: Net capital expenditure - Growth | D12: =+SUMIF($F$42:$F$1277,"Growth",AV$42:AV$1277) -> 21.11897394 | E12: 19.55210857 | F12: 2.097323378 | G12: 5.561021108 | H12: 11.56129541 | I12: 30.75297286 | J12: 32.21773682 | K12: 24.40244307 | L12: 17.37241171 | M12: 45.63410879 | P12: =SUM(D12:H12) -> 59.89072241 | Q12: =IFERROR(P12/$P$16,"-") -> 0.1822443094 | S12: =SUM(I12:M12) -> 150.3796733 | T12: =IFERROR(S12/$S$16,"-") -> 0.3955498039
C13: Net capital expenditure - Improvements / Compliance | D13: =+SUMIF($F$42:$F$1277,"Improvements / Compliance",AV$42:AV$1277) -> 21.23950943 | E13: 17.47304732 | F13: 9.696686 | G13: 7.4532954 | H13: 11.2229636 | I13: 25.83611004 | J13: 17.49334606 | K13: 15.16919053 | L13: 3.33102251 | M13: 5.21776146 | P13: 67.08550175 | Q13: 0.2041376435 | S13: 67.0474306 | T13: 0.1763575984
C14: Government Contributions | D14: =+Z41 -> 0 | E14: =+AA41 -> 0 | F14: 0 | G14: 0 | H14: 0 | I14: 0 | J14: 0 | K14: 0 | L14: 0 | M14: 0 | P14: 0 | Q14: 0 | S14: 0 | T14: 0
C15: Customer Contributions | D15: =+AK41 -> 6.305960948 | E15: =+AL41 -> 6.556568571 | F15: 6.655882732 | G15: 6.624676672 | H15: 6.766911077 | I15: 6.766911077 | J15: 6.766911077 | K15: 6.766911077 | L15: 6.766911077 | M15: 6.766911077 | P15: 32.91 | Q15: 0.1001433942 | S15: 33.83455539 | T15: 0.08899641459
C16: Total prescribed capex | D16: =SUM(D11:D15) -> 86.03679126 | E16: 79.07029867 | F16: 57.56849039 | G16: 50.42326788 | H16: 55.52991719 | I16: 103.2497927 | J16: 79.10527479 | K16: 69.45037835 | L16: 48.73644407 | M16: 79.63696947 | P16: 328.6287654 | Q16: 1 | S16: 380.1788594 | T16: 1
C18: By Capital Type
C19: Top 10 Major Projects | D19: =+SUMIF($H$42:$H$1277,$C$19,O$42:O$1277) -> 9.12561491 | E19: 21.90723674 | F19: 12.36140727 | G19: 9.19177431 | H19: 4.93532523 | I19: 3.16979863 | J19: 0.40850277 | K19: 1.32763401 | L19: 0.10212569 | M19: 0.19491199 | P19: =SUM(D19:H19) -> 57.52135846 | Q19: =IFERROR(P19/$P$23,"-") -> 0.1750344599 | S19: =SUM(I19:M19) -> 5.20297309 | T19: =IFERROR(S19/$S$23,"-") -> 0.01368559288
C20: Significant projects | D20: =+SUMIF($H$42:$H$1277,$C$20,O$42:O$1277) -> 0 | E20: 0 | F20: 0 | G20: 0 | H20: 0 | I20: 0 | J20: 0 | K20: 0 | L20: 0 | M20: 0 | P20: =SUM(D20:H20) -> 0 | Q20: =IFERROR(P20/$P$23,"-") -> 0 | S20: =SUM(I20:M20) -> 0 | T20: =IFERROR(S20/$S$23,"-") -> 0
C21: Capital Programs / Allocation | D21: =+SUMIF($H$42:$H$1277,$C$21,O$42:O$1277) -> 27.60881307 | E21: 27.30055892 | F21: 30.94672704 | G21: 25.41052693 | H21: 32.15897738 | I21: 42.32266324 | J21: 23.7923892 | K21: 34.64501703 | L21: 24.01414596 | M21: 27.05564519 | P21: 143.4256033 | Q21: 0.4364365462 | S21: 151.8298606 | T21: 0.399364291
C22: Other Capital expenditure | D22: =+SUMIF($H$42:$H$1277,$C$22,O$42:O$1277) -> 49.30236328 | E22: 29.86250301 | F22: 14.26035608 | G22: 15.82096664 | H22: 18.43561458 | I22: 57.75733081 | J22: 54.90438282 | K22: 33.47772731 | L22: 24.62017242 | M22: 52.38641229 | P22: 127.6818036 | Q22: 0.3885289939 | S22: 223.1460257 | T22: 0.5869501161
C23: Total prescribed capex | D23: =SUM(D19:D22) -> 86.03679126 | E23: =SUM(E19:E22) -> 79.07029867 | F23: 57.56849039 | G23: 50.42326788 | H23: 55.52991719 | I23: 103.2497927 | J23: 79.10527479 | K23: 69.45037835 | L23: 48.73644407 | M23: 79.63696947 | P23: 328.6287654 | Q23: 1 | S23: 380.1788594 | T23: 1
C25: Difference | D25: =+D23-D16 -> 0 | E25: =+E23-E16 -> 0 | F25: 0 | G25: 0 | H25: 0 | I25: 0 | J25: 0 | K25: 0 | L25: 0 | M25: 0
C26: Test | D26: =+D23=D16 -> TRUE | E26: TRUE | F26: TRUE | G26: TRUE | H26: TRUE | I26: TRUE | J26: TRUE | K26: TRUE | L26: TRUE | M26: TRUE
C29: Total prescribed capex | D29: =+D23 -> 86.03679126 | E29: =+E23 -> 79.07029867 | F29: 57.56849039 | G29: 50.42326788 | H29: 55.52991719 | I29: 103.2497927 | J29: 79.10527479 | K29: 69.45037835 | L29: 48.73644407 | M29: 79.63696947
C32: Regulatory Depreciation | D32: =+BG41 -> 1.086880303 | E32: =+BH41 -> 3.221511107 | F32: 5.157225252 | G32: 6.680072795 | H32: 7.179338376 | I32: 8.003186982 | J32: 8.927088193 | K32: 10.24364891 | L32: 11.25712271 | M32: 12.10084194
B35: $m, 01/01/18
O36: Gross capital expenditure | Z36: Government contributions | AK36: Customer contributions | AV36: Net capital expenditure | BG36: Regulatory Depreciation | BR36: Accumulated capex | CC36: Gross capital expenditure | CN36: Tax Depreciation
O37: $m, 01/01/18 | Z37: $m, 01/01/18 | AK37: $m, 01/01/18 | AV37: $m, 01/01/18 | BG37: $m, 01/01/18 | BR37: $m, 01/01/18 | CC37: Nominal,$ | CN37: Nominal,$
O39: 2018-19 | P39: 2019-20 | Q39: 2020-21 | R39: 2021-22 | S39: 2022-23 | T39: 2023-24 | U39: 2024-25 | V39: 2025-26 | W39: 2026-27 | X39: 2027-28 | Z39: 2018-19 | AA39: 2019-20 | AB39: 2020-21 | AC39: 2021-22 | AD39: 2022-23 | AE39: 2023-24 | AF39: 2024-25 | AG39: 2025-26 | AH39: 2026-27 | AI39: 2027-28 | AK39: 2018-19 | AL39: 2019-20 | AM39: 2020-21 | AN39: 2021-22 | AO39: 2022-23 | AP39: 2023-24 | AQ39: 2024-25 | AR39: 2025-26 | AS39: 2026-27 | AT39: 2027-28 | AV39: 2018-19 | AW39: 2019-20 | AX39: 2020-21 | AY39: 2021-22 | AZ39: 2022-23 | BA39: 2023-24 | BB39: 2024-25 | BC39: 2025-26 | BD39: 2026-27 | BE39: 2027-28 | BG39: 2018-19 | BH39: 2019-20 | BI39: 2020-21 | BJ39: 2021-22 | BK39: 2022-23 | BL39: 2023-24 | BM39: 2024-25 | BN39: 2025-26 | BO39: 2026-27 | BP39: 2027-28 | BR39: 2018-19 | BS39: 2019-20 | BT39: 2020-21 | BU39: 2021-22 | BV39: 2022-23 | BW39: 2023-24 | BX39: 2024-25 | BY39: 2025-26 | BZ39: 2026-27 | CA39: 2027-28 | CC39: 2018-19 | CD39: 2019-20 | CE39: 2020-21 | CF39: 2021-22 | CG39: 2022-23 | CH39: 2023-24 | CI39: 2024-25 | CJ39: 2025-26 | CK39: 2026-27 | CL39: 2027-28 | CN39: 2018-19 | CO39: 2019-20 | CP39: 2020-21 | CQ39: 2021-22 | CR39: 2022-23 | CS39: 2023-24 | CT39: 2024-25 | CU39: 2025-26 | CV39: 2026-27 | CW39: 2027-28
BG40: 1 | BH40: 2 | BI40: 3 | BJ40: 4 | BK40: 5 | BL40: 6 | BM40: 7 | BN40: 8 | BO40: 9 | BP40: 10 | CN40: 1 | CO40: 2 | CP40: 3 | CQ40: 4 | CR40: 5 | CS40: 6 | CT40: 7 | CU40: 8 | CV40: 9 | CW40: 10
C41: Project/program Name | E41: Service | F41: Major cost driver | G41: Asset category | H41: Capital type | J41: Depreciation Method | K41: Year asset operational | L41: Asset life (Regulatory) | M41: Asset life (Tax) | O41: =SUM(O42:O1277) -> 86.03679126 | P41: 79.07029867 | Q41: 57.56849039 | R41: 50.42326788 | S41: 55.52991719 | T41: 103.2497927 | U41: 79.10527479 | V41: 69.45037835 | W41: 48.73644407 | X41: 79.63696947 | Z41: =SUM(Z42:Z1277) -> 0 | AA41: 0 | AB41: 0 | AC41: 0 | AD41: 0 | AE41: 0 | AF41: 0 | AG41: 0 | AH41: 0 | AI41: 0 | AK41: =SUM(AK42:AK1277) -> 6.305960948 | AL41: 6.556568571 | AM41: 6.655882732 | AN41: 6.624676672 | AO41: 6.766911077 | AP41: 6.766911077 | AQ41: 6.766911077 | AR41: 6.766911077 | AS41: 6.766911077 | AT41: 6.766911077 | AV41: =SUM(AV42:AV1277) -> 79.73083031 | AW41: 72.5137301 | AX41: 50.91260766 | AY41: 43.79859121 | AZ41: 48.76300611 | BA41: 96.4828816 | BB41: 72.33836371 | BC41: 62.68346727 | BD41: 41.96953299 | BE41: 72.87005839 | BG41: =SUM(BG42:BG1277) -> 1.086880303 | BH41: 3.221511107 | BI41: 5.157225252 | BJ41: 6.680072795 | BK41: 7.179338376 | BL41: 8.003186982 | BM41: 8.927088193 | BN41: 10.24364891 | BO41: 11.25712271 | BP41: 12.10084194 | BR41: =SUM(BR42:BR1277) -> 63.80145983 | BS41: 65.72366217 | BT41: 51.46820555 | BU41: 44.01230719 | BV41: 48.04740465 | BW41: 78.68684794 | BX41: 71.65030198 | BY41: 70.91690804 | BZ41: 46.82523392 | CA41: 48.96624199 | CC41: =SUM(CC42:CC1277) -> 88.01563746 | CD41: 82.7493606 | CE41: 61.63277786 | CF41: 55.22472009 | CG41: 62.21644531 | CH41: 118.3431134 | CI41: 92.75447668 | CJ41: 83.3066529 | CK41: 59.80459343 | CL41: 99.97031534 | CN41: =SUM(CN42:CN1277) -> 1.94586852 | CO41: 5.383652959 | CP41: 8.068686958 | CQ41: 10.36633535 | CR41: 11.51376344 | CS41: 12.98242461 | CT41: 15.74890386 | CU41: 17.88309176 | CV41: 19.11912505 | CW41: 20.31568792
C42: Colac Pipeline Upgrade | E42: Water | F42: Renewals | G42: Headworks | H42: Top 10 Major Projects | J42: Straight line | K42: 2027-28 | L42: 70 | M42: 50 | O42: 0.30637708 | P42: 3.06425998 | Q42: 0.45396505 | R42: 2.26982217 | S42: 0.22739613 | T42: 2.75739372 | U42: 0.40850277 | V42: 1.32763401 | W42: 0.10212569 | X42: 0.19491199 | Z42: 0 | AA42: 0 | AB42: 0 | AC42: 0 | AD42: 0 | AE42: 0 | AF42: 0 | AG42: 0 | AH42: 0 | AI42: 0 | AK42: 0 | AL42: 0 | AM42: 0 | AN42: 0 | AO42: 0 | AP42: 0 | AQ42: 0 | AR42: 0 | AS42: 0 | AT42: 0 | AV42: =+O42-Z42-AK42 -> 0.30637708 | AW42: =+P42-AA42-AL42 -> 3.06425998 | AX42: 0.45396505 | AY42: 2.26982217 | AZ42: 0.22739613 | BA42: 2.75739372 | BB42: 0.40850277 | BC42: 1.32763401 | BD42: 0.10212569 | BE42: 0.19491199 | BG42: =IF($L42=0,0, IF($L42<=0.5,BR42, IF($J42="straight line", IF((LEFT(BG$39,4)*1)-INT($L42)<LEFT($BG$39,4)*1,0,((OFFSET(BR42,0,-INT($L42+0.5),1,1))/$L42)*(IF($L42-INT($L42)>0.5,$L42-0.5-INT($L42),IF($L42-INT($L42)<=0.5,$L42-0.5-INT($L42)+1,0)))) +BR42/$L42*0.5, IF($J42="Declining Balance",-$BG$38,0)))) -> 0 | BH42: =IF($L42=0,0, IF($L42<=0.5,BS42, IF(AND($J42="straight line",$L42<1.51),(BR42-((BR42/$L42)*0.5))+BS42/$L42*0.5, IF($J42="straight line", IF((LEFT(BH$39,4)*1)-INT($L42)<LEFT($BG$39,4)*1,0,((OFFSET(BS42,0,-INT($L42+0.5),1,1))/$L42)*(IF($L42-INT($L42)>0.5,$L42-0.5-INT($L42),IF($L42-INT($L42)<=0.5,$L42-0.5-INT($L42)+1,0)))) +BS42/$L42*0.5 +SUM(OFFSET(BS42,0,MAX(-INT($L42+(0.5-(10^-12))),-BH$40)+1,1,MIN(INT($L42+(0.5-(10^-12))),BH$40)-1))*1/$L42, IF($J42="Declining Balance",-$BG$38,0))))) -> 0 | BI42: =IF($L42=0,0, IF($L42<=0.5,BT42, IF(AND($J42="straight line",$L42<1.51),(BS42-((BS42/$L42)*0.5))+BT42/$L42*0.5, IF($J42="straight line", IF((LEFT(BI$39,4)*1)-INT($L42)<LEFT($BG$39,4)*1,0,((OFFSET(BT42,0,-INT($L42+0.5),1,1))/$L42)*(IF($L42-INT($L42)>0.5,$L42-0.5-INT($L42),IF($L42-INT($L42)<=0.5,$L42-0.5-INT($L42)+1,0)))) +BT42/$L42*0.5 +SUM(OFFSET(BT42,0,MAX(-INT($L42+(0.5-(10^-12))),-BI$40)+1,1,MIN(INT($L42+(0.5-(10^-12))),BI$40)-1))*1/$L42, IF($J42="Declining Balance",-$BG$38,0))))) -> 0 | BJ42: 0 | BK42: 0 | BL42: 0 | BM42: 0 | BN42: 0 | BO42: 0 | BP42: 0.07937420421 | BR42: =+IF($K42="Ongoing",AV42,IF(RIGHT($K42,2)=RIGHT(BR$39,2),SUM($AV42:AV42),0)+IF(RIGHT(BR$39,2)>RIGHT($K42,2),AV42,0)) -> 0 | BS42: =+IF($K42="Ongoing",AW42,IF(RIGHT($K42,2)=RIGHT(BS$39,2),SUM($AV42:AW42),0)+IF(RIGHT(BS$39,2)>RIGHT($K42,2),AW42,0)) -> 0 | BT42: =+IF($K42="Ongoing",AX42,IF(RIGHT($K42,2)=RIGHT(BT$39,2),SUM($AV42:AX42),0)+IF(RIGHT(BT$39,2)>RIGHT($K42,2),AX42,0)) -> 0 | BU42: =+IF($K42="Ongoing",AY42,IF(RIGHT($K42,2)=RIGHT(BU$39,2),SUM($AV42:AY42),0)+IF(RIGHT(BU$39,2)>RIGHT($K42,2),AY42,0)) -> 0 | BV42: =+IF($K42="Ongoing",AZ42,IF(RIGHT($K42,2)=RIGHT(BV$39,2),SUM($AV42:AZ42),0)+IF(RIGHT(BV$39,2)>RIGHT($K42,2),AZ42,0)) -> 0 | BW42: =+IF($K42="Ongoing",BA42,IF(RIGHT($K42,2)=RIGHT(BW$39,2),SUM($AV42:BA42),0)+IF(RIGHT(BW$39,2)>RIGHT($K42,2),BA42,0)) -> 0 | BX42: =+IF($K42="Ongoing",BB42,IF(RIGHT($K42,2)=RIGHT(BX$39,2),SUM($AV42:BB42),0)+IF(RIGHT(BX$39,2)>RIGHT($K42,2),BB42,0)) -> 0 | BY42: =+IF($K42="Ongoing",BC42,IF(RIGHT($K42,2)=RIGHT(BY$39,2),SUM($AV42:BC42),0)+IF(RIGHT(BY$39,2)>RIGHT($K42,2),BC42,0)) -> 0 | BZ42: =+IF($K42="Ongoing",BD42,IF(RIGHT($K42,2)=RIGHT(BZ$39,2),SUM($AV42:BD42),0)+IF(RIGHT(BZ$39,2)>RIGHT($K42,2),BD42,0)) -> 0 | CA42: =+IF($K42="Ongoing",BE42,IF(RIGHT($K42,2)=RIGHT(CA$39,2),SUM($AV42:BE42),0)+IF(RIGHT(CA$39,2)>RIGHT($K42,2),BE42,0)) -> 11.11238859 | CC42: =+O42*KeyAssumptionsPriceControl_FO!X$15 -> 0.3134237528 | CD42: =+P42*KeyAssumptionsPriceControl_FO!Y$15 -> 3.206836933 | CE42: =+Q42*KeyAssumptionsPriceControl_FO!Z$15 -> 0.4860146044 | CF42: =+R42*KeyAssumptionsPriceControl_FO!AA$15 -> 2.485961328 | CG42: =+S42*KeyAssumptionsPriceControl_FO!AB$15 -> 0.2547775974 | CH42: =+T42*KeyAssumptionsPriceControl_FO!AC$15 -> 3.160476638 | CI42: =+U42*KeyAssumptionsPriceControl_FO!AD$15 -> 0.4789877888 | CJ42: =+V42*KeyAssumptionsPriceControl_FO!AE$15 -> 1.59251466 | CK42: =+W42*KeyAssumptionsPriceControl_FO!AF$15 -> 0.1253186498 | CL42: =+X42*KeyAssumptionsPriceControl_FO!AG$15 -> 0.2446779835 | CN42: =IF($M42=0,0, IF($M42<=0.5,CC42, IF($J42="straight line", IF((LEFT(CN$39,4)*1)-INT($M42)<LEFT($CN$39,4)*1,0,((OFFSET(CC42,0,-INT($M42+0.5),1,1))/$M42)*(IF($M42-INT($M42)>0.5,$M42-0.5-INT($M42),IF($M42-INT($M42)<=0.5,$M42-0.5-INT($M42)+1,0)))) +CC42/$M42*0.5, IF($J42="Declining Balance",-$CN$38,0)))) -> 0.003134237528 | CO42: =IF($M42=0,0, IF($M42<=0.5,CD42, IF(AND($J42="straight line",$M42<1.51),(CC42-((CC42/$M42)*0.5))+CD42/$M42*0.5, IF($J42="straight line", IF((LEFT(CO$39,4)*1)-INT($M42)<LEFT($CN$39,4)*1,0,((OFFSET(CD42,0,-INT($M42+0.5),1,1))/$M42)*(IF($M42-INT($M42)>0.5,$M42-0.5-INT($M42),IF($M42-INT($M42)<=0.5,$M42-0.5-INT($M42)+1,0)))) +CD42/$M42*0.5 +SUM(OFFSET(CD42,0,MAX(-INT($M42+(0.5-(10^-12))),-CO$40)+1,1,MIN(INT($M42+(0.5-(10^-12))),CO$40)-1))*1/$M42, IF($J42="Declining Balance",-$CN$38,0))))) -> 0.03833684438 | CP42: =IF($M42=0,0, IF($M42<=0.5,CE42, IF(AND($J42="straight line",$M42<1.51),(CD42-((CD42/$M42)*0.5))+CE42/$M42*0.5, IF($J42="straight line", IF((LEFT(CP$39,4)*1)-INT($M42)<LEFT($CN$39,4)*1,0,((OFFSET(CE42,0,-INT($M42+0.5),1,1))/$M42)*(IF($M42-INT($M42)>0.5,$M42-0.5-INT($M42),IF($M42-INT($M42)<=0.5,$M42-0.5-INT($M42)+1,0)))) +CE42/$M42*0.5 +SUM(OFFSET(CE42,0,MAX(-INT($M42+(0.5-(10^-12))),-CP$40)+1,1,MIN(INT($M42+(0.5-(10^-12))),CP$40)-1))*1/$M42, IF($J42="Declining Balance",-$CN$38,0))))) -> 0.07526535975 | CQ42: 0.1049851191 | CR42: 0.1323925083 | CS42: 0.1665450507 | CT42: 0.202939695 | CU42: 0.2236547194 | CV42: 0.2408330525 | CW42: 0.2445330189
C43: Colac WTP Clear Water Storage Upgrade | E43: Water | F43: Improvements / Compliance | G43: Treatment | H43: Top 10 Major Projects | J43: Straight line | K43: 2019-20 | L43: 55 | M43: 37 | O43: 3.06377079 | P43: 3.00155378 | Q43: 0 | R43: 0 | S43: 0 | T43: 0 | U43: 0 | V43: 0 | W43: 0 | X43: 0 | Z43: 0 | AA43: 0 | AB43: 0 | AC43: 0 | AD43: 0 | AE43: 0 | AF43: 0 | AG43: 0 | AH43: 0 | AI43: 0 | AK43: 0 | AL43: 0 | AM43: 0 | AN43: 0 | AO43: 0 | AP43: 0 | AQ43: 0 | AR43: 0 | AS43: 0 | AT43: 0 | AV43: =+O43-Z43-AK43 -> 3.06377079 | AW43: 3.00155378 | AX43: 0 | AY43: 0 | AZ43: 0 | BA43: 0 | BB43: 0 | BC43: 0 | BD43: 0 | BE43: 0 | BG43: =IF($L43=0,0, IF($L43<=0.5,BR43, IF($J43="straight line", IF((LEFT(BG$39,4)*1)-INT($L43)<LEFT($BG$39,4)*1,0,((OFFSET(BR43,0,-INT($L43+0.5),1,1))/$L43)*(IF($L43-INT($L43)>0.5,$L43-0.5-INT($L43),IF($L43-INT($L43)<=0.5,$L43-0.5-INT($L43)+1,0)))) +BR43/$L43*0.5, IF($J43="Declining Balance",-$BG$38,0)))) -> 0 | BH43: =IF($L43=0,0, IF($L43<=0.5,BS43, IF(AND($J43="straight line",$L43<1.51),(BR43-((BR43/$L43)*0.5))+BS43/$L43*0.5, IF($J43="straight line", IF((LEFT(BH$39,4)*1)-INT($L43)<LEFT($BG$39,4)*1,0,((OFFSET(BS43,0,-INT($L43+0.5),1,1))/$L43)*(IF($L43-INT($L43)>0.5,$L43-0.5-INT($L43),IF($L43-INT($L43)<=0.5,$L43-0.5-INT($L43)+1,0)))) +BS43/$L43*0.5 +SUM(OFFSET(BS43,0,MAX(-INT($L43+(0.5-(10^-12))),-BH$40)+1,1,MIN(INT($L43+(0.5-(10^-12))),BH$40)-1))*1/$L43, IF($J43="Declining Balance",-$BG$38,0))))) -> 0.05513931427 | BI43: 0.1102786285 | BJ43: 0.1102786285 | BK43: 0.1102786285 | BL43: 0.1102786285 | BM43: 0.1102786285 | BN43: 0.1102786285 | BO43: 0.1102786285 | BP43: 0.1102786285 | BR43: =+IF($K43="Ongoing",AV43,IF(RIGHT($K43,2)=RIGHT(BR$39,2),SUM($AV43:AV43),0)+IF(RIGHT(BR$39,2)>RIGHT($K43,2),AV43,0)) -> 0 | BS43: =+IF($K43="Ongoing",AW43,IF(RIGHT($K43,2)=RIGHT(BS$39,2),SUM($AV43:AW43),0)+IF(RIGHT(BS$39,2)>RIGHT($K43,2),AW43,0)) -> 6.06532457 | BT43: =+IF($K43="Ongoing",AX43,IF(RIGHT($K43,2)=RIGHT(BT$39,2),SUM($AV43:AX43),0)+IF(RIGHT(BT$39,2)>RIGHT($K43,2),AX43,0)) -> 0 | BU43: =+IF($K43="Ongoing",AY43,IF(RIGHT($K43,2)=RIGHT(BU$39,2),SUM($AV43:AY43),0)+IF(RIGHT(BU$39,2)>RIGHT($K43,2),AY43,0)) -> 0 | BV43: =+IF($K43="Ongoing",AZ43,IF(RIGHT($K43,2)=RIGHT(BV$39,2),SUM($AV43:AZ43),0)+IF(RIGHT(BV$39,2)>RIGHT($K43,2),AZ43,0)) -> 0 | BW43: =+IF($K43="Ongoing",BA43,IF(RIGHT($K43,2)=RIGHT(BW$39,2),SUM($AV43:BA43),0)+IF(RIGHT(BW$39,2)>RIGHT($K43,2),BA43,0)) -> 0 | BX43: =+IF($K43="Ongoing",BB43,IF(RIGHT($K43,2)=RIGHT(BX$39,2),SUM($AV43:BB43),0)+IF(RIGHT(BX$39,2)>RIGHT($K43,2),BB43,0)) -> 0 | BY43: =+IF($K43="Ongoing",BC43,IF(RIGHT($K43,2)=RIGHT(BY$39,2),SUM($AV43:BC43),0)+IF(RIGHT(BY$39,2)>RIGHT($K43,2),BC43,0)) -> 0 | BZ43: =+IF($K43="Ongoing",BD43,IF(RIGHT($K43,2)=RIGHT(BZ$39,2),SUM($AV43:BD43),0)+IF(RIGHT(BZ$39,2)>RIGHT($K43,2),BD43,0)) -> 0 | CA43: =+IF($K43="Ongoing",BE43,IF(RIGHT($K43,2)=RIGHT(CA$39,2),SUM($AV43:BE43),0)+IF(RIGHT(CA$39,2)>RIGHT($K43,2),BE43,0)) -> 0 | CC43: =+O43*KeyAssumptionsPriceControl_FO!X$15 -> 3.134237518 | CD43: =+P43*KeyAssumptionsPriceControl_FO!Y$15 -> 3.141213076 | CE43: =+Q43*KeyAssumptionsPriceControl_FO!Z$15 -> 0 | CF43: =+R43*KeyAssumptionsPriceControl_FO!AA$15 -> 0 | CG43: =+S43*KeyAssumptionsPriceControl_FO!AB$15 -> 0 | CH43: =+T43*KeyAssumptionsPriceControl_FO!AC$15 -> 0 | CI43: =+U43*KeyAssumptionsPriceControl_FO!AD$15 -> 0 | CJ43: =+V43*KeyAssumptionsPriceControl_FO!AE$15 -> 0 | CK43: =+W43*KeyAssumptionsPriceControl_FO!AF$15 -> 0 | CL43: =+X43*KeyAssumptionsPriceControl_FO!AG$15 -> 0 | CN43: =IF($M43=0,0, IF($M43<=0.5,CC43, IF($J43="straight line", IF((LEFT(CN$39,4)*1)-INT($M43)<LEFT($CN$39,4)*1,0,((OFFSET(CC43,0,-INT($M43+0.5),1,1))/$M43)*(IF($M43-INT($M43)>0.5,$M43-0.5-INT($M43),IF($M43-INT($M43)<=0.5,$M43-0.5-INT($M43)+1,0)))) +CC43/$M43*0.5, IF($J43="Declining Balance",-$CN$38,0)))) -> 0.04235456106 | CO43: =IF($M43=0,0, IF($M43<=0.5,CD43, IF(AND($J43="straight line",$M43<1.51),(CC43-((CC43/$M43)*0.5))+CD43/$M43*0.5, IF($J43="straight line", IF((LEFT(CO$39,4)*1)-INT($M43)<LEFT($CN$39,4)*1,0,((OFFSET(CD43,0,-INT($M43+0.5),1,1))/$M43)*(IF($M43-INT($M43)>0.5,$M43-0.5-INT($M43),IF($M43-INT($M43)<=0.5,$M43-0.5-INT($M43)+1,0)))) +CD43/$M43*0.5 +SUM(OFFSET(CD43,0,MAX(-INT($M43+(0.5-(10^-12))),-CO$40)+1,1,MIN(INT($M43+(0.5-(10^-12))),CO$40)-1))*1/$M43, IF($J43="Declining Balance",-$CN$38,0))))) -> 0.1271579475 | CP43: 0.1696067728 | CQ43: 0.1696067728 | CR43: 0.1696067728 | CS43: 0.1696067728 | CT43: 0.1696067728 | CU43: 0.1696067728 | CV43: 0.1696067728 | CW43: 0.1696067728
C44: Forrest WTP Upgrade | E44: Water | F44: Renewals | G44: Treatment | H44: Top 10 Major Projects | J44: Straight line | K44: 2022-23 | L44: 55 | M44: 37 | O44: 0 | P44: 0 | Q44: 0.66381701 | R44: 3.58800649 | S44: 0.23030059 | T44: 0 | U44: 0 | V44: 0 | W44: 0 | X44: 0 | Z44: 0 | AA44: 0 | AB44: 0 | AC44: 0 | AD44: 0 | AE44: 0 | AF44: 0 | AG44: 0 | AH44: 0 | AI44: 0 | AK44: 0 | AL44: 0 | AM44: 0 | AN44: 0 | AO44: 0 | AP44: 0 | AQ44: 0 | AR44: 0 | AS44: 0 | AT44: 0 | AV44: 0 | AW44: 0 | AX44: 0.66381701 | AY44: 3.58800649 | AZ44: 0.23030059 | BA44: 0 | BB44: 0 | BC44: 0 | BD44: 0 | BE44: 0 | BG44: 0 | BH44: 0 | BI44: 0 | BJ44: 0 | BK44: 0.04074658264 | BL44: 0.08149316527 | BM44: 0.08149316527 | BN44: 0.08149316527 | BO44: 0.08149316527 | BP44: 0.08149316527 | BR44: =+IF($K44="Ongoing",AV44,IF(RIGHT($K44,2)=RIGHT(BR$39,2),SUM($AV44:AV44),0)+IF(RIGHT(BR$39,2)>RIGHT($K44,2),AV44,0)) -> 0 | BS44: =+IF($K44="Ongoing",AW44,IF(RIGHT($K44,2)=RIGHT(BS$39,2),SUM($AV44:AW44),0)+IF(RIGHT(BS$39,2)>RIGHT($K44,2),AW44,0)) -> 0 | BT44: =+IF($K44="Ongoing",AX44,IF(RIGHT($K44,2)=RIGHT(BT$39,2),SUM($AV44:AX44),0)+IF(RIGHT(BT$39,2)>RIGHT($K44,2),AX44,0)) -> 0 | BU44: =+IF($K44="Ongoing",AY44,IF(RIGHT($K44,2)=RIGHT(BU$39,2),SUM($AV44:AY44),0)+IF(RIGHT(BU$39,2)>RIGHT($K44,2),AY44,0)) -> 0 | BV44: =+IF($K44="Ongoing",AZ44,IF(RIGHT($K44,2)=RIGHT(BV$39,2),SUM($AV44:AZ44),0)+IF(RIGHT(BV$39,2)>RIGHT($K44,2),AZ44,0)) -> 4.48212409 | BW44: =+IF($K44="Ongoing",BA44,IF(RIGHT($K44,2)=RIGHT(BW$39,2),SUM($AV44:BA44),0)+IF(RIGHT(BW$39,2)>RIGHT($K44,2),BA44,0)) -> 0 | BX44: =+IF($K44="Ongoing",BB44,IF(RIGHT($K44,2)=RIGHT(BX$39,2),SUM($AV44:BB44),0)+IF(RIGHT(BX$39,2)>RIGHT($K44,2),BB44,0)) -> 0 | BY44: =+IF($K44="Ongoing",BC44,IF(RIGHT($K44,2)=RIGHT(BY$39,2),SUM($AV44:BC44),0)+IF(RIGHT(BY$39,2)>RIGHT($K44,2),BC44,0)) -> 0 | BZ44: =+IF($K44="Ongoing",BD44,IF(RIGHT($K44,2)=RIGHT(BZ$39,2),SUM($AV44:BD44),0)+IF(RIGHT(BZ$39,2)>RIGHT($K44,2),BD44,0)) -> 0 | CA44: =+IF($K44="Ongoing",BE44,IF(RIGHT($K44,2)=RIGHT(CA$39,2),SUM($AV44:BE44),0)+IF(RIGHT(CA$39,2)>RIGHT($K44,2),BE44,0)) -> 0 | CC44: =+O44*KeyAssumptionsPriceControl_FO!X$15 -> 0 | CD44: =+P44*KeyAssumptionsPriceControl_FO!Y$15 -> 0 | CE44: =+Q44*KeyAssumptionsPriceControl_FO!Z$15 -> 0.7106819379 | CF44: =+R44*KeyAssumptionsPriceControl_FO!AA$15 -> 3.929667045 | CG44: =+S44*KeyAssumptionsPriceControl_FO!AB$15 -> 0.2580317924 | CH44: =+T44*KeyAssumptionsPriceControl_FO!AC$15 -> 0 | CI44: =+U44*KeyAssumptionsPriceControl_FO!AD$15 -> 0 | CJ44: =+V44*KeyAssumptionsPriceControl_FO!AE$15 -> 0 | CK44: =+W44*KeyAssumptionsPriceControl_FO!AF$15 -> 0 | CL44: =+X44*KeyAssumptionsPriceControl_FO!AG$15 -> 0 | CN44: 0 | CO44: 0 | CP44: 0.009603809972 | CQ44: 0.07231122866 | CR44: 0.1289017535 | CS44: 0.1323886696 | CT44: 0.1323886696 | CU44: 0.1323886696 | CV44: 0.1323886696 | CW44: 0.1323886696
C45: Gellibrand WTP Upgrade | E45: Water | F45: Renewals | G45: Treatment | H45: Top 10 Major Projects | J45: Straight line | K45: 2021-22 | L45: 55 | M45: 37 | O45: 0 | P45: 0.78196622 | Q45: 4.09482669 | R45: 0.26065541 | S45: 0 | T45: 0 | U45: 0 | V45: 0 | W45: 0 | X45: 0 | Z45: 0 | AA45: 0 | AB45: 0 | AC45: 0 | AD45: 0 | AE45: 0 | AF45: 0 | AG45: 0 | AH45: 0 | AI45: 0 | AK45: 0 | AL45: 0 | AM45: 0 | AN45: 0 | AO45: 0 | AP45: 0 | AQ45: 0 | AR45: 0 | AS45: 0 | AT45: 0 | AV45: 0 | AW45: 0.78196622 | AX45: 4.09482669 | AY45: 0.26065541 | AZ45: 0 | BA45: 0 | BB45: 0 | BC45: 0 | BD45: 0 | BE45: 0 | BG45: 0 | BH45: 0 | BI45: 0 | BJ45: 0.04670407564 | BK45: 0.09340815127 | BL45: 0.09340815127 | BM45: 0.09340815127 | BN45: 0.09340815127 | BO45: 0.09340815127 | BP45: 0.09340815127 | BR45: =+IF($K45="Ongoing",AV45,IF(RIGHT($K45,2)=RIGHT(BR$39,2),SUM($AV45:AV45),0)+IF(RIGHT(BR$39,2)>RIGHT($K45,2),AV45,0)) -> 0 | BS45: =+IF($K45="Ongoing",AW45,IF(RIGHT($K45,2)=RIGHT(BS$39,2),SUM($AV45:AW45),0)+IF(RIGHT(BS$39,2)>RIGHT($K45,2),AW45,0)) -> 0 | BT45: =+IF($K45="Ongoing",AX45,IF(RIGHT($K45,2)=RIGHT(BT$39,2),SUM($AV45:AX45),0)+IF(RIGHT(BT$39,2)>RIGHT($K45,2),AX45,0)) -> 0 | BU45: =+IF($K45="Ongoing",AY45,IF(RIGHT($K45,2)=RIGHT(BU$39,2),SUM($AV45:AY45),0)+IF(RIGHT(BU$39,2)>RIGHT($K45,2),AY45,0)) -> 5.13744832 | BV45: =+IF($K45="Ongoing",AZ45,IF(RIGHT($K45,2)=RIGHT(BV$39,2),SUM($AV45:AZ45),0)+IF(RIGHT(BV$39,2)>RIGHT($K45,2),AZ45,0)) -> 0 | BW45: =+IF($K45="Ongoing",BA45,IF(RIGHT($K45,2)=RIGHT(BW$39,2),SUM($AV45:BA45),0)+IF(RIGHT(BW$39,2)>RIGHT($K45,2),BA45,0)) -> 0 | BX45: =+IF($K45="Ongoing",BB45,IF(RIGHT($K45,2)=RIGHT(BX$39,2),SUM($AV45:BB45),0)+IF(RIGHT(BX$39,2)>RIGHT($K45,2),BB45,0)) -> 0 | BY45: =+IF($K45="Ongoing",BC45,IF(RIGHT($K45,2)=RIGHT(BY$39,2),SUM($AV45:BC45),0)+IF(RIGHT(BY$39,2)>RIGHT($K45,2),BC45,0)) -> 0 | BZ45: =+IF($K45="Ongoing",BD45,IF(RIGHT($K45,2)=RIGHT(BZ$39,2),SUM($AV45:BD45),0)+IF(RIGHT(BZ$39,2)>RIGHT($K45,2),BD45,0)) -> 0 | CA45: =+IF($K45="Ongoing",BE45,IF(RIGHT($K45,2)=RIGHT(CA$39,2),SUM($AV45:BE45),0)+IF(RIGHT(CA$39,2)>RIGHT($K45,2),BE45,0)) -> 0 | CC45: =+O45*KeyAssumptionsPriceControl_FO!X$15 -> 0 | CD45: =+P45*KeyAssumptionsPriceControl_FO!Y$15 -> 0.8183503263 | CE45: =+Q45*KeyAssumptionsPriceControl_FO!Z$15 -> 4.383918043 | CF45: =+R45*KeyAssumptionsPriceControl_FO!AA$15 -> 0.2854757865 | CG45: =+S45*KeyAssumptionsPriceControl_FO!AB$15 -> 0 | CH45: =+T45*KeyAssumptionsPriceControl_FO!AC$15 -> 0 | CI45: =+U45*KeyAssumptionsPriceControl_FO!AD$15 -> 0 | CJ45: =+V45*KeyAssumptionsPriceControl_FO!AE$15 -> 0 | CK45: =+W45*KeyAssumptionsPriceControl_FO!AF$15 -> 0 | CL45: =+X45*KeyAssumptionsPriceControl_FO!AG$15 -> 0 | CN45: 0 | CO45: 0.01105878819 | CP45: 0.08135971211 | CQ45: 0.1444596287 | CR45: 0.1483174096 | CS45: 0.1483174096 | CT45: 0.1483174096 | CU45: 0.1483174096 | CV45: 0.1483174096 | CW45: 0.1483174096
C46: Black Rock Renewable Energy Project Stg2 | E46: Sewerage | F46: Improvements / Compliance | G46: Treatment | H46: Top 10 Major Projects | J46: Straight line | K46: 2019-20 | L46: 25 | M46: 15 | O46: 0.49224584 | P46: 4.45081234 | Q46: 0 | R46: 0 | S46: 0 | T46: 0 | U46: 0 | V46: 0 | W46: 0 | X46: 0 | Z46: 0 | AA46: 0 | AB46: 0 | AC46: 0 | AD46: 0 | AE46: 0 | AF46: 0 | AG46: 0 | AH46: 0 | AI46: 0 | AK46: 0 | AL46: 0 | AM46: 0 | AN46: 0 | AO46: 0 | AP46: 0 | AQ46: 0 | AR46: 0 | AS46: 0 | AT46: 0 | AV46: 0.49224584 | AW46: 4.45081234 | AX46: 0 | AY46: 0 | AZ46: 0 | BA46: 0 | BB46: 0 | BC46: 0 | BD46: 0 | BE46: 0 | BG46: 0 | BH46: 0.0988611636 | BI46: 0.1977223272 | BJ46: 0.1977223272 | BK46: 0.1977223272 | BL46: 0.1977223272 | BM46: 0.1977223272 | BN46: 0.1977223272 | BO46: 0.1977223272 | BP46: 0.1977223272 | BR46: =+IF($K46="Ongoing",AV46,IF(RIGHT($K46,2)=RIGHT(BR$39,2),SUM($AV46:AV46),0)+IF(RIGHT(BR$39,2)>RIGHT($K46,2),AV46,0)) -> 0 | BS46: =+IF($K46="Ongoing",AW46,IF(RIGHT($K46,2)=RIGHT(BS$39,2),SUM($AV46:AW46),0)+IF(RIGHT(BS$39,2)>RIGHT($K46,2),AW46,0)) -> 4.94305818 | BT46: =+IF($K46="Ongoing",AX46,IF(RIGHT($K46,2)=RIGHT(BT$39,2),SUM($AV46:AX46),0)+IF(RIGHT(BT$39,2)>RIGHT($K46,2),AX46,0)) -> 0 | BU46: =+IF($K46="Ongoing",AY46,IF(RIGHT($K46,2)=RIGHT(BU$39,2),SUM($AV46:AY46),0)+IF(RIGHT(BU$39,2)>RIGHT($K46,2),AY46,0)) -> 0 | BV46: =+IF($K46="Ongoing",AZ46,IF(RIGHT($K46,2)=RIGHT(BV$39,2),SUM($AV46:AZ46),0)+IF(RIGHT(BV$39,2)>RIGHT($K46,2),AZ46,0)) -> 0 | BW46: =+IF($K46="Ongoing",BA46,IF(RIGHT($K46,2)=RIGHT(BW$39,2),SUM($AV46:BA46),0)+IF(RIGHT(BW$39,2)>RIGHT($K46,2),BA46,0)) -> 0 | BX46: =+IF($K46="Ongoing",BB46,IF(RIGHT($K46,2)=RIGHT(BX$39,2),SUM($AV46:BB46),0)+IF(RIGHT(BX$39,2)>RIGHT($K46,2),BB46,0)) -> 0 | BY46: =+IF($K46="Ongoing",BC46,IF(RIGHT($K46,2)=RIGHT(BY$39,2),SUM($AV46:BC46),0)+IF(RIGHT(BY$39,2)>RIGHT($K46,2),BC46,0)) -> 0 | BZ46: =+IF($K46="Ongoing",BD46,IF(RIGHT($K46,2)=RIGHT(BZ$39,2),SUM($AV46:BD46),0)+IF(RIGHT(BZ$39,2)>RIGHT($K46,2),BD46,0)) -> 0 | CA46: =+IF($K46="Ongoing",BE46,IF(RIGHT($K46,2)=RIGHT(CA$39,2),SUM($AV46:BE46),0)+IF(RIGHT(CA$39,2)>RIGHT($K46,2),BE46,0)) -> 0 | CC46: =+O46*KeyAssumptionsPriceControl_FO!X$15 -> 0.5035674943 | CD46: =+P46*KeyAssumptionsPriceControl_FO!Y$15 -> 4.657904187 | CE46: =+Q46*KeyAssumptionsPriceControl_FO!Z$15 -> 0 | CF46: =+R46*KeyAssumptionsPriceControl_FO!AA$15 -> 0 | CG46: =+S46*KeyAssumptionsPriceControl_FO!AB$15 -> 0 | CH46: =+T46*KeyAssumptionsPriceControl_FO!AC$15 -> 0 | CI46: =+U46*KeyAssumptionsPriceControl_FO!AD$15 -> 0 | CJ46: =+V46*KeyAssumptionsPriceControl_FO!AE$15 -> 0 | CK46: =+W46*KeyAssumptionsPriceControl_FO!AF$15 -> 0 | CL46: =+X46*KeyAssumptionsPriceControl_FO!AG$15 -> 0 | CN46: 0.01678558314 | CO46: 0.1888346392 | CP46: 0.3440981121 | CQ46: 0.3440981121 | CR46: 0.3440981121 | CS46: 0.3440981121 | CT46: 0.3440981121 | CU46: 0.3440981121 | CV46: 0.3440981121 | CW46: 0.3440981121
C47: BRWRP Effluent Storage | E47: Sewerage | F47: Growth | G47: Treatment | H47: Top 10 Major Projects | J47: Straight line | K47: 2023-24 | L47: 70 | M47: 50 | O47: 0 | P47: 0 | Q47: 0 | R47: 0.57736689 | S47: 4.47762851 | T47: 0.41240491 | U47: 0 | V47: 0 | W47: 0 | X47: 0 | Z47: 0 | AA47: 0 | AB47: 0 | AC47: 0 | AD47: 0 | AE47: 0 | AF47: 0 | AG47: 0 | AH47: 0 | AI47: 0 | AK47: 0 | AL47: 0 | AM47: 0 | AN47: 0 | AO47: 0 | AP47: 0 | AQ47: 0 | AR47: 0 | AS47: 0 | AT47: 0 | AV47: 0 | AW47: 0 | AX47: 0 | AY47: 0.57736689 | AZ47: 4.47762851 | BA47: 0.41240491 | BB47: 0 | BC47: 0 | BD47: 0 | BE47: 0 | BG47: 0 | BH47: 0 | BI47: 0 | BJ47: 0 | BK47: 0 | BL47: 0.03905285936 | BM47: 0.07810571871 | BN47: 0.07810571871 | BO47: 0.07810571871 | BP47: 0.07810571871 | BR47: =+IF($K47="Ongoing",AV47,IF(RIGHT($K47,2)=RIGHT(BR$39,2),SUM($AV47:AV47),0)+IF(RIGHT(BR$39,2)>RIGHT($K47,2),AV47,0)) -> 0 | BS47: =+IF($K47="Ongoing",AW47,IF(RIGHT($K47,2)=RIGHT(BS$39,2),SUM($AV47:AW47),0)+IF(RIGHT(BS$39,2)>RIGHT($K47,2),AW47,0)) -> 0 | BT47: =+IF($K47="Ongoing",AX47,IF(RIGHT($K47,2)=RIGHT(BT$39,2),SUM($AV47:AX47),0)+IF(RIGHT(BT$39,2)>RIGHT($K47,2),AX47,0)) -> 0 | BU47: =+IF($K47="Ongoing",AY47,IF(RIGHT($K47,2)=RIGHT(BU$39,2),SUM($AV47:AY47),0)+IF(RIGHT(BU$39,2)>RIGHT($K47,2),AY47,0)) -> 0 | BV47: =+IF($K47="Ongoing",AZ47,IF(RIGHT($K47,2)=RIGHT(BV$39,2),SUM($AV47:AZ47),0)+IF(RIGHT(BV$39,2)>RIGHT($K47,2),AZ47,0)) -> 0 | BW47: =+IF($K47="Ongoing",BA47,IF(RIGHT($K47,2)=RIGHT(BW$39,2),SUM($AV47:BA47),0)+IF(RIGHT(BW$39,2)>RIGHT($K47,2),BA47,0)) -> 5.46740031 | BX47: =+IF($K47="Ongoing",BB47,IF(RIGHT($K47,2)=RIGHT(BX$39,2),SUM($AV47:BB47),0)+IF(RIGHT(BX$39,2)>RIGHT($K47,2),BB47,0)) -> 0 | BY47: =+IF($K47="Ongoing",BC47,IF(RIGHT($K47,2)=RIGHT(BY$39,2),SUM($AV47:BC47),0)+IF(RIGHT(BY$39,2)>RIGHT($K47,2),BC47,0)) -> 0 | BZ47: =+IF($K47="Ongoing",BD47,IF(RIGHT($K47,2)=RIGHT(BZ$39,2),SUM($AV47:BD47),0)+IF(RIGHT(BZ$39,2)>RIGHT($K47,2),BD47,0)) -> 0 | CA47: =+IF($K47="Ongoing",BE47,IF(RIGHT($K47,2)=RIGHT(CA$39,2),SUM($AV47:BE47),0)+IF(RIGHT(CA$39,2)>RIGHT($K47,2),BE47,0)) -> 0 | CC47: =+O47*KeyAssumptionsPriceControl_FO!X$15 -> 0 | CD47: =+P47*KeyAssumptionsPriceControl_FO!Y$15 -> 0 | CE47: =+Q47*KeyAssumptionsPriceControl_FO!Z$15 -> 0 | CF47: =+R47*KeyAssumptionsPriceControl_FO!AA$15 -> 0.6323454673 | CG47: =+S47*KeyAssumptionsPriceControl_FO!AB$15 -> 5.01679353 | CH47: =+T47*KeyAssumptionsPriceControl_FO!AC$15 -> 0.4726913223 | CI47: =+U47*KeyAssumptionsPriceControl_FO!AD$15 -> 0 | CJ47: =+V47*KeyAssumptionsPriceControl_FO!AE$15 -> 0 | CK47: =+W47*KeyAssumptionsPriceControl_FO!AF$15 -> 0 | CL47: =+X47*KeyAssumptionsPriceControl_FO!AG$15 -> 0 | CN47: 0 | CO47: 0 | CP47: 0 | CQ47: 0.006323454673 | CR47: 0.06281484465 | CS47: 0.1177096932 | CT47: 0.1224366064 | CU47: 0.1224366064 | CV47: 0.1224366064 | CW47: 0.1224366064
C48: Colac WRP Sludge dewatering upgrade | E48: Sewerage | F48: Growth | G48: Treatment | H48: Top 10 Major Projects | J48: Straight line | K48: 2019-20 | L48: 40 | M48: 22 | O48: 0.25531423 | P48: 3.95796192 | Q48: 0 | R48: 0 | S48: 0 | T48: 0 | U48: 0 | V48: 0 | W48: 0 | X48: 0 | Z48: 0 | AA48: 0 | AB48: 0 | AC48: 0 | AD48: 0 | AE48: 0 | AF48: 0 | AG48: 0 | AH48: 0 | AI48: 0 | AK48: 0 | AL48: 0 | AM48: 0 | AN48: 0 | AO48: 0 | AP48: 0 | AQ48: 0 | AR48: 0 | AS48: 0 | AT48: 0 | AV48: 0.25531423 | AW48: 3.95796192 | AX48: 0 | AY48: 0 | AZ48: 0 | BA48: 0 | BB48: 0 | BC48: 0 | BD48: 0 | BE48: 0 | BG48: 0 | BH48: 0.05266595187 | BI48: 0.1053319037 | BJ48: 0.1053319037 | BK48: 0.1053319037 | BL48: 0.1053319037 | BM48: 0.1053319037 | BN48: 0.1053319037 | BO48: 0.1053319037 | BP48: 0.1053319037 | BR48: =+IF($K48="Ongoing",AV48,IF(RIGHT($K48,2)=RIGHT(BR$39,2),SUM($AV48:AV48),0)+IF(RIGHT(BR$39,2)>RIGHT($K48,2),AV48,0)) -> 0 | BS48: =+IF($K48="Ongoing",AW48,IF(RIGHT($K48,2)=RIGHT(BS$39,2),SUM($AV48:AW48),0)+IF(RIGHT(BS$39,2)>RIGHT($K48,2),AW48,0)) -> 4.21327615 | BT48: =+IF($K48="Ongoing",AX48,IF(RIGHT($K48,2)=RIGHT(BT$39,2),SUM($AV48:AX48),0)+IF(RIGHT(BT$39,2)>RIGHT($K48,2),AX48,0)) -> 0 | BU48: =+IF($K48="Ongoing",AY48,IF(RIGHT($K48,2)=RIGHT(BU$39,2),SUM($AV48:AY48),0)+IF(RIGHT(BU$39,2)>RIGHT($K48,2),AY48,0)) -> 0 | BV48: =+IF($K48="Ongoing",AZ48,IF(RIGHT($K48,2)=RIGHT(BV$39,2),SUM($AV48:AZ48),0)+IF(RIGHT(BV$39,2)>RIGHT($K48,2),AZ48,0)) -> 0 | BW48: =+IF($K48="Ongoing",BA48,IF(RIGHT($K48,2)=RIGHT(BW$39,2),SUM($AV48:BA48),0)+IF(RIGHT(BW$39,2)>RIGHT($K48,2),BA48,0)) -> 0 | BX48: =+IF($K48="Ongoing",BB48,IF(RIGHT($K48,2)=RIGHT(BX$39,2),SUM($AV48:BB48),0)+IF(RIGHT(BX$39,2)>RIGHT($K48,2),BB48,0)) -> 0 | BY48: =+IF($K48="Ongoing",BC48,IF(RIGHT($K48,2)=RIGHT(BY$39,2),SUM($AV48:BC48),0)+IF(RIGHT(BY$39,2)>RIGHT($K48,2),BC48,0)) -> 0 | BZ48: =+IF($K48="Ongoing",BD48,IF(RIGHT($K48,2)=RIGHT(BZ$39,2),SUM($AV48:BD48),0)+IF(RIGHT(BZ$39,2)>RIGHT($K48,2),BD48,0)) -> 0 | CA48: =+IF($K48="Ongoing",BE48,IF(RIGHT($K48,2)=RIGHT(CA$39,2),SUM($AV48:BE48),0)+IF(RIGHT(CA$39,2)>RIGHT($K48,2),BE48,0)) -> 0 | CC48: =+O48*KeyAssumptionsPriceControl_FO!X$15 -> 0.2611864573 | CD48: =+P48*KeyAssumptionsPriceControl_FO!Y$15 -> 4.14212193 | CE48: =+Q48*KeyAssumptionsPriceControl_FO!Z$15 -> 0 | CF48: =+R48*KeyAssumptionsPriceControl_FO!AA$15 -> 0 | CG48: =+S48*KeyAssumptionsPriceControl_FO!AB$15 -> 0 | CH48: =+T48*KeyAssumptionsPriceControl_FO!AC$15 -> 0 | CI48: =+U48*KeyAssumptionsPriceControl_FO!AD$15 -> 0 | CJ48: =+V48*KeyAssumptionsPriceControl_FO!AE$15 -> 0 | CK48: =+W48*KeyAssumptionsPriceControl_FO!AF$15 -> 0 | CL48: =+X48*KeyAssumptionsPriceControl_FO!AG$15 -> 0 | CN48: 0.005936055847 | CO48: 0.1060112465 | CP48: 0.2001503812 | CQ48: 0.2001503812 | CR48: 0.2001503812 | CS48: 0.2001503812 | CT48: 0.2001503812 | CU48: 0.2001503812 | CV48: 0.2001503812 | CW48: 0.2001503812
C49: Telemetry RTU PLC HMI Hardware &Software | E49: Water | F49: Renewals | G49: Corporate | H49: Top 10 Major Projects | J49: Straight line | K49: 2021-22 | L49: 25 | M49: 6 | O49: 0 | P49: 0 | Q49: 2.04251386 | R49: 2.49592335 | S49: 0 | T49: 0 | U49: 0 | V49: 0 | W49: 0 | X49: 0 | Z49: 0 | AA49: 0 | AB49: 0 | AC49: 0 | AD49: 0 | AE49: 0 | AF49: 0 | AG49: 0 | AH49: 0 | AI49: 0 | AK49: 0 | AL49: 0 | AM49: 0 | AN49: 0 | AO49: 0 | AP49: 0 | AQ49: 0 | AR49: 0 | AS49: 0 | AT49: 0 | AV49: 0 | AW49: 0 | AX49: 2.04251386 | AY49: 2.49592335 | AZ49: 0 | BA49: 0 | BB49: 0 | BC49: 0 | BD49: 0 | BE49: 0 | BG49: 0 | BH49: 0 | BI49: 0 | BJ49: 0.0907687442 | BK49: 0.1815374884 | BL49: 0.1815374884 | BM49: 0.1815374884 | BN49: 0.1815374884 | BO49: 0.1815374884 | BP49: 0.1815374884 | BR49: =+IF($K49="Ongoing",AV49,IF(RIGHT($K49,2)=RIGHT(BR$39,2),SUM($AV49:AV49),0)+IF(RIGHT(BR$39,2)>RIGHT($K49,2),AV49,0)) -> 0 | BS49: =+IF($K49="Ongoing",AW49,IF(RIGHT($K49,2)=RIGHT(BS$39,2),SUM($AV49:AW49),0)+IF(RIGHT(BS$39,2)>RIGHT($K49,2),AW49,0)) -> 0 | BT49: =+IF($K49="Ongoing",AX49,IF(RIGHT($K49,2)=RIGHT(BT$39,2),SUM($AV49:AX49),0)+IF(RIGHT(BT$39,2)>RIGHT($K49,2),AX49,0)) -> 0 | BU49: =+IF($K49="Ongoing",AY49,IF(RIGHT($K49,2)=RIGHT(BU$39,2),SUM($AV49:AY49),0)+IF(RIGHT(BU$39,2)>RIGHT($K49,2),AY49,0)) -> 4.53843721 | BV49: =+IF($K49="Ongoing",AZ49,IF(RIGHT($K49,2)=RIGHT(BV$39,2),SUM($AV49:AZ49),0)+IF(RIGHT(BV$39,2)>RIGHT($K49,2),AZ49,0)) -> 0 | BW49: =+IF($K49="Ongoing",BA49,IF(RIGHT($K49,2)=RIGHT(BW$39,2),SUM($AV49:BA49),0)+IF(RIGHT(BW$39,2)>RIGHT($K49,2),BA49,0)) -> 0 | BX49: =+IF($K49="Ongoing",BB49,IF(RIGHT($K49,2)=RIGHT(BX$39,2),SUM($AV49:BB49),0)+IF(RIGHT(BX$39,2)>RIGHT($K49,2),BB49,0)) -> 0 | BY49: =+IF($K49="Ongoing",BC49,IF(RIGHT($K49,2)=RIGHT(BY$39,2),SUM($AV49:BC49),0)+IF(RIGHT(BY$39,2)>RIGHT($K49,2),BC49,0)) -> 0 | BZ49: =+IF($K49="Ongoing",BD49,IF(RIGHT($K49,2)=RIGHT(BZ$39,2),SUM($AV49:BD49),0)+IF(RIGHT(BZ$39,2)>RIGHT($K49,2),BD49,0)) -> 0 | CA49: =+IF($K49="Ongoing",BE49,IF(RIGHT($K49,2)=RIGHT(CA$39,2),SUM($AV49:BE49),0)+IF(RIGHT(CA$39,2)>RIGHT($K49,2),BE49,0)) -> 0 | CC49: =+O49*KeyAssumptionsPriceControl_FO!X$15 -> 0 | CD49: =+P49*KeyAssumptionsPriceControl_FO!Y$15 -> 0 | CE49: =+Q49*KeyAssumptionsPriceControl_FO!Z$15 -> 2.186713637 | CF49: =+R49*KeyAssumptionsPriceControl_FO!AA$15 -> 2.733592529 | CG49: =+S49*KeyAssumptionsPriceControl_FO!AB$15 -> 0 | CH49: =+T49*KeyAssumptionsPriceControl_FO!AC$15 -> 0 | CI49: =+U49*KeyAssumptionsPriceControl_FO!AD$15 -> 0 | CJ49: =+V49*KeyAssumptionsPriceControl_FO!AE$15 -> 0 | CK49: =+W49*KeyAssumptionsPriceControl_FO!AF$15 -> 0 | CL49: =+X49*KeyAssumptionsPriceControl_FO!AG$15 -> 0 | CN49: 0 | CO49: 0 | CP49: 0.1822261364 | CQ49: 0.5922516503 | CR49: 0.8200510277 | CS49: 0.8200510277 | CT49: 0.8200510277 | CU49: 0.8200510277 | CV49: 0.6378248913 | CW49: 0.2277993774
C50: Property Realisation (Scenic Rd Highton) | E50: Water | F50: Renewals | G50: Corporate | H50: Top 10 Major Projects | J50: Straight line | K50: 2020-21 | L50: 0 | M50: 0 | O50: 1.13359519 | P50: 6.6506825 | Q50: 5.10628466 | R50: 0 | S50: 0 | T50: 0 | U50: 0 | V50: 0 | W50: 0 | X50: 0 | Z50: 0 | AA50: 0 | AB50: 0 | AC50: 0 | AD50: 0 | AE50: 0 | AF50: 0 | AG50: 0 | AH50: 0 | AI50: 0 | AK50: 0 | AL50: 0 | AM50: 0 | AN50: 0 | AO50: 0 | AP50: 0 | AQ50: 0 | AR50: 0 | AS50: 0 | AT50: 0 | AV50: 1.13359519 | AW50: 6.6506825 | AX50: 5.10628466 | AY50: 0 | AZ50: 0 | BA50: 0 | BB50: 0 | BC50: 0 | BD50: 0 | BE50: 0 | BG50: 0 | BH50: 0 | BI50: 0 | BJ50: 0 | BK50: 0 | BL50: 0 | BM50: 0 | BN50: 0 | BO50: 0 | BP50: 0 | BR50: =+IF($K50="Ongoing",AV50,IF(RIGHT($K50,2)=RIGHT(BR$39,2),SUM($AV50:AV50),0)+IF(RIGHT(BR$39,2)>RIGHT($K50,2),AV50,0)) -> 0 | BS50: =+IF($K50="Ongoing",AW50,IF(RIGHT($K50,2)=RIGHT(BS$39,2),SUM($AV50:AW50),0)+IF(RIGHT(BS$39,2)>RIGHT($K50,2),AW50,0)) -> 0 | BT50: =+IF($K50="Ongoing",AX50,IF(RIGHT($K50,2)=RIGHT(BT$39,2),SUM($AV50:AX50),0)+IF(RIGHT(BT$39,2)>RIGHT($K50,2),AX50,0)) -> 12.89056235 | BU50: =+IF($K50="Ongoing",AY50,IF(RIGHT($K50,2)=RIGHT(BU$39,2),SUM($AV50:AY50),0)+IF(RIGHT(BU$39,2)>RIGHT($K50,2),AY50,0)) -> 0 | BV50: =+IF($K50="Ongoing",AZ50,IF(RIGHT($K50,2)=RIGHT(BV$39,2),SUM($AV50:AZ50),0)+IF(RIGHT(BV$39,2)>RIGHT($K50,2),AZ50,0)) -> 0 | BW50: =+IF($K50="Ongoing",BA50,IF(RIGHT($K50,2)=RIGHT(BW$39,2),SUM($AV50:BA50),0)+IF(RIGHT(BW$39,2)>RIGHT($K50,2),BA50,0)) -> 0 | BX50: =+IF($K50="Ongoing",BB50,IF(RIGHT($K50,2)=RIGHT(BX$39,2),SUM($AV50:BB50),0)+IF(RIGHT(BX$39,2)>RIGHT($K50,2),BB50,0)) -> 0 | BY50: =+IF($K50="Ongoing",BC50,IF(RIGHT($K50,2)=RIGHT(BY$39,2),SUM($AV50:BC50),0)+IF(RIGHT(BY$39,2)>RIGHT($K50,2),BC50,0)) -> 0 | BZ50: =+IF($K50="Ongoing",BD50,IF(RIGHT($K50,2)=RIGHT(BZ$39,2),SUM($AV50:BD50),0)+IF(RIGHT(BZ$39,2)>RIGHT($K50,2),BD50,0)) -> 0 | CA50: =+IF($K50="Ongoing",BE50,IF(RIGHT($K50,2)=RIGHT(CA$39,2),SUM($AV50:BE50),0)+IF(RIGHT(CA$39,2)>RIGHT($K50,2),BE50,0)) -> 0 | CC50: =+O50*KeyAssumptionsPriceControl_FO!X$15 -> 1.159667879 | CD50: =+P50*KeyAssumptionsPriceControl_FO!Y$15 -> 6.960132106 | CE50: =+Q50*KeyAssumptionsPriceControl_FO!Z$15 -> 5.466784103 | CF50: =+R50*KeyAssumptionsPriceControl_FO!AA$15 -> 0 | CG50: =+S50*KeyAssumptionsPriceControl_FO!AB$15 -> 0 | CH50: =+T50*KeyAssumptionsPriceControl_FO!AC$15 -> 0 | CI50: =+U50*KeyAssumptionsPriceControl_FO!AD$15 -> 0 | CJ50: =+V50*KeyAssumptionsPriceControl_FO!AE$15 -> 0 | CK50: =+W50*KeyAssumptionsPriceControl_FO!AF$15 -> 0 | CL50: =+X50*KeyAssumptionsPriceControl_FO!AG$15 -> 0 | CN50: 0 | CO50: 0 | CP50: 0 | CQ50: 0 | CR50: 0 | CS50: 0 | CT50: 0 | CU50: 0 | CV50: 0 | CW50: 0
C51: Property Realisation Thornhill Rd Highto | E51: Water | F51: Renewals | G51: Corporate | H51: Top 10 Major Projects | J51: Straight line | K51: 2018-19 | L51: 0 | M51: 0 | O51: 3.87431178 | P51: 0 | Q51: 0 | R51: 0 | S51: 0 | T51: 0 | U51: 0 | V51: 0 | W51: 0 | X51: 0 | Z51: 0 | AA51: 0 | AB51: 0 | AC51: 0 | AD51: 0 | AE51: 0 | AF51: 0 | AG51: 0 | AH51: 0 | AI51: 0 | AK51: 0 | AL51: 0 | AM51: 0 | AN51: 0 | AO51: 0 | AP51: 0 | AQ51: 0 | AR51: 0 | AS51: 0 | AT51: 0 | AV51: 3.87431178 | AW51: 0 | AX51: 0 | AY51: 0 | AZ51: 0 | BA51: 0 | BB51: 0 | BC51: 0 | BD51: 0 | BE51: 0 | BG51: 0 | BH51: 0 | BI51: 0 | BJ51: 0 | BK51: 0 | BL51: 0 | BM51: 0 | BN51: 0 | BO51: 0 | BP51: 0 | BR51: =+IF($K51="Ongoing",AV51,IF(RIGHT($K51,2)=RIGHT(BR$39,2),SUM($AV51:AV51),0)+IF(RIGHT(BR$39,2)>RIGHT($K51,2),AV51,0)) -> 3.87431178 | BS51: =+IF($K51="Ongoing",AW51,IF(RIGHT($K51,2)=RIGHT(BS$39,2),SUM($AV51:AW51),0)+IF(RIGHT(BS$39,2)>RIGHT($K51,2),AW51,0)) -> 0 | BT51: =+IF($K51="Ongoing",AX51,IF(RIGHT($K51,2)=RIGHT(BT$39,2),SUM($AV51:AX51),0)+IF(RIGHT(BT$39,2)>RIGHT($K51,2),AX51,0)) -> 0 | BU51: =+IF($K51="Ongoing",AY51,IF(RIGHT($K51,2)=RIGHT(BU$39,2),SUM($AV51:AY51),0)+IF(RIGHT(BU$39,2)>RIGHT($K51,2),AY51,0)) -> 0 | BV51: =+IF($K51="Ongoing",AZ51,IF(RIGHT($K51,2)=RIGHT(BV$39,2),SUM($AV51:AZ51),0)+IF(RIGHT(BV$39,2)>RIGHT($K51,2),AZ51,0)) -> 0 | BW51: =+IF($K51="Ongoing",BA51,IF(RIGHT($K51,2)=RIGHT(BW$39,2),SUM($AV51:BA51),0)+IF(RIGHT(BW$39,2)>RIGHT($K51,2),BA51,0)) -> 0 | BX51: =+IF($K51="Ongoing",BB51,IF(RIGHT($K51,2)=RIGHT(BX$39,2),SUM($AV51:BB51),0)+IF(RIGHT(BX$39,2)>RIGHT($K51,2),BB51,0)) -> 0 | BY51: =+IF($K51="Ongoing",BC51,IF(RIGHT($K51,2)=RIGHT(BY$39,2),SUM($AV51:BC51),0)+IF(RIGHT(BY$39,2)>RIGHT($K51,2),BC51,0)) -> 0 | BZ51: =+IF($K51="Ongoing",BD51,IF(RIGHT($K51,2)=RIGHT(BZ$39,2),SUM($AV51:BD51),0)+IF(RIGHT(BZ$39,2)>RIGHT($K51,2),BD51,0)) -> 0 | CA51: =+IF($K51="Ongoing",BE51,IF(RIGHT($K51,2)=RIGHT(CA$39,2),SUM($AV51:BE51),0)+IF(RIGHT(CA$39,2)>RIGHT($K51,2),BE51,0)) -> 0 | CC51: =+O51*KeyAssumptionsPriceControl_FO!X$15 -> 3.963420951 | CD51: =+P51*KeyAssumptionsPriceControl_FO!Y$15 -> 0 | CE51: =+Q51*KeyAssumptionsPriceControl_FO!Z$15 -> 0 | CF51: =+R51*KeyAssumptionsPriceControl_FO!AA$15 -> 0 | CG51: =+S51*KeyAssumptionsPriceControl_FO!AB$15 -> 0 | CH51: =+T51*KeyAssumptionsPriceControl_FO!AC$15 -> 0 | CI51: =+U51*KeyAssumptionsPriceControl_FO!AD$15 -> 0 | CJ51: =+V51*KeyAssumptionsPriceControl_FO!AE$15 -> 0 | CK51: =+W51*KeyAssumptionsPriceControl_FO!AF$15 -> 0 | CL51: =+X51*KeyAssumptionsPriceControl_FO!AG$15 -> 0 | CN51: 0 | CO51: 0 | CP51: 0 | CQ51: 0 | CR51: 0 | CS51: 0 | CT51: 0 | CU51: 0 | CV51: 0 | CW51: 0
C53: Allen Reservoir Embankment Upgrade | E53: Water | F53: Improvements / Compliance | G53: Headworks | H53: Other Capital expenditure | J53: Straight line | K53: 2019-20 | L53: 310 | M53: 50 | O53: 0.00802112 | P53: 0.00523394 | Q53: 0 | R53: 0 | S53: 0 | T53: 0 | U53: 0 | V53: 0 | W53: 0 | X53: 0 | Z53: 0 | AA53: 0 | AB53: 0 | AC53: 0 | AD53: 0 | AE53: 0 | AF53: 0 | AG53: 0 | AH53: 0 | AI53: 0 | AK53: 0 | AL53: 0 | AM53: 0 | AN53: 0 | AO53: 0 | AP53: 0 | AQ53: 0 | AR53: 0 | AS53: 0 | AT53: 0 | AV53: 0.00802112 | AW53: 0.00523394 | AX53: 0 | AY53: 0 | AZ53: 0 | BA53: 0 | BB53: 0 | BC53: 0 | BD53: 0 | BE53: 0 | BG53: 0 | BH53: 2.137912903e-05 | BI53: 4.275825806e-05 | BJ53: 4.275825806e-05 | BK53: 4.275825806e-05 | BL53: 4.275825806e-05 | BM53: 4.275825806e-05 | BN53: 4.275825806e-05 | BO53: 4.275825806e-05 | BP53: 4.275825806e-05 | BR53: =+IF($K53="Ongoing",AV53,IF(RIGHT($K53,2)=RIGHT(BR$39,2),SUM($AV53:AV53),0)+IF(RIGHT(BR$39,2)>RIGHT($K53,2),AV53,0)) -> 0 | BS53: =+IF($K53="Ongoing",AW53,IF(RIGHT($K53,2)=RIGHT(BS$39,2),SUM($AV53:AW53),0)+IF(RIGHT(BS$39,2)>RIGHT($K53,2),AW53,0)) -> 0.01325506 | BT53: =+IF($K53="Ongoing",AX53,IF(RIGHT($K53,2)=RIGHT(BT$39,2),SUM($AV53:AX53),0)+IF(RIGHT(BT$39,2)>RIGHT($K53,2),AX53,0)) -> 0 | BU53: =+IF($K53="Ongoing",AY53,IF(RIGHT($K53,2)=RIGHT(BU$39,2),SUM($AV53:AY53),0)+IF(RIGHT(BU$39,2)>RIGHT($K53,2),AY53,0)) -> 0 | BV53: =+IF($K53="Ongoing",AZ53,IF(RIGHT($K53,2)=RIGHT(BV$39,2),SUM($AV53:AZ53),0)+IF(RIGHT(BV$39,2)>RIGHT($K53,2),AZ53,0)) -> 0 | BW53: =+IF($K53="Ongoing",BA53,IF(RIGHT($K53,2)=RIGHT(BW$39,2),SUM($AV53:BA53),0)+IF(RIGHT(BW$39,2)>RIGHT($K53,2),BA53,0)) -> 0 | BX53: =+IF($K53="Ongoing",BB53,IF(RIGHT($K53,2)=RIGHT(BX$39,2),SUM($AV53:BB53),0)+IF(RIGHT(BX$39,2)>RIGHT($K53,2),BB53,0)) -> 0 | BY53: =+IF($K53="Ongoing",BC53,IF(RIGHT($K53,2)=RIGHT(BY$39,2),SUM($AV53:BC53),0)+IF(RIGHT(BY$39,2)>RIGHT($K53,2),BC53,0)) -> 0 | BZ53: =+IF($K53="Ongoing",BD53,IF(RIGHT($K53,2)=RIGHT(BZ$39,2),SUM($AV53:BD53),0)+IF(RIGHT(BZ$39,2)>RIGHT($K53,2),BD53,0)) -> 0 | CA53: =+IF($K53="Ongoing",BE53,IF(RIGHT($K53,2)=RIGHT(CA$39,2),SUM($AV53:BE53),0)+IF(RIGHT(CA$39,2)>RIGHT($K53,2),BE53,0)) -> 0 | CC53: =+O53*KeyAssumptionsPriceControl_FO!X$15 -> 0.00820560576 | CD53: =+P53*KeyAssumptionsPriceControl_FO!Y$15 -> 0.005477469994 | CE53: =+Q53*KeyAssumptionsPriceControl_FO!Z$15 -> 0 | CF53: =+R53*KeyAssumptionsPriceControl_FO!AA$15 -> 0 | CG53: =+S53*KeyAssumptionsPriceControl_FO!AB$15 -> 0 | CH53: =+T53*KeyAssumptionsPriceControl_FO!AC$15 -> 0 | CI53: =+U53*KeyAssumptionsPriceControl_FO!AD$15 -> 0 | CJ53: =+V53*KeyAssumptionsPriceControl_FO!AE$15 -> 0 | CK53: =+W53*KeyAssumptionsPriceControl_FO!AF$15 -> 0 | CL53: =+X53*KeyAssumptionsPriceControl_FO!AG$15 -> 0 | CN53: 8.20560576e-05 | CO53: 0.0002188868151 | CP53: 0.0002736615151 | CQ53: 0.0002736615151 | CR53: 0.0002736615151 | CS53: 0.0002736615151 | CT53: 0.0002736615151 | CU53: 0.0002736615151 | CV53: 0.0002736615151 | CW53: 0.0002736615151
C54: Anglesea Borefield Project | E54: Water | F54: Growth | G54: Headworks | H54: Other Capital expenditure | J54: Straight line | K54: 2019-20 | L54: 75 | M54: 50 | O54: 0.01021257 | P54: 0.01021257 | Q54: 0 | R54: 0 | S54: 0 | T54: 0 | U54: 0 | V54: 0 | W54: 0 | X54: 0 | Z54: 0 | AA54: 0 | AB54: 0 | AC54: 0 | AD54: 0 | AE54: 0 | AF54: 0 | AG54: 0 | AH54: 0 | AI54: 0 | AK54: 0.007110674127 | AL54: 0.005283787653 | AM54: 0 | AN54: 0 | AO54: 0 | AP54: 0 | AQ54: 0 | AR54: 0 | AS54: 0 | AT54: 0 | AV54: 0.003101895873 | AW54: 0.004928782347 | AX54: 0 | AY54: 0 | AZ54: 0 | BA54: 0 | BB54: 0 | BC54: 0 | BD54: 0 | BE54: 0 | BG54: 0 | BH54: 5.35378548e-05 | BI54: 0.0001070757096 | BJ54: 0.0001070757096 | BK54: 0.0001070757096 | BL54: 0.0001070757096 | BM54: 0.0001070757096 | BN54: 0.0001070757096 | BO54: 0.0001070757096 | BP54: 0.0001070757096 | BR54: =+IF($K54="Ongoing",AV54,IF(RIGHT($K54,2)=RIGHT(BR$39,2),SUM($AV54:AV54),0)+IF(RIGHT(BR$39,2)>RIGHT($K54,2),AV54,0)) -> 0 | BS54: =+IF($K54="Ongoing",AW54,IF(RIGHT($K54,2)=RIGHT(BS$39,2),SUM($AV54:AW54),0)+IF(RIGHT(BS$39,2)>RIGHT($K54,2),AW54,0)) -> 0.00803067822 | BT54: =+IF($K54="Ongoing",AX54,IF(RIGHT($K54,2)=RIGHT(BT$39,2),SUM($AV54:AX54),0)+IF(RIGHT(BT$39,2)>RIGHT($K54,2),AX54,0)) -> 0 | BU54: =+IF($K54="Ongoing",AY54,IF(RIGHT($K54,2)=RIGHT(BU$39,2),SUM($AV54:AY54),0)+IF(RIGHT(BU$39,2)>RIGHT($K54,2),AY54,0)) -> 0 | BV54: =+IF($K54="Ongoing",AZ54,IF(RIGHT($K54,2)=RIGHT(BV$39,2),SUM($AV54:AZ54),0)+IF(RIGHT(BV$39,2)>RIGHT($K54,2),AZ54,0)) -> 0 | BW54: =+IF($K54="Ongoing",BA54,IF(RIGHT($K54,2)=RIGHT(BW$39,2),SUM($AV54:BA54),0)+IF(RIGHT(BW$39,2)>RIGHT($K54,2),BA54,0)) -> 0 | BX54: =+IF($K54="Ongoing",BB54,IF(RIGHT($K54,2)=RIGHT(BX$39,2),SUM($AV54:BB54),0)+IF(RIGHT(BX$39,2)>RIGHT($K54,2),BB54,0)) -> 0 | BY54: =+IF($K54="Ongoing",BC54,IF(RIGHT($K54,2)=RIGHT(BY$39,2),SUM($AV54:BC54),0)+IF(RIGHT(BY$39,2)>RIGHT($K54,2),BC54,0)) -> 0 | BZ54: =+IF($K54="Ongoing",BD54,IF(RIGHT($K54,2)=RIGHT(BZ$39,2),SUM($AV54:BD54),0)+IF(RIGHT(BZ$39,2)>RIGHT($K54,2),BD54,0)) -> 0 | CA54: =+IF($K54="Ongoing",BE54,IF(RIGHT($K54,2)=RIGHT(CA$39,2),SUM($AV54:BE54),0)+IF(RIGHT(CA$39,2)>RIGHT($K54,2),BE54,0)) -> 0 | CC54: =+O54*KeyAssumptionsPriceControl_FO!X$15 -> 0.01044745911 | CD54: =+P54*KeyAssumptionsPriceControl_FO!Y$15 -> 0.01068775067 | CE54: =+Q54*KeyAssumptionsPriceControl_FO!Z$15 -> 0 | CF54: =+R54*KeyAssumptionsPriceControl_FO!AA$15 -> 0 | CG54: =+S54*KeyAssumptionsPriceControl_FO!AB$15 -> 0 | CH54: =+T54*KeyAssumptionsPriceControl_FO!AC$15 -> 0 | CI54: =+U54*KeyAssumptionsPriceControl_FO!AD$15 -> 0 | CJ54: =+V54*KeyAssumptionsPriceControl_FO!AE$15 -> 0 | CK54: =+W54*KeyAssumptionsPriceControl_FO!AF$15 -> 0 | CL54: =+X54*KeyAssumptionsPriceControl_FO!AG$15 -> 0 | CN54: 0.0001044745911 | CO54: 0.0003158266889 | CP54: 0.0004227041956 | CQ54: 0.0004227041956 | CR54: 0.0004227041956 | CS54: 0.0004227041956 | CT54: 0.0004227041956 | CU54: 0.0004227041956 | CV54: 0.0004227041956 | CW54: 0.0004227041956
C55: Apollo Bay Basin Pipeline to WTP | E55: Water | F55: Improvements / Compliance | G55: Headworks | H55: Other Capital expenditure | J55: Straight line | K55: 2018-19 | L55: 70 | M55: 50 | O55: 0.95236907 | P55: 0 | Q55: 0 | R55: 0 | S55: 0 | T55: 0 | U55: 0 | V55: 0 | W55: 0 | X55: 0 | Z55: 0 | AA55: 0 | AB55: 0 | AC55: 0 | AD55: 0 | AE55: 0 | AF55: 0 | AG55: 0 | AH55: 0 | AI55: 0 | AK55: 0 | AL55: 0 | AM55: 0 | AN55: 0 | AO55: 0 | AP55: 0 | AQ55: 0 | AR55: 0 | AS55: 0 | AT55: 0 | AV55: 0.95236907 | AW55: 0 | AX55: 0 | AY55: 0 | AZ55: 0 | BA55: 0 | BB55: 0 | BC55: 0 | BD55: 0 | BE55: 0 | BG55: 0.006802636214 | BH55: 0.01360527243 | BI55: 0.01360527243 | BJ55: 0.01360527243 | BK55: 0.01360527243 | BL55: 0.01360527243 | BM55: 0.01360527243 | BN55: 0.01360527243 | BO55: 0.01360527243 | BP55: 0.01360527243 | BR55: =+IF($K55="Ongoing",AV55,IF(RIGHT($K55,2)=RIGHT(BR$39,2),SUM($AV55:AV55),0)+IF(RIGHT(BR$39,2)>RIGHT($K55,2),AV55,0)) -> 0.95236907 | BS55: =+IF($K55="Ongoing",AW55,IF(RIGHT($K55,2)=RIGHT(BS$39,2),SUM($AV55:AW55),0)+IF(RIGHT(BS$39,2)>RIGHT($K55,2),AW55,0)) -> 0 | BT55: =+IF($K55="Ongoing",AX55,IF(RIGHT($K55,2)=RIGHT(BT$39,2),SUM($AV55:AX55),0)+IF(RIGHT(BT$39,2)>RIGHT($K55,2),AX55,0)) -> 0 | BU55: =+IF($K55="Ongoing",AY55,IF(RIGHT($K55,2)=RIGHT(BU$39,2),SUM($AV55:AY55),0)+IF(RIGHT(BU$39,2)>RIGHT($K55,2),AY55,0)) -> 0 | BV55: =+IF($K55="Ongoing",AZ55,IF(RIGHT($K55,2)=RIGHT(BV$39,2),SUM($AV55:AZ55),0)+IF(RIGHT(BV$39,2)>RIGHT($K55,2),AZ55,0)) -> 0 | BW55: =+IF($K55="Ongoing",BA55,IF(RIGHT($K55,2)=RIGHT(BW$39,2),SUM($AV55:BA55),0)+IF(RIGHT(BW$39,2)>RIGHT($K55,2),BA55,0)) -> 0 | BX55: =+IF($K55="Ongoing",BB55,IF(RIGHT($K55,2)=RIGHT(BX$39,2),SUM($AV55:BB55),0)+IF(RIGHT(BX$39,2)>RIGHT($K55,2),BB55,0)) -> 0 | BY55: =+IF($K55="Ongoing",BC55,IF(RIGHT($K55,2)=RIGHT(BY$39,2),SUM($AV55:BC55),0)+IF(RIGHT(BY$39,2)>RIGHT($K55,2),BC55,0)) -> 0 | BZ55: =+IF($K55="Ongoing",BD55,IF(RIGHT($K55,2)=RIGHT(BZ$39,2),SUM($AV55:BD55),0)+IF(RIGHT(BZ$39,2)>RIGHT($K55,2),BD55,0)) -> 0 | CA55: =+IF($K55="Ongoing",BE55,IF(RIGHT($K55,2)=RIGHT(CA$39,2),SUM($AV55:BE55),0)+IF(RIGHT(CA$39,2)>RIGHT($K55,2),BE55,0)) -> 0 | CC55: =+O55*KeyAssumptionsPriceControl_FO!X$15 -> 0.9742735586 | CD55: =+P55*KeyAssumptionsPriceControl_FO!Y$15 -> 0 | CE55: =+Q55*KeyAssumptionsPriceControl_FO!Z$15 -> 0 | CF55: =+R55*KeyAssumptionsPriceControl_FO!AA$15 -> 0 | CG55: =+S55*KeyAssumptionsPriceControl_FO!AB$15 -> 0 | CH55: =+T55*KeyAssumptionsPriceControl_FO!AC$15 -> 0 | CI55: =+U55*KeyAssumptionsPriceControl_FO!AD$15 -> 0 | CJ55: =+V55*KeyAssumptionsPriceControl_FO!AE$15 -> 0 | CK55: =+W55*KeyAssumptionsPriceControl_FO!AF$15 -> 0 | CL55: =+X55*KeyAssumptionsPriceControl_FO!AG$15 -> 0 | CN55: 0.009742735586 | CO55: 0.01948547117 | CP55: 0.01948547117 | CQ55: 0.01948547117 | CR55: 0.01948547117 | CS55: 0.01948547117 | CT55: 0.01948547117 | CU55: 0.01948547117 | CV55: 0.01948547117 | CW55: 0.01948547117
C56: Ballan Channel Upgrade | E56: Water | F56: Renewals | G56: Headworks | H56: Other Capital expenditure | J56: Straight line | K56: 2027-28 | L56: 70 | M56: 50 | O56: 0.37786506 | P56: 0.10212569 | Q56: 0.71487985 | R56: 0.10212569 | S56: 0.91913124 | T56: 0.10212569 | U56: 0.97019409 | V56: 0.10212569 | W56: 0.45956562 | X56: 0.16563358 | Z56: 0 | AA56: 0 | AB56: 0 | AC56: 0 | AD56: 0 | AE56: 0 | AF56: 0 | AG56: 0 | AH56: 0 | AI56: 0 | AK56: 0 | AL56: 0 | AM56: 0 | AN56: 0 | AO56: 0 | AP56: 0 | AQ56: 0 | AR56: 0 | AS56: 0 | AT56: 0 | AV56: 0.37786506 | AW56: 0.10212569 | AX56: 0.71487985 | AY56: 0.10212569 | AZ56: 0.91913124 | BA56: 0.10212569 | BB56: 0.97019409 | BC56: 0.10212569 | BD56: 0.45956562 | BE56: 0.16563358 | BG56: 0 | BH56: 0 | BI56: 0 | BJ56: 0 | BK56: 0 | BL56: 0 | BM56: 0 | BN56: 0 | BO56: 0 | BP56: 0.02868408714 | BR56: =+IF($K56="Ongoing",AV56,IF(RIGHT($K56,2)=RIGHT(BR$39,2),SUM($AV56:AV56),0)+IF(RIGHT(BR$39,2)>RIGHT($K56,2),AV56,0)) -> 0 | BS56: =+IF($K56="Ongoing",AW56,IF(RIGHT($K56,2)=RIGHT(BS$39,2),SUM($AV56:AW56),0)+IF(RIGHT(BS$39,2)>RIGHT($K56,2),AW56,0)) -> 0 | BT56: =+IF($K56="Ongoing",AX56,IF(RIGHT($K56,2)=RIGHT(BT$39,2),SUM($AV56:AX56),0)+IF(RIGHT(BT$39,2)>RIGHT($K56,2),AX56,0)) -> 0 | BU56: =+IF($K56="Ongoing",AY56,IF(RIGHT($K56,2)=RIGHT(BU$39,2),SUM($AV56:AY56),0)+IF(RIGHT(BU$39,2)>RIGHT($K56,2),AY56,0)) -> 0 | BV56: =+IF($K56="Ongoing",AZ56,IF(RIGHT($K56,2)=RIGHT(BV$39,2),SUM($AV56:AZ56),0)+IF(RIGHT(BV$39,2)>RIGHT($K56,2),AZ56,0)) -> 0 | BW56: =+IF($K56="Ongoing",BA56,IF(RIGHT($K56,2)=RIGHT(BW$39,2),SUM($AV56:BA56),0)+IF(RIGHT(BW$39,2)>RIGHT($K56,2),BA56,0)) -> 0 | BX56: =+IF($K56="Ongoing",BB56,IF(RIGHT($K56,2)=RIGHT(BX$39,2),SUM($AV56:BB56),0)+IF(RIGHT(BX$39,2)>RIGHT($K56,2),BB56,0)) -> 0 | BY56: =+IF($K56="Ongoing",BC56,IF(RIGHT($K56,2)=RIGHT(BY$39,2),SUM($AV56:BC56),0)+IF(RIGHT(BY$39,2)>RIGHT($K56,2),BC56,0)) -> 0 | BZ56: =+IF($K56="Ongoing",BD56,IF(RIGHT($K56,2)=RIGHT(BZ$39,2),SUM($AV56:BD56),0)+IF(RIGHT(BZ$39,2)>RIGHT($K56,2),BD56,0)) -> 0 | CA56: =+IF($K56="Ongoing",BE56,IF(RIGHT($K56,2)=RIGHT(CA$39,2),SUM($AV56:BE56),0)+IF(RIGHT(CA$39,2)>RIGHT($K56,2),BE56,0)) -> 4.0157722 | CC56: =+O56*KeyAssumptionsPriceControl_FO!X$15 -> 0.3865559564 | CD56: =+P56*KeyAssumptionsPriceControl_FO!Y$15 -> 0.1068774962 | CE56: =+Q56*KeyAssumptionsPriceControl_FO!Z$15 -> 0.7653497719 | CF56: =+R56*KeyAssumptionsPriceControl_FO!AA$15 -> 0.1118503993 | CG56: =+S56*KeyAssumptionsPriceControl_FO!AB$15 -> 1.02980666 | CH56: =+T56*KeyAssumptionsPriceControl_FO!AC$15 -> 0.1170546865 | CI56: =+U56*KeyAssumptionsPriceControl_FO!AD$15 -> 1.137596012 | CJ56: =+V56*KeyAssumptionsPriceControl_FO!AE$15 -> 0.122501124 | CK56: =+W56*KeyAssumptionsPriceControl_FO!AF$15 -> 0.5639339427 | CL56: =+X56*KeyAssumptionsPriceControl_FO!AG$15 -> 0.20792405 | CN56: 0.003865559564 | CO56: 0.00879989409 | CP56: 0.01752216677 | CQ56: 0.02629416848 | CR56: 0.03771073907 | CS56: 0.04917935253 | CT56: 0.06172585951 | CU56: 0.07432683087 | CV56: 0.08119118153 | CW56: 0.08890976146
C57: Barwon Downs Borefield Upgrade – Stage 2 | E57: Water | F57: Renewals | G57: Headworks | H57: Other Capital expenditure | J57: Straight line | K57: 2023-24 | L57: 70 | M57: 50 | O57: 0 | P57: 0.40850277 | Q57: 0 | R57: 0 | S57: 0 | T57: 1.40516682 | U57: 0 | V57: 0 | W57: 0 | X57: 0 | Z57: 0 | AA57: 0 | AB57: 0 | AC57: 0 | AD57: 0 | AE57: 0 | AF57: 0 | AG57: 0 | AH57: 0 | AI57: 0 | AK57: 0 | AL57: 0 | AM57: 0 | AN57: 0 | AO57: 0 | AP57: 0 | AQ57: 0 | AR57: 0 | AS57: 0 | AT57: 0 | AV57: 0 | AW57: 0.40850277 | AX57: 0 | AY57: 0 | AZ57: 0 | BA57: 1.40516682 | BB57: 0 | BC57: 0 | BD57: 0 | BE57: 0 | BG57: 0 | BH57: 0 | BI57: 0 | BJ57: 0 | BK57: 0 | BL57: 0.01295478279 | BM57: 0.02590956557 | BN57: 0.02590956557 | BO57: 0.02590956557 | BP57: 0.02590956557 | BR57: =+IF($K57="Ongoing",AV57,IF(RIGHT($K57,2)=RIGHT(BR$39,2),SUM($AV57:AV57),0)+IF(RIGHT(BR$39,2)>RIGHT($K57,2),AV57,0)) -> 0 | BS57: =+IF($K57="Ongoing",AW57,IF(RIGHT($K57,2)=RIGHT(BS$39,2),SUM($AV57:AW57),0)+IF(RIGHT(BS$39,2)>RIGHT($K57,2),AW57,0)) -> 0 | BT57: =+IF($K57="Ongoing",AX57,IF(RIGHT($K57,2)=RIGHT(BT$39,2),SUM($AV57:AX57),0)+IF(RIGHT(BT$39,2)>RIGHT($K57,2),AX57,0)) -> 0 | BU57: =+IF($K57="Ongoing",AY57,IF(RIGHT($K57,2)=RIGHT(BU$39,2),SUM($AV57:AY57),0)+IF(RIGHT(BU$39,2)>RIGHT($K57,2),AY57,0)) -> 0 | BV57: =+IF($K57="Ongoing",AZ57,IF(RIGHT($K57,2)=RIGHT(BV$39,2),SUM($AV57:AZ57),0)+IF(RIGHT(BV$39,2)>RIGHT($K57,2),AZ57,0)) -> 0 | BW57: =+IF($K57="Ongoing",BA57,IF(RIGHT($K57,2)=RIGHT(BW$39,2),SUM($AV57:BA57),0)+IF(RIGHT(BW$39,2)>RIGHT($K57,2),BA57,0)) -> 1.81366959 | BX57: =+IF($K57="Ongoing",BB57,IF(RIGHT($K57,2)=RIGHT(BX$39,2),SUM($AV57:BB57),0)+IF(RIGHT(BX$39,2)>RIGHT($K57,2),BB57,0)) -> 0 | BY57: =+IF($K57="Ongoing",BC57,IF(RIGHT($K57,2)=RIGHT(BY$39,2),SUM($AV57:BC57),0)+IF(RIGHT(BY$39,2)>RIGHT($K57,2),BC57,0)) -> 0 | BZ57: =+IF($K57="Ongoing",BD57,IF(RIGHT($K57,2)=RIGHT(BZ$39,2),SUM($AV57:BD57),0)+IF(RIGHT(BZ$39,2)>RIGHT($K57,2),BD57,0)) -> 0 | CA57: =+IF($K57="Ongoing",BE57,IF(RIGHT($K57,2)=RIGHT(CA$39,2),SUM($AV57:BE57),0)+IF(RIGHT(CA$39,2)>RIGHT($K57,2),BE57,0)) -> 0 | CC57: =+O57*KeyAssumptionsPriceControl_FO!X$15 -> 0 | CD57: =+P57*KeyAssumptionsPriceControl_FO!Y$15 -> 0.4275099954 | CE57: =+Q57*KeyAssumptionsPriceControl_FO!Z$15 -> 0 | CF57: =+R57*KeyAssumptionsPriceControl_FO!AA$15 -> 0 | CG57: =+S57*KeyAssumptionsPriceControl_FO!AB$15 -> 0 | CH57: =+T57*KeyAssumptionsPriceControl_FO!AC$15 -> 1.610577726 | CI57: =+U57*KeyAssumptionsPriceControl_FO!AD$15 -> 0 | CJ57: =+V57*KeyAssumptionsPriceControl_FO!AE$15 -> 0 | CK57: =+W57*KeyAssumptionsPriceControl_FO!AF$15 -> 0 | CL57: =+X57*KeyAssumptionsPriceControl_FO!AG$15 -> 0 | CN57: 0 | CO57: 0.004275099954 | CP57: 0.008550199908 | CQ57: 0.008550199908 | CR57: 0.008550199908 | CS57: 0.02465597717 | CT57: 0.04076175443 | CU57: 0.04076175443 | CV57: 0.04076175443 | CW57: 0.04076175443
C58: Boundary Crk Supplementary Flow Pipeline | E58: Water | F58: Improvements / Compliance | G58: Headworks | H58: Other Capital expenditure | J58: Straight line | K58: 2019-20 | L58: 70 | M58: 50 | O58: 0.23841243 | P58: 1.92154598 | Q58: 0 | R58: 0 | S58: 0 | T58: 0 | U58: 0 | V58: 0 | W58: 0 | X58: 0 | Z58: 0 | AA58: 0 | AB58: 0 | AC58: 0 | AD58: 0 | AE58: 0 | AF58: 0 | AG58: 0 | AH58: 0 | AI58: 0 | AK58: 0 | AL58: 0 | AM58: 0 | AN58: 0 | AO58: 0 | AP58: 0 | AQ58: 0 | AR58: 0 | AS58: 0 | AT58: 0 | AV58: 0.23841243 | AW58: 1.92154598 | AX58: 0 | AY58: 0 | AZ58: 0 | BA58: 0 | BB58: 0 | BC58: 0 | BD58: 0 | BE58: 0 | BG58: 0 | BH58: 0.01542827436 | BI58: 0.03085654871 | BJ58: 0.03085654871 | BK58: 0.03085654871 | BL58: 0.03085654871 | BM58: 0.03085654871 | BN58: 0.03085654871 | BO58: 0.03085654871 | BP58: 0.03085654871 | BR58: =+IF($K58="Ongoing",AV58,IF(RIGHT($K58,2)=RIGHT(BR$39,2),SUM($AV58:AV58),0)+IF(RIGHT(BR$39,2)>RIGHT($K58,2),AV58,0)) -> 0 | BS58: =+IF($K58="Ongoing",AW58,IF(RIGHT($K58,2)=RIGHT(BS$39,2),SUM($AV58:AW58),0)+IF(RIGHT(BS$39,2)>RIGHT($K58,2),AW58,0)) -> 2.15995841 | BT58: =+IF($K58="Ongoing",AX58,IF(RIGHT($K58,2)=RIGHT(BT$39,2),SUM($AV58:AX58),0)+IF(RIGHT(BT$39,2)>RIGHT($K58,2),AX58,0)) -> 0 | BU58: =+IF($K58="Ongoing",AY58,IF(RIGHT($K58,2)=RIGHT(BU$39,2),SUM($AV58:AY58),0)+IF(RIGHT(BU$39,2)>RIGHT($K58,2),AY58,0)) -> 0 | BV58: =+IF($K58="Ongoing",AZ58,IF(RIGHT($K58,2)=RIGHT(BV$39,2),SUM($AV58:AZ58),0)+IF(RIGHT(BV$39,2)>RIGHT($K58,2),AZ58,0)) -> 0 | BW58: =+IF($K58="Ongoing",BA58,IF(RIGHT($K58,2)=RIGHT(BW$39,2),SUM($AV58:BA58),0)+IF(RIGHT(BW$39,2)>RIGHT($K58,2),BA58,0)) -> 0 | BX58: =+IF($K58="Ongoing",BB58,IF(RIGHT($K58,2)=RIGHT(BX$39,2),SUM($AV58:BB58),0)+IF(RIGHT(BX$39,2)>RIGHT($K58,2),BB58,0)) -> 0 | BY58: =+IF($K58="Ongoing",BC58,IF(RIGHT($K58,2)=RIGHT(BY$39,2),SUM($AV58:BC58),0)+IF(RIGHT(BY$39,2)>RIGHT($K58,2),BC58,0)) -> 0 | BZ58: =+IF($K58="Ongoing",BD58,IF(RIGHT($K58,2)=RIGHT(BZ$39,2),SUM($AV58:BD58),0)+IF(RIGHT(BZ$39,2)>RIGHT($K58,2),BD58,0)) -> 0 | CA58: =+IF($K58="Ongoing",BE58,IF(RIGHT($K58,2)=RIGHT(CA$39,2),SUM($AV58:BE58),0)+IF(RIGHT(CA$39,2)>RIGHT($K58,2),BE58,0)) -> 0 | CC58: =+O58*KeyAssumptionsPriceControl_FO!X$15 -> 0.2438959159 | CD58: =+P58*KeyAssumptionsPriceControl_FO!Y$15 -> 2.010953593 | CE58: =+Q58*KeyAssumptionsPriceControl_FO!Z$15 -> 0 | CF58: =+R58*KeyAssumptionsPriceControl_FO!AA$15 -> 0 | CG58: =+S58*KeyAssumptionsPriceControl_FO!AB$15 -> 0 | CH58: =+T58*KeyAssumptionsPriceControl_FO!AC$15 -> 0 | CI58: =+U58*KeyAssumptionsPriceControl_FO!AD$15 -> 0 | CJ58: =+V58*KeyAssumptionsPriceControl_FO!AE$15 -> 0 | CK58: =+W58*KeyAssumptionsPriceControl_FO!AF$15 -> 0 | CL58: =+X58*KeyAssumptionsPriceControl_FO!AG$15 -> 0 | CN58: 0.002438959159 | CO58: 0.02498745425 | CP58: 0.04509699018 | CQ58: 0.04509699018 | CR58: 0.04509699018 | CS58: 0.04509699018 | CT58: 0.04509699018 | CU58: 0.04509699018 | CV58: 0.04509699018 | CW58: 0.04509699018
C59: Dam Safety Upgrades (Portfolio) | E59: Water | F59: Improvements / Compliance | G59: Headworks | H59: Capital Programs / Allocation | J59: Straight line | K59: Ongoing | L59: 70 | M59: 50 | O59: 0 | P59: 0.12255083 | Q59: 1.13069687 | R59: 0.30637708 | S59: 3.75305591 | T59: 9.49768946 | U59: 0 | V59: 8.68068392 | W59: 0 | X59: 0.51062847 | Z59: 0 | AA59: 0 | AB59: 0 | AC59: 0 | AD59: 0 | AE59: 0 | AF59: 0 | AG59: 0 | AH59: 0 | AI59: 0 | AK59: 0 | AL59: 0 | AM59: 0 | AN59: 0 | AO59: 0 | AP59: 0 | AQ59: 0 | AR59: 0 | AS59: 0 | AT59: 0 | AV59: 0 | AW59: 0.12255083 | AX59: 1.13069687 | AY59: 0.30637708 | AZ59: 3.75305591 | BA59: 9.49768946 | BB59: 0 | BC59: 8.68068392 | BD59: 0 | BE59: 0.51062847 | BG59: 0 | BH59: 0.0008753630714 | BI59: 0.009827132357 | BJ59: 0.02009194629 | BK59: 0.04908789621 | BL59: 0.1437360774 | BM59: 0.2115767164 | BN59: 0.2735816016 | BO59: 0.3355864867 | BP59: 0.3392338329 | BR59: =+IF($K59="Ongoing",AV59,IF(RIGHT($K59,2)=RIGHT(BR$39,2),SUM($AV59:AV59),0)+IF(RIGHT(BR$39,2)>RIGHT($K59,2),AV59,0)) -> 0 | BS59: =+IF($K59="Ongoing",AW59,IF(RIGHT($K59,2)=RIGHT(BS$39,2),SUM($AV59:AW59),0)+IF(RIGHT(BS$39,2)>RIGHT($K59,2),AW59,0)) -> 0.12255083 | BT59: =+IF($K59="Ongoing",AX59,IF(RIGHT($K59,2)=RIGHT(BT$39,2),SUM($AV59:AX59),0)+IF(RIGHT(BT$39,2)>RIGHT($K59,2),AX59,0)) -> 1.13069687 | BU59: =+IF($K59="Ongoing",AY59,IF(RIGHT($K59,2)=RIGHT(BU$39,2),SUM($AV59:AY59),0)+IF(RIGHT(BU$39,2)>RIGHT($K59,2),AY59,0)) -> 0.30637708 | BV59: =+IF($K59="Ongoing",AZ59,IF(RIGHT($K59,2)=RIGHT(BV$39,2),SUM($AV59:AZ59),0)+IF(RIGHT(BV$39,2)>RIGHT($K59,2),AZ59,0)) -> 3.75305591 | BW59: =+IF($K59="Ongoing",BA59,IF(RIGHT($K59,2)=RIGHT(BW$39,2),SUM($AV59:BA59),0)+IF(RIGHT(BW$39,2)>RIGHT($K59,2),BA59,0)) -> 9.49768946 | BX59: =+IF($K59="Ongoing",BB59,IF(RIGHT($K59,2)=RIGHT(BX$39,2),SUM($AV59:BB59),0)+IF(RIGHT(BX$39,2)>RIGHT($K59,2),BB59,0)) -> 0 | BY59: =+IF($K59="Ongoing",BC59,IF(RIGHT($K59,2)=RIGHT(BY$39,2),SUM($AV59:BC59),0)+IF(RIGHT(BY$39,2)>RIGHT($K59,2),BC59,0)) -> 8.68068392 | BZ59: =+IF($K59="Ongoing",BD59,IF(RIGHT($K59,2)=RIGHT(BZ$39,2),SUM($AV59:BD59),0)+IF(RIGHT(BZ$39,2)>RIGHT($K59,2),BD59,0)) -> 0 | CA59: =+IF($K59="Ongoing",BE59,IF(RIGHT($K59,2)=RIGHT(CA$39,2),SUM($AV59:BE59),0)+IF(RIGHT(CA$39,2)>RIGHT($K59,2),BE59,0)) -> 0.51062847 | CC59: =+O59*KeyAssumptionsPriceControl_FO!X$15 -> 0 | CD59: =+P59*KeyAssumptionsPriceControl_FO!Y$15 -> 0.1282529976 | CE59: =+Q59*KeyAssumptionsPriceControl_FO!Z$15 -> 1.210523127 | CF59: =+R59*KeyAssumptionsPriceControl_FO!AA$15 -> 0.3355512087 | CG59: =+S59*KeyAssumptionsPriceControl_FO!AB$15 -> 4.204972915 | CH59: =+T59*KeyAssumptionsPriceControl_FO!AC$15 -> 10.88608617 | CI59: =+U59*KeyAssumptionsPriceControl_FO!AD$15 -> 0 | CJ59: =+V59*KeyAssumptionsPriceControl_FO!AE$15 -> 10.41259586 | CK59: =+W59*KeyAssumptionsPriceControl_FO!AF$15 -> 0 | CL59: =+X59*KeyAssumptionsPriceControl_FO!AG$15 -> 0.641004919 | CN59: 0 | CO59: 0.001282529976 | CP59: 0.01467029122 | CQ59: 0.03013103458 | CR59: 0.07553627582 | CS59: 0.2264468667 | CT59: 0.3353077285 | CU59: 0.4394336871 | CV59: 0.5435596457 | CW59: 0.5499696949
C60: Gerangamete Treatment Plant Capacity Upg | E60: Water | F60: Renewals | G60: Headworks | H60: Other Capital expenditure | J60: Straight line | K60: 2023-24 | L60: 55 | M60: 37 | O60: 0 | P60: 0 | Q60: 0 | R60: 0 | S60: 0.51062847 | T60: 7.26087841 | U60: 0 | V60: 0 | W60: 0 | X60: 0 | Z60: 0 | AA60: 0 | AB60: 0 | AC60: 0 | AD60: 0 | AE60: 0 | AF60: 0 | AG60: 0 | AH60: 0 | AI60: 0 | AK60: 0 | AL60: 0 | AM60: 0 | AN60: 0 | AO60: 0 | AP60: 0 | AQ60: 0 | AR60: 0 | AS60: 0 | AT60: 0 | AV60: 0 | AW60: 0 | AX60: 0 | AY60: 0 | AZ60: 0.51062847 | BA60: 7.26087841 | BB60: 0 | BC60: 0 | BD60: 0 | BE60: 0 | BG60: 0 | BH60: 0 | BI60: 0 | BJ60: 0 | BK60: 0 | BL60: 0.07065006255 | BM60: 0.1413001251 | BN60: 0.1413001251 | BO60: 0.1413001251 | BP60: 0.1413001251 | BR60: =+IF($K60="Ongoing",AV60,IF(RIGHT($K60,2)=RIGHT(BR$39,2),SUM($AV60:AV60),0)+IF(RIGHT(BR$39,2)>RIGHT($K60,2),AV60,0)) -> 0 | BS60: =+IF($K60="Ongoing",AW60,IF(RIGHT($K60,2)=RIGHT(BS$39,2),SUM($AV60:AW60),0)+IF(RIGHT(BS$39,2)>RIGHT($K60,2),AW60,0)) -> 0 | BT60: =+IF($K60="Ongoing",AX60,IF(RIGHT($K60,2)=RIGHT(BT$39,2),SUM($AV60:AX60),0)+IF(RIGHT(BT$39,2)>RIGHT($K60,2),AX60,0)) -> 0 | BU60: =+IF($K60="Ongoing",AY60,IF(RIGHT($K60,2)=RIGHT(BU$39,2),SUM($AV60:AY60),0)+IF(RIGHT(BU$39,2)>RIGHT($K60,2),AY60,0)) -> 0 | BV60: =+IF($K60="Ongoing",AZ60,IF(RIGHT($K60,2)=RIGHT(BV$39,2),SUM($AV60:AZ60),0)+IF(RIGHT(BV$39,2)>RIGHT($K60,2),AZ60,0)) -> 0 | BW60: =+IF($K60="Ongoing",BA60,IF(RIGHT($K60,2)=RIGHT(BW$39,2),SUM($AV60:BA60),0)+IF(RIGHT(BW$39,2)>RIGHT($K60,2),BA60,0)) -> 7.77150688 | BX60: =+IF($K60="Ongoing",BB60,IF(RIGHT($K60,2)=RIGHT(BX$39,2),SUM($AV60:BB60),0)+IF(RIGHT(BX$39,2)>RIGHT($K60,2),BB60,0)) -> 0 | BY60: =+IF($K60="Ongoing",BC60,IF(RIGHT($K60,2)=RIGHT(BY$39,2),SUM($AV60:BC60),0)+IF(RIGHT(BY$39,2)>RIGHT($K60,2),BC60,0)) -> 0 | BZ60: =+IF($K60="Ongoing",BD60,IF(RIGHT($K60,2)=RIGHT(BZ$39,2),SUM($AV60:BD60),0)+IF(RIGHT(BZ$39,2)>RIGHT($K60,2),BD60,0)) -> 0 | CA60: =+IF($K60="Ongoing",BE60,IF(RIGHT($K60,2)=RIGHT(CA$39,2),SUM($AV60:BE60),0)+IF(RIGHT(CA$39,2)>RIGHT($K60,2),BE60,0)) -> 0 | CC60: =+O60*KeyAssumptionsPriceControl_FO!X$15 -> 0 | CD60: =+P60*KeyAssumptionsPriceControl_FO!Y$15 -> 0 | CE60: =+Q60*KeyAssumptionsPriceControl_FO!Z$15 -> 0 | CF60: =+R60*KeyAssumptionsPriceControl_FO!AA$15 -> 0 | CG60: =+S60*KeyAssumptionsPriceControl_FO!AB$15 -> 0.5721148146 | CH60: =+T60*KeyAssumptionsPriceControl_FO!AC$15 -> 8.322292323 | CI60: =+U60*KeyAssumptionsPriceControl_FO!AD$15 -> 0 | CJ60: =+V60*KeyAssumptionsPriceControl_FO!AE$15 -> 0 | CK60: =+W60*KeyAssumptionsPriceControl_FO!AF$15 -> 0 | CL60: =+X60*KeyAssumptionsPriceControl_FO!AG$15 -> 0 | CN60: 0 | CO60: 0 | CP60: 0 | CQ60: 0 | CR60: 0.007731281278 | CS60: 0.1279259723 | CT60: 0.2403893821 | CU60: 0.2403893821 | CV60: 0.2403893821 | CW60: 0.2403893821
C61: H'works-Minor Proj/Improvement | E61: Water | F61: Renewals | G61: Headworks | H61: Capital Programs / Allocation | J61: Straight line | K61: Ongoing | L61: 70 | M61: 50 | O61: 0.28595194 | P61: 0.30127079 | Q61: 0.29616451 | R61: 0.29616451 | S61: 0.29616451 | T61: 0.30127079 | U61: 0.28084566 | V61: 0.29105823 | W61: 0.27573937 | X61: 0.29616451 | Z61: 0 | AA61: 0 | AB61: 0 | AC61: 0 | AD61: 0 | AE61: 0 | AF61: 0 | AG61: 0 | AH61: 0 | AI61: 0 | AK61: 0 | AL61: 0 | AM61: 0 | AN61: 0 | AO61: 0 | AP61: 0 | AQ61: 0 | AR61: 0 | AS61: 0 | AT61: 0 | AV61: 0.28595194 | AW61: 0.30127079 | AX61: 0.29616451 | AY61: 0.29616451 | AZ61: 0.29616451 | BA61: 0.30127079 | BB61: 0.28084566 | BC61: 0.29105823 | BD61: 0.27573937 | BE61: 0.29616451 | BG61: 0.002042513857 | BH61: 0.006236961929 | BI61: 0.01050435693 | BJ61: 0.0147352785 | BK61: 0.01896620007 | BL61: 0.02323359507 | BM61: 0.02739156971 | BN61: 0.0314765975 | BO61: 0.03552515179 | BP61: 0.0396101795 | BR61: =+IF($K61="Ongoing",AV61,IF(RIGHT($K61,2)=RIGHT(BR$39,2),SUM($AV61:AV61),0)+IF(RIGHT(BR$39,2)>RIGHT($K61,2),AV61,0)) -> 0.28595194 | BS61: =+IF($K61="Ongoing",AW61,IF(RIGHT($K61,2)=RIGHT(BS$39,2),SUM($AV61:AW61),0)+IF(RIGHT(BS$39,2)>RIGHT($K61,2),AW61,0)) -> 0.30127079 | BT61: =+IF($K61="Ongoing",AX61,IF(RIGHT($K61,2)=RIGHT(BT$39,2),SUM($AV61:AX61),0)+IF(RIGHT(BT$39,2)>RIGHT($K61,2),AX61,0)) -> 0.29616451 | BU61: =+IF($K61="Ongoing",AY61,IF(RIGHT($K61,2)=RIGHT(BU$39,2),SUM($AV61:AY61),0)+IF(RIGHT(BU$39,2)>RIGHT($K61,2),AY61,0)) -> 0.29616451 | BV61: =+IF($K61="Ongoing",AZ61,IF(RIGHT($K61,2)=RIGHT(BV$39,2),SUM($AV61:AZ61),0)+IF(RIGHT(BV$39,2)>RIGHT($K61,2),AZ61,0)) -> 0.29616451 | BW61: =+IF($K61="Ongoing",BA61,IF(RIGHT($K61,2)=RIGHT(BW$39,2),SUM($AV61:BA61),0)+IF(RIGHT(BW$39,2)>RIGHT($K61,2),BA61,0)) -> 0.30127079 | BX61: =+IF($K61="Ongoing",BB61,IF(RIGHT($K61,2)=RIGHT(BX$39,2),SUM($AV61:BB61),0)+IF(RIGHT(BX$39,2)>RIGHT($K61,2),BB61,0)) -> 0.28084566 | BY61: =+IF($K61="Ongoing",BC61,IF(RIGHT($K61,2)=RIGHT(BY$39,2),SUM($AV61:BC61),0)+IF(RIGHT(BY$39,2)>RIGHT($K61,2),BC61,0)) -> 0.29105823 | BZ61: =+IF($K61="Ongoing",BD61,IF(RIGHT($K61,2)=RIGHT(BZ$39,2),SUM($AV61:BD61),0)+IF(RIGHT(BZ$39,2)>RIGHT($K61,2),BD61,0)) -> 0.27573937 | CA61: =+IF($K61="Ongoing",BE61,IF(RIGHT($K61,2)=RIGHT(CA$39,2),SUM($AV61:BE61),0)+IF(RIGHT(CA$39,2)>RIGHT($K61,2),BE61,0)) -> 0.29616451 | CC61: =+O61*KeyAssumptionsPriceControl_FO!X$15 -> 0.2925288346 | CD61: =+P61*KeyAssumptionsPriceControl_FO!Y$15 -> 0.3152886186 | CE61: =+Q61*KeyAssumptionsPriceControl_FO!Z$15 -> 0.3170734777 | CF61: =+R61*KeyAssumptionsPriceControl_FO!AA$15 -> 0.3243661677 | CG61: =+S61*KeyAssumptionsPriceControl_FO!AB$15 -> 0.3318265895 | CH61: =+T61*KeyAssumptionsPriceControl_FO!AC$15 -> 0.3453113303 | CI61: =+U61*KeyAssumptionsPriceControl_FO!AD$15 -> 0.3293041114 | CJ61: =+V61*KeyAssumptionsPriceControl_FO!AE$15 -> 0.3491282196 | CK61: =+W61*KeyAssumptionsPriceControl_FO!AF$15 -> 0.3383603632 | CL61: =+X61*KeyAssumptionsPriceControl_FO!AG$15 -> 0.3717828498 | CN61: 0.002925288346 | CO61: 0.009003462878 | CP61: 0.01532708384 | CQ61: 0.0217414803 | CR61: 0.02830340787 | CS61: 0.03507478707 | CT61: 0.04182094148 | CU61: 0.04860526479 | CV61: 0.05548015062 | CW61: 0.06258158275
C62: Water Basins Linings & Covers (Portfolio | E62: Water | F62: Renewals | G62: Headworks | H62: Capital Programs / Allocation | J62: Straight line | K62: Ongoing | L62: 70 | M62: 50 | O62: 0 | P62: 0.25531423 | Q62: 0.85274954 | R62: 0.18382625 | S62: 0.61397967 | T62: 0 | U62: 0 | V62: 0 | W62: 0 | X62: 0 | Z62: 0 | AA62: 0 | AB62: 0 | AC62: 0 | AD62: 0 | AE62: 0 | AF62: 0 | AG62: 0 | AH62: 0 | AI62: 0 | AK62: 0 | AL62: 0 | AM62: 0 | AN62: 0 | AO62: 0 | AP62: 0 | AQ62: 0 | AR62: 0 | AS62: 0 | AT62: 0 | AV62: 0 | AW62: 0.25531423 | AX62: 0.85274954 | AY62: 0.18382625 | AZ62: 0.61397967 | BA62: 0 | BB62: 0 | BC62: 0 | BD62: 0 | BE62: 0 | BG62: 0 | BH62: 0.001823673071 | BI62: 0.009738414286 | BJ62: 0.01714252707 | BK62: 0.02284114079 | BL62: 0.02722670986 | BM62: 0.02722670986 | BN62: 0.02722670986 | BO62: 0.02722670986 | BP62: 0.02722670986 | BR62: =+IF($K62="Ongoing",AV62,IF(RIGHT($K62,2)=RIGHT(BR$39,2),SUM($AV62:AV62),0)+IF(RIGHT(BR$39,2)>RIGHT($K62,2),AV62,0)) -> 0 | BS62: =+IF($K62="Ongoing",AW62,IF(RIGHT($K62,2)=RIGHT(BS$39,2),SUM($AV62:AW62),0)+IF(RIGHT(BS$39,2)>RIGHT($K62,2),AW62,0)) -> 0.25531423 | BT62: =+IF($K62="Ongoing",AX62,IF(RIGHT($K62,2)=RIGHT(BT$39,2),SUM($AV62:AX62),0)+IF(RIGHT(BT$39,2)>RIGHT($K62,2),AX62,0)) -> 0.85274954 | BU62: =+IF($K62="Ongoing",AY62,IF(RIGHT($K62,2)=RIGHT(BU$39,2),SUM($AV62:AY62),0)+IF(RIGHT(BU$39,2)>RIGHT($K62,2),AY62,0)) -> 0.18382625 | BV62: =+IF($K62="Ongoing",AZ62,IF(RIGHT($K62,2)=RIGHT(BV$39,2),SUM($AV62:AZ62),0)+IF(RIGHT(BV$39,2)>RIGHT($K62,2),AZ62,0)) -> 0.61397967 | BW62: =+IF($K62="Ongoing",BA62,IF(RIGHT($K62,2)=RIGHT(BW$39,2),SUM($AV62:BA62),0)+IF(RIGHT(BW$39,2)>RIGHT($K62,2),BA62,0)) -> 0 | BX62: =+IF($K62="Ongoing",BB62,IF(RIGHT($K62,2)=RIGHT(BX$39,2),SUM($AV62:BB62),0)+IF(RIGHT(BX$39,2)>RIGHT($K62,2),BB62,0)) -> 0 | BY62: =+IF($K62="Ongoing",BC62,IF(RIGHT($K62,2)=RIGHT(BY$39,2),SUM($AV62:BC62),0)+IF(RIGHT(BY$39,2)>RIGHT($K62,2),BC62,0)) -> 0 | BZ62: =+IF($K62="Ongoing",BD62,IF(RIGHT($K62,2)=RIGHT(BZ$39,2),SUM($AV62:BD62),0)+IF(RIGHT(BZ$39,2)>RIGHT($K62,2),BD62,0)) -> 0 | CA62: =+IF($K62="Ongoing",BE62,IF(RIGHT($K62,2)=RIGHT(CA$39,2),SUM($AV62:BE62),0)+IF(RIGHT(CA$39,2)>RIGHT($K62,2),BE62,0)) -> 0 | CC62: =+O62*KeyAssumptionsPriceControl_FO!X$15 -> 0 | CD62: =+P62*KeyAssumptionsPriceControl_FO!Y$15 -> 0.2671937458 | CE62: =+Q62*KeyAssumptionsPriceControl_FO!Z$15 -> 0.9129529472 | CF62: =+R62*KeyAssumptionsPriceControl_FO!AA$15 -> 0.2013307274 | CG62: =+S62*KeyAssumptionsPriceControl_FO!AB$15 -> 0.6879108504 | CH62: =+T62*KeyAssumptionsPriceControl_FO!AC$15 -> 0 | CI62: =+U62*KeyAssumptionsPriceControl_FO!AD$15 -> 0 | CJ62: =+V62*KeyAssumptionsPriceControl_FO!AE$15 -> 0 | CK62: =+W62*KeyAssumptionsPriceControl_FO!AF$15 -> 0 | CL62: =+X62*KeyAssumptionsPriceControl_FO!AG$15 -> 0 | CN62: 0 | CO62: 0.002671937458 | CP62: 0.01447340439 | CQ62: 0.02561624113 | CR62: 0.03450865691 | CS62: 0.04138776542 | CT62: 0.04138776542 | CU62: 0.04138776542 | CV62: 0.04138776542 | CW62: 0.04138776542
C63: Water Channel Renewals (Portfolio) | E63: Water | F63: Renewals | G63: Headworks | H63: Capital Programs / Allocation | J63: Straight line | K63: Ongoing | L63: 70 | M63: 50 | O63: 1.89710934 | P63: 1.62296518 | Q63: 1.62296518 | R63: 1.40368191 | S63: 1.40368191 | T63: 0.57674464 | U63: 0.57674464 | V63: 0.57674464 | W63: 0.57674464 | X63: 0.57674464 | Z63: 0 | AA63: 0 | AB63: 0 | AC63: 0 | AD63: 0 | AE63: 0 | AF63: 0 | AG63: 0 | AH63: 0 | AI63: 0 | AK63: 0 | AL63: 0 | AM63: 0 | AN63: 0 | AO63: 0 | AP63: 0 | AQ63: 0 | AR63: 0 | AS63: 0 | AT63: 0 | AV63: 1.89710934 | AW63: 1.62296518 | AX63: 1.62296518 | AY63: 1.40368191 | AZ63: 1.40368191 | BA63: 0.57674464 | BB63: 0.57674464 | BC63: 0.57674464 | BD63: 0.57674464 | BE63: 0.57674464 | BG63: 0.013550781 | BH63: 0.03869417043 | BI63: 0.06187938729 | BJ63: 0.08349829507 | BK63: 0.1035508938 | BL63: 0.1176967977 | BM63: 0.1259360069 | BN63: 0.134175216 | BO63: 0.1424144251 | BP63: 0.1506536343 | BR63: =+IF($K63="Ongoing",AV63,IF(RIGHT($K63,2)=RIGHT(BR$39,2),SUM($AV63:AV63),0)+IF(RIGHT(BR$39,2)>RIGHT($K63,2),AV63,0)) -> 1.89710934 | BS63: =+IF($K63="Ongoing",AW63,IF(RIGHT($K63,2)=RIGHT(BS$39,2),SUM($AV63:AW63),0)+IF(RIGHT(BS$39,2)>RIGHT($K63,2),AW63,0)) -> 1.62296518 | BT63: =+IF($K63="Ongoing",AX63,IF(RIGHT($K63,2)=RIGHT(BT$39,2),SUM($AV63:AX63),0)+IF(RIGHT(BT$39,2)>RIGHT($K63,2),AX63,0)) -> 1.62296518 | BU63: =+IF($K63="Ongoing",AY63,IF(RIGHT($K63,2)=RIGHT(BU$39,2),SUM($AV63:AY63),0)+IF(RIGHT(BU$39,2)>RIGHT($K63,2),AY63,0)) -> 1.40368191 | BV63: =+IF($K63="Ongoing",AZ63,IF(RIGHT($K63,2)=RIGHT(BV$39,2),SUM($AV63:AZ63),0)+IF(RIGHT(BV$39,2)>RIGHT($K63,2),AZ63,0)) -> 1.40368191 | BW63: =+IF($K63="Ongoing",BA63,IF(RIGHT($K63,2)=RIGHT(BW$39,2),SUM($AV63:BA63),0)+IF(RIGHT(BW$39,2)>RIGHT($K63,2),BA63,0)) -> 0.57674464 | BX63: =+IF($K63="Ongoing",BB63,IF(RIGHT($K63,2)=RIGHT(BX$39,2),SUM($AV63:BB63),0)+IF(RIGHT(BX$39,2)>RIGHT($K63,2),BB63,0)) -> 0.57674464 | BY63: =+IF($K63="Ongoing",BC63,IF(RIGHT($K63,2)=RIGHT(BY$39,2),SUM($AV63:BC63),0)+IF(RIGHT(BY$39,2)>RIGHT($K63,2),BC63,0)) -> 0.57674464 | BZ63: =+IF($K63="Ongoing",BD63,IF(RIGHT($K63,2)=RIGHT(BZ$39,2),SUM($AV63:BD63),0)+IF(RIGHT(BZ$39,2)>RIGHT($K63,2),BD63,0)) -> 0.57674464 | CA63: =+IF($K63="Ongoing",BE63,IF(RIGHT($K63,2)=RIGHT(CA$39,2),SUM($AV63:BE63),0)+IF(RIGHT(CA$39,2)>RIGHT($K63,2),BE63,0)) -> 0.57674464 | CC63: =+O63*KeyAssumptionsPriceControl_FO!X$15 -> 1.940742855 | CD63: =+P63*KeyAssumptionsPriceControl_FO!Y$15 -> 1.698480127 | CE63: =+Q63*KeyAssumptionsPriceControl_FO!Z$15 -> 1.73754517 | CF63: =+R63*KeyAssumptionsPriceControl_FO!AA$15 -> 1.537344639 | CG63: =+S63*KeyAssumptionsPriceControl_FO!AB$15 -> 1.572703566 | CH63: =+T63*KeyAssumptionsPriceControl_FO!AC$15 -> 0.6610546574 | CI63: =+U63*KeyAssumptionsPriceControl_FO!AD$15 -> 0.6762589145 | CJ63: =+V63*KeyAssumptionsPriceControl_FO!AE$15 -> 0.6918128695 | CK63: =+W63*KeyAssumptionsPriceControl_FO!AF$15 -> 0.7077245655 | CL63: =+X63*KeyAssumptionsPriceControl_FO!AG$15 -> 0.7240022305 | CN63: 0.01940742855 | CO63: 0.05579965837 | CP63: 0.09015991133 | CQ63: 0.1229088094 | CR63: 0.1540092915 | CS63: 0.1763468737 | CT63: 0.1897200094 | CU63: 0.2034007273 | CV63: 0.2173961016 | CW63: 0.2317133696
C64: Water Resource Monitoring Upgrades | E64: Water | F64: Renewals | G64: Headworks | H64: Capital Programs / Allocation | J64: Straight line | K64: Ongoing | L64: 70 | M64: 50 | O64: 0.04085028 | P64: 0.04595656 | Q64: 0.04595656 | R64: 0.05106285 | S64: 0.05106285 | T64: 0.05106285 | U64: 0.05106285 | V64: 0.05106285 | W64: 0.05106285 | X64: 0.05106285 | Z64: 0 | AA64: 0 | AB64: 0 | AC64: 0 | AD64: 0 | AE64: 0 | AF64: 0 | AG64: 0 | AH64: 0 | AI64: 0 | AK64: 0 | AL64: 0 | AM64: 0 | AN64: 0 | AO64: 0 | AP64: 0 | AQ64: 0 | AR64: 0 | AS64: 0 | AT64: 0 | AV64: 0.04085028 | AW64: 0.04595656 | AX64: 0.04595656 | AY64: 0.05106285 | AZ64: 0.05106285 | BA64: 0.05106285 | BB64: 0.05106285 | BC64: 0.05106285 | BD64: 0.05106285 | BE64: 0.05106285 | BG64: 0.0002917877143 | BH64: 0.0009118365714 | BI64: 0.001568358857 | BJ64: 0.002261354643 | BK64: 0.002990823929 | BL64: 0.003720293214 | BM64: 0.0044497625 | BN64: 0.005179231786 | BO64: 0.005908701071 | BP64: 0.006638170357 | BR64: =+IF($K64="Ongoing",AV64,IF(RIGHT($K64,2)=RIGHT(BR$39,2),SUM($AV64:AV64),0)+IF(RIGHT(BR$39,2)>RIGHT($K64,2),AV64,0)) -> 0.04085028 | BS64: =+IF($K64="Ongoing",AW64,IF(RIGHT($K64,2)=RIGHT(BS$39,2),SUM($AV64:AW64),0)+IF(RIGHT(BS$39,2)>RIGHT($K64,2),AW64,0)) -> 0.04595656 | BT64: =+IF($K64="Ongoing",AX64,IF(RIGHT($K64,2)=RIGHT(BT$39,2),SUM($AV64:AX64),0)+IF(RIGHT(BT$39,2)>RIGHT($K64,2),AX64,0)) -> 0.04595656 | BU64: =+IF($K64="Ongoing",AY64,IF(RIGHT($K64,2)=RIGHT(BU$39,2),SUM($AV64:AY64),0)+IF(RIGHT(BU$39,2)>RIGHT($K64,2),AY64,0)) -> 0.05106285 | BV64: =+IF($K64="Ongoing",AZ64,IF(RIGHT($K64,2)=RIGHT(BV$39,2),SUM($AV64:AZ64),0)+IF(RIGHT(BV$39,2)>RIGHT($K64,2),AZ64,0)) -> 0.05106285 | BW64: =+IF($K64="Ongoing",BA64,IF(RIGHT($K64,2)=RIGHT(BW$39,2),SUM($AV64:BA64),0)+IF(RIGHT(BW$39,2)>RIGHT($K64,2),BA64,0)) -> 0.05106285 | BX64: =+IF($K64="Ongoing",BB64,IF(RIGHT($K64,2)=RIGHT(BX$39,2),SUM($AV64:BB64),0)+IF(RIGHT(BX$39,2)>RIGHT($K64,2),BB64,0)) -> 0.05106285 | BY64: =+IF($K64="Ongoing",BC64,IF(RIGHT($K64,2)=RIGHT(BY$39,2),SUM($AV64:BC64),0)+IF(RIGHT(BY$39,2)>RIGHT($K64,2),BC64,0)) -> 0.05106285 | BZ64: =+IF($K64="Ongoing",BD64,IF(RIGHT($K64,2)=RIGHT(BZ$39,2),SUM($AV64:BD64),0)+IF(RIGHT(BZ$39,2)>RIGHT($K64,2),BD64,0)) -> 0.05106285 | CA64: =+IF($K64="Ongoing",BE64,IF(RIGHT($K64,2)=RIGHT(CA$39,2),SUM($AV64:BE64),0)+IF(RIGHT(CA$39,2)>RIGHT($K64,2),BE64,0)) -> 0.05106285 | CC64: =+O64*KeyAssumptionsPriceControl_FO!X$15 -> 0.04178983644 | CD64: =+P64*KeyAssumptionsPriceControl_FO!Y$15 -> 0.04809487278 | CE64: =+Q64*KeyAssumptionsPriceControl_FO!Z$15 -> 0.04920105485 | CF64: =+R64*KeyAssumptionsPriceControl_FO!AA$15 -> 0.0559252051 | CG64: =+S64*KeyAssumptionsPriceControl_FO!AB$15 -> 0.05721148482 | CH64: =+T64*KeyAssumptionsPriceControl_FO!AC$15 -> 0.05852734897 | CI64: =+U64*KeyAssumptionsPriceControl_FO!AD$15 -> 0.059873478 | CJ64: =+V64*KeyAssumptionsPriceControl_FO!AE$15 -> 0.06125056799 | CK64: =+W64*KeyAssumptionsPriceControl_FO!AF$15 -> 0.06265933105 | CL64: =+X64*KeyAssumptionsPriceControl_FO!AG$15 -> 0.06410049567 | CN64: 0.0004178983644 | CO64: 0.001316745457 | CP64: 0.002289704733 | CQ64: 0.003340967333 | CR64: 0.004472334232 | CS64: 0.00562972257 | CT64: 0.006813730839 | CU64: 0.008024971299 | CV64: 0.00926407029 | CW64: 0.01053166856
C65: West Gellibrand Reservoir Upgrade | E65: Water | F65: Improvements / Compliance | G65: Headworks | H65: Other Capital expenditure | J65: Straight line | K65: 2018-19 | L65: 335 | M65: 50 | O65: 2.68692699 | P65: 0.01276571 | Q65: 0 | R65: 0 | S65: 0 | T65: 0 | U65: 0 | V65: 0 | W65: 0 | X65: 0 | Z65: 0 | AA65: 0 | AB65: 0 | AC65: 0 | AD65: 0 | AE65: 0 | AF65: 0 | AG65: 0 | AH65: 0 | AI65: 0 | AK65: 0 | AL65: 0 | AM65: 0 | AN65: 0 | AO65: 0 | AP65: 0 | AQ65: 0 | AR65: 0 | AS65: 0 | AT65: 0 | AV65: 2.68692699 | AW65: 0.01276571 | AX65: 0 | AY65: 0 | AZ65: 0 | BA65: 0 | BB65: 0 | BC65: 0 | BD65: 0 | BE65: 0 | BG65: 0.004010338791 | BH65: 0.008039730881 | BI65: 0.008058784179 | BJ65: 0.008058784179 | BK65: 0.008058784179 | BL65: 0.008058784179 | BM65: 0.008058784179 | BN65: 0.008058784179 | BO65: 0.008058784179 | BP65: 0.008058784179 | BR65: =+IF($K65="Ongoing",AV65,IF(RIGHT($K65,2)=RIGHT(BR$39,2),SUM($AV65:AV65),0)+IF(RIGHT(BR$39,2)>RIGHT($K65,2),AV65,0)) -> 2.68692699 | BS65: =+IF($K65="Ongoing",AW65,IF(RIGHT($K65,2)=RIGHT(BS$39,2),SUM($AV65:AW65),0)+IF(RIGHT(BS$39,2)>RIGHT($K65,2),AW65,0)) -> 0.01276571 | BT65: =+IF($K65="Ongoing",AX65,IF(RIGHT($K65,2)=RIGHT(BT$39,2),SUM($AV65:AX65),0)+IF(RIGHT(BT$39,2)>RIGHT($K65,2),AX65,0)) -> 0 | BU65: =+IF($K65="Ongoing",AY65,IF(RIGHT($K65,2)=RIGHT(BU$39,2),SUM($AV65:AY65),0)+IF(RIGHT(BU$39,2)>RIGHT($K65,2),AY65,0)) -> 0 | BV65: =+IF($K65="Ongoing",AZ65,IF(RIGHT($K65,2)=RIGHT(BV$39,2),SUM($AV65:AZ65),0)+IF(RIGHT(BV$39,2)>RIGHT($K65,2),AZ65,0)) -> 0 | BW65: =+IF($K65="Ongoing",BA65,IF(RIGHT($K65,2)=RIGHT(BW$39,2),SUM($AV65:BA65),0)+IF(RIGHT(BW$39,2)>RIGHT($K65,2),BA65,0)) -> 0 | BX65: =+IF($K65="Ongoing",BB65,IF(RIGHT($K65,2)=RIGHT(BX$39,2),SUM($AV65:BB65),0)+IF(RIGHT(BX$39,2)>RIGHT($K65,2),BB65,0)) -> 0 | BY65: =+IF($K65="Ongoing",BC65,IF(RIGHT($K65,2)=RIGHT(BY$39,2),SUM($AV65:BC65),0)+IF(RIGHT(BY$39,2)>RIGHT($K65,2),BC65,0)) -> 0 | BZ65: =+IF($K65="Ongoing",BD65,IF(RIGHT($K65,2)=RIGHT(BZ$39,2),SUM($AV65:BD65),0)+IF(RIGHT(BZ$39,2)>RIGHT($K65,2),BD65,0)) -> 0 | CA65: =+IF($K65="Ongoing",BE65,IF(RIGHT($K65,2)=RIGHT(CA$39,2),SUM($AV65:BE65),0)+IF(RIGHT(CA$39,2)>RIGHT($K65,2),BE65,0)) -> 0 | CC65: =+O65*KeyAssumptionsPriceControl_FO!X$15 -> 2.748726311 | CD65: =+P65*KeyAssumptionsPriceControl_FO!Y$15 -> 0.01335968572 | CE65: =+Q65*KeyAssumptionsPriceControl_FO!Z$15 -> 0 | CF65: =+R65*KeyAssumptionsPriceControl_FO!AA$15 -> 0 | CG65: =+S65*KeyAssumptionsPriceControl_FO!AB$15 -> 0 | CH65: =+T65*KeyAssumptionsPriceControl_FO!AC$15 -> 0 | CI65: =+U65*KeyAssumptionsPriceControl_FO!AD$15 -> 0 | CJ65: =+V65*KeyAssumptionsPriceControl_FO!AE$15 -> 0 | CK65: =+W65*KeyAssumptionsPriceControl_FO!AF$15 -> 0 | CL65: =+X65*KeyAssumptionsPriceControl_FO!AG$15 -> 0 | CN65: 0.02748726311 | CO65: 0.05510812307 | CP65: 0.05524171993 | CQ65: 0.05524171993 | CR65: 0.05524171993 | CS65: 0.05524171993 | CT65: 0.05524171993 | CU65: 0.05524171993 | CV65: 0.05524171993 | CW65: 0.05524171993
C66: 13th Beach Resort WS Improv Stage 2 | E66: Water | F66: Growth | G66: Pipelines/network | H66: Other Capital expenditure | J66: Straight line | K66: 2024-25 | L66: 70 | M66: 50 | O66: 0 | P66: 0 | Q66: 0 | R66: 0 | S66: 0 | T66: 0.19781374 | U66: 0.76713132 | V66: 0 | W66: 0 | X66: 0 | Z66: 0 | AA66: 0 | AB66: 0 | AC66: 0 | AD66: 0 | AE66: 0 | AF66: 0 | AG66: 0 | AH66: 0 | AI66: 0 | AK66: 0 | AL66: 0 | AM66: 0 | AN66: 0 | AO66: 0 | AP66: 0 | AQ66: 0 | AR66: 0 | AS66: 0 | AT66: 0 | AV66: 0 | AW66: 0 | AX66: 0 | AY66: 0 | AZ66: 0 | BA66: 0.19781374 | BB66: 0.76713132 | BC66: 0 | BD66: 0 | BE66: 0 | BG66: 0 | BH66: 0 | BI66: 0 | BJ66: 0 | BK66: 0 | BL66: 0 | BM66: 0.006892464714 | BN66: 0.01378492943 | BO66: 0.01378492943 | BP66: 0.01378492943 | BR66: =+IF($K66="Ongoing",AV66,IF(RIGHT($K66,2)=RIGHT(BR$39,2),SUM($AV66:AV66),0)+IF(RIGHT(BR$39,2)>RIGHT($K66,2),AV66,0)) -> 0 | BS66: =+IF($K66="Ongoing",AW66,IF(RIGHT($K66,2)=RIGHT(BS$39,2),SUM($AV66:AW66),0)+IF(RIGHT(BS$39,2)>RIGHT($K66,2),AW66,0)) -> 0 | BT66: =+IF($K66="Ongoing",AX66,IF(RIGHT($K66,2)=RIGHT(BT$39,2),SUM($AV66:AX66),0)+IF(RIGHT(BT$39,2)>RIGHT($K66,2),AX66,0)) -> 0 | BU66: =+IF($K66="Ongoing",AY66,IF(RIGHT($K66,2)=RIGHT(BU$39,2),SUM($AV66:AY66),0)+IF(RIGHT(BU$39,2)>RIGHT($K66,2),AY66,0)) -> 0 | BV66: =+IF($K66="Ongoing",AZ66,IF(RIGHT($K66,2)=RIGHT(BV$39,2),SUM($AV66:AZ66),0)+IF(RIGHT(BV$39,2)>RIGHT($K66,2),AZ66,0)) -> 0 | BW66: =+IF($K66="Ongoing",BA66,IF(RIGHT($K66,2)=RIGHT(BW$39,2),SUM($AV66:BA66),0)+IF(RIGHT(BW$39,2)>RIGHT($K66,2),BA66,0)) -> 0 | BX66: =+IF($K66="Ongoing",BB66,IF(RIGHT($K66,2)=RIGHT(BX$39,2),SUM($AV66:BB66),0)+IF(RIGHT(BX$39,2)>RIGHT($K66,2),BB66,0)) -> 0.96494506 | BY66: =+IF($K66="Ongoing",BC66,IF(RIGHT($K66,2)=RIGHT(BY$39,2),SUM($AV66:BC66),0)+IF(RIGHT(BY$39,2)>RIGHT($K66,2),BC66,0)) -> 0 | BZ66: =+IF($K66="Ongoing",BD66,IF(RIGHT($K66,2)=RIGHT(BZ$39,2),SUM($AV66:BD66),0)+IF(RIGHT(BZ$39,2)>RIGHT($K66,2),BD66,0)) -> 0 | CA66: =+IF($K66="Ongoing",BE66,IF(RIGHT($K66,2)=RIGHT(CA$39,2),SUM($AV66:BE66),0)+IF(RIGHT(CA$39,2)>RIGHT($K66,2),BE66,0)) -> 0 | CC66: =+O66*KeyAssumptionsPriceControl_FO!X$15 -> 0 | CD66: =+P66*KeyAssumptionsPriceControl_FO!Y$15 -> 0 | CE66: =+Q66*KeyAssumptionsPriceControl_FO!Z$15 -> 0 | CF66: =+R66*KeyAssumptionsPriceControl_FO!AA$15 -> 0 | CG66: =+S66*KeyAssumptionsPriceControl_FO!AB$15 -> 0 | CH66: =+T66*KeyAssumptionsPriceControl_FO!AC$15 -> 0.2267306622 | CI66: =+U66*KeyAssumptionsPriceControl_FO!AD$15 -> 0.8994958215 | CJ66: =+V66*KeyAssumptionsPriceControl_FO!AE$15 -> 0 | CK66: =+W66*KeyAssumptionsPriceControl_FO!AF$15 -> 0 | CL66: =+X66*KeyAssumptionsPriceControl_FO!AG$15 -> 0 | CN66: 0 | CO66: 0 | CP66: 0 | CQ66: 0 | CR66: 0 | CS66: 0.002267306622 | CT66: 0.01352957146 | CU66: 0.02252452967 | CV66: 0.02252452967 | CW66: 0.02252452967
C67: 13th Beach Retic Improvements Stage 2 | E67: Water | F67: Improvements / Compliance | G67: Pipelines/network | H67: Other Capital expenditure | J67: Straight line | K67: 2027-28 | L67: 70 | M67: 50 | O67: 0 | P67: 0 | Q67: 0 | R67: 0.2504793 | S67: 0 | T67: 0 | U67: 0.4174655 | V67: 0 | W67: 0 | X67: 0.1669862 | Z67: 0 | AA67: 0 | AB67: 0 | AC67: 0 | AD67: 0 | AE67: 0 | AF67: 0 | AG67: 0 | AH67: 0 | AI67: 0 | AK67: 0 | AL67: 0 | AM67: 0 | AN67: 0 | AO67: 0 | AP67: 0 | AQ67: 0 | AR67: 0 | AS67: 0 | AT67: 0 | AV67: 0 | AW67: 0 | AX67: 0 | AY67: 0.2504793 | AZ67: 0 | BA67: 0 | BB67: 0.4174655 | BC67: 0 | BD67: 0 | BE67: 0.1669862 | BG67: 0 | BH67: 0 | BI67: 0 | BJ67: 0 | BK67: 0 | BL67: 0 | BM67: 0 | BN67: 0 | BO67: 0 | BP67: 0.005963792857 | BR67: =+IF($K67="Ongoing",AV67,IF(RIGHT($K67,2)=RIGHT(BR$39,2),SUM($AV67:AV67),0)+IF(RIGHT(BR$39,2)>RIGHT($K67,2),AV67,0)) -> 0 | BS67: =+IF($K67="Ongoing",AW67,IF(RIGHT($K67,2)=RIGHT(BS$39,2),SUM($AV67:AW67),0)+IF(RIGHT(BS$39,2)>RIGHT($K67,2),AW67,0)) -> 0 | BT67: =+IF($K67="Ongoing",AX67,IF(RIGHT($K67,2)=RIGHT(BT$39,2),SUM($AV67:AX67),0)+IF(RIGHT(BT$39,2)>RIGHT($K67,2),AX67,0)) -> 0 | BU67: =+IF($K67="Ongoing",AY67,IF(RIGHT($K67,2)=RIGHT(BU$39,2),SUM($AV67:AY67),0)+IF(RIGHT(BU$39,2)>RIGHT($K67,2),AY67,0)) -> 0 | BV67: =+IF($K67="Ongoing",AZ67,IF(RIGHT($K67,2)=RIGHT(BV$39,2),SUM($AV67:AZ67),0)+IF(RIGHT(BV$39,2)>RIGHT($K67,2),AZ67,0)) -> 0 | BW67: =+IF($K67="Ongoing",BA67,IF(RIGHT($K67,2)=RIGHT(BW$39,2),SUM($AV67:BA67),0)+IF(RIGHT(BW$39,2)>RIGHT($K67,2),BA67,0)) -> 0 | BX67: =+IF($K67="Ongoing",BB67,IF(RIGHT($K67,2)=RIGHT(BX$39,2),SUM($AV67:BB67),0)+IF(RIGHT(BX$39,2)>RIGHT($K67,2),BB67,0)) -> 0 | BY67: =+IF($K67="Ongoing",BC67,IF(RIGHT($K67,2)=RIGHT(BY$39,2),SUM($AV67:BC67),0)+IF(RIGHT(BY$39,2)>RIGHT($K67,2),BC67,0)) -> 0 | BZ67: =+IF($K67="Ongoing",BD67,IF(RIGHT($K67,2)=RIGHT(BZ$39,2),SUM($AV67:BD67),0)+IF(RIGHT(BZ$39,2)>RIGHT($K67,2),BD67,0)) -> 0 | CA67: =+IF($K67="Ongoing",BE67,IF(RIGHT($K67,2)=RIGHT(CA$39,2),SUM($AV67:BE67),0)+IF(RIGHT(CA$39,2)>RIGHT($K67,2),BE67,0)) -> 0.834931 | CC67: =+O67*KeyAssumptionsPriceControl_FO!X$15 -> 0 | CD67: =+P67*KeyAssumptionsPriceControl_FO!Y$15 -> 0 | CE67: =+Q67*KeyAssumptionsPriceControl_FO!Z$15 -> 0 | CF67: =+R67*KeyAssumptionsPriceControl_FO!AA$15 -> 0.2743306773 | CG67: =+S67*KeyAssumptionsPriceControl_FO!AB$15 -> 0 | CH67: =+T67*KeyAssumptionsPriceControl_FO!AC$15 -> 0 | CI67: =+U67*KeyAssumptionsPriceControl_FO!AD$15 -> 0.489496991 | CJ67: =+V67*KeyAssumptionsPriceControl_FO!AE$15 -> 0 | CK67: =+W67*KeyAssumptionsPriceControl_FO!AF$15 -> 0 | CL67: =+X67*KeyAssumptionsPriceControl_FO!AG$15 -> 0.2096220283 | CN67: 0 | CO67: 0 | CP67: 0 | CQ67: 0.002743306773 | CR67: 0.005486613546 | CS67: 0.005486613546 | CT67: 0.01038158346 | CU67: 0.01527655337 | CV67: 0.01527655337 | CW67: 0.01737277365
C68: AC Barwarre Rd PW PRV | E68: Water | F68: Growth | G68: Pipelines/network | H68: Other Capital expenditure | J68: Straight line | K68: 2017-18 | L68: 70 | M68: 50 | O68: 0.00051063 | P68: 0 | Q68: 0 | R68: 0 | S68: 0 | T68: 0 | U68: 0 | V68: 0 | W68: 0 | X68: 0 | Z68: 0 | AA68: 0 | AB68: 0 | AC68: 0 | AD68: 0 | AE68: 0 | AF68: 0 | AG68: 0 | AH68: 0 | AI68: 0 | AK68: 0.0003555347508 | AL68: 0 | AM68: 0 | AN68: 0 | AO68: 0 | AP68: 0 | AQ68: 0 | AR68: 0 | AS68: 0 | AT68: 0 | AV68: 0.0001550952492 | AW68: 0 | AX68: 0 | AY68: 0 | AZ68: 0 | BA68: 0 | BB68: 0 | BC68: 0 | BD68: 0 | BE68: 0 | BG68: 1.107823209e-06 | BH68: 2.215646418e-06 | BI68: 2.215646418e-06 | BJ68: 2.215646418e-06 | BK68: 2.215646418e-06 | BL68: 2.215646418e-06 | BM68: 2.215646418e-06 | BN68: 2.215646418e-06 | BO68: 2.215646418e-06 | BP68: 2.215646418e-06 | BR68: =+IF($K68="Ongoing",AV68,IF(RIGHT($K68,2)=RIGHT(BR$39,2),SUM($AV68:AV68),0)+IF(RIGHT(BR$39,2)>RIGHT($K68,2),AV68,0)) -> 0.0001550952492 | BS68: =+IF($K68="Ongoing",AW68,IF(RIGHT($K68,2)=RIGHT(BS$39,2),SUM($AV68:AW68),0)+IF(RIGHT(BS$39,2)>RIGHT($K68,2),AW68,0)) -> 0 | BT68: =+IF($K68="Ongoing",AX68,IF(RIGHT($K68,2)=RIGHT(BT$39,2),SUM($AV68:AX68),0)+IF(RIGHT(BT$39,2)>RIGHT($K68,2),AX68,0)) -> 0 | BU68: =+IF($K68="Ongoing",AY68,IF(RIGHT($K68,2)=RIGHT(BU$39,2),SUM($AV68:AY68),0)+IF(RIGHT(BU$39,2)>RIGHT($K68,2),AY68,0)) -> 0 | BV68: =+IF($K68="Ongoing",AZ68,IF(RIGHT($K68,2)=RIGHT(BV$39,2),SUM($AV68:AZ68),0)+IF(RIGHT(BV$39,2)>RIGHT($K68,2),AZ68,0)) -> 0 | BW68: =+IF($K68="Ongoing",BA68,IF(RIGHT($K68,2)=RIGHT(BW$39,2),SUM($AV68:BA68),0)+IF(RIGHT(BW$39,2)>RIGHT($K68,2),BA68,0)) -> 0 | BX68: =+IF($K68="Ongoing",BB68,IF(RIGHT($K68,2)=RIGHT(BX$39,2),SUM($AV68:BB68),0)+IF(RIGHT(BX$39,2)>RIGHT($K68,2),BB68,0)) -> 0 | BY68: =+IF($K68="Ongoing",BC68,IF(RIGHT($K68,2)=RIGHT(BY$39,2),SUM($AV68:BC68),0)+IF(RIGHT(BY$39,2)>RIGHT($K68,2),BC68,0)) -> 0 | BZ68: =+IF($K68="Ongoing",BD68,IF(RIGHT($K68,2)=RIGHT(BZ$39,2),SUM($AV68:BD68),0)+IF(RIGHT(BZ$39,2)>RIGHT($K68,2),BD68,0)) -> 0 | CA68: =+IF($K68="Ongoing",BE68,IF(RIGHT($K68,2)=RIGHT(CA$39,2),SUM($AV68:BE68),0)+IF(RIGHT(CA$39,2)>RIGHT($K68,2),BE68,0)) -> 0 | CC68: =+O68*KeyAssumptionsPriceControl_FO!X$15 -> 0.00052237449 | CD68: =+P68*KeyAssumptionsPriceControl_FO!Y$15 -> 0 | CE68: =+Q68*KeyAssumptionsPriceControl_FO!Z$15 -> 0 | CF68: =+R68*KeyAssumptionsPriceControl_FO!AA$15 -> 0 | CG68: =+S68*KeyAssumptionsPriceControl_FO!AB$15 -> 0 | CH68: =+T68*KeyAssumptionsPriceControl_FO!AC$15 -> 0 | CI68: =+U68*KeyAssumptionsPriceControl_FO!AD$15 -> 0 | CJ68: =+V68*KeyAssumptionsPriceControl_FO!AE$15 -> 0 | CK68: =+W68*KeyAssumptionsPriceControl_FO!AF$15 -> 0 | CL68: =+X68*KeyAssumptionsPriceControl_FO!AG$15 -> 0 | CN68: 5.2237449e-06 | CO68: 1.04474898e-05 | CP68: 1.04474898e-05 | CQ68: 1.04474898e-05 | CR68: 1.04474898e-05 | CS68: 1.04474898e-05 | CT68: 1.04474898e-05 | CU68: 1.04474898e-05 | CV68: 1.04474898e-05 | CW68: 1.04474898e-05
C69: Aireys Inlet Water Supply Improvements | E69: Water | F69: Improvements / Compliance | G69: Pipelines/network | H69: Other Capital expenditure | J69: Straight line | K69: 2021-22 | L69: 70 | M69: 50 | O69: 0 | P69: 0 | Q69: 0.11685528 | R69: 0.45317153 | S69: 0 | T69: 0 | U69: 0 | V69: 0 | W69: 0 | X69: 0 | Z69: 0 | AA69: 0 | AB69: 0 | AC69: 0 | AD69: 0 | AE69: 0 | AF69: 0 | AG69: 0 | AH69: 0 | AI69: 0 | AK69: 0 | AL69: 0 | AM69: 0 | AN69: 0 | AO69: 0 | AP69: 0 | AQ69: 0 | AR69: 0 | AS69: 0 | AT69: 0 | AV69: 0 | AW69: 0 | AX69: 0.11685528 | AY69: 0.45317153 | AZ69: 0 | BA69: 0 | BB69: 0 | BC69: 0 | BD69: 0 | BE69: 0 | BG69: 0 | BH69: 0 | BI69: 0 | BJ69: 0.004071620071 | BK69: 0.008143240143 | BL69: 0.008143240143 | BM69: 0.008143240143 | BN69: 0.008143240143 | BO69: 0.008143240143 | BP69: 0.008143240143 | BR69: =+IF($K69="Ongoing",AV69,IF(RIGHT($K69,2)=RIGHT(BR$39,2),SUM($AV69:AV69),0)+IF(RIGHT(BR$39,2)>RIGHT($K69,2),AV69,0)) -> 0 | BS69: =+IF($K69="Ongoing",AW69,IF(RIGHT($K69,2)=RIGHT(BS$39,2),SUM($AV69:AW69),0)+IF(RIGHT(BS$39,2)>RIGHT($K69,2),AW69,0)) -> 0 | BT69: =+IF($K69="Ongoing",AX69,IF(RIGHT($K69,2)=RIGHT(BT$39,2),SUM($AV69:AX69),0)+IF(RIGHT(BT$39,2)>RIGHT($K69,2),AX69,0)) -> 0 | BU69: =+IF($K69="Ongoing",AY69,IF(RIGHT($K69,2)=RIGHT(BU$39,2),SUM($AV69:AY69),0)+IF(RIGHT(BU$39,2)>RIGHT($K69,2),AY69,0)) -> 0.57002681 | BV69: =+IF($K69="Ongoing",AZ69,IF(RIGHT($K69,2)=RIGHT(BV$39,2),SUM($AV69:AZ69),0)+IF(RIGHT(BV$39,2)>RIGHT($K69,2),AZ69,0)) -> 0 | BW69: =+IF($K69="Ongoing",BA69,IF(RIGHT($K69,2)=RIGHT(BW$39,2),SUM($AV69:BA69),0)+IF(RIGHT(BW$39,2)>RIGHT($K69,2),BA69,0)) -> 0 | BX69: =+IF($K69="Ongoing",BB69,IF(RIGHT($K69,2)=RIGHT(BX$39,2),SUM($AV69:BB69),0)+IF(RIGHT(BX$39,2)>RIGHT($K69,2),BB69,0)) -> 0 | BY69: =+IF($K69="Ongoing",BC69,IF(RIGHT($K69,2)=RIGHT(BY$39,2),SUM($AV69:BC69),0)+IF(RIGHT(BY$39,2)>RIGHT($K69,2),BC69,0)) -> 0 | BZ69: =+IF($K69="Ongoing",BD69,IF(RIGHT($K69,2)=RIGHT(BZ$39,2),SUM($AV69:BD69),0)+IF(RIGHT(BZ$39,2)>RIGHT($K69,2),BD69,0)) -> 0 | CA69: =+IF($K69="Ongoing",BE69,IF(RIGHT($K69,2)=RIGHT(CA$39,2),SUM($AV69:BE69),0)+IF(RIGHT(CA$39,2)>RIGHT($K69,2),BE69,0)) -> 0 | CC69: =+O69*KeyAssumptionsPriceControl_FO!X$15 -> 0 | CD69: =+P69*KeyAssumptionsPriceControl_FO!Y$15 -> 0 | CE69: =+Q69*KeyAssumptionsPriceControl_FO!Z$15 -> 0.1251051654 | CF69: =+R69*KeyAssumptionsPriceControl_FO!AA$15 -> 0.496323859 | CG69: =+S69*KeyAssumptionsPriceControl_FO!AB$15 -> 0 | CH69: =+T69*KeyAssumptionsPriceControl_FO!AC$15 -> 0 | CI69: =+U69*KeyAssumptionsPriceControl_FO!AD$15 -> 0 | CJ69: =+V69*KeyAssumptionsPriceControl_FO!AE$15 -> 0 | CK69: =+W69*KeyAssumptionsPriceControl_FO!AF$15 -> 0 | CL69: =+X69*KeyAssumptionsPriceControl_FO!AG$15 -> 0 | CN69: 0 | CO69: 0 | CP69: 0.001251051654 | CQ69: 0.007465341898 | CR69: 0.01242858049 | CS69: 0.01242858049 | CT69: 0.01242858049 | CU69: 0.01242858049 | CV69: 0.01242858049 | CW69: 0.01242858049
C70: Apollo Bay Water Supply Imp Stg1 | E70: Water | F70: Improvements / Compliance | G70: Pipelines/network | H70: Other Capital expenditure | J70: Straight line | K70: 2020-21 | L70: 70 | M70: 50 | O70: 0 | P70: 0 | Q70: 0.1847944 | R70: 0 | S70: 0 | T70: 0 | U70: 0 | V70: 0 | W70: 0 | X70: 0 | Z70: 0 | AA70: 0 | AB70: 0 | AC70: 0 | AD70: 0 | AE70: 0 | AF70: 0 | AG70: 0 | AH70: 0 | AI70: 0 | AK70: 0 | AL70: 0 | AM70: 0 | AN70: 0 | AO70: 0 | AP70: 0 | AQ70: 0 | AR70: 0 | AS70: 0 | AT70: 0 | AV70: 0 | AW70: 0 | AX70: 0.1847944 | AY70: 0 | AZ70: 0 | BA70: 0 | BB70: 0 | BC70: 0 | BD70: 0 | BE70: 0 | BG70: 0 | BH70: 0 | BI70: 0.00131996 | BJ70: 0.00263992 | BK70: 0.00263992 | BL70: 0.00263992 | BM70: 0.00263992 | BN70: 0.00263992 | BO70: 0.00263992 | BP70: 0.00263992 | BR70: =+IF($K70="Ongoing",AV70,IF(RIGHT($K70,2)=RIGHT(BR$39,2),SUM($AV70:AV70),0)+IF(RIGHT(BR$39,2)>RIGHT($K70,2),AV70,0)) -> 0 | BS70: =+IF($K70="Ongoing",AW70,IF(RIGHT($K70,2)=RIGHT(BS$39,2),SUM($AV70:AW70),0)+IF(RIGHT(BS$39,2)>RIGHT($K70,2),AW70,0)) -> 0 | BT70: =+IF($K70="Ongoing",AX70,IF(RIGHT($K70,2)=RIGHT(BT$39,2),SUM($AV70:AX70),0)+IF(RIGHT(BT$39,2)>RIGHT($K70,2),AX70,0)) -> 0.1847944 | BU70: =+IF($K70="Ongoing",AY70,IF(RIGHT($K70,2)=RIGHT(BU$39,2),SUM($AV70:AY70),0)+IF(RIGHT(BU$39,2)>RIGHT($K70,2),AY70,0)) -> 0 | BV70: =+IF($K70="Ongoing",AZ70,IF(RIGHT($K70,2)=RIGHT(BV$39,2),SUM($AV70:AZ70),0)+IF(RIGHT(BV$39,2)>RIGHT($K70,2),AZ70,0)) -> 0 | BW70: =+IF($K70="Ongoing",BA70,IF(RIGHT($K70,2)=RIGHT(BW$39,2),SUM($AV70:BA70),0)+IF(RIGHT(BW$39,2)>RIGHT($K70,2),BA70,0)) -> 0 | BX70: =+IF($K70="Ongoing",BB70,IF(RIGHT($K70,2)=RIGHT(BX$39,2),SUM($AV70:BB70),0)+IF(RIGHT(BX$39,2)>RIGHT($K70,2),BB70,0)) -> 0 | BY70: =+IF($K70="Ongoing",BC70,IF(RIGHT($K70,2)=RIGHT(BY$39,2),SUM($AV70:BC70),0)+IF(RIGHT(BY$39,2)>RIGHT($K70,2),BC70,0)) -> 0 | BZ70: =+IF($K70="Ongoing",BD70,IF(RIGHT($K70,2)=RIGHT(BZ$39,2),SUM($AV70:BD70),0)+IF(RIGHT(BZ$39,2)>RIGHT($K70,2),BD70,0)) -> 0 | CA70: =+IF($K70="Ongoing",BE70,IF(RIGHT($K70,2)=RIGHT(CA$39,2),SUM($AV70:BE70),0)+IF(RIGHT(CA$39,2)>RIGHT($K70,2),BE70,0)) -> 0 | CC70: =+O70*KeyAssumptionsPriceControl_FO!X$15 -> 0 | CD70: =+P70*KeyAssumptionsPriceControl_FO!Y$15 -> 0 | CE70: =+Q70*KeyAssumptionsPriceControl_FO!Z$15 -> 0.1978407307 | CF70: =+R70*KeyAssumptionsPriceControl_FO!AA$15 -> 0 | CG70: =+S70*KeyAssumptionsPriceControl_FO!AB$15 -> 0 | CH70: =+T70*KeyAssumptionsPriceControl_FO!AC$15 -> 0 | CI70: =+U70*KeyAssumptionsPriceControl_FO!AD$15 -> 0 | CJ70: =+V70*KeyAssumptionsPriceControl_FO!AE$15 -> 0 | CK70: =+W70*KeyAssumptionsPriceControl_FO!AF$15 -> 0 | CL70: =+X70*KeyAssumptionsPriceControl_FO!AG$15 -> 0 | CN70: 0 | CO70: 0 | CP70: 0.001978407307 | CQ70: 0.003956814614 | CR70: 0.003956814614 | CS70: 0.003956814614 | CT70: 0.003956814614 | CU70: 0.003956814614 | CV70: 0.003956814614 | CW70: 0.003956814614
C71: Apollo Bay Water Supply Imp Stg2 | E71: Water | F71: Improvements / Compliance | G71: Pipelines/network | H71: Other Capital expenditure | J71: Straight line | K71: 2022-23 | L71: 70 | M71: 50 | O71: 0 | P71: 0 | Q71: 0 | R71: 0 | S71: 0.25968718 | T71: 0 | U71: 0 | V71: 0 | W71: 0 | X71: 0 | Z71: 0 | AA71: 0 | AB71: 0 | AC71: 0 | AD71: 0 | AE71: 0 | AF71: 0 | AG71: 0 | AH71: 0 | AI71: 0 | AK71: 0 | AL71: 0 | AM71: 0 | AN71: 0 | AO71: 0 | AP71: 0 | AQ71: 0 | AR71: 0 | AS71: 0 | AT71: 0 | AV71: 0 | AW71: 0 | AX71: 0 | AY71: 0 | AZ71: 0.25968718 | BA71: 0 | BB71: 0 | BC71: 0 | BD71: 0 | BE71: 0 | BG71: 0 | BH71: 0 | BI71: 0 | BJ71: 0 | BK71: 0.001854908429 | BL71: 0.003709816857 | BM71: 0.003709816857 | BN71: 0.003709816857 | BO71: 0.003709816857 | BP71: 0.003709816857 | BR71: =+IF($K71="Ongoing",AV71,IF(RIGHT($K71,2)=RIGHT(BR$39,2),SUM($AV71:AV71),0)+IF(RIGHT(BR$39,2)>RIGHT($K71,2),AV71,0)) -> 0 | BS71: =+IF($K71="Ongoing",AW71,IF(RIGHT($K71,2)=RIGHT(BS$39,2),SUM($AV71:AW71),0)+IF(RIGHT(BS$39,2)>RIGHT($K71,2),AW71,0)) -> 0 | BT71: =+IF($K71="Ongoing",AX71,IF(RIGHT($K71,2)=RIGHT(BT$39,2),SUM($AV71:AX71),0)+IF(RIGHT(BT$39,2)>RIGHT($K71,2),AX71,0)) -> 0 | BU71: =+IF($K71="Ongoing",AY71,IF(RIGHT($K71,2)=RIGHT(BU$39,2),SUM($AV71:AY71),0)+IF(RIGHT(BU$39,2)>RIGHT($K71,2),AY71,0)) -> 0 | BV71: =+IF($K71="Ongoing",AZ71,IF(RIGHT($K71,2)=RIGHT(BV$39,2),SUM($AV71:AZ71),0)+IF(RIGHT(BV$39,2)>RIGHT($K71,2),AZ71,0)) -> 0.25968718 | BW71: =+IF($K71="Ongoing",BA71,IF(RIGHT($K71,2)=RIGHT(BW$39,2),SUM($AV71:BA71),0)+IF(RIGHT(BW$39,2)>RIGHT($K71,2),BA71,0)) -> 0 | BX71: =+IF($K71="Ongoing",BB71,IF(RIGHT($K71,2)=RIGHT(BX$39,2),SUM($AV71:BB71),0)+IF(RIGHT(BX$39,2)>RIGHT($K71,2),BB71,0)) -> 0 | BY71: =+IF($K71="Ongoing",BC71,IF(RIGHT($K71,2)=RIGHT(BY$39,2),SUM($AV71:BC71),0)+IF(RIGHT(BY$39,2)>RIGHT($K71,2),BC71,0)) -> 0 | BZ71: =+IF($K71="Ongoing",BD71,IF(RIGHT($K71,2)=RIGHT(BZ$39,2),SUM($AV71:BD71),0)+IF(RIGHT(BZ$39,2)>RIGHT($K71,2),BD71,0)) -> 0 | CA71: =+IF($K71="Ongoing",BE71,IF(RIGHT($K71,2)=RIGHT(CA$39,2),SUM($AV71:BE71),0)+IF(RIGHT(CA$39,2)>RIGHT($K71,2),BE71,0)) -> 0 | CC71: =+O71*KeyAssumptionsPriceControl_FO!X$15 -> 0 | CD71: =+P71*KeyAssumptionsPriceControl_FO!Y$15 -> 0 | CE71: =+Q71*KeyAssumptionsPriceControl_FO!Z$15 -> 0 | CF71: =+R71*KeyAssumptionsPriceControl_FO!AA$15 -> 0 | CG71: =+S71*KeyAssumptionsPriceControl_FO!AB$15 -> 0.290956912 | CH71: =+T71*KeyAssumptionsPriceControl_FO!AC$15 -> 0 | CI71: =+U71*KeyAssumptionsPriceControl_FO!AD$15 -> 0 | CJ71: =+V71*KeyAssumptionsPriceControl_FO!AE$15 -> 0 | CK71: =+W71*KeyAssumptionsPriceControl_FO!AF$15 -> 0 | CL71: =+X71*KeyAssumptionsPriceControl_FO!AG$15 -> 0 | CN71: 0 | CO71: 0 | CP71: 0 | CQ71: 0 | CR71: 0.00290956912 | CS71: 0.005819138241 | CT71: 0.005819138241 | CU71: 0.005819138241 | CV71: 0.005819138241 | CW71: 0.005819138241
C72: Armstrong Creek Airport Road Feeder Mains | E72: Water | F72: Growth | G72: Pipelines/network | H72: Other Capital expenditure | J72: Straight line | K72: 2020-21 | L72: 70 | M72: 50 | O72: 0.92762035 | P72: 0.58511438 | Q72: 1.14659402 | R72: 0 | S72: 0 | T72: 0 | U72: 0 | V72: 0 | W72: 0 | X72: 0 | Z72: 0 | AA72: 0 | AB72: 0 | AC72: 0 | AD72: 0 | AE72: 0 | AF72: 0 | AG72: 0 | AH72: 0 | AI72: 0 | AK72: 0.6458713157 | AL72: 0.3027269469 | AM72: 0.9511240724 | AN72: 0 | AO72: 0 | AP72: 0 | AQ72: 0 | AR72: 0 | AS72: 0 | AT72: 0 | AV72: 0.2817490343 | AW72: 0.2823874331 | AX72: 0.1954699476 | AY72: 0 | AZ72: 0 | BA72: 0 | BB72: 0 | BC72: 0 | BD72: 0 | BE72: 0 | BG72: 0 | BH72: 0 | BI72: 0.005425760107 | BJ72: 0.01085152021 | BK72: 0.01085152021 | BL72: 0.01085152021 | BM72: 0.01085152021 | BN72: 0.01085152021 | BO72: 0.01085152021 | BP72: 0.01085152021 | BR72: =+IF($K72="Ongoing",AV72,IF(RIGHT($K72,2)=RIGHT(BR$39,2),SUM($AV72:AV72),0)+IF(RIGHT(BR$39,2)>RIGHT($K72,2),AV72,0)) -> 0 | BS72: =+IF($K72="Ongoing",AW72,IF(RIGHT($K72,2)=RIGHT(BS$39,2),SUM($AV72:AW72),0)+IF(RIGHT(BS$39,2)>RIGHT($K72,2),AW72,0)) -> 0 | BT72: =+IF($K72="Ongoing",AX72,IF(RIGHT($K72,2)=RIGHT(BT$39,2),SUM($AV72:AX72),0)+IF(RIGHT(BT$39,2)>RIGHT($K72,2),AX72,0)) -> 0.759606415 | BU72: =+IF($K72="Ongoing",AY72,IF(RIGHT($K72,2)=RIGHT(BU$39,2),SUM($AV72:AY72),0)+IF(RIGHT(BU$39,2)>RIGHT($K72,2),AY72,0)) -> 0 | BV72: =+IF($K72="Ongoing",AZ72,IF(RIGHT($K72,2)=RIGHT(BV$39,2),SUM($AV72:AZ72),0)+IF(RIGHT(BV$39,2)>RIGHT($K72,2),AZ72,0)) -> 0 | BW72: =+IF($K72="Ongoing",BA72,IF(RIGHT($K72,2)=RIGHT(BW$39,2),SUM($AV72:BA72),0)+IF(RIGHT(BW$39,2)>RIGHT($K72,2),BA72,0)) -> 0 | BX72: =+IF($K72="Ongoing",BB72,IF(RIGHT($K72,2)=RIGHT(BX$39,2),SUM($AV72:BB72),0)+IF(RIGHT(BX$39,2)>RIGHT($K72,2),BB72,0)) -> 0 | BY72: =+IF($K72="Ongoing",BC72,IF(RIGHT($K72,2)=RIGHT(BY$39,2),SUM($AV72:BC72),0)+IF(RIGHT(BY$39,2)>RIGHT($K72,2),BC72,0)) -> 0 | BZ72: =+IF($K72="Ongoing",BD72,IF(RIGHT($K72,2)=RIGHT(BZ$39,2),SUM($AV72:BD72),0)+IF(RIGHT(BZ$39,2)>RIGHT($K72,2),BD72,0)) -> 0 | CA72: =+IF($K72="Ongoing",BE72,IF(RIGHT($K72,2)=RIGHT(CA$39,2),SUM($AV72:BE72),0)+IF(RIGHT(CA$39,2)>RIGHT($K72,2),BE72,0)) -> 0 | CC72: =+O72*KeyAssumptionsPriceControl_FO!X$15 -> 0.948955618 | CD72: =+P72*KeyAssumptionsPriceControl_FO!Y$15 -> 0.612339167 | CE72: =+Q72*KeyAssumptionsPriceControl_FO!Z$15 -> 1.227542603 | CF72: =+R72*KeyAssumptionsPriceControl_FO!AA$15 -> 0 | CG72: =+S72*KeyAssumptionsPriceControl_FO!AB$15 -> 0 | CH72: =+T72*KeyAssumptionsPriceControl_FO!AC$15 -> 0 | CI72: =+U72*KeyAssumptionsPriceControl_FO!AD$15 -> 0 | CJ72: =+V72*KeyAssumptionsPriceControl_FO!AE$15 -> 0 | CK72: =+W72*KeyAssumptionsPriceControl_FO!AF$15 -> 0 | CL72: =+X72*KeyAssumptionsPriceControl_FO!AG$15 -> 0 | CN72: 0.009489556181 | CO72: 0.02510250403 | CP72: 0.04350132173 | CQ72: 0.05577674775 | CR72: 0.05577674775 | CS72: 0.05577674775 | CT72: 0.05577674775 | CU72: 0.05577674775 | CV72: 0.05577674775 | CW72: 0.05577674775
C73: Armstrong Creek Barwarre Rd Sth FM Stg 2 | E73: Water | F73: Growth | G73: Pipelines/network | H73: Other Capital expenditure | J73: Straight line | K73: 2024-25 | L73: 70 | M73: 50 | O73: 0 | P73: 0.11090599 | Q73: 0.11090599 | R73: 0 | S73: 0 | T73: 0.07393733 | U73: 0.07393733 | V73: 0 | W73: 0 | X73: 0 | Z73: 0 | AA73: 0 | AB73: 0 | AC73: 0 | AD73: 0 | AE73: 0 | AF73: 0 | AG73: 0 | AH73: 0 | AI73: 0 | AK73: 0 | AL73: 0.05738063 | AM73: 0.09199887233 | AN73: 0 | AO73: 0 | AP73: 0 | AQ73: 0 | AR73: 0 | AS73: 0 | AT73: 0 | AV73: 0 | AW73: 0.05352536 | AX73: 0.01890711767 | AY73: 0 | AZ73: 0 | BA73: 0.07393733 | BB73: 0.07393733 | BC73: 0 | BD73: 0 | BE73: 0 | BG73: 0 | BH73: 0 | BI73: 0 | BJ73: 0 | BK73: 0 | BL73: 0 | BM73: 0.001573622412 | BN73: 0.003147244824 | BO73: 0.003147244824 | BP73: 0.003147244824 | BR73: =+IF($K73="Ongoing",AV73,IF(RIGHT($K73,2)=RIGHT(BR$39,2),SUM($AV73:AV73),0)+IF(RIGHT(BR$39,2)>RIGHT($K73,2),AV73,0)) -> 0 | BS73: =+IF($K73="Ongoing",AW73,IF(RIGHT($K73,2)=RIGHT(BS$39,2),SUM($AV73:AW73),0)+IF(RIGHT(BS$39,2)>RIGHT($K73,2),AW73,0)) -> 0 | BT73: =+IF($K73="Ongoing",AX73,IF(RIGHT($K73,2)=RIGHT(BT$39,2),SUM($AV73:AX73),0)+IF(RIGHT(BT$39,2)>RIGHT($K73,2),AX73,0)) -> 0 | BU73: =+IF($K73="Ongoing",AY73,IF(RIGHT($K73,2)=RIGHT(BU$39,2),SUM($AV73:AY73),0)+IF(RIGHT(BU$39,2)>RIGHT($K73,2),AY73,0)) -> 0 | BV73: =+IF($K73="Ongoing",AZ73,IF(RIGHT($K73,2)=RIGHT(BV$39,2),SUM($AV73:AZ73),0)+IF(RIGHT(BV$39,2)>RIGHT($K73,2),AZ73,0)) -> 0 | BW73: =+IF($K73="Ongoing",BA73,IF(RIGHT($K73,2)=RIGHT(BW$39,2),SUM($AV73:BA73),0)+IF(RIGHT(BW$39,2)>RIGHT($K73,2),BA73,0)) -> 0 | BX73: =+IF($K73="Ongoing",BB73,IF(RIGHT($K73,2)=RIGHT(BX$39,2),SUM($AV73:BB73),0)+IF(RIGHT(BX$39,2)>RIGHT($K73,2),BB73,0)) -> 0.2203071377 | BY73: =+IF($K73="Ongoing",BC73,IF(RIGHT($K73,2)=RIGHT(BY$39,2),SUM($AV73:BC73),0)+IF(RIGHT(BY$39,2)>RIGHT($K73,2),BC73,0)) -> 0 | BZ73: =+IF($K73="Ongoing",BD73,IF(RIGHT($K73,2)=RIGHT(BZ$39,2),SUM($AV73:BD73),0)+IF(RIGHT(BZ$39,2)>RIGHT($K73,2),BD73,0)) -> 0 | CA73: =+IF($K73="Ongoing",BE73,IF(RIGHT($K73,2)=RIGHT(CA$39,2),SUM($AV73:BE73),0)+IF(RIGHT(CA$39,2)>RIGHT($K73,2),BE73,0)) -> 0 | CC73: =+O73*KeyAssumptionsPriceControl_FO!X$15 -> 0 | CD73: =+P73*KeyAssumptionsPriceControl_FO!Y$15 -> 0.1160663348 | CE73: =+Q73*KeyAssumptionsPriceControl_FO!Z$15 -> 0.1187358605 | CF73: =+R73*KeyAssumptionsPriceControl_FO!AA$15 -> 0 | CG73: =+S73*KeyAssumptionsPriceControl_FO!AB$15 -> 0 | CH73: =+T73*KeyAssumptionsPriceControl_FO!AC$15 -> 0.08474567939 | CI73: =+U73*KeyAssumptionsPriceControl_FO!AD$15 -> 0.08669483002 | CJ73: =+V73*KeyAssumptionsPriceControl_FO!AE$15 -> 0 | CK73: =+W73*KeyAssumptionsPriceControl_FO!AF$15 -> 0 | CL73: =+X73*KeyAssumptionsPriceControl_FO!AG$15 -> 0 | CN73: 0 | CO73: 0.001160663348 | CP73: 0.003508685301 | CQ73: 0.004696043906 | CR73: 0.004696043906 | CS73: 0.0055435007 | CT73: 0.007257905794 | CU73: 0.008124854094 | CV73: 0.008124854094 | CW73: 0.008124854094
C74: Armstrong Creek Barwarree Rd North FM | E74: Water | F74: Growth | G74: Pipelines/network | H74: Other Capital expenditure | J74: Straight line | K74: beyond 12 years | L74: 70 | M74: 50 | O74: 0 | P74: 0 | Q74: 0 | R74: 0 | S74: 0 | T74: 0 | U74: 0.11423549 | V74: 0.11423549 | W74: 0.11423549 | X74: 0.11423549 | Z74: 0 | AA74: 0 | AB74: 0 | AC74: 0 | AD74: 0 | AE74: 0 | AF74: 0 | AG74: 0 | AH74: 0 | AI74: 0 | AK74: 0 | AL74: 0 | AM74: 0 | AN74: 0 | AO74: 0 | AP74: 0 | AQ74: 0 | AR74: 0 | AS74: 0 | AT74: 0 | AV74: 0 | AW74: 0 | AX74: 0 | AY74: 0 | AZ74: 0 | BA74: 0 | BB74: 0.11423549 | BC74: 0.11423549 | BD74: 0.11423549 | BE74: 0.11423549 | BG74: 0 | BH74: 0 | BI74: 0 | BJ74: 0 | BK74: 0 | BL74: 0 | BM74: 0 | BN74: 0 | BO74: 0 | BP74: 0 | BR74: =+IF($K74="Ongoing",AV74,IF(RIGHT($K74,2)=RIGHT(BR$39,2),SUM($AV74:AV74),0)+IF(RIGHT(BR$39,2)>RIGHT($K74,2),AV74,0)) -> 0 | BS74: =+IF($K74="Ongoing",AW74,IF(RIGHT($K74,2)=RIGHT(BS$39,2),SUM($AV74:AW74),0)+IF(RIGHT(BS$39,2)>RIGHT($K74,2),AW74,0)) -> 0 | BT74: =+IF($K74="Ongoing",AX74,IF(RIGHT($K74,2)=RIGHT(BT$39,2),SUM($AV74:AX74),0)+IF(RIGHT(BT$39,2)>RIGHT($K74,2),AX74,0)) -> 0 | BU74: =+IF($K74="Ongoing",AY74,IF(RIGHT($K74,2)=RIGHT(BU$39,2),SUM($AV74:AY74),0)+IF(RIGHT(BU$39,2)>RIGHT($K74,2),AY74,0)) -> 0 | BV74: =+IF($K74="Ongoing",AZ74,IF(RIGHT($K74,2)=RIGHT(BV$39,2),SUM($AV74:AZ74),0)+IF(RIGHT(BV$39,2)>RIGHT($K74,2),AZ74,0)) -> 0 | BW74: =+IF($K74="Ongoing",BA74,IF(RIGHT($K74,2)=RIGHT(BW$39,2),SUM($AV74:BA74),0)+IF(RIGHT(BW$39,2)>RIGHT($K74,2),BA74,0)) -> 0 | BX74: =+IF($K74="Ongoing",BB74,IF(RIGHT($K74,2)=RIGHT(BX$39,2),SUM($AV74:BB74),0)+IF(RIGHT(BX$39,2)>RIGHT($K74,2),BB74,0)) -> 0 | BY74: =+IF($K74="Ongoing",BC74,IF(RIGHT($K74,2)=RIGHT(BY$39,2),SUM($AV74:BC74),0)+IF(RIGHT(BY$39,2)>RIGHT($K74,2),BC74,0)) -> 0 | BZ74: =+IF($K74="Ongoing",BD74,IF(RIGHT($K74,2)=RIGHT(BZ$39,2),SUM($AV74:BD74),0)+IF(RIGHT(BZ$39,2)>RIGHT($K74,2),BD74,0)) -> 0 | CA74: =+IF($K74="Ongoing",BE74,IF(RIGHT($K74,2)=RIGHT(CA$39,2),SUM($AV74:BE74),0)+IF(RIGHT(CA$39,2)>RIGHT($K74,2),BE74,0)) -> 0 | CC74: =+O74*KeyAssumptionsPriceControl_FO!X$15 -> 0 | CD74: =+P74*KeyAssumptionsPriceControl_FO!Y$15 -> 0 | CE74: =+Q74*KeyAssumptionsPriceControl_FO!Z$15 -> 0 | CF74: =+R74*KeyAssumptionsPriceControl_FO!AA$15 -> 0 | CG74: =+S74*KeyAssumptionsPriceControl_FO!AB$15 -> 0 | CH74: =+T74*KeyAssumptionsPriceControl_FO!AC$15 -> 0 | CI74: =+U74*KeyAssumptionsPriceControl_FO!AD$15 -> 0.133946227 | CJ74: =+V74*KeyAssumptionsPriceControl_FO!AE$15 -> 0.1370269902 | CK74: =+W74*KeyAssumptionsPriceControl_FO!AF$15 -> 0.140178611 | CL74: =+X74*KeyAssumptionsPriceControl_FO!AG$15 -> 0.143402719 | CN74: 0 | CO74: 0 | CP74: 0 | CQ74: 0 | CR74: 0 | CS74: 0 | CT74: 0.00133946227 | CU74: 0.004049194442 | CV74: 0.006821250454 | CW74: 0.009657063754
C75: Armstrong Creek Barwarree Rd Sth FM St 1 | E75: Water | F75: Growth | G75: Pipelines/network | H75: Other Capital expenditure | J75: Straight line | K75: 2019-20 | L75: 70 | M75: 50 | O75: 0.15733566 | P75: 0.15733566 | Q75: 0 | R75: 0 | S75: 0 | T75: 0 | U75: 0 | V75: 0 | W75: 0 | X75: 0 | Z75: 0 | AA75: 0 | AB75: 0 | AC75: 0 | AD75: 0 | AE75: 0 | AF75: 0 | AG75: 0 | AH75: 0 | AI75: 0 | AK75: 0.1095476072 | AL75: 0.08140244988 | AM75: 0 | AN75: 0 | AO75: 0 | AP75: 0 | AQ75: 0 | AR75: 0 | AS75: 0 | AT75: 0 | AV75: 0.0477880528 | AW75: 0.07593321012 | AX75: 0 | AY75: 0 | AZ75: 0 | BA75: 0 | BB75: 0 | BC75: 0 | BD75: 0 | BE75: 0 | BG75: 0 | BH75: 0.0008837233066 | BI75: 0.001767446613 | BJ75: 0.001767446613 | BK75: 0.001767446613 | BL75: 0.001767446613 | BM75: 0.001767446613 | BN75: 0.001767446613 | BO75: 0.001767446613 | BP75: 0.001767446613 | BR75: =+IF($K75="Ongoing",AV75,IF(RIGHT($K75,2)=RIGHT(BR$39,2),SUM($AV75:AV75),0)+IF(RIGHT(BR$39,2)>RIGHT($K75,2),AV75,0)) -> 0 | BS75: =+IF($K75="Ongoing",AW75,IF(RIGHT($K75,2)=RIGHT(BS$39,2),SUM($AV75:AW75),0)+IF(RIGHT(BS$39,2)>RIGHT($K75,2),AW75,0)) -> 0.1237212629 | BT75: =+IF($K75="Ongoing",AX75,IF(RIGHT($K75,2)=RIGHT(BT$39,2),SUM($AV75:AX75),0)+IF(RIGHT(BT$39,2)>RIGHT($K75,2),AX75,0)) -> 0 | BU75: =+IF($K75="Ongoing",AY75,IF(RIGHT($K75,2)=RIGHT(BU$39,2),SUM($AV75:AY75),0)+IF(RIGHT(BU$39,2)>RIGHT($K75,2),AY75,0)) -> 0 | BV75: =+IF($K75="Ongoing",AZ75,IF(RIGHT($K75,2)=RIGHT(BV$39,2),SUM($AV75:AZ75),0)+IF(RIGHT(BV$39,2)>RIGHT($K75,2),AZ75,0)) -> 0 | BW75: =+IF($K75="Ongoing",BA75,IF(RIGHT($K75,2)=RIGHT(BW$39,2),SUM($AV75:BA75),0)+IF(RIGHT(BW$39,2)>RIGHT($K75,2),BA75,0)) -> 0 | BX75: =+IF($K75="Ongoing",BB75,IF(RIGHT($K75,2)=RIGHT(BX$39,2),SUM($AV75:BB75),0)+IF(RIGHT(BX$39,2)>RIGHT($K75,2),BB75,0)) -> 0 | BY75: =+IF($K75="Ongoing",BC75,IF(RIGHT($K75,2)=RIGHT(BY$39,2),SUM($AV75:BC75),0)+IF(RIGHT(BY$39,2)>RIGHT($K75,2),BC75,0)) -> 0 | BZ75: =+IF($K75="Ongoing",BD75,IF(RIGHT($K75,2)=RIGHT(BZ$39,2),SUM($AV75:BD75),0)+IF(RIGHT(BZ$39,2)>RIGHT($K75,2),BD75,0)) -> 0 | CA75: =+IF($K75="Ongoing",BE75,IF(RIGHT($K75,2)=RIGHT(CA$39,2),SUM($AV75:BE75),0)+IF(RIGHT(CA$39,2)>RIGHT($K75,2),BE75,0)) -> 0 | CC75: =+O75*KeyAssumptionsPriceControl_FO!X$15 -> 0.1609543802 | CD75: =+P75*KeyAssumptionsPriceControl_FO!Y$15 -> 0.1646563309 | CE75: =+Q75*KeyAssumptionsPriceControl_FO!Z$15 -> 0 | CF75: =+R75*KeyAssumptionsPriceControl_FO!AA$15 -> 0 | CG75: =+S75*KeyAssumptionsPriceControl_FO!AB$15 -> 0 | CH75: =+T75*KeyAssumptionsPriceControl_FO!AC$15 -> 0 | CI75: =+U75*KeyAssumptionsPriceControl_FO!AD$15 -> 0 | CJ75: =+V75*KeyAssumptionsPriceControl_FO!AE$15 -> 0 | CK75: =+W75*KeyAssumptionsPriceControl_FO!AF$15 -> 0 | CL75: =+X75*KeyAssumptionsPriceControl_FO!AG$15 -> 0 | CN75: 0.001609543802 | CO75: 0.004865650913 | CP75: 0.006512214222 | CQ75: 0.006512214222 | CR75: 0.006512214222 | CS75: 0.006512214222 | CT75: 0.006512214222 | CU75: 0.006512214222 | CV75: 0.006512214222 | CW75: 0.006512214222
C76: Armstrong Creek Barwon Heads Rd Feeder Mains | E76: Water | F76: Growth | G76: Pipelines/network | H76: Other Capital expenditure | J76: Straight line | K76: 2025-26 | L76: 70 | M76: 50 | O76: 0.10215977 | P76: 0.10215977 | Q76: 0.10215977 | R76: 0.10215977 | S76: 0.10215977 | T76: 0.10215977 | U76: 0.10215977 | V76: 0.06129586 | W76: 0 | X76: 0 | Z76: 0 | AA76: 0 | AB76: 0 | AC76: 0 | AD76: 0 | AE76: 0 | AF76: 0 | AG76: 0 | AH76: 0 | AI76: 0 | AK76: 0.07113046308 | AL76: 0.05285550369 | AM76: 0.08474369723 | AN76: 0.07609647627 | AO76: 0.07994230671 | AP76: 0.07994230671 | AQ76: 0.07994230671 | AR76: 0.07994230671 | AS76: 0.07994230671 | AT76: 0.07994230671 | AV76: 0.03102930692 | AW76: 0.04930426631 | AX76: 0.01741607277 | AY76: 0.02606329373 | AZ76: 0.02221746329 | BA76: 0.02221746329 | BB76: 0.02221746329 | BC76: -0.01864644671 | BD76: -0.07994230671 | BE76: -0.07994230671 | BG76: 0 | BH76: 0 | BI76: 0 | BJ76: 0 | BK76: 0 | BL76: 0 | BM76: 0 | BN76: 0.001227277735 | BO76: 0.001883538993 | BP76: 0.0007415060405 | BR76: =+IF($K76="Ongoing",AV76,IF(RIGHT($K76,2)=RIGHT(BR$39,2),SUM($AV76:AV76),0)+IF(RIGHT(BR$39,2)>RIGHT($K76,2),AV76,0)) -> 0 | BS76: =+IF($K76="Ongoing",AW76,IF(RIGHT($K76,2)=RIGHT(BS$39,2),SUM($AV76:AW76),0)+IF(RIGHT(BS$39,2)>RIGHT($K76,2),AW76,0)) -> 0 | BT76: =+IF($K76="Ongoing",AX76,IF(RIGHT($K76,2)=RIGHT(BT$39,2),SUM($AV76:AX76),0)+IF(RIGHT(BT$39,2)>RIGHT($K76,2),AX76,0)) -> 0 | BU76: =+IF($K76="Ongoing",AY76,IF(RIGHT($K76,2)=RIGHT(BU$39,2),SUM($AV76:AY76),0)+IF(RIGHT(BU$39,2)>RIGHT($K76,2),AY76,0)) -> 0 | BV76: =+IF($K76="Ongoing",AZ76,IF(RIGHT($K76,2)=RIGHT(BV$39,2),SUM($AV76:AZ76),0)+IF(RIGHT(BV$39,2)>RIGHT($K76,2),AZ76,0)) -> 0 | BW76: =+IF($K76="Ongoing",BA76,IF(RIGHT($K76,2)=RIGHT(BW$39,2),SUM($AV76:BA76),0)+IF(RIGHT(BW$39,2)>RIGHT($K76,2),BA76,0)) -> 0 | BX76: =+IF($K76="Ongoing",BB76,IF(RIGHT($K76,2)=RIGHT(BX$39,2),SUM($AV76:BB76),0)+IF(RIGHT(BX$39,2)>RIGHT($K76,2),BB76,0)) -> 0 | BY76: =+IF($K76="Ongoing",BC76,IF(RIGHT($K76,2)=RIGHT(BY$39,2),SUM($AV76:BC76),0)+IF(RIGHT(BY$39,2)>RIGHT($K76,2),BC76,0)) -> 0.1718188829 | BZ76: =+IF($K76="Ongoing",BD76,IF(RIGHT($K76,2)=RIGHT(BZ$39,2),SUM($AV76:BD76),0)+IF(RIGHT(BZ$39,2)>RIGHT($K76,2),BD76,0)) -> -0.07994230671 | CA76: =+IF($K76="Ongoing",BE76,IF(RIGHT($K76,2)=RIGHT(CA$39,2),SUM($AV76:BE76),0)+IF(RIGHT(CA$39,2)>RIGHT($K76,2),BE76,0)) -> -0.07994230671 | CC76: =+O76*KeyAssumptionsPriceControl_FO!X$15 -> 0.1045094447 | CD76: =+P76*KeyAssumptionsPriceControl_FO!Y$15 -> 0.1069131619 | CE76: =+Q76*KeyAssumptionsPriceControl_FO!Z$15 -> 0.1093721647 | CF76: =+R76*KeyAssumptionsPriceControl_FO!AA$15 -> 0.1118877245 | CG76: =+S76*KeyAssumptionsPriceControl_FO!AB$15 -> 0.1144611421 | CH76: =+T76*KeyAssumptionsPriceControl_FO!AC$15 -> 0.1170937484 | CI76: =+U76*KeyAssumptionsPriceControl_FO!AD$15 -> 0.1197869046 | CJ76: =+V76*KeyAssumptionsPriceControl_FO!AE$15 -> 0.07352519964 | CK76: =+W76*KeyAssumptionsPriceControl_FO!AF$15 -> 0 | CL76: =+X76*KeyAssumptionsPriceControl_FO!AG$15 -> 0 | CN76: 0.001045094447 | CO76: 0.003159320514 | CP76: 0.00532217378 | CQ76: 0.007534772671 | CR76: 0.009798261336 | CS76: 0.01211381024 | CT76: 0.01448261677 | CU76: 0.01641573781 | CV76: 0.01715098981 | CW76: 0.01715098981
C77: Armstrong Creek Central Precinct Water Mains | E77: Water | F77: Growth | G77: Pipelines/network | H77: Other Capital expenditure | J77: Straight line | K77: 2022-23 | L77: 70 | M77: 50 | O77: 0 | P77: 0 | Q77: 0.06247478 | R77: 0.09371217 | S77: 0.03123739 | T77: 0 | U77: 0 | V77: 0 | W77: 0 | X77: 0 | Z77: 0 | AA77: 0 | AB77: 0 | AC77: 0 | AD77: 0 | AE77: 0 | AF77: 0 | AG77: 0 | AH77: 0 | AI77: 0 | AK77: 0 | AL77: 0 | AM77: 0.05182415584 | AN77: 0.06980405222 | AO77: 0.02444395687 | AP77: 0.02444395687 | AQ77: 0.02444395687 | AR77: 0.02444395687 | AS77: 0.02444395687 | AT77: 0.02444395687 | AV77: 0 | AW77: 0 | AX77: 0.01065062416 | AY77: 0.02390811778 | AZ77: 0.006793433126 | BA77: -0.02444395687 | BB77: -0.02444395687 | BC77: -0.02444395687 | BD77: -0.02444395687 | BE77: -0.02444395687 | BG77: 0 | BH77: 0 | BI77: 0 | BJ77: 0 | BK77: 0.000295372679 | BL77: 0.0004161456661 | BM77: 6.69462822e-05 | BN77: -0.0002822531017 | BO77: -0.0006314524856 | BP77: -0.0009806518696 | BR77: =+IF($K77="Ongoing",AV77,IF(RIGHT($K77,2)=RIGHT(BR$39,2),SUM($AV77:AV77),0)+IF(RIGHT(BR$39,2)>RIGHT($K77,2),AV77,0)) -> 0 | BS77: =+IF($K77="Ongoing",AW77,IF(RIGHT($K77,2)=RIGHT(BS$39,2),SUM($AV77:AW77),0)+IF(RIGHT(BS$39,2)>RIGHT($K77,2),AW77,0)) -> 0 | BT77: =+IF($K77="Ongoing",AX77,IF(RIGHT($K77,2)=RIGHT(BT$39,2),SUM($AV77:AX77),0)+IF(RIGHT(BT$39,2)>RIGHT($K77,2),AX77,0)) -> 0 | BU77: =+IF($K77="Ongoing",AY77,IF(RIGHT($K77,2)=RIGHT(BU$39,2),SUM($AV77:AY77),0)+IF(RIGHT(BU$39,2)>RIGHT($K77,2),AY77,0)) -> 0 | BV77: =+IF($K77="Ongoing",AZ77,IF(RIGHT($K77,2)=RIGHT(BV$39,2),SUM($AV77:AZ77),0)+IF(RIGHT(BV$39,2)>RIGHT($K77,2),AZ77,0)) -> 0.04135217507 | BW77: =+IF($K77="Ongoing",BA77,IF(RIGHT($K77,2)=RIGHT(BW$39,2),SUM($AV77:BA77),0)+IF(RIGHT(BW$39,2)>RIGHT($K77,2),BA77,0)) -> -0.02444395687 | BX77: =+IF($K77="Ongoing",BB77,IF(RIGHT($K77,2)=RIGHT(BX$39,2),SUM($AV77:BB77),0)+IF(RIGHT(BX$39,2)>RIGHT($K77,2),BB77,0)) -> -0.02444395687 | BY77: =+IF($K77="Ongoing",BC77,IF(RIGHT($K77,2)=RIGHT(BY$39,2),SUM($AV77:BC77),0)+IF(RIGHT(BY$39,2)>RIGHT($K77,2),BC77,0)) -> -0.02444395687 | BZ77: =+IF($K77="Ongoing",BD77,IF(RIGHT($K77,2)=RIGHT(BZ$39,2),SUM($AV77:BD77),0)+IF(RIGHT(BZ$39,2)>RIGHT($K77,2),BD77,0)) -> -0.02444395687 | CA77: =+IF($K77="Ongoing",BE77,IF(RIGHT($K77,2)=RIGHT(CA$39,2),SUM($AV77:BE77),0)+IF(RIGHT(CA$39,2)>RIGHT($K77,2),BE77,0)) -> -0.02444395687 | CC77: =+O77*KeyAssumptionsPriceControl_FO!X$15 -> 0 | CD77: =+P77*KeyAssumptionsPriceControl_FO!Y$15 -> 0 | CE77: =+Q77*KeyAssumptionsPriceControl_FO!Z$15 -> 0.06688544743 | CF77: =+R77*KeyAssumptionsPriceControl_FO!AA$15 -> 0.1026357191 | CG77: =+S77*KeyAssumptionsPriceControl_FO!AB$15 -> 0.0349987802 | CH77: =+T77*KeyAssumptionsPriceControl_FO!AC$15 -> 0 | CI77: =+U77*KeyAssumptionsPriceControl_FO!AD$15 -> 0 | CJ77: =+V77*KeyAssumptionsPriceControl_FO!AE$15 -> 0 | CK77: =+W77*KeyAssumptionsPriceControl_FO!AF$15 -> 0 | CL77: =+X77*KeyAssumptionsPriceControl_FO!AG$15 -> 0 | CN77: 0 | CO77: 0 | CP77: 0.0006688544743 | CQ77: 0.002364066139 | CR77: 0.003740411132 | CS77: 0.004090398934 | CT77: 0.004090398934 | CU77: 0.004090398934 | CV77: 0.004090398934 | CW77: 0.004090398934
C78: Armstrong Creek Eastern Feeder Mains | E78: Water | F78: Growth | G78: Pipelines/network | H78: Other Capital expenditure | J78: Straight line | K78: 2024-25 | L78: 70 | M78: 50 | O78: 0.26702703 | P78: 0.26702703 | Q78: 0.33378455 | R78: 0.26702703 | S78: 0.26702703 | T78: 0.26702703 | U78: 0.14427603 | V78: 0 | W78: 0 | X78: 0 | Z78: 0 | AA78: 0 | AB78: 0 | AC78: 0 | AD78: 0 | AE78: 0 | AF78: 0 | AG78: 0 | AH78: 0 | AI78: 0 | AK78: 0.1859220738 | AL78: 0.1381546588 | AM78: 0.2768813677 | AN78: 0.1989023277 | AO78: 0.208954628 | AP78: 0.208954628 | AQ78: 0.208954628 | AR78: 0.208954628 | AS78: 0.208954628 | AT78: 0.208954628 | AV78: 0.08110495618 | AW78: 0.1288723712 | AX78: 0.05690318227 | AY78: 0.06812470229 | AZ78: 0.05807240205 | BA78: 0.05807240205 | BB78: -0.06467859795 | BC78: -0.208954628 | BD78: -0.208954628 | BE78: -0.208954628 | BG78: 0 | BH78: 0 | BI78: 0 | BJ78: 0 | BK78: 0 | BL78: 0 | BM78: 0.002760510129 | BN78: 0.004028487201 | BO78: 0.001043421088 | BP78: -0.001941645026 | BR78: =+IF($K78="Ongoing",AV78,IF(RIGHT($K78,2)=RIGHT(BR$39,2),SUM($AV78:AV78),0)+IF(RIGHT(BR$39,2)>RIGHT($K78,2),AV78,0)) -> 0 | BS78: =+IF($K78="Ongoing",AW78,IF(RIGHT($K78,2)=RIGHT(BS$39,2),SUM($AV78:AW78),0)+IF(RIGHT(BS$39,2)>RIGHT($K78,2),AW78,0)) -> 0 | BT78: =+IF($K78="Ongoing",AX78,IF(RIGHT($K78,2)=RIGHT(BT$39,2),SUM($AV78:AX78),0)+IF(RIGHT(BT$39,2)>RIGHT($K78,2),AX78,0)) -> 0 | BU78: =+IF($K78="Ongoing",AY78,IF(RIGHT($K78,2)=RIGHT(BU$39,2),SUM($AV78:AY78),0)+IF(RIGHT(BU$39,2)>RIGHT($K78,2),AY78,0)) -> 0 | BV78: =+IF($K78="Ongoing",AZ78,IF(RIGHT($K78,2)=RIGHT(BV$39,2),SUM($AV78:AZ78),0)+IF(RIGHT(BV$39,2)>RIGHT($K78,2),AZ78,0)) -> 0 | BW78: =+IF($K78="Ongoing",BA78,IF(RIGHT($K78,2)=RIGHT(BW$39,2),SUM($AV78:BA78),0)+IF(RIGHT(BW$39,2)>RIGHT($K78,2),BA78,0)) -> 0 | BX78: =+IF($K78="Ongoing",BB78,IF(RIGHT($K78,2)=RIGHT(BX$39,2),SUM($AV78:BB78),0)+IF(RIGHT(BX$39,2)>RIGHT($K78,2),BB78,0)) -> 0.3864714181 | BY78: =+IF($K78="Ongoing",BC78,IF(RIGHT($K78,2)=RIGHT(BY$39,2),SUM($AV78:BC78),0)+IF(RIGHT(BY$39,2)>RIGHT($K78,2),BC78,0)) -> -0.208954628 | BZ78: =+IF($K78="Ongoing",BD78,IF(RIGHT($K78,2)=RIGHT(BZ$39,2),SUM($AV78:BD78),0)+IF(RIGHT(BZ$39,2)>RIGHT($K78,2),BD78,0)) -> -0.208954628 | CA78: =+IF($K78="Ongoing",BE78,IF(RIGHT($K78,2)=RIGHT(CA$39,2),SUM($AV78:BE78),0)+IF(RIGHT(CA$39,2)>RIGHT($K78,2),BE78,0)) -> -0.208954628 | CC78: =+O78*KeyAssumptionsPriceControl_FO!X$15 -> 0.2731686517 | CD78: =+P78*KeyAssumptionsPriceControl_FO!Y$15 -> 0.2794515307 | CE78: =+Q78*KeyAssumptionsPriceControl_FO!Z$15 -> 0.3573494612 | CF78: =+R78*KeyAssumptionsPriceControl_FO!AA$15 -> 0.2924541309 | CG78: =+S78*KeyAssumptionsPriceControl_FO!AB$15 -> 0.299180576 | CH78: =+T78*KeyAssumptionsPriceControl_FO!AC$15 -> 0.3060617292 | CI78: =+U78*KeyAssumptionsPriceControl_FO!AD$15 -> 0.1691701052 | CJ78: =+V78*KeyAssumptionsPriceControl_FO!AE$15 -> 0 | CK78: =+W78*KeyAssumptionsPriceControl_FO!AF$15 -> 0 | CL78: =+X78*KeyAssumptionsPriceControl_FO!AG$15 -> 0 | CN78: 0.002731686517 | CO78: 0.008257888341 | CP78: 0.01462589826 | CQ78: 0.02112393418 | CR78: 0.02704028125 | CS78: 0.0330927043 | CT78: 0.03784502265 | CU78: 0.0395367237 | CV78: 0.0395367237 | CW78: 0.0395367237
C79: Armstrong Creek Keystone Stage 2 | E79: Water | F79: Growth | G79: Pipelines/network | H79: Other Capital expenditure | J79: Straight line | K79: beyond 12 years | L79: 70 | M79: 50 | O79: 0 | P79: 0 | Q79: 0.0878281 | R79: 0.0878281 | S79: 0.0878281 | T79: 0.11591266 | U79: 0.14399723 | V79: 0.14399723 | W79: 0.14399723 | X79: 0.14399723 | Z79: 0 | AA79: 0 | AB79: 0 | AC79: 0 | AD79: 0 | AE79: 0 | AF79: 0 | AG79: 0 | AH79: 0 | AI79: 0 | AK79: 0 | AL79: 0 | AM79: 0.07285527282 | AN79: 0.06542114305 | AO79: 0.06872745414 | AP79: 0.06872745414 | AQ79: 0.06872745414 | AR79: 0.06872745414 | AS79: 0.06872745414 | AT79: 0.06872745414 | AV79: 0 | AW79: 0 | AX79: 0.01497282718 | AY79: 0.02240695695 | AZ79: 0.01910064586 | BA79: 0.04718520586 | BB79: 0.07526977586 | BC79: 0.07526977586 | BD79: 0.07526977586 | BE79: 0.07526977586 | BG79: 0 | BH79: 0 | BI79: 0 | BJ79: 0 | BK79: 0 | BL79: 0 | BM79: 0 | BN79: 0 | BO79: 0 | BP79: 0 | BR79: =+IF($K79="Ongoing",AV79,IF(RIGHT($K79,2)=RIGHT(BR$39,2),SUM($AV79:AV79),0)+IF(RIGHT(BR$39,2)>RIGHT($K79,2),AV79,0)) -> 0 | BS79: =+IF($K79="Ongoing",AW79,IF(RIGHT($K79,2)=RIGHT(BS$39,2),SUM($AV79:AW79),0)+IF(RIGHT(BS$39,2)>RIGHT($K79,2),AW79,0)) -> 0 | BT79: =+IF($K79="Ongoing",AX79,IF(RIGHT($K79,2)=RIGHT(BT$39,2),SUM($AV79:AX79),0)+IF(RIGHT(BT$39,2)>RIGHT($K79,2),AX79,0)) -> 0 | BU79: =+IF($K79="Ongoing",AY79,IF(RIGHT($K79,2)=RIGHT(BU$39,2),SUM($AV79:AY79),0)+IF(RIGHT(BU$39,2)>RIGHT($K79,2),AY79,0)) -> 0 | BV79: =+IF($K79="Ongoing",AZ79,IF(RIGHT($K79,2)=RIGHT(BV$39,2),SUM($AV79:AZ79),0)+IF(RIGHT(BV$39,2)>RIGHT($K79,2),AZ79,0)) -> 0 | BW79: =+IF($K79="Ongoing",BA79,IF(RIGHT($K79,2)=RIGHT(BW$39,2),SUM($AV79:BA79),0)+IF(RIGHT(BW$39,2)>RIGHT($K79,2),BA79,0)) -> 0 | BX79: =+IF($K79="Ongoing",BB79,IF(RIGHT($K79,2)=RIGHT(BX$39,2),SUM($AV79:BB79),0)+IF(RIGHT(BX$39,2)>RIGHT($K79,2),BB79,0)) -> 0 | BY79: =+IF($K79="Ongoing",BC79,IF(RIGHT($K79,2)=RIGHT(BY$39,2),SUM($AV79:BC79),0)+IF(RIGHT(BY$39,2)>RIGHT($K79,2),BC79,0)) -> 0 | BZ79: =+IF($K79="Ongoing",BD79,IF(RIGHT($K79,2)=RIGHT(BZ$39,2),SUM($AV79:BD79),0)+IF(RIGHT(BZ$39,2)>RIGHT($K79,2),BD79,0)) -> 0 | CA79: =+IF($K79="Ongoing",BE79,IF(RIGHT($K79,2)=RIGHT(CA$39,2),SUM($AV79:BE79),0)+IF(RIGHT(CA$39,2)>RIGHT($K79,2),BE79,0)) -> 0 | CC79: =+O79*KeyAssumptionsPriceControl_FO!X$15 -> 0 | CD79: =+P79*KeyAssumptionsPriceControl_FO!Y$15 -> 0 | CE79: =+Q79*KeyAssumptionsPriceControl_FO!Z$15 -> 0.0940286907 | CF79: =+R79*KeyAssumptionsPriceControl_FO!AA$15 -> 0.09619135059 | CG79: =+S79*KeyAssumptionsPriceControl_FO!AB$15 -> 0.09840375165 | CH79: =+T79*KeyAssumptionsPriceControl_FO!AC$15 -> 0.1328570713 | CI79: =+U79*KeyAssumptionsPriceControl_FO!AD$15 -> 0.1688431997 | CJ79: =+V79*KeyAssumptionsPriceControl_FO!AE$15 -> 0.1727265933 | CK79: =+W79*KeyAssumptionsPriceControl_FO!AF$15 -> 0.176699305 | CL79: =+X79*KeyAssumptionsPriceControl_FO!AG$15 -> 0.180763389 | CN79: 0 | CO79: 0 | CP79: 0.000940286907 | CQ79: 0.00284248732 | CR79: 0.004788438342 | CS79: 0.007101046571 | CT79: 0.01011804928 | CU79: 0.01353374721 | CV79: 0.0170280062 | CW79: 0.02060263314
C80: Armstrong Creek LLZ PRV1 (Surfcoast High | E80: Water | F80: Growth | G80: Pipelines/network | H80: Other Capital expenditure | J80: Straight line | K80: 2026-27 | L80: 70 | M80: 50 | O80: 0 | P80: 0 | Q80: 0 | R80: 0 | S80: 0 | T80: 0 | U80: 0 | V80: 0.15476732 | W80: 0.60019523 | X80: 0 | Z80: 0 | AA80: 0 | AB80: 0 | AC80: 0 | AD80: 0 | AE80: 0 | AF80: 0 | AG80: 0 | AH80: 0 | AI80: 0 | AK80: 0 | AL80: 0 | AM80: 0 | AN80: 0 | AO80: 0 | AP80: 0 | AQ80: 0 | AR80: 0 | AS80: 0 | AT80: 0 | AV80: 0 | AW80: 0 | AX80: 0 | AY80: 0 | AZ80: 0 | BA80: 0 | BB80: 0 | BC80: 0.15476732 | BD80: 0.60019523 | BE80: 0 | BG80: 0 | BH80: 0 | BI80: 0 | BJ80: 0 | BK80: 0 | BL80: 0 | BM80: 0 | BN80: 0 | BO80: 0.005392589643 | BP80: 0.01078517929 | BR80: =+IF($K80="Ongoing",AV80,IF(RIGHT($K80,2)=RIGHT(BR$39,2),SUM($AV80:AV80),0)+IF(RIGHT(BR$39,2)>RIGHT($K80,2),AV80,0)) -> 0 | BS80: =+IF($K80="Ongoing",AW80,IF(RIGHT($K80,2)=RIGHT(BS$39,2),SUM($AV80:AW80),0)+IF(RIGHT(BS$39,2)>RIGHT($K80,2),AW80,0)) -> 0 | BT80: =+IF($K80="Ongoing",AX80,IF(RIGHT($K80,2)=RIGHT(BT$39,2),SUM($AV80:AX80),0)+IF(RIGHT(BT$39,2)>RIGHT($K80,2),AX80,0)) -> 0 | BU80: =+IF($K80="Ongoing",AY80,IF(RIGHT($K80,2)=RIGHT(BU$39,2),SUM($AV80:AY80),0)+IF(RIGHT(BU$39,2)>RIGHT($K80,2),AY80,0)) -> 0 | BV80: =+IF($K80="Ongoing",AZ80,IF(RIGHT($K80,2)=RIGHT(BV$39,2),SUM($AV80:AZ80),0)+IF(RIGHT(BV$39,2)>RIGHT($K80,2),AZ80,0)) -> 0 | BW80: =+IF($K80="Ongoing",BA80,IF(RIGHT($K80,2)=RIGHT(BW$39,2),SUM($AV80:BA80),0)+IF(RIGHT(BW$39,2)>RIGHT($K80,2),BA80,0)) -> 0 | BX80: =+IF($K80="Ongoing",BB80,IF(RIGHT($K80,2)=RIGHT(BX$39,2),SUM($AV80:BB80),0)+IF(RIGHT(BX$39,2)>RIGHT($K80,2),BB80,0)) -> 0 | BY80: =+IF($K80="Ongoing",BC80,IF(RIGHT($K80,2)=RIGHT(BY$39,2),SUM($AV80:BC80),0)+IF(RIGHT(BY$39,2)>RIGHT($K80,2),BC80,0)) -> 0 | BZ80: =+IF($K80="Ongoing",BD80,IF(RIGHT($K80,2)=RIGHT(BZ$39,2),SUM($AV80:BD80),0)+IF(RIGHT(BZ$39,2)>RIGHT($K80,2),BD80,0)) -> 0.75496255 | CA80: =+IF($K80="Ongoing",BE80,IF(RIGHT($K80,2)=RIGHT(CA$39,2),SUM($AV80:BE80),0)+IF(RIGHT(CA$39,2)>RIGHT($K80,2),BE80,0)) -> 0 | CC80: =+O80*KeyAssumptionsPriceControl_FO!X$15 -> 0 | CD80: =+P80*KeyAssumptionsPriceControl_FO!Y$15 -> 0 | CE80: =+Q80*KeyAssumptionsPriceControl_FO!Z$15 -> 0 | CF80: =+R80*KeyAssumptionsPriceControl_FO!AA$15 -> 0 | CG80: =+S80*KeyAssumptionsPriceControl_FO!AB$15 -> 0 | CH80: =+T80*KeyAssumptionsPriceControl_FO!AC$15 -> 0 | CI80: =+U80*KeyAssumptionsPriceControl_FO!AD$15 -> 0 | CJ80: =+V80*KeyAssumptionsPriceControl_FO!AE$15 -> 0.1856454596 | CK80: =+W80*KeyAssumptionsPriceControl_FO!AF$15 -> 0.736500834 | CL80: =+X80*KeyAssumptionsPriceControl_FO!AG$15 -> 0 | CN80: 0 | CO80: 0 | CP80: 0 | CQ80: 0 | CR80: 0 | CS80: 0 | CT80: 0 | CU80: 0.001856454596 | CV80: 0.01107791753 | CW80: 0.01844292587
C81: Armstrong Creek LLZ PRV3 (Boundary Horse | E81: Water | F81: Growth | G81: Pipelines/network | H81: Other Capital expenditure | J81: Straight line | K81: 2019-20 | L81: 70 | M81: 50 | O81: 0.1292993 | P81: 0.65433055 | Q81: 0 | R81: 0 | S81: 0 | T81: 0 | U81: 0 | V81: 0 | W81: 0 | X81: 0 | Z81: 0 | AA81: 0 | AB81: 0 | AC81: 0 | AD81: 0 | AE81: 0 | AF81: 0 | AG81: 0 | AH81: 0 | AI81: 0 | AK81: 0.09002681863 | AL81: 0.3385380644 | AM81: 0 | AN81: 0 | AO81: 0 | AP81: 0 | AQ81: 0 | AR81: 0 | AS81: 0 | AT81: 0 | AV81: 0.03927248137 | AW81: 0.3157924856 | AX81: 0 | AY81: 0 | AZ81: 0 | BA81: 0 | BB81: 0 | BC81: 0 | BD81: 0 | BE81: 0 | BG81: 0 | BH81: 0.002536178335 | BI81: 0.00507235667 | BJ81: 0.00507235667 | BK81: 0.00507235667 | BL81: 0.00507235667 | BM81: 0.00507235667 | BN81: 0.00507235667 | BO81: 0.00507235667 | BP81: 0.00507235667 | BR81: =+IF($K81="Ongoing",AV81,IF(RIGHT($K81,2)=RIGHT(BR$39,2),SUM($AV81:AV81),0)+IF(RIGHT(BR$39,2)>RIGHT($K81,2),AV81,0)) -> 0 | BS81: =+IF($K81="Ongoing",AW81,IF(RIGHT($K81,2)=RIGHT(BS$39,2),SUM($AV81:AW81),0)+IF(RIGHT(BS$39,2)>RIGHT($K81,2),AW81,0)) -> 0.3550649669 | BT81: =+IF($K81="Ongoing",AX81,IF(RIGHT($K81,2)=RIGHT(BT$39,2),SUM($AV81:AX81),0)+IF(RIGHT(BT$39,2)>RIGHT($K81,2),AX81,0)) -> 0 | BU81: =+IF($K81="Ongoing",AY81,IF(RIGHT($K81,2)=RIGHT(BU$39,2),SUM($AV81:AY81),0)+IF(RIGHT(BU$39,2)>RIGHT($K81,2),AY81,0)) -> 0 | BV81: =+IF($K81="Ongoing",AZ81,IF(RIGHT($K81,2)=RIGHT(BV$39,2),SUM($AV81:AZ81),0)+IF(RIGHT(BV$39,2)>RIGHT($K81,2),AZ81,0)) -> 0 | BW81: =+IF($K81="Ongoing",BA81,IF(RIGHT($K81,2)=RIGHT(BW$39,2),SUM($AV81:BA81),0)+IF(RIGHT(BW$39,2)>RIGHT($K81,2),BA81,0)) -> 0 | BX81: =+IF($K81="Ongoing",BB81,IF(RIGHT($K81,2)=RIGHT(BX$39,2),SUM($AV81:BB81),0)+IF(RIGHT(BX$39,2)>RIGHT($K81,2),BB81,0)) -> 0 | BY81: =+IF($K81="Ongoing",BC81,IF(RIGHT($K81,2)=RIGHT(BY$39,2),SUM($AV81:BC81),0)+IF(RIGHT(BY$39,2)>RIGHT($K81,2),BC81,0)) -> 0 | BZ81: =+IF($K81="Ongoing",BD81,IF(RIGHT($K81,2)=RIGHT(BZ$39,2),SUM($AV81:BD81),0)+IF(RIGHT(BZ$39,2)>RIGHT($K81,2),BD81,0)) -> 0 | CA81: =+IF($K81="Ongoing",BE81,IF(RIGHT($K81,2)=RIGHT(CA$39,2),SUM($AV81:BE81),0)+IF(RIGHT(CA$39,2)>RIGHT($K81,2),BE81,0)) -> 0 | CC81: =+O81*KeyAssumptionsPriceControl_FO!X$15 -> 0.1322731839 | CD81: =+P81*KeyAssumptionsPriceControl_FO!Y$15 -> 0.6847758962 | CE81: =+Q81*KeyAssumptionsPriceControl_FO!Z$15 -> 0 | CF81: =+R81*KeyAssumptionsPriceControl_FO!AA$15 -> 0 | CG81: =+S81*KeyAssumptionsPriceControl_FO!AB$15 -> 0 | CH81: =+T81*KeyAssumptionsPriceControl_FO!AC$15 -> 0 | CI81: =+U81*KeyAssumptionsPriceControl_FO!AD$15 -> 0 | CJ81: =+V81*KeyAssumptionsPriceControl_FO!AE$15 -> 0 | CK81: =+W81*KeyAssumptionsPriceControl_FO!AF$15 -> 0 | CL81: =+X81*KeyAssumptionsPriceControl_FO!AG$15 -> 0 | CN81: 0.001322731839 | CO81: 0.00949322264 | CP81: 0.0163409816 | CQ81: 0.0163409816 | CR81: 0.0163409816 | CS81: 0.0163409816 | CT81: 0.0163409816 | CU81: 0.0163409816 | CV81: 0.0163409816 | CW81: 0.0163409816
C82: Armstrong Creek LLZ PRV5 (Tannery Rd) | E82: Water | F82: Growth | G82: Pipelines/network | H82: Other Capital expenditure | J82: Straight line | K82: 2025-26 | L82: 70 | M82: 50 | O82: 0 | P82: 0 | Q82: 0 | R82: 0 | S82: 0 | T82: 0 | U82: 0.16758826 | V82: 0.64991463 | W82: 0 | X82: 0 | Z82: 0 | AA82: 0 | AB82: 0 | AC82: 0 | AD82: 0 | AE82: 0 | AF82: 0 | AG82: 0 | AH82: 0 | AI82: 0 | AK82: 0 | AL82: 0 | AM82: 0 | AN82: 0 | AO82: 0 | AP82: 0 | AQ82: 0 | AR82: 0 | AS82: 0 | AT82: 0 | AV82: 0 | AW82: =+P82-AA82-AL82 -> 0 | AX82: 0 | AY82: 0 | AZ82: 0 | BA82: 0 | BB82: 0.16758826 | BC82: 0.64991463 | BD82: 0 | BE82: 0 | BG82: 0 | BH82: 0 | BI82: 0 | BJ82: 0 | BK82: 0 | BL82: 0 | BM82: 0 | BN82: 0.005839306357 | BO82: 0.01167861271 | BP82: 0.01167861271 | BR82: =+IF($K82="Ongoing",AV82,IF(RIGHT($K82,2)=RIGHT(BR$39,2),SUM($AV82:AV82),0)+IF(RIGHT(BR$39,2)>RIGHT($K82,2),AV82,0)) -> 0 | BS82: =+IF($K82="Ongoing",AW82,IF(RIGHT($K82,2)=RIGHT(BS$39,2),SUM($AV82:AW82),0)+IF(RIGHT(BS$39,2)>RIGHT($K82,2),AW82,0)) -> 0 | BT82: =+IF($K82="Ongoing",AX82,IF(RIGHT($K82,2)=RIGHT(BT$39,2),SUM($AV82:AX82),0)+IF(RIGHT(BT$39,2)>RIGHT($K82,2),AX82,0)) -> 0 | BU82: =+IF($K82="Ongoing",AY82,IF(RIGHT($K82,2)=RIGHT(BU$39,2),SUM($AV82:AY82),0)+IF(RIGHT(BU$39,2)>RIGHT($K82,2),AY82,0)) -> 0 | BV82: =+IF($K82="Ongoing",AZ82,IF(RIGHT($K82,2)=RIGHT(BV$39,2),SUM($AV82:AZ82),0)+IF(RIGHT(BV$39,2)>RIGHT($K82,2),AZ82,0)) -> 0 | BW82: =+IF($K82="Ongoing",BA82,IF(RIGHT($K82,2)=RIGHT(BW$39,2),SUM($AV82:BA82),0)+IF(RIGHT(BW$39,2)>RIGHT($K82,2),BA82,0)) -> 0 | BX82: =+IF($K82="Ongoing",BB82,IF(RIGHT($K82,2)=RIGHT(BX$39,2),SUM($AV82:BB82),0)+IF(RIGHT(BX$39,2)>RIGHT($K82,2),BB82,0)) -> 0 | BY82: =+IF($K82="Ongoing",BC82,IF(RIGHT($K82,2)=RIGHT(BY$39,2),SUM($AV82:BC82),0)+IF(RIGHT(BY$39,2)>RIGHT($K82,2),BC82,0)) -> 0.81750289 | BZ82: =+IF($K82="Ongoing",BD82,IF(RIGHT($K82,2)=RIGHT(BZ$39,2),SUM($AV82:BD82),0)+IF(RIGHT(BZ$39,2)>RIGHT($K82,2),BD82,0)) -> 0 | CA82: =+IF($K82="Ongoing",BE82,IF(RIGHT($K82,2)=RIGHT(CA$39,2),SUM($AV82:BE82),0)+IF(RIGHT(CA$39,2)>RIGHT($K82,2),BE82,0)) -> 0 | CC82: =+O82*KeyAssumptionsPriceControl_FO!X$15 -> 0 | CD82: =+P82*KeyAssumptionsPriceControl_FO!Y$15 -> 0 | CE82: =+Q82*KeyAssumptionsPriceControl_FO!Z$15 -> 0 | CF82: =+R82*KeyAssumptionsPriceControl_FO!AA$15 -> 0 | CG82: =+S82*KeyAssumptionsPriceControl_FO!AB$15 -> 0 | CH82: =+T82*KeyAssumptionsPriceControl_FO!AC$15 -> 0 | CI82: =+U82*KeyAssumptionsPriceControl_FO!AD$15 -> 0.1965047387 | CJ82: =+V82*KeyAssumptionsPriceControl_FO!AE$15 -> 0.7795812461 | CK82: =+W82*KeyAssumptionsPriceControl_FO!AF$15 -> 0 | CL82: =+X82*KeyAssumptionsPriceControl_FO!AG$15 -> 0 | CN82: 0 | CO82: 0 | CP82: 0 | CQ82: 0 | CR82: 0 | CS82: 0 | CT82: 0.001965047387 | CU82: 0.01172590724 | CV82: 0.0195217197 | CW82: 0.0195217197
C83: Armstrong Creek MLZ PRV1 (Airport Rd) | E83: Water | F83: Growth | G83: Pipelines/network | H83: Other Capital expenditure | J83: Straight line | K83: 2020-21 | L83: 70 | M83: 50 | O83: 0 | P83: 0.16758797 | Q83: 0.64991432 | R83: 0 | S83: 0 | T83: 0 | U83: 0 | V83: 0 | W83: 0 | X83: 0 | Z83: 0 | AA83: 0 | AB83: 0 | AC83: 0 | AD83: 0 | AE83: 0 | AF83: 0 | AG83: 0 | AH83: 0 | AI83: 0 | AK83: 0 | AL83: 0.08670679825 | AM83: 0.5391177208 | AN83: 0 | AO83: 0 | AP83: 0 | AQ83: 0 | AR83: 0 | AS83: 0 | AT83: 0 | AV83: =+O83-Z83-AK83 -> 0 | AW83: 0.08088117175 | AX83: 0.1107965992 | AY83: 0 | AZ83: 0 | BA83: 0 | BB83: 0 | BC83: 0 | BD83: 0 | BE83: 0 | BG83: 0 | BH83: 0 | BI83: 0.001369126936 | BJ83: 0.002738253871 | BK83: 0.002738253871 | BL83: 0.002738253871 | BM83: 0.002738253871 | BN83: 0.002738253871 | BO83: 0.002738253871 | BP83: 0.002738253871 | BR83: =+IF($K83="Ongoing",AV83,IF(RIGHT($K83,2)=RIGHT(BR$39,2),SUM($AV83:AV83),0)+IF(RIGHT(BR$39,2)>RIGHT($K83,2),AV83,0)) -> 0 | BS83: =+IF($K83="Ongoing",AW83,IF(RIGHT($K83,2)=RIGHT(BS$39,2),SUM($AV83:AW83),0)+IF(RIGHT(BS$39,2)>RIGHT($K83,2),AW83,0)) -> 0 | BT83: =+IF($K83="Ongoing",AX83,IF(RIGHT($K83,2)=RIGHT(BT$39,2),SUM($AV83:AX83),0)+IF(RIGHT(BT$39,2)>RIGHT($K83,2),AX83,0)) -> 0.191677771 | BU83: =+IF($K83="Ongoing",AY83,IF(RIGHT($K83,2)=RIGHT(BU$39,2),SUM($AV83:AY83),0)+IF(RIGHT(BU$39,2)>RIGHT($K83,2),AY83,0)) -> 0 | BV83: =+IF($K83="Ongoing",AZ83,IF(RIGHT($K83,2)=RIGHT(BV$39,2),SUM($AV83:AZ83),0)+IF(RIGHT(BV$39,2)>RIGHT($K83,2),AZ83,0)) -> 0 | BW83: =+IF($K83="Ongoing",BA83,IF(RIGHT($K83,2)=RIGHT(BW$39,2),SUM($AV83:BA83),0)+IF(RIGHT(BW$39,2)>RIGHT($K83,2),BA83,0)) -> 0 | BX83: =+IF($K83="Ongoing",BB83,IF(RIGHT($K83,2)=RIGHT(BX$39,2),SUM($AV83:BB83),0)+IF(RIGHT(BX$39,2)>RIGHT($K83,2),BB83,0)) -> 0 | BY83: =+IF($K83="Ongoing",BC83,IF(RIGHT($K83,2)=RIGHT(BY$39,2),SUM($AV83:BC83),0)+IF(RIGHT(BY$39,2)>RIGHT($K83,2),BC83,0)) -> 0 | BZ83: =+IF($K83="Ongoing",BD83,IF(RIGHT($K83,2)=RIGHT(BZ$39,2),SUM($AV83:BD83),0)+IF(RIGHT(BZ$39,2)>RIGHT($K83,2),BD83,0)) -> 0 | CA83: =+IF($K83="Ongoing",BE83,IF(RIGHT($K83,2)=RIGHT(CA$39,2),SUM($AV83:BE83),0)+IF(RIGHT(CA$39,2)>RIGHT($K83,2),BE83,0)) -> 0 | CC83: =+O83*KeyAssumptionsPriceControl_FO!X$15 -> 0 | CD83: =+P83*KeyAssumptionsPriceControl_FO!Y$15 -> 0.1753856707 | CE83: =+Q83*KeyAssumptionsPriceControl_FO!Z$15 -> 0.6957977296 | CF83: =+R83*KeyAssumptionsPriceControl_FO!AA$15 -> 0 | CG83: =+S83*KeyAssumptionsPriceControl_FO!AB$15 -> 0 | CH83: =+T83*KeyAssumptionsPriceControl_FO!AC$15 -> 0 | CI83: =+U83*KeyAssumptionsPriceControl_FO!AD$15 -> 0 | CJ83: =+V83*KeyAssumptionsPriceControl_FO!AE$15 -> 0 | CK83: =+W83*KeyAssumptionsPriceControl_FO!AF$15 -> 0 | CL83: =+X83*KeyAssumptionsPriceControl_FO!AG$15 -> 0 | CN83: 0 | CO83: 0.001753856707 | CP83: 0.01046569071 | CQ83: 0.01742366801 | CR83: 0.01742366801 | CS83: 0.01742366801 | CT83: 0.01742366801 | CU83: 0.01742366801 | CV83: 0.01742366801 | CW83: 0.01742366801
C84: Armstrong Creek Reserve Road Feeder Mains | E84: Water | F84: Growth | G84: Pipelines/network | H84: Other Capital expenditure | J84: Straight line | K84: beyond 12 years | L84: 70 | M84: 50 | O84: 0.28501098 | P84: 0.28501098 | Q84: 0 | R84: 0 | S84: 0 | T84: 0 | U84: 0 | V84: 0.14250549 | W84: 0.14250549 | X84: 0.14250549 | Z84: 0 | AA84: 0 | AB84: 0 | AC84: 0 | AD84: 0 | AE84: 0 | AF84: 0 | AG84: 0 | AH84: 0 | AI84: 0 | AK84: 0.1984437024 | AL84: 0.1474592093 | AM84: 0 | AN84: 0 | AO84: 0 | AP84: 0 | AQ84: 0 | AR84: 0 | AS84: 0 | AT84: 0 | AV84: 0.08656727764 | AW84: 0.1375517707 | AX84: 0 | AY84: 0 | AZ84: 0 | BA84: 0 | BB84: 0 | BC84: 0.14250549 | BD84: 0.14250549 | BE84: 0.14250549 | BG84: 0 | BH84: 0 | BI84: 0 | BJ84: 0 | BK84: 0 | BL84: 0 | BM84: 0 | BN84: 0 | BO84: =IF($L84=0,0, IF($L84<=0.5,BZ84, IF(AND($J84="straight line",$L84<1.51),(BY84-((BY84/$L84)*0.5))+BZ84/$L84*0.5, IF($J84="straight line", IF((LEFT(BO$39,4)*1)-INT($L84)<LEFT($BG$39,4)*1,0,((OFFSET(BZ84,0,-INT($L84+0.5),1,1))/$L84)*(IF($L84-INT($L84)>0.5,$L84-0.5-INT($L84),IF($L84-INT($L84)<=0.5,$L84-0.5-INT($L84)+1,0)))) +BZ84/$L84*0.5 +SUM(OFFSET(BZ84,0,MAX(-INT($L84+(0.5-(10^-12))),-BO$40)+1,1,MIN(INT($L84+(0.5-(10^-12))),BO$40)-1))*1/$L84, IF($J84="Declining Balance",-$BG$38,0))))) -> 0 | BP84: 0 | BR84: =+IF($K84="Ongoing",AV84,IF(RIGHT($K84,2)=RIGHT(BR$39,2),SUM($AV84:AV84),0)+IF(RIGHT(BR$39,2)>RIGHT($K84,2),AV84,0)) -> 0 | BS84: =+IF($K84="Ongoing",AW84,IF(RIGHT($K84,2)=RIGHT(BS$39,2),SUM($AV84:AW84),0)+IF(RIGHT(BS$39,2)>RIGHT($K84,2),AW84,0)) -> 0 | BT84: =+IF($K84="Ongoing",AX84,IF(RIGHT($K84,2)=RIGHT(BT$39,2),SUM($AV84:AX84),0)+IF(RIGHT(BT$39,2)>RIGHT($K84,2),AX84,0)) -> 0 | BU84: =+IF($K84="Ongoing",AY84,IF(RIGHT($K84,2)=RIGHT(BU$39,2),SUM($AV84:AY84),0)+IF(RIGHT(BU$39,2)>RIGHT($K84,2),AY84,0)) -> 0 | BV84: =+IF($K84="Ongoing",AZ84,IF(RIGHT($K84,2)=RIGHT(BV$39,2),SUM($AV84:AZ84),0)+IF(RIGHT(BV$39,2)>RIGHT($K84,2),AZ84,0)) -> 0 | BW84: =+IF($K84="Ongoing",BA84,IF(RIGHT($K84,2)=RIGHT(BW$39,2),SUM($AV84:BA84),0)+IF(RIGHT(BW$39,2)>RIGHT($K84,2),BA84,0)) -> 0 | BX84: =+IF($K84="Ongoing",BB84,IF(RIGHT($K84,2)=RIGHT(BX$39,2),SUM($AV84:BB84),0)+IF(RIGHT(BX$39,2)>RIGHT($K84,2),BB84,0)) -> 0 | BY84: =+IF($K84="Ongoing",BC84,IF(RIGHT($K84,2)=RIGHT(BY$39,2),SUM($AV84:BC84),0)+IF(RIGHT(BY$39,2)>RIGHT($K84,2),BC84,0)) -> 0 | BZ84: =+IF($K84="Ongoing",BD84,IF(RIGHT($K84,2)=RIGHT(BZ$39,2),SUM($AV84:BD84),0)+IF(RIGHT(BZ$39,2)>RIGHT($K84,2),BD84,0)) -> 0 | CA84: =+IF($K84="Ongoing",BE84,IF(RIGHT($K84,2)=RIGHT(CA$39,2),SUM($AV84:BE84),0)+IF(RIGHT(CA$39,2)>RIGHT($K84,2),BE84,0)) -> 0 | CC84: =+O84*KeyAssumptionsPriceControl_FO!X$15 -> 0.2915662325 | CD84: =+P84*KeyAssumptionsPriceControl_FO!Y$15 -> 0.2982722559 | CE84: =+Q84*KeyAssumptionsPriceControl_FO!Z$15 -> 0 | CF84: =+R84*KeyAssumptionsPriceControl_FO!AA$15 -> 0 | CG84: =+S84*KeyAssumptionsPriceControl_FO!AB$15 -> 0 | CH84: =+T84*KeyAssumptionsPriceControl_FO!AC$15 -> 0 | CI84: =+U84*KeyAssumptionsPriceControl_FO!AD$15 -> 0 | CJ84: =+V84*KeyAssumptionsPriceControl_FO!AE$15 -> 0.1709372314 | CK84: =+W84*KeyAssumptionsPriceControl_FO!AF$15 -> 0.1748687877 | CL84: =+X84*KeyAssumptionsPriceControl_FO!AG$15 -> 0.1788907698 | CN84: 0.002915662325 | CO84: 0.00881404721 | CP84: 0.01179676977 | CQ84: 0.01179676977 | CR84: 0.01179676977 | CS84: 0.01179676977 | CT84: 0.01179676977 | CU84: 0.01350614208 | CV84: =IF($M84=0,0, IF($M84<=0.5,CK84, IF(AND($J84="straight line",$M84<1.51),(CJ84-((CJ84/$M84)*0.5))+CK84/$M84*0.5, IF($J84="straight line", IF((LEFT(CV$39,4)*1)-INT($M84)<LEFT($CN$39,4)*1,0,((OFFSET(CK84,0,-INT($M84+0.5),1,1))/$M84)*(IF($M84-INT($M84)>0.5,$M84-0.5-INT($M84),IF($M84-INT($M84)<=0.5,$M84-0.5-INT($M84)+1,0)))) +CK84/$M84*0.5 +SUM(OFFSET(CK84,0,MAX(-INT($M84+(0.5-(10^-12))),-CV$40)+1,1,MIN(INT($M84+(0.5-(10^-12))),CV$40)-1))*1/$M84, IF($J84="Declining Balance",-$CN$38,0))))) -> 0.01696420227 | CW84: 0.02050179785
C85: Armstrong Creek Western Precinct Water Mains | E85: Water | F85: Growth | G85: Pipelines/network | H85: Other Capital expenditure | J85: Straight line | K85: 2020-21 | L85: 70 | M85: 50 | O85: 0 | P85: 0 | Q85: 0.38803673 | R85: 0 | S85: 0 | T85: 0 | U85: 0 | V85: 0 | W85: 0 | X85: 0 | Z85: 0 | AA85: 0 | AB85: 0 | AC85: 0 | AD85: 0 | AE85: 0 | AF85: 0 | AG85: 0 | AH85: 0 | AI85: 0 | AK85: 0 | AL85: 0 | AM85: 0.3218847024 | AN85: 0 | AO85: 0 | AP85: 0 | AQ85: 0 | AR85: 0 | AS85: 0 | AT85: 0 | AV85: 0 | AW85: 0 | AX85: 0.06615202764 | AY85: 0 | AZ85: 0 | BA85: 0 | BB85: 0 | BC85: 0 | BD85: 0 | BE85: 0 | BG85: 0 | BH85: =IF($L85=0,0, IF($L85<=0.5,BS85, IF(AND($J85="straight line",$L85<1.51),(BR85-((BR85/$L85)*0.5))+BS85/$L85*0.5, IF($J85="straight line", IF((LEFT(BH$39,4)*1)-INT($L85)<LEFT($BG$39,4)*1,0,((OFFSET(BS85,0,-INT($L85+0.5),1,1))/$L85)*(IF($L85-INT($L85)>0.5,$L85-0.5-INT($L85),IF($L85-INT($L85)<=0.5,$L85-0.5-INT($L85)+1,0)))) +BS85/$L85*0.5 +SUM(OFFSET(BS85,0,MAX(-INT($L85+(0.5-(10^-12))),-BH$40)+1,1,MIN(INT($L85+(0.5-(10^-12))),BH$40)-1))*1/$L85, IF($J85="Declining Balance",-$BG$38,0))))) -> 0 | BI85: 0.0004725144831 | BJ85: 0.0009450289662 | BK85: 0.0009450289662 | BL85: 0.0009450289662 | BM85: 0.0009450289662 | BN85: 0.0009450289662 | BO85: 0.0009450289662 | BP85: 0.0009450289662 | BR85: =+IF($K85="Ongoing",AV85,IF(RIGHT($K85,2)=RIGHT(BR$39,2),SUM($AV85:AV85),0)+IF(RIGHT(BR$39,2)>RIGHT($K85,2),AV85,0)) -> 0 | BS85: =+IF($K85="Ongoing",AW85,IF(RIGHT($K85,2)=RIGHT(BS$39,2),SUM($AV85:AW85),0)+IF(RIGHT(BS$39,2)>RIGHT($K85,2),AW85,0)) -> 0 | BT85: =+IF($K85="Ongoing",AX85,IF(RIGHT($K85,2)=RIGHT(BT$39,2),SUM($AV85:AX85),0)+IF(RIGHT(BT$39,2)>RIGHT($K85,2),AX85,0)) -> 0.06615202764 | BU85: =+IF($K85="Ongoing",AY85,IF(RIGHT($K85,2)=RIGHT(BU$39,2),SUM($AV85:AY85),0)+IF(RIGHT(BU$39,2)>RIGHT($K85,2),AY85,0)) -> 0 | BV85: =+IF($K85="Ongoing",AZ85,IF(RIGHT($K85,2)=RIGHT(BV$39,2),SUM($AV85:AZ85),0)+IF(RIGHT(BV$39,2)>RIGHT($K85,2),AZ85,0)) -> 0 | BW85: =+IF($K85="Ongoing",BA85,IF(RIGHT($K85,2)=RIGHT(BW$39,2),SUM($AV85:BA85),0)+IF(RIGHT(BW$39,2)>RIGHT($K85,2),BA85,0)) -> 0 | BX85: =+IF($K85="Ongoing",BB85,IF(RIGHT($K85,2)=RIGHT(BX$39,2),SUM($AV85:BB85),0)+IF(RIGHT(BX$39,2)>RIGHT($K85,2),BB85,0)) -> 0 | BY85: =+IF($K85="Ongoing",BC85,IF(RIGHT($K85,2)=RIGHT(BY$39,2),SUM($AV85:BC85),0)+IF(RIGHT(BY$39,2)>RIGHT($K85,2),BC85,0)) -> 0 | BZ85: =+IF($K85="Ongoing",BD85,IF(RIGHT($K85,2)=RIGHT(BZ$39,2),SUM($AV85:BD85),0)+IF(RIGHT(BZ$39,2)>RIGHT($K85,2),BD85,0)) -> 0 | CA85: =+IF($K85="Ongoing",BE85,IF(RIGHT($K85,2)=RIGHT(CA$39,2),SUM($AV85:BE85),0)+IF(RIGHT(CA$39,2)>RIGHT($K85,2),BE85,0)) -> 0 | CC85: =+O85*KeyAssumptionsPriceControl_FO!X$15 -> 0 | CD85: =+P85*KeyAssumptionsPriceControl_FO!Y$15 -> 0 | CE85: =+Q85*KeyAssumptionsPriceControl_FO!Z$15 -> 0.4154317999 | CF85: =+R85*KeyAssumptionsPriceControl_FO!AA$15 -> 0 | CG85: =+S85*KeyAssumptionsPriceControl_FO!AB$15 -> 0 | CH85: =+T85*KeyAssumptionsPriceControl_FO!AC$15 -> 0 | CI85: =+U85*KeyAssumptionsPriceControl_FO!AD$15 -> 0 | CJ85: =+V85*KeyAssumptionsPriceControl_FO!AE$15 -> 0 | CK85: =+W85*KeyAssumptionsPriceControl_FO!AF$15 -> 0 | CL85: =+X85*KeyAssumptionsPriceControl_FO!AG$15 -> 0 | CN85: 0 | CO85: =IF($M85=0,0, IF($M85<=0.5,CD85, IF(AND($J85="straight line",$M85<1.51),(CC85-((CC85/$M85)*0.5))+CD85/$M85*0.5, IF($J85="straight line", IF((LEFT(CO$39,4)*1)-INT($M85)<LEFT($CN$39,4)*1,0,((OFFSET(CD85,0,-INT($M85+0.5),1,1))/$M85)*(IF($M85-INT($M85)>0.5,$M85-0.5-INT($M85),IF($M85-INT($M85)<=0.5,$M85-0.5-INT($M85)+1,0)))) +CD85/$M85*0.5 +SUM(OFFSET(CD85,0,MAX(-INT($M85+(0.5-(10^-12))),-CO$40)+1,1,MIN(INT($M85+(0.5-(10^-12))),CO$40)-1))*1/$M85, IF($J85="Declining Balance",-$CN$38,0))))) -> 0 | CP85: 0.004154317999 | CQ85: 0.008308635998 | CR85: 0.008308635998 | CS85: 0.008308635998 | CT85: 0.008308635998 | CU85: 0.008308635998 | CV85: 0.008308635998 | CW85: 0.008308635998
C86: Armstrong Creek Whites Rd Feeder Main | E86: Water | F86: Growth | G86: Pipelines/network | H86: Other Capital expenditure | J86: Straight line | K86: 2018-19 | L86: 70 | M86: 50 | O86: 0.14518583 | P86: 0 | Q86: 0 | R86: 0 | S86: 0 | T86: 0 | U86: 0 | V86: 0 | W86: 0 | X86: 0 | Z86: 0 | AA86: 0 | AB86: 0 | AC86: 0 | AD86: 0 | AE86: 0 | AF86: 0 | AG86: 0 | AH86: 0 | AI86: 0 | AK86: 0.1010880831 | AL86: 0 | AM86: 0 | AN86: 0 | AO86: 0 | AP86: 0 | AQ86: 0 | AR86: 0 | AS86: 0 | AT86: 0 | AV86: 0.04409774688 | AW86: 0 | AX86: 0 | AY86: 0 | AZ86: 0 | BA86: 0 | BB86: 0 | BC86: 0 | BD86: 0 | BE86: 0 | BG86: 0.0003149839063 | BH86: 0.0006299678126 | BI86: 0.0006299678126 | BJ86: 0.0006299678126 | BK86: 0.0006299678126 | BL86: 0.0006299678126 | BM86: 0.0006299678126 | BN86: 0.0006299678126 | BO86: 0.0006299678126 | BP86: 0.0006299678126 | BR86: =+IF($K86="Ongoing",AV86,IF(RIGHT($K86,2)=RIGHT(BR$39,2),SUM($AV86:AV86),0)+IF(RIGHT(BR$39,2)>RIGHT($K86,2),AV86,0)) -> 0.04409774688 | BS86: =+IF($K86="Ongoing",AW86,IF(RIGHT($K86,2)=RIGHT(BS$39,2),SUM($AV86:AW86),0)+IF(RIGHT(BS$39,2)>RIGHT($K86,2),AW86,0)) -> 0 | BT86: =+IF($K86="Ongoing",AX86,IF(RIGHT($K86,2)=RIGHT(BT$39,2),SUM($AV86:AX86),0)+IF(RIGHT(BT$39,2)>RIGHT($K86,2),AX86,0)) -> 0 | BU86: =+IF($K86="Ongoing",AY86,IF(RIGHT($K86,2)=RIGHT(BU$39,2),SUM($AV86:AY86),0)+IF(RIGHT(BU$39,2)>RIGHT($K86,2),AY86,0)) -> 0 | BV86: =+IF($K86="Ongoing",AZ86,IF(RIGHT($K86,2)=RIGHT(BV$39,2),SUM($AV86:AZ86),0)+IF(RIGHT(BV$39,2)>RIGHT($K86,2),AZ86,0)) -> 0 | BW86: =+IF($K86="Ongoing",BA86,IF(RIGHT($K86,2)=RIGHT(BW$39,2),SUM($AV86:BA86),0)+IF(RIGHT(BW$39,2)>RIGHT($K86,2),BA86,0)) -> 0 | BX86: =+IF($K86="Ongoing",BB86,IF(RIGHT($K86,2)=RIGHT(BX$39,2),SUM($AV86:BB86),0)+IF(RIGHT(BX$39,2)>RIGHT($K86,2),BB86,0)) -> 0 | BY86: =+IF($K86="Ongoing",BC86,IF(RIGHT($K86,2)=RIGHT(BY$39,2),SUM($AV86:BC86),0)+IF(RIGHT(BY$39,2)>RIGHT($K86,2),BC86,0)) -> 0 | BZ86: =+IF($K86="Ongoing",BD86,IF(RIGHT($K86,2)=RIGHT(BZ$39,2),SUM($AV86:BD86),0)+IF(RIGHT(BZ$39,2)>RIGHT($K86,2),BD86,0)) -> 0 | CA86: =+IF($K86="Ongoing",BE86,IF(RIGHT($K86,2)=RIGHT(CA$39,2),SUM($AV86:BE86),0)+IF(RIGHT(CA$39,2)>RIGHT($K86,2),BE86,0)) -> 0 | CC86: =+O86*KeyAssumptionsPriceControl_FO!X$15 -> 0.1485251041 | CD86: =+P86*KeyAssumptionsPriceControl_FO!Y$15 -> 0 | CE86: =+Q86*KeyAssumptionsPriceControl_FO!Z$15 -> 0 | CF86: =+R86*KeyAssumptionsPriceControl_FO!AA$15 -> 0 | CG86: =+S86*KeyAssumptionsPriceControl_FO!AB$15 -> 0 | CH86: =+T86*KeyAssumptionsPriceControl_FO!AC$15 -> 0 | CI86: =+U86*KeyAssumptionsPriceControl_FO!AD$15 -> 0 | CJ86: =+V86*KeyAssumptionsPriceControl_FO!AE$15 -> 0 | CK86: =+W86*KeyAssumptionsPriceControl_FO!AF$15 -> 0 | CL86: =+X86*KeyAssumptionsPriceControl_FO!AG$15 -> 0 | CN86: 0.001485251041 | CO86: 0.002970502082 | CP86: 0.002970502082 | CQ86: 0.002970502082 | CR86: 0.002970502082 | CS86: 0.002970502082 | CT86: 0.002970502082 | CU86: 0.002970502082 | CV86: 0.002970502082 | CW86: 0.002970502082
C87: Ballarat Road Water Supply Improvements | E87: Water | F87: Improvements / Compliance | G87: Pipelines/network | H87: Other Capital expenditure | J87: Straight line | K87: 2020-21 | L87: 70 | M87: 50 | O87: 0 | P87: 0 | Q87: 0.12638055 | R87: 0 | S87: 0 | T87: 0 | U87: 0 | V87: 0 | W87: 0 | X87: 0 | Z87: 0 | AA87: 0 | AB87: 0 | AC87: 0 | AD87: 0 | AE87: 0 | AF87: 0 | AG87: 0 | AH87: 0 | AI87: 0 | AK87: 0 | AL87: 0 | AM87: 0 | AN87: 0 | AO87: 0 | AP87: 0 | AQ87: 0 | AR87: 0 | AS87: 0 | AT87: 0 | AV87: 0 | AW87: 0 | AX87: 0.12638055 | AY87: 0 | AZ87: 0 | BA87: 0 | BB87: 0 | BC87: 0 | BD87: 0 | BE87: 0 | BG87: 0 | BH87: 0 | BI87: 0.0009027182143 | BJ87: 0.001805436429 | BK87: 0.001805436429 | BL87: 0.001805436429 | BM87: 0.001805436429 | BN87: 0.001805436429 | BO87: 0.001805436429 | BP87: 0.001805436429 | BR87: =+IF($K87="Ongoing",AV87,IF(RIGHT($K87,2)=RIGHT(BR$39,2),SUM($AV87:AV87),0)+IF(RIGHT(BR$39,2)>RIGHT($K87,2),AV87,0)) -> 0 | BS87: =+IF($K87="Ongoing",AW87,IF(RIGHT($K87,2)=RIGHT(BS$39,2),SUM($AV87:AW87),0)+IF(RIGHT(BS$39,2)>RIGHT($K87,2),AW87,0)) -> 0 | BT87: =+IF($K87="Ongoing",AX87,IF(RIGHT($K87,2)=RIGHT(BT$39,2),SUM($AV87:AX87),0)+IF(RIGHT(BT$39,2)>RIGHT($K87,2),AX87,0)) -> 0.12638055 | BU87: =+IF($K87="Ongoing",AY87,IF(RIGHT($K87,2)=RIGHT(BU$39,2),SUM($AV87:AY87),0)+IF(RIGHT(BU$39,2)>RIGHT($K87,2),AY87,0)) -> 0 | BV87: =+IF($K87="Ongoing",AZ87,IF(RIGHT($K87,2)=RIGHT(BV$39,2),SUM($AV87:AZ87),0)+IF(RIGHT(BV$39,2)>RIGHT($K87,2),AZ87,0)) -> 0 | BW87: =+IF($K87="Ongoing",BA87,IF(RIGHT($K87,2)=RIGHT(BW$39,2),SUM($AV87:BA87),0)+IF(RIGHT(BW$39,2)>RIGHT($K87,2),BA87,0)) -> 0 | BX87: =+IF($K87="Ongoing",BB87,IF(RIGHT($K87,2)=RIGHT(BX$39,2),SUM($AV87:BB87),0)+IF(RIGHT(BX$39,2)>RIGHT($K87,2),BB87,0)) -> 0 | BY87: =+IF($K87="Ongoing",BC87,IF(RIGHT($K87,2)=RIGHT(BY$39,2),SUM($AV87:BC87),0)+IF(RIGHT(BY$39,2)>RIGHT($K87,2),BC87,0)) -> 0 | BZ87: =+IF($K87="Ongoing",BD87,IF(RIGHT($K87,2)=RIGHT(BZ$39,2),SUM($AV87:BD87),0)+IF(RIGHT(BZ$39,2)>RIGHT($K87,2),BD87,0)) -> 0 | CA87: =+IF($K87="Ongoing",BE87,IF(RIGHT($K87,2)=RIGHT(CA$39,2),SUM($AV87:BE87),0)+IF(RIGHT(CA$39,2)>RIGHT($K87,2),BE87,0)) -> 0 | CC87: =+O87*KeyAssumptionsPriceControl_FO!X$15 -> 0 | CD87: =+P87*KeyAssumptionsPriceControl_FO!Y$15 -> 0 | CE87: =+Q87*KeyAssumptionsPriceControl_FO!Z$15 -> 0.1353029116 | CF87: =+R87*KeyAssumptionsPriceControl_FO!AA$15 -> 0 | CG87: =+S87*KeyAssumptionsPriceControl_FO!AB$15 -> 0 | CH87: =+T87*KeyAssumptionsPriceControl_FO!AC$15 -> 0 | CI87: =+U87*KeyAssumptionsPriceControl_FO!AD$15 -> 0 | CJ87: =+V87*KeyAssumptionsPriceControl_FO!AE$15 -> 0 | CK87: =+W87*KeyAssumptionsPriceControl_FO!AF$15 -> 0 | CL87: =+X87*KeyAssumptionsPriceControl_FO!AG$15 -> 0 | CN87: 0 | CO87: 0 | CP87: 0.001353029116 | CQ87: 0.002706058231 | CR87: 0.002706058231 | CS87: 0.002706058231 | CT87: 0.002706058231 | CU87: 0.002706058231 | CV87: 0.002706058231 | CW87: 0.002706058231
C88: Bannockburn Railway Crossing Stage 2 | E88: Water | F88: Improvements / Compliance | G88: Pipelines/network | H88: Other Capital expenditure | J88: Straight line | K88: 2023-24 | L88: 70 | M88: 50 | O88: 0 | P88: 0 | Q88: 0 | R88: 0 | S88: 0 | T88: 1.03609579 | U88: 0 | V88: 0 | W88: 0 | X88: 0 | Z88: 0 | AA88: 0 | AB88: 0 | AC88: 0 | AD88: 0 | AE88: 0 | AF88: 0 | AG88: 0 | AH88: 0 | AI88: 0 | AK88: 0 | AL88: 0 | AM88: 0 | AN88: 0 | AO88: 0 | AP88: 0 | AQ88: 0 | AR88: 0 | AS88: 0 | AT88: 0 | AV88: 0 | AW88: 0 | AX88: 0 | AY88: 0 | AZ88: 0 | BA88: 1.03609579 | BB88: 0 | BC88: 0 | BD88: 0 | BE88: 0 | BG88: 0 | BH88: 0 | BI88: 0 | BJ88: 0 | BK88: 0 | BL88: 0.007400684214 | BM88: 0.01480136843 | BN88: 0.01480136843 | BO88: 0.01480136843 | BP88: 0.01480136843 | BR88: =+IF($K88="Ongoing",AV88,IF(RIGHT($K88,2)=RIGHT(BR$39,2),SUM($AV88:AV88),0)+IF(RIGHT(BR$39,2)>RIGHT($K88,2),AV88,0)) -> 0 | BS88: =+IF($K88="Ongoing",AW88,IF(RIGHT($K88,2)=RIGHT(BS$39,2),SUM($AV88:AW88),0)+IF(RIGHT(BS$39,2)>RIGHT($K88,2),AW88,0)) -> 0 | BT88: =+IF($K88="Ongoing",AX88,IF(RIGHT($K88,2)=RIGHT(BT$39,2),SUM($AV88:AX88),0)+IF(RIGHT(BT$39,2)>RIGHT($K88,2),AX88,0)) -> 0 | BU88: =+IF($K88="Ongoing",AY88,IF(RIGHT($K88,2)=RIGHT(BU$39,2),SUM($AV88:AY88),0)+IF(RIGHT(BU$39,2)>RIGHT($K88,2),AY88,0)) -> 0 | BV88: =+IF($K88="Ongoing",AZ88,IF(RIGHT($K88,2)=RIGHT(BV$39,2),SUM($AV88:AZ88),0)+IF(RIGHT(BV$39,2)>RIGHT($K88,2),AZ88,0)) -> 0 | BW88: =+IF($K88="Ongoing",BA88,IF(RIGHT($K88,2)=RIGHT(BW$39,2),SUM($AV88:BA88),0)+IF(RIGHT(BW$39,2)>RIGHT($K88,2),BA88,0)) -> 1.03609579 | BX88: =+IF($K88="Ongoing",BB88,IF(RIGHT($K88,2)=RIGHT(BX$39,2),SUM($AV88:BB88),0)+IF(RIGHT(BX$39,2)>RIGHT($K88,2),BB88,0)) -> 0 | BY88: =+IF($K88="Ongoing",BC88,IF(RIGHT($K88,2)=RIGHT(BY$39,2),SUM($AV88:BC88),0)+IF(RIGHT(BY$39,2)>RIGHT($K88,2),BC88,0)) -> 0 | BZ88: =+IF($K88="Ongoing",BD88,IF(RIGHT($K88,2)=RIGHT(BZ$39,2),SUM($AV88:BD88),0)+IF(RIGHT(BZ$39,2)>RIGHT($K88,2),BD88,0)) -> 0 | CA88: =+IF($K88="Ongoing",BE88,IF(RIGHT($K88,2)=RIGHT(CA$39,2),SUM($AV88:BE88),0)+IF(RIGHT(CA$39,2)>RIGHT($K88,2),BE88,0)) -> 0 | CC88: =+O88*KeyAssumptionsPriceControl_FO!X$15 -> 0 | CD88: =+P88*KeyAssumptionsPriceControl_FO!Y$15 -> 0 | CE88: =+Q88*KeyAssumptionsPriceControl_FO!Z$15 -> 0 | CF88: =+R88*KeyAssumptionsPriceControl_FO!AA$15 -> 0 | CG88: =+S88*KeyAssumptionsPriceControl_FO!AB$15 -> 0 | CH88: =+T88*KeyAssumptionsPriceControl_FO!AC$15 -> 1.187554942 | CI88: =+U88*KeyAssumptionsPriceControl_FO!AD$15 -> 0 | CJ88: =+V88*KeyAssumptionsPriceControl_FO!AE$15 -> 0 | CK88: =+W88*KeyAssumptionsPriceControl_FO!AF$15 -> 0 | CL88: =+X88*KeyAssumptionsPriceControl_FO!AG$15 -> 0 | CN88: 0 | CO88: 0 | CP88: 0 | CQ88: 0 | CR88: 0 | CS88: 0.01187554942 | CT88: 0.02375109884 | CU88: 0.02375109884 | CV88: 0.02375109884 | CW88: 0.02375109884
C89: Bannockburn South Feeder Main Stage 1 | E89: Water | F89: Growth | G89: Pipelines/network | H89: Other Capital expenditure | J89: Straight line | K89: 2019-20 | L89: 70 | M89: 50 | O89: 0.10069014 | P89: 0.10069014 | Q89: 0 | R89: 0 | S89: 0 | T89: 0 | U89: 0 | V89: 0 | W89: 0 | X89: 0 | Z89: 0 | AA89: 0 | AB89: 0 | AC89: 0 | AD89: 0 | AE89: 0 | AF89: 0 | AG89: 0 | AH89: 0 | AI89: 0 | AK89: 0.07010720841 | AL89: 0.05209514534 | AM89: 0 | AN89: 0 | AO89: 0 | AP89: 0 | AQ89: 0 | AR89: 0 | AS89: 0 | AT89: 0 | AV89: 0.03058293159 | AW89: 0.04859499466 | AX89: 0 | AY89: 0 | AZ89: 0 | BA89: 0 | BB89: 0 | BC89: 0 | BD89: 0 | BE89: 0 | BG89: 0 | BH89: 0.0005655566161 | BI89: 0.001131113232 | BJ89: 0.001131113232 | BK89: 0.001131113232 | BL89: 0.001131113232 | BM89: 0.001131113232 | BN89: 0.001131113232 | BO89: 0.001131113232 | BP89: 0.001131113232 | BR89: =+IF($K89="Ongoing",AV89,IF(RIGHT($K89,2)=RIGHT(BR$39,2),SUM($AV89:AV89),0)+IF(RIGHT(BR$39,2)>RIGHT($K89,2),AV89,0)) -> 0 | BS89: =+IF($K89="Ongoing",AW89,IF(RIGHT($K89,2)=RIGHT(BS$39,2),SUM($AV89:AW89),0)+IF(RIGHT(BS$39,2)>RIGHT($K89,2),AW89,0)) -> 0.07917792625 | BT89: =+IF($K89="Ongoing",AX89,IF(RIGHT($K89,2)=RIGHT(BT$39,2),SUM($AV89:AX89),0)+IF(RIGHT(BT$39,2)>RIGHT($K89,2),AX89,0)) -> 0 | BU89: =+IF($K89="Ongoing",AY89,IF(RIGHT($K89,2)=RIGHT(BU$39,2),SUM($AV89:AY89),0)+IF(RIGHT(BU$39,2)>RIGHT($K89,2),AY89,0)) -> 0 | BV89: =+IF($K89="Ongoing",AZ89,IF(RIGHT($K89,2)=RIGHT(BV$39,2),SUM($AV89:AZ89),0)+IF(RIGHT(BV$39,2)>RIGHT($K89,2),AZ89,0)) -> 0 | BW89: =+IF($K89="Ongoing",BA89,IF(RIGHT($K89,2)=RIGHT(BW$39,2),SUM($AV89:BA89),0)+IF(RIGHT(BW$39,2)>RIGHT($K89,2),BA89,0)) -> 0 | BX89: =+IF($K89="Ongoing",BB89,IF(RIGHT($K89,2)=RIGHT(BX$39,2),SUM($AV89:BB89),0)+IF(RIGHT(BX$39,2)>RIGHT($K89,2),BB89,0)) -> 0 | BY89: =+IF($K89="Ongoing",BC89,IF(RIGHT($K89,2)=RIGHT(BY$39,2),SUM($AV89:BC89),0)+IF(RIGHT(BY$39,2)>RIGHT($K89,2),BC89,0)) -> 0 | BZ89: =+IF($K89="Ongoing",BD89,IF(RIGHT($K89,2)=RIGHT(BZ$39,2),SUM($AV89:BD89),0)+IF(RIGHT(BZ$39,2)>RIGHT($K89,2),BD89,0)) -> 0 | CA89: =+IF($K89="Ongoing",BE89,IF(RIGHT($K89,2)=RIGHT(CA$39,2),SUM($AV89:BE89),0)+IF(RIGHT(CA$39,2)>RIGHT($K89,2),BE89,0)) -> 0 | CC89: =+O89*KeyAssumptionsPriceControl_FO!X$15 -> 0.1030060132 | CD89: =+P89*KeyAssumptionsPriceControl_FO!Y$15 -> 0.1053751515 | CE89: =+Q89*KeyAssumptionsPriceControl_FO!Z$15 -> 0 | CF89: =+R89*KeyAssumptionsPriceControl_FO!AA$15 -> 0 | CG89: =+S89*KeyAssumptionsPriceControl_FO!AB$15 -> 0 | CH89: =+T89*KeyAssumptionsPriceControl_FO!AC$15 -> 0 | CI89: =+U89*KeyAssumptionsPriceControl_FO!AD$15 -> 0 | CJ89: =+V89*KeyAssumptionsPriceControl_FO!AE$15 -> 0 | CK89: =+W89*KeyAssumptionsPriceControl_FO!AF$15 -> 0 | CL89: =+X89*KeyAssumptionsPriceControl_FO!AG$15 -> 0 | CN89: 0.001030060132 | CO89: 0.00311387178 | CP89: 0.004167623295 | CQ89: 0.004167623295 | CR89: 0.004167623295 | CS89: 0.004167623295 | CT89: 0.004167623295 | CU89: 0.004167623295 | CV89: 0.004167623295 | CW89: 0.004167623295
C90: Bannockburn South Feeder Main Stage 2 | E90: Water | F90: Growth | G90: Pipelines/network | H90: Other Capital expenditure | J90: Straight line | K90: 2026-27 | L90: 70 | M90: 50 | O90: 0 | P90: 0 | Q90: 0 | R90: 0.13327403 | S90: 0.33318507 | T90: 0 | U90: 0.39982209 | V90: 0.19991104 | W90: 0.26654806 | X90: 0 | Z90: 0 | AA90: 0 | AB90: 0 | AC90: 0 | AD90: 0 | AE90: 0 | AF90: 0 | AG90: 0 | AH90: 0 | AI90: 0 | AK90: 0 | AL90: 0 | AM90: 0 | AN90: 0.09927277695 | AO90: 0.2607247751 | AP90: 0.2607247751 | AQ90: 0.2607247751 | AR90: 0.2607247751 | AS90: 0.2607247751 | AT90: 0.2607247751 | AV90: 0 | AW90: 0 | AX90: 0 | AY90: 0.03400125305 | AZ90: 0.07246029491 | BA90: -0.2607247751 | BB90: 0.1390973149 | BC90: -0.06081373509 | BD90: 0.005823284907 | BE90: -0.2607247751 | BG90: 0 | BH90: 0 | BI90: 0 | BJ90: 0 | BK90: 0 | BL90: 0 | BM90: 0 | BN90: 0 | BO90: -0.0005011168744 | BP90: -0.002864553571 | BR90: =+IF($K90="Ongoing",AV90,IF(RIGHT($K90,2)=RIGHT(BR$39,2),SUM($AV90:AV90),0)+IF(RIGHT(BR$39,2)>RIGHT($K90,2),AV90,0)) -> 0 | BS90: =+IF($K90="Ongoing",AW90,IF(RIGHT($K90,2)=RIGHT(BS$39,2),SUM($AV90:AW90),0)+IF(RIGHT(BS$39,2)>RIGHT($K90,2),AW90,0)) -> 0 | BT90: =+IF($K90="Ongoing",AX90,IF(RIGHT($K90,2)=RIGHT(BT$39,2),SUM($AV90:AX90),0)+IF(RIGHT(BT$39,2)>RIGHT($K90,2),AX90,0)) -> 0 | BU90: =+IF($K90="Ongoing",AY90,IF(RIGHT($K90,2)=RIGHT(BU$39,2),SUM($AV90:AY90),0)+IF(RIGHT(BU$39,2)>RIGHT($K90,2),AY90,0)) -> 0 | BV90: =+IF($K90="Ongoing",AZ90,IF(RIGHT($K90,2)=RIGHT(BV$39,2),SUM($AV90:AZ90),0)+IF(RIGHT(BV$39,2)>RIGHT($K90,2),AZ90,0)) -> 0 | BW90: =+IF($K90="Ongoing",BA90,IF(RIGHT($K90,2)=RIGHT(BW$39,2),SUM($AV90:BA90),0)+IF(RIGHT(BW$39,2)>RIGHT($K90,2),BA90,0)) -> 0 | BX90: =+IF($K90="Ongoing",BB90,IF(RIGHT($K90,2)=RIGHT(BX$39,2),SUM($AV90:BB90),0)+IF(RIGHT(BX$39,2)>RIGHT($K90,2),BB90,0)) -> 0 | BY90: =+IF($K90="Ongoing",BC90,IF(RIGHT($K90,2)=RIGHT(BY$39,2),SUM($AV90:BC90),0)+IF(RIGHT(BY$39,2)>RIGHT($K90,2),BC90,0)) -> 0 | BZ90: =+IF($K90="Ongoing",BD90,IF(RIGHT($K90,2)=RIGHT(BZ$39,2),SUM($AV90:BD90),0)+IF(RIGHT(BZ$39,2)>RIGHT($K90,2),BD90,0)) -> -0.07015636242 | CA90: =+IF($K90="Ongoing",BE90,IF(RIGHT($K90,2)=RIGHT(CA$39,2),SUM($AV90:BE90),0)+IF(RIGHT(CA$39,2)>RIGHT($K90,2),BE90,0)) -> -0.2607247751 | CC90: =+O90*KeyAssumptionsPriceControl_FO!X$15 -> 0 | CD90: =+P90*KeyAssumptionsPriceControl_FO!Y$15 -> 0 | CE90: =+Q90*KeyAssumptionsPriceControl_FO!Z$15 -> 0 | CF90: =+R90*KeyAssumptionsPriceControl_FO!AA$15 -> 0.145964776 | CG90: =+S90*KeyAssumptionsPriceControl_FO!AB$15 -> 0.373304909 | CH90: =+T90*KeyAssumptionsPriceControl_FO!AC$15 -> 0 | CI90: =+U90*KeyAssumptionsPriceControl_FO!AD$15 -> 0.4688093028 | CJ90: =+V90*KeyAssumptionsPriceControl_FO!AE$15 -> 0.2397959524 | CK90: =+W90*KeyAssumptionsPriceControl_FO!AF$15 -> 0.3270816872 | CL90: =+X90*KeyAssumptionsPriceControl_FO!AG$15 -> 0 | CN90: 0 | CO90: 0 | CP90: 0 | CQ90: 0.00145964776 | CR90: 0.006652344611 | CS90: 0.0103853937 | CT90: 0.01507348673 | CU90: 0.02215953928 | CV90: 0.02782831568 | CW90: 0.03109913255
C91: Bannockburn West Feeder Main Stage 3 | E91: Water | F91: Growth | G91: Pipelines/network | H91: Other Capital expenditure | J91: Straight line | K91: 2023-24 | L91: 70 | M91: 50 | O91: 0.09370146 | P91: 0.09370146 | Q91: 0.09370146 | R91: 0.09370146 | S91: 0.09370146 | T91: 0.06246764 | U91: 0 | V91: 0 | W91: 0 | X91: 0 | Z91: 0 | AA91: 0 | AB91: 0 | AC91: 0 | AD91: 0 | AE91: 0 | AF91: 0 | AG91: 0 | AH91: 0 | AI91: 0 | AK91: 0.06524122207 | AL91: 0.04847933648 | AM91: 0.07772734958 | AN91: 0.06979607459 | AO91: 0.07332348981 | AP91: 0.07332348981 | AQ91: 0.07332348981 | AR91: 0.07332348981 | AS91: 0.07332348981 | AT91: 0.07332348981 | AV91: 0.02846023793 | AW91: 0.04522212352 | AX91: 0.01597411042 | AY91: 0.02390538541 | AZ91: 0.02037797019 | BA91: -0.01085584981 | BB91: -0.07332348981 | BC91: -0.07332348981 | BD91: -0.07332348981 | BE91: -0.07332348981 | BG91: 0 | BH91: 0 | BI91: 0 | BJ91: 0 | BK91: 0 | BL91: 0.000879171269 | BM91: 0.001234603325 | BN91: 0.0001871248992 | BO91: -0.0008603535266 | BP91: -0.001907831952 | BR91: =+IF($K91="Ongoing",AV91,IF(RIGHT($K91,2)=RIGHT(BR$39,2),SUM($AV91:AV91),0)+IF(RIGHT(BR$39,2)>RIGHT($K91,2),AV91,0)) -> 0 | BS91: =+IF($K91="Ongoing",AW91,IF(RIGHT($K91,2)=RIGHT(BS$39,2),SUM($AV91:AW91),0)+IF(RIGHT(BS$39,2)>RIGHT($K91,2),AW91,0)) -> 0 | BT91: =+IF($K91="Ongoing",AX91,IF(RIGHT($K91,2)=RIGHT(BT$39,2),SUM($AV91:AX91),0)+IF(RIGHT(BT$39,2)>RIGHT($K91,2),AX91,0)) -> 0 | BU91: =+IF($K91="Ongoing",AY91,IF(RIGHT($K91,2)=RIGHT(BU$39,2),SUM($AV91:AY91),0)+IF(RIGHT(BU$39,2)>RIGHT($K91,2),AY91,0)) -> 0 | BV91: =+IF($K91="Ongoing",AZ91,IF(RIGHT($K91,2)=RIGHT(BV$39,2),SUM($AV91:AZ91),0)+IF(RIGHT(BV$39,2)>RIGHT($K91,2),AZ91,0)) -> 0 | BW91: =+IF($K91="Ongoing",BA91,IF(RIGHT($K91,2)=RIGHT(BW$39,2),SUM($AV91:BA91),0)+IF(RIGHT(BW$39,2)>RIGHT($K91,2),BA91,0)) -> 0.1230839777 | BX91: =+IF($K91="Ongoing",BB91,IF(RIGHT($K91,2)=RIGHT(BX$39,2),SUM($AV91:BB91),0)+IF(RIGHT(BX$39,2)>RIGHT($K91,2),BB91,0)) -> -0.07332348981 | BY91: =+IF($K91="Ongoing",BC91,IF(RIGHT($K91,2)=RIGHT(BY$39,2),SUM($AV91:BC91),0)+IF(RIGHT(BY$39,2)>RIGHT($K91,2),BC91,0)) -> -0.07332348981 | BZ91: =+IF($K91="Ongoing",BD91,IF(RIGHT($K91,2)=RIGHT(BZ$39,2),SUM($AV91:BD91),0)+IF(RIGHT(BZ$39,2)>RIGHT($K91,2),BD91,0)) -> -0.07332348981 | CA91: =+IF($K91="Ongoing",BE91,IF(RIGHT($K91,2)=RIGHT(CA$39,2),SUM($AV91:BE91),0)+IF(RIGHT(CA$39,2)>RIGHT($K91,2),BE91,0)) -> -0.07332348981 | CC91: =+O91*KeyAssumptionsPriceControl_FO!X$15 -> 0.09585659358 | CD91: =+P91*KeyAssumptionsPriceControl_FO!Y$15 -> 0.09806129523 | CE91: =+Q91*KeyAssumptionsPriceControl_FO!Z$15 -> 0.100316705 | CF91: =+R91*KeyAssumptionsPriceControl_FO!AA$15 -> 0.1026239892 | CG91: =+S91*KeyAssumptionsPriceControl_FO!AB$15 -> 0.104984341 | CH91: =+T91*KeyAssumptionsPriceControl_FO!AC$15 -> 0.07159932056 | CI91: =+U91*KeyAssumptionsPriceControl_FO!AD$15 -> 0 | CJ91: =+V91*KeyAssumptionsPriceControl_FO!AE$15 -> 0 | CK91: =+W91*KeyAssumptionsPriceControl_FO!AF$15 -> 0 | CL91: =+X91*KeyAssumptionsPriceControl_FO!AG$15 -> 0 | CN91: 0.0009585659358 | CO91: 0.002897744824 | CP91: 0.004881524826 | CQ91: 0.006910931769 | CR91: 0.008987015071 | CS91: 0.01075285169 | CT91: 0.01146884489 | CU91: 0.01146884489 | CV91: 0.01146884489 | CW91: 0.01146884489
C92: Bannockburn West Feeder Main Stage 4 | E92: Water | F92: Growth | G92: Pipelines/network | H92: Other Capital expenditure | J92: Straight line | K92: 2024-25 | L92: 70 | M92: 50 | O92: 0 | P92: 0 | Q92: 0.20828739 | R92: 0.31243109 | S92: 0.20828739 | T92: 0.14580077 | U92: 0.14580077 | V92: 0 | W92: 0 | X92: 0 | Z92: 0 | AA92: 0 | AB92: 0 | AC92: 0 | AD92: 0 | AE92: 0 | AF92: 0 | AG92: 0 | AH92: 0 | AI92: 0 | AK92: 0 | AL92: 0 | AM92: 0.1727788102 | AN92: 0.2327227736 | AO92: 0.1629895449 | AP92: 0.1629895449 | AQ92: 0.1629895449 | AR92: 0.1629895449 | AS92: 0.1629895449 | AT92: 0.1629895449 | AV92: 0 | AW92: 0 | AX92: 0.03550857977 | AY92: 0.0797083164 | AZ92: 0.04529784514 | BA92: -0.01718877486 | BB92: -0.01718877486 | BC92: -0.1629895449 | BD92: -0.1629895449 | BE92: -0.1629895449 | BG92: 0 | BH92: 0 | BI92: 0 | BJ92: 0 | BK92: 0 | BL92: 0 | BM92: 0.0009009799399 | BN92: 0.0006377488452 | BO92: -0.001690673224 | BP92: -0.004019095294 | BR92: =+IF($K92="Ongoing",AV92,IF(RIGHT($K92,2)=RIGHT(BR$39,2),SUM($AV92:AV92),0)+IF(RIGHT(BR$39,2)>RIGHT($K92,2),AV92,0)) -> 0 | BS92: =+IF($K92="Ongoing",AW92,IF(RIGHT($K92,2)=RIGHT(BS$39,2),SUM($AV92:AW92),0)+IF(RIGHT(BS$39,2)>RIGHT($K92,2),AW92,0)) -> 0 | BT92: =+IF($K92="Ongoing",AX92,IF(RIGHT($K92,2)=RIGHT(BT$39,2),SUM($AV92:AX92),0)+IF(RIGHT(BT$39,2)>RIGHT($K92,2),AX92,0)) -> 0 | BU92: =+IF($K92="Ongoing",AY92,IF(RIGHT($K92,2)=RIGHT(BU$39,2),SUM($AV92:AY92),0)+IF(RIGHT(BU$39,2)>RIGHT($K92,2),AY92,0)) -> 0 | BV92: =+IF($K92="Ongoing",AZ92,IF(RIGHT($K92,2)=RIGHT(BV$39,2),SUM($AV92:AZ92),0)+IF(RIGHT(BV$39,2)>RIGHT($K92,2),AZ92,0)) -> 0 | BW92: =+IF($K92="Ongoing",BA92,IF(RIGHT($K92,2)=RIGHT(BW$39,2),SUM($AV92:BA92),0)+IF(RIGHT(BW$39,2)>RIGHT($K92,2),BA92,0)) -> 0 | BX92: =+IF($K92="Ongoing",BB92,IF(RIGHT($K92,2)=RIGHT(BX$39,2),SUM($AV92:BB92),0)+IF(RIGHT(BX$39,2)>RIGHT($K92,2),BB92,0)) -> 0.1261371916 | BY92: =+IF($K92="Ongoing",BC92,IF(RIGHT($K92,2)=RIGHT(BY$39,2),SUM($AV92:BC92),0)+IF(RIGHT(BY$39,2)>RIGHT($K92,2),BC92,0)) -> -0.1629895449 | BZ92: =+IF($K92="Ongoing",BD92,IF(RIGHT($K92,2)=RIGHT(BZ$39,2),SUM($AV92:BD92),0)+IF(RIGHT(BZ$39,2)>RIGHT($K92,2),BD92,0)) -> -0.1629895449 | CA92: =+IF($K92="Ongoing",BE92,IF(RIGHT($K92,2)=RIGHT(CA$39,2),SUM($AV92:BE92),0)+IF(RIGHT(CA$39,2)>RIGHT($K92,2),BE92,0)) -> -0.1629895449 | CC92: =+O92*KeyAssumptionsPriceControl_FO!X$15 -> 0 | CD92: =+P92*KeyAssumptionsPriceControl_FO!Y$15 -> 0 | CE92: =+Q92*KeyAssumptionsPriceControl_FO!Z$15 -> 0.2229923062 | CF92: =+R92*KeyAssumptionsPriceControl_FO!AA$15 -> 0.3421816994 | CG92: =+S92*KeyAssumptionsPriceControl_FO!AB$15 -> 0.2333679152 | CH92: =+T92*KeyAssumptionsPriceControl_FO!AC$15 -> 0.1671143022 | CI92: =+U92*KeyAssumptionsPriceControl_FO!AD$15 -> 0.1709579311 | CJ92: =+V92*KeyAssumptionsPriceControl_FO!AE$15 -> 0 | CK92: =+W92*KeyAssumptionsPriceControl_FO!AF$15 -> 0 | CL92: =+X92*KeyAssumptionsPriceControl_FO!AG$15 -> 0 | CN92: 0 | CO92: 0 | CP92: 0.002229923062 | CQ92: 0.007881663118 | CR92: 0.01363715926 | CS92: 0.01764198144 | CT92: 0.02102270377 | CU92: 0.02273228308 | CV92: 0.02273228308 | CW92: 0.02273228308
C93: Batesford Feeder Main Stage 1 | E93: Water | F93: Growth | G93: Pipelines/network | H93: Other Capital expenditure | J93: Straight line | K93: 2022-23 | L93: 70 | M93: 50 | O93: 0 | P93: 0 | Q93: 0 | R93: 0.22870284 | S93: 0.88692076 | T93: 0 | U93: 0 | V93: 0 | W93: 0 | X93: 0 | Z93: 0 | AA93: 0 | AB93: 0 | AC93: 0 | AD93: 0 | AE93: 0 | AF93: 0 | AG93: 0 | AH93: 0 | AI93: 0 | AK93: 0 | AL93: 0 | AM93: 0 | AN93: 0.1703555151 | AO93: 0.694035347 | AP93: 0.694035347 | AQ93: 0.694035347 | AR93: 0.694035347 | AS93: 0.694035347 | AT93: 0.694035347 | AV93: 0 | AW93: 0 | AX93: 0 | AY93: 0.05834732495 | AZ93: 0.192885413 | BA93: -0.694035347 | BB93: -0.694035347 | BC93: -0.694035347 | BD93: -0.694035347 | BE93: -0.694035347 | BG93: 0 | BH93: 0 | BI93: 0 | BJ93: 0 | BK93: 0.001794519557 | BL93: -0.001368356222 | BM93: -0.01128314689 | BN93: -0.02119793757 | BO93: -0.03111272824 | BP93: -0.04102751891 | BR93: =+IF($K93="Ongoing",AV93,IF(RIGHT($K93,2)=RIGHT(BR$39,2),SUM($AV93:AV93),0)+IF(RIGHT(BR$39,2)>RIGHT($K93,2),AV93,0)) -> 0 | BS93: =+IF($K93="Ongoing",AW93,IF(RIGHT($K93,2)=RIGHT(BS$39,2),SUM($AV93:AW93),0)+IF(RIGHT(BS$39,2)>RIGHT($K93,2),AW93,0)) -> 0 | BT93: =+IF($K93="Ongoing",AX93,IF(RIGHT($K93,2)=RIGHT(BT$39,2),SUM($AV93:AX93),0)+IF(RIGHT(BT$39,2)>RIGHT($K93,2),AX93,0)) -> 0 | BU93: =+IF($K93="Ongoing",AY93,IF(RIGHT($K93,2)=RIGHT(BU$39,2),SUM($AV93:AY93),0)+IF(RIGHT(BU$39,2)>RIGHT($K93,2),AY93,0)) -> 0 | BV93: =+IF($K93="Ongoing",AZ93,IF(RIGHT($K93,2)=RIGHT(BV$39,2),SUM($AV93:AZ93),0)+IF(RIGHT(BV$39,2)>RIGHT($K93,2),AZ93,0)) -> 0.2512327379 | BW93: =+IF($K93="Ongoing",BA93,IF(RIGHT($K93,2)=RIGHT(BW$39,2),SUM($AV93:BA93),0)+IF(RIGHT(BW$39,2)>RIGHT($K93,2),BA93,0)) -> -0.694035347 | BX93: =+IF($K93="Ongoing",BB93,IF(RIGHT($K93,2)=RIGHT(BX$39,2),SUM($AV93:BB93),0)+IF(RIGHT(BX$39,2)>RIGHT($K93,2),BB93,0)) -> -0.694035347 | BY93: =+IF($K93="Ongoing",BC93,IF(RIGHT($K93,2)=RIGHT(BY$39,2),SUM($AV93:BC93),0)+IF(RIGHT(BY$39,2)>RIGHT($K93,2),BC93,0)) -> -0.694035347 | BZ93: =+IF($K93="Ongoing",BD93,IF(RIGHT($K93,2)=RIGHT(BZ$39,2),SUM($AV93:BD93),0)+IF(RIGHT(BZ$39,2)>RIGHT($K93,2),BD93,0)) -> -0.694035347 | CA93: =+IF($K93="Ongoing",BE93,IF(RIGHT($K93,2)=RIGHT(CA$39,2),SUM($AV93:BE93),0)+IF(RIGHT(CA$39,2)>RIGHT($K93,2),BE93,0)) -> -0.694035347 | CC93: =+O93*KeyAssumptionsPriceControl_FO!X$15 -> 0 | CD93: =+P93*KeyAssumptionsPriceControl_FO!Y$15 -> 0 | CE93: =+Q93*KeyAssumptionsPriceControl_FO!Z$15 -> 0 | CF93: =+R93*KeyAssumptionsPriceControl_FO!AA$15 -> 0.2504805986 | CG93: =+S93*KeyAssumptionsPriceControl_FO!AB$15 -> 0.9937176166 | CH93: =+T93*KeyAssumptionsPriceControl_FO!AC$15 -> 0 | CI93: =+U93*KeyAssumptionsPriceControl_FO!AD$15 -> 0 | CJ93: =+V93*KeyAssumptionsPriceControl_FO!AE$15 -> 0 | CK93: =+W93*KeyAssumptionsPriceControl_FO!AF$15 -> 0 | CL93: =+X93*KeyAssumptionsPriceControl_FO!AG$15 -> 0 | CN93: 0 | CO93: 0 | CP93: 0 | CQ93: 0.002504805986 | CR93: 0.01494678814 | CS93: 0.0248839643 | CT93: 0.0248839643 | CU93: 0.0248839643 | CV93: 0.0248839643 | CW93: 0.0248839643
C94: Colac Water Supply Improvements Stage 2 | E94: Water | F94: Improvements / Compliance | G94: Pipelines/network | H94: Other Capital expenditure | J94: Straight line | K94: 2023-24 | L94: 70 | M94: 50 | O94: 0 | P94: 0 | Q94: 0 | R94: 0 | S94: 0 | T94: 0.40617635 | U94: 0 | V94: 0 | W94: 0 | X94: 0 | Z94: 0 | AA94: 0 | AB94: 0 | AC94: 0 | AD94: 0 | AE94: 0 | AF94: 0 | AG94: 0 | AH94: 0 | AI94: 0 | AK94: 0 | AL94: 0 | AM94: 0 | AN94: 0 | AO94: 0 | AP94: 0 | AQ94: 0 | AR94: 0 | AS94: 0 | AT94: 0 | AV94: 0 | AW94: 0 | AX94: 0 | AY94: 0 | AZ94: 0 | BA94: 0.40617635 | BB94: 0 | BC94: 0 | BD94: 0 | BE94: 0 | BG94: 0 | BH94: 0 | BI94: 0 | BJ94: 0 | BK94: 0 | BL94: 0.002901259643 | BM94: 0.005802519286 | BN94: 0.005802519286 | BO94: 0.005802519286 | BP94: 0.005802519286 | BR94: =+IF($K94="Ongoing",AV94,IF(RIGHT($K94,2)=RIGHT(BR$39,2),SUM($AV94:AV94),0)+IF(RIGHT(BR$39,2)>RIGHT($K94,2),AV94,0)) -> 0 | BS94: =+IF($K94="Ongoing",AW94,IF(RIGHT($K94,2)=RIGHT(BS$39,2),SUM($AV94:AW94),0)+IF(RIGHT(BS$39,2)>RIGHT($K94,2),AW94,0)) -> 0 | BT94: =+IF($K94="Ongoing",AX94,IF(RIGHT($K94,2)=RIGHT(BT$39,2),SUM($AV94:AX94),0)+IF(RIGHT(BT$39,2)>RIGHT($K94,2),AX94,0)) -> 0 | BU94: =+IF($K94="Ongoing",AY94,IF(RIGHT($K94,2)=RIGHT(BU$39,2),SUM($AV94:AY94),0)+IF(RIGHT(BU$39,2)>RIGHT($K94,2),AY94,0)) -> 0 | BV94: =+IF($K94="Ongoing",AZ94,IF(RIGHT($K94,2)=RIGHT(BV$39,2),SUM($AV94:AZ94),0)+IF(RIGHT(BV$39,2)>RIGHT($K94,2),AZ94,0)) -> 0 | BW94: =+IF($K94="Ongoing",BA94,IF(RIGHT($K94,2)=RIGHT(BW$39,2),SUM($AV94:BA94),0)+IF(RIGHT(BW$39,2)>RIGHT($K94,2),BA94,0)) -> 0.40617635 | BX94: =+IF($K94="Ongoing",BB94,IF(RIGHT($K94,2)=RIGHT(BX$39,2),SUM($AV94:BB94),0)+IF(RIGHT(BX$39,2)>RIGHT($K94,2),BB94,0)) -> 0 | BY94: =+IF($K94="Ongoing",BC94,IF(RIGHT($K94,2)=RIGHT(BY$39,2),SUM($AV94:BC94),0)+IF(RIGHT(BY$39,2)>RIGHT($K94,2),BC94,0)) -> 0 | BZ94: =+IF($K94="Ongoing",BD94,IF(RIGHT($K94,2)=RIGHT(BZ$39,2),SUM($AV94:BD94),0)+IF(RIGHT(BZ$39,2)>RIGHT($K94,2),BD94,0)) -> 0 | CA94: =+IF($K94="Ongoing",BE94,IF(RIGHT($K94,2)=RIGHT(CA$39,2),SUM($AV94:BE94),0)+IF(RIGHT(CA$39,2)>RIGHT($K94,2),BE94,0)) -> 0 | CC94: =+O94*KeyAssumptionsPriceControl_FO!X$15 -> 0 | CD94: =+P94*KeyAssumptionsPriceControl_FO!Y$15 -> 0 | CE94: =+Q94*KeyAssumptionsPriceControl_FO!Z$15 -> 0 | CF94: =+R94*KeyAssumptionsPriceControl_FO!AA$15 -> 0 | CG94: =+S94*KeyAssumptionsPriceControl_FO!AB$15 -> 0 | CH94: =+T94*KeyAssumptionsPriceControl_FO!AC$15 -> 0.4655522553 | CI94: =+U94*KeyAssumptionsPriceControl_FO!AD$15 -> 0 | CJ94: =+V94*KeyAssumptionsPriceControl_FO!AE$15 -> 0 | CK94: =+W94*KeyAssumptionsPriceControl_FO!AF$15 -> 0 | CL94: =+X94*KeyAssumptionsPriceControl_FO!AG$15 -> 0 | CN94: 0 | CO94: 0 | CP94: 0 | CQ94: 0 | CR94: 0 | CS94: 0.004655522553 | CT94: 0.009311045106 | CU94: 0.009311045106 | CV94: 0.009311045106 | CW94: 0.009311045106
C95: Computer Network Modelling | E95: Water | F95: Improvements / Compliance | G95: Pipelines/network | H95: Capital Programs / Allocation | J95: Straight line | K95: Ongoing | L95: 3.67 | M95: 4 | O95: 0 | P95: 0.04085028 | Q95: 0 | R95: 0.04085028 | S95: 0 | T95: 0.04085028 | U95: 0 | V95: 0.04085028 | W95: 0 | X95: 0.04085028 | Z95: 0 | AA95: 0 | AB95: 0 | AC95: 0 | AD95: 0 | AE95: 0 | AF95: 0 | AG95: 0 | AH95: 0 | AI95: 0 | AK95: 0 | AL95: 0 | AM95: 0 | AN95: 0 | AO95: 0 | AP95: 0 | AQ95: 0 | AR95: 0 | AS95: 0 | AT95: 0 | AV95: 0 | AW95: 0.04085028 | AX95: 0 | AY95: 0.04085028 | AZ95: 0 | BA95: 0.04085028 | BB95: 0 | BC95: 0.04085028 | BD95: 0 | BE95: 0.04085028 | BG95: 0 | BH95: 0.005565433243 | BI95: 0.01113086649 | BJ95: 0.01669629973 | BK95: 0.02226173297 | BL95: 0.01858854703 | BM95: 0.02226173297 | BN95: 0.01858854703 | BO95: 0.02226173297 | BP95: 0.01858854703 | BR95: =+IF($K95="Ongoing",AV95,IF(RIGHT($K95,2)=RIGHT(BR$39,2),SUM($AV95:AV95),0)+IF(RIGHT(BR$39,2)>RIGHT($K95,2),AV95,0)) -> 0 | BS95: =+IF($K95="Ongoing",AW95,IF(RIGHT($K95,2)=RIGHT(BS$39,2),SUM($AV95:AW95),0)+IF(RIGHT(BS$39,2)>RIGHT($K95,2),AW95,0)) -> 0.04085028 | BT95: =+IF($K95="Ongoing",AX95,IF(RIGHT($K95,2)=RIGHT(BT$39,2),SUM($AV95:AX95),0)+IF(RIGHT(BT$39,2)>RIGHT($K95,2),AX95,0)) -> 0 | BU95: =+IF($K95="Ongoing",AY95,IF(RIGHT($K95,2)=RIGHT(BU$39,2),SUM($AV95:AY95),0)+IF(RIGHT(BU$39,2)>RIGHT($K95,2),AY95,0)) -> 0.04085028 | BV95: =+IF($K95="Ongoing",AZ95,IF(RIGHT($K95,2)=RIGHT(BV$39,2),SUM($AV95:AZ95),0)+IF(RIGHT(BV$39,2)>RIGHT($K95,2),AZ95,0)) -> 0 | BW95: =+IF($K95="Ongoing",BA95,IF(RIGHT($K95,2)=RIGHT(BW$39,2),SUM($AV95:BA95),0)+IF(RIGHT(BW$39,2)>RIGHT($K95,2),BA95,0)) -> 0.04085028 | BX95: =+IF($K95="Ongoing",BB95,IF(RIGHT($K95,2)=RIGHT(BX$39,2),SUM($AV95:BB95),0)+IF(RIGHT(BX$39,2)>RIGHT($K95,2),BB95,0)) -> 0 | BY95: =+IF($K95="Ongoing",BC95,IF(RIGHT($K95,2)=RIGHT(BY$39,2),SUM($AV95:BC95),0)+IF(RIGHT(BY$39,2)>RIGHT($K95,2),BC95,0)) -> 0.04085028 | BZ95: =+IF($K95="Ongoing",BD95,IF(RIGHT($K95,2)=RIGHT(BZ$39,2),SUM($AV95:BD95),0)+IF(RIGHT(BZ$39,2)>RIGHT($K95,2),BD95,0)) -> 0 | CA95: =+IF($K95="Ongoing",BE95,IF(RIGHT($K95,2)=RIGHT(CA$39,2),SUM($AV95:BE95),0)+IF(RIGHT(CA$39,2)>RIGHT($K95,2),BE95,0)) -> 0.04085028 | CC95: =+O95*KeyAssumptionsPriceControl_FO!X$15 -> 0 | CD95: =+P95*KeyAssumptionsPriceControl_FO!Y$15 -> 0.04275100268 | CE95: =+Q95*KeyAssumptionsPriceControl_FO!Z$15 -> 0 | CF95: =+R95*KeyAssumptionsPriceControl_FO!AA$15 -> 0.04474016408 | CG95: =+S95*KeyAssumptionsPriceControl_FO!AB$15 -> 0 | CH95: =+T95*KeyAssumptionsPriceControl_FO!AC$15 -> 0.04682187918 | CI95: =+U95*KeyAssumptionsPriceControl_FO!AD$15 -> 0 | CJ95: =+V95*KeyAssumptionsPriceControl_FO!AE$15 -> 0.04900045439 | CK95: =+W95*KeyAssumptionsPriceControl_FO!AF$15 -> 0 | CL95: =+X95*KeyAssumptionsPriceControl_FO!AG$15 -> 0.05128039653 | CN95: 0 | CO95: 0.005343875335 | CP95: 0.01068775067 | CQ95: 0.01628027118 | CR95: 0.02187279169 | CS95: 0.02238165125 | CT95: 0.02289051081 | CU95: 0.0234230471 | CV95: 0.02395558339 | CW95: 0.02451289806
C96: Drysdale High Level Reticulation Improve | E96: Water | F96: Improvements / Compliance | G96: Pipelines/network | H96: Other Capital expenditure | J96: Straight line | K96: 2023-24 | L96: 70 | M96: 50 | O96: 0 | P96: 0 | Q96: 0 | R96: 0 | S96: 0 | T96: 0.22472058 | U96: 0 | V96: 0 | W96: 0 | X96: 0 | Z96: 0 | AA96: 0 | AB96: 0 | AC96: 0 | AD96: 0 | AE96: 0 | AF96: 0 | AG96: 0 | AH96: 0 | AI96: 0 | AK96: 0 | AL96: 0 | AM96: 0 | AN96: 0 | AO96: 0 | AP96: 0 | AQ96: 0 | AR96: 0 | AS96: 0 | AT96: 0 | AV96: 0 | AW96: 0 | AX96: 0 | AY96: 0 | AZ96: 0 | BA96: 0.22472058 | BB96: 0 | BC96: 0 | BD96: 0 | BE96: 0 | BG96: 0 | BH96: 0 | BI96: 0 | BJ96: 0 | BK96: 0 | BL96: 0.001605147 | BM96: 0.003210294 | BN96: 0.003210294 | BO96: 0.003210294 | BP96: 0.003210294 | BR96: =+IF($K96="Ongoing",AV96,IF(RIGHT($K96,2)=RIGHT(BR$39,2),SUM($AV96:AV96),0)+IF(RIGHT(BR$39,2)>RIGHT($K96,2),AV96,0)) -> 0 | BS96: =+IF($K96="Ongoing",AW96,IF(RIGHT($K96,2)=RIGHT(BS$39,2),SUM($AV96:AW96),0)+IF(RIGHT(BS$39,2)>RIGHT($K96,2),AW96,0)) -> 0 | BT96: =+IF($K96="Ongoing",AX96,IF(RIGHT($K96,2)=RIGHT(BT$39,2),SUM($AV96:AX96),0)+IF(RIGHT(BT$39,2)>RIGHT($K96,2),AX96,0)) -> 0 | BU96: =+IF($K96="Ongoing",AY96,IF(RIGHT($K96,2)=RIGHT(BU$39,2),SUM($AV96:AY96),0)+IF(RIGHT(BU$39,2)>RIGHT($K96,2),AY96,0)) -> 0 | BV96: =+IF($K96="Ongoing",AZ96,IF(RIGHT($K96,2)=RIGHT(BV$39,2),SUM($AV96:AZ96),0)+IF(RIGHT(BV$39,2)>RIGHT($K96,2),AZ96,0)) -> 0 | BW96: =+IF($K96="Ongoing",BA96,IF(RIGHT($K96,2)=RIGHT(BW$39,2),SUM($AV96:BA96),0)+IF(RIGHT(BW$39,2)>RIGHT($K96,2),BA96,0)) -> 0.22472058 | BX96: =+IF($K96="Ongoing",BB96,IF(RIGHT($K96,2)=RIGHT(BX$39,2),SUM($AV96:BB96),0)+IF(RIGHT(BX$39,2)>RIGHT($K96,2),BB96,0)) -> 0 | BY96: =+IF($K96="Ongoing",BC96,IF(RIGHT($K96,2)=RIGHT(BY$39,2),SUM($AV96:BC96),0)+IF(RIGHT(BY$39,2)>RIGHT($K96,2),BC96,0)) -> 0 | BZ96: =+IF($K96="Ongoing",BD96,IF(RIGHT($K96,2)=RIGHT(BZ$39,2),SUM($AV96:BD96),0)+IF(RIGHT(BZ$39,2)>RIGHT($K96,2),BD96,0)) -> 0 | CA96: =+IF($K96="Ongoing",BE96,IF(RIGHT($K96,2)=RIGHT(CA$39,2),SUM($AV96:BE96),0)+IF(RIGHT(CA$39,2)>RIGHT($K96,2),BE96,0)) -> 0 | CC96: =+O96*KeyAssumptionsPriceControl_FO!X$15 -> 0 | CD96: =+P96*KeyAssumptionsPriceControl_FO!Y$15 -> 0 | CE96: =+Q96*KeyAssumptionsPriceControl_FO!Z$15 -> 0 | CF96: =+R96*KeyAssumptionsPriceControl_FO!AA$15 -> 0 | CG96: =+S96*KeyAssumptionsPriceControl_FO!AB$15 -> 0 | CH96: =+T96*KeyAssumptionsPriceControl_FO!AC$15 -> 0.2575708134 | CI96: =+U96*KeyAssumptionsPriceControl_FO!AD$15 -> 0 | CJ96: =+V96*KeyAssumptionsPriceControl_FO!AE$15 -> 0 | CK96: =+W96*KeyAssumptionsPriceControl_FO!AF$15 -> 0 | CL96: =+X96*KeyAssumptionsPriceControl_FO!AG$15 -> 0 | CN96: 0 | CO96: 0 | CP96: 0 | CQ96: 0 | CR96: 0 | CS96: 0.002575708134 | CT96: 0.005151416267 | CU96: 0.005151416267 | CV96: 0.005151416267 | CW96: 0.005151416267
C97: Elliminyt Feeder Main Stage 2 | E97: Water | F97: Growth | G97: Pipelines/network | H97: Other Capital expenditure | J97: Straight line | K97: 2025-26 | L97: 70 | M97: 50 | O97: 0.04647 | P97: 0.04647 | Q97: 0.04647 | R97: 0.04647 | S97: 0.04647 | T97: 0.04647 | U97: 0.04647 | V97: 0.13941001 | W97: 0 | X97: 0 | Z97: 0 | AA97: 0 | AB97: 0 | AC97: 0 | AD97: 0 | AE97: 0 | AF97: 0 | AG97: 0 | AH97: 0 | AI97: 0 | AK97: 0.03235552135 | AL97: 0.02404268585 | AM97: 0.03854785118 | AN97: 0.03461444023 | AO97: 0.03636381516 | AP97: 0.03636381516 | AQ97: 0.03636381516 | AR97: 0.03636381516 | AS97: 0.03636381516 | AT97: 0.03636381516 | AV97: 0.01411447865 | AW97: 0.02242731415 | AX97: 0.007922148824 | AY97: 0.01185555977 | AZ97: 0.01010618484 | BA97: 0.01010618484 | BB97: 0.01010618484 | BC97: 0.1030461948 | BD97: -0.03636381516 | BE97: -0.03636381516 | BG97: 0 | BH97: 0 | BI97: 0 | BJ97: 0 | BK97: 0 | BL97: 0 | BM97: 0 | BN97: 0.001354887506 | BO97: 0.002450033474 | BP97: 0.0019305504 | BR97: =+IF($K97="Ongoing",AV97,IF(RIGHT($K97,2)=RIGHT(BR$39,2),SUM($AV97:AV97),0)+IF(RIGHT(BR$39,2)>RIGHT($K97,2),AV97,0)) -> 0 | BS97: =+IF($K97="Ongoing",AW97,IF(RIGHT($K97,2)=RIGHT(BS$39,2),SUM($AV97:AW97),0)+IF(RIGHT(BS$39,2)>RIGHT($K97,2),AW97,0)) -> 0 | BT97: =+IF($K97="Ongoing",AX97,IF(RIGHT($K97,2)=RIGHT(BT$39,2),SUM($AV97:AX97),0)+IF(RIGHT(BT$39,2)>RIGHT($K97,2),AX97,0)) -> 0 | BU97: =+IF($K97="Ongoing",AY97,IF(RIGHT($K97,2)=RIGHT(BU$39,2),SUM($AV97:AY97),0)+IF(RIGHT(BU$39,2)>RIGHT($K97,2),AY97,0)) -> 0 | BV97: =+IF($K97="Ongoing",AZ97,IF(RIGHT($K97,2)=RIGHT(BV$39,2),SUM($AV97:AZ97),0)+IF(RIGHT(BV$39,2)>RIGHT($K97,2),AZ97,0)) -> 0 | BW97: =+IF($K97="Ongoing",BA97,IF(RIGHT($K97,2)=RIGHT(BW$39,2),SUM($AV97:BA97),0)+IF(RIGHT(BW$39,2)>RIGHT($K97,2),BA97,0)) -> 0 | BX97: =+IF($K97="Ongoing",BB97,IF(RIGHT($K97,2)=RIGHT(BX$39,2),SUM($AV97:BB97),0)+IF(RIGHT(BX$39,2)>RIGHT($K97,2),BB97,0)) -> 0 | BY97: =+IF($K97="Ongoing",BC97,IF(RIGHT($K97,2)=RIGHT(BY$39,2),SUM($AV97:BC97),0)+IF(RIGHT(BY$39,2)>RIGHT($K97,2),BC97,0)) -> 0.1896842508 | BZ97: =+IF($K97="Ongoing",BD97,IF(RIGHT($K97,2)=RIGHT(BZ$39,2),SUM($AV97:BD97),0)+IF(RIGHT(BZ$39,2)>RIGHT($K97,2),BD97,0)) -> -0.03636381516 | CA97: =+IF($K97="Ongoing",BE97,IF(RIGHT($K97,2)=RIGHT(CA$39,2),SUM($AV97:BE97),0)+IF(RIGHT(CA$39,2)>RIGHT($K97,2),BE97,0)) -> -0.03636381516 | CC97: =+O97*KeyAssumptionsPriceControl_FO!X$15 -> 0.04753881 | CD97: =+P97*KeyAssumptionsPriceControl_FO!Y$15 -> 0.04863220263 | CE97: =+Q97*KeyAssumptionsPriceControl_FO!Z$15 -> 0.04975074329 | CF97: =+R97*KeyAssumptionsPriceControl_FO!AA$15 -> 0.05089501039 | CG97: =+S97*KeyAssumptionsPriceControl_FO!AB$15 -> 0.05206559563 | CH97: =+T97*KeyAssumptionsPriceControl_FO!AC$15 -> 0.05326310432 | CI97: =+U97*KeyAssumptionsPriceControl_FO!AD$15 -> 0.05448815572 | CJ97: =+V97*KeyAssumptionsPriceControl_FO!AE$15 -> 0.1672241619 | CK97: =+W97*KeyAssumptionsPriceControl_FO!AF$15 -> 0 | CL97: =+X97*KeyAssumptionsPriceControl_FO!AG$15 -> 0 | CN97: 0.0004753881 | CO97: 0.001437098226 | CP97: 0.002420927686 | CQ97: 0.003427385222 | CR97: 0.004456991282 | CS97: 0.005510278282 | CT97: 0.006587790882 | CU97: 0.008804914059 | CV97: 0.01047715568 | CW97: 0.01047715568
C98: Fyansford Retic Improvements and PRVs | E98: Water | F98: Growth | G98: Pipelines/network | H98: Other Capital expenditure | J98: Straight line | K98: Ongoing | L98: 70 | M98: 50 | O98: 0.08563758 | P98: 0.42818792 | Q98: 0.08563758 | R98: 0.08563758 | S98: 0.08563758 | T98: 0.08563758 | U98: 0.34255034 | V98: 0.08563758 | W98: 0.08563758 | X98: 0.08563758 | Z98: 0 | AA98: 0 | AB98: 0 | AC98: 0 | AD98: 0 | AE98: 0 | AF98: 0 | AG98: 0 | AH98: 0 | AI98: 0 | AK98: 0.0596266096 | AL98: 0.2215362093 | AM98: 0.07103818999 | AN98: 0.0637894748 | AO98: 0.06701332321 | AP98: 0.06701332321 | AQ98: 0.06701332321 | AR98: 0.06701332321 | AS98: 0.06701332321 | AT98: 0.06701332321 | AV98: 0.0260109704 | AW98: 0.2066517107 | AX98: 0.01459939001 | AY98: 0.0218481052 | AZ98: 0.01862425679 | BA98: 0.01862425679 | BB98: 0.2755370168 | BC98: 0.01862425679 | BD98: 0.01862425679 | BE98: 0.01862425679 | BG98: 0.0001857926457 | BH98: 0.001847668939 | BI98: 0.003428033945 | BJ98: 0.003688373196 | BK98: 0.003977461496 | BL98: 0.004243522307 | BM98: 0.006344674262 | BN98: 0.008445826216 | BO98: 0.008711887027 | BP98: 0.008977947838 | BR98: =+IF($K98="Ongoing",AV98,IF(RIGHT($K98,2)=RIGHT(BR$39,2),SUM($AV98:AV98),0)+IF(RIGHT(BR$39,2)>RIGHT($K98,2),AV98,0)) -> 0.0260109704 | BS98: =+IF($K98="Ongoing",AW98,IF(RIGHT($K98,2)=RIGHT(BS$39,2),SUM($AV98:AW98),0)+IF(RIGHT(BS$39,2)>RIGHT($K98,2),AW98,0)) -> 0.2066517107 | BT98: =+IF($K98="Ongoing",AX98,IF(RIGHT($K98,2)=RIGHT(BT$39,2),SUM($AV98:AX98),0)+IF(RIGHT(BT$39,2)>RIGHT($K98,2),AX98,0)) -> 0.01459939001 | BU98: =+IF($K98="Ongoing",AY98,IF(RIGHT($K98,2)=RIGHT(BU$39,2),SUM($AV98:AY98),0)+IF(RIGHT(BU$39,2)>RIGHT($K98,2),AY98,0)) -> 0.0218481052 | BV98: =+IF($K98="Ongoing",AZ98,IF(RIGHT($K98,2)=RIGHT(BV$39,2),SUM($AV98:AZ98),0)+IF(RIGHT(BV$39,2)>RIGHT($K98,2),AZ98,0)) -> 0.01862425679 | BW98: =+IF($K98="Ongoing",BA98,IF(RIGHT($K98,2)=RIGHT(BW$39,2),SUM($AV98:BA98),0)+IF(RIGHT(BW$39,2)>RIGHT($K98,2),BA98,0)) -> 0.01862425679 | BX98: =+IF($K98="Ongoing",BB98,IF(RIGHT($K98,2)=RIGHT(BX$39,2),SUM($AV98:BB98),0)+IF(RIGHT(BX$39,2)>RIGHT($K98,2),BB98,0)) -> 0.2755370168 | BY98: =+IF($K98="Ongoing",BC98,IF(RIGHT($K98,2)=RIGHT(BY$39,2),SUM($AV98:BC98),0)+IF(RIGHT(BY$39,2)>RIGHT($K98,2),BC98,0)) -> 0.01862425679 | BZ98: =+IF($K98="Ongoing",BD98,IF(RIGHT($K98,2)=RIGHT(BZ$39,2),SUM($AV98:BD98),0)+IF(RIGHT(BZ$39,2)>RIGHT($K98,2),BD98,0)) -> 0.01862425679 | CA98: =+IF($K98="Ongoing",BE98,IF(RIGHT($K98,2)=RIGHT(CA$39,2),SUM($AV98:BE98),0)+IF(RIGHT(CA$39,2)>RIGHT($K98,2),BE98,0)) -> 0.01862425679 | CC98: =+O98*KeyAssumptionsPriceControl_FO!X$15 -> 0.08760724434 | CD98: =+P98*KeyAssumptionsPriceControl_FO!Y$15 -> 0.4481110757 | CE98: =+Q98*KeyAssumptionsPriceControl_FO!Z$15 -> 0.09168352181 | CF98: =+R98*KeyAssumptionsPriceControl_FO!AA$15 -> 0.09379224281 | CG98: =+S98*KeyAssumptionsPriceControl_FO!AB$15 -> 0.0959494644 | CH98: =+T98*KeyAssumptionsPriceControl_FO!AC$15 -> 0.09815630208 | CI98: =+U98*KeyAssumptionsPriceControl_FO!AD$15 -> 0.4016556116 | CJ98: =+V98*KeyAssumptionsPriceControl_FO!AE$15 -> 0.1027234167 | CK98: =+W98*KeyAssumptionsPriceControl_FO!AF$15 -> 0.1050860552 | CL98: =+X98*KeyAssumptionsPriceControl_FO!AG$15 -> 0.1075030345 | CN98: 0.0008760724434 | CO98: 0.006233255644 | CP98: 0.01163120162 | CQ98: 0.01348595927 | CR98: 0.01538337634 | CS98: 0.017324434 | CT98: 0.02232255314 | CU98: 0.02736634342 | CV98: 0.02944443814 | CW98: 0.03157032904
C99: Geelong Pressure Management– LB2 LB5 LB7 | E99: Water | F99: Improvements / Compliance | G99: Pipelines/network | H99: Capital Programs / Allocation | J99: Straight line | K99: 2018-19 | L99: 70 | M99: 50 | O99: 0.01021257 | P99: 0 | Q99: 0 | R99: 0 | S99: 0 | T99: 0 | U99: 0 | V99: 0 | W99: 0 | X99: 0 | Z99: 0 | AA99: 0 | AB99: 0 | AC99: 0 | AD99: 0 | AE99: 0 | AF99: 0 | AG99: 0 | AH99: 0 | AI99: 0 | AK99: 0 | AL99: 0 | AM99: 0 | AN99: 0 | AO99: 0 | AP99: 0 | AQ99: 0 | AR99: 0 | AS99: 0 | AT99: 0 | AV99: 0.01021257 | AW99: 0 | AX99: 0 | AY99: 0 | AZ99: 0 | BA99: 0 | BB99: 0 | BC99: 0 | BD99: 0 | BE99: 0 | BG99: 7.294692857e-05 | BH99: 0.0001458938571 | BI99: 0.0001458938571 | BJ99: 0.0001458938571 | BK99: 0.0001458938571 | BL99: 0.0001458938571 | BM99: 0.0001458938571 | BN99: 0.0001458938571 | BO99: 0.0001458938571 | BP99: 0.0001458938571 | BR99: =+IF($K99="Ongoing",AV99,IF(RIGHT($K99,2)=RIGHT(BR$39,2),SUM($AV99:AV99),0)+IF(RIGHT(BR$39,2)>RIGHT($K99,2),AV99,0)) -> 0.01021257 | BS99: =+IF($K99="Ongoing",AW99,IF(RIGHT($K99,2)=RIGHT(BS$39,2),SUM($AV99:AW99),0)+IF(RIGHT(BS$39,2)>RIGHT($K99,2),AW99,0)) -> 0 | BT99: =+IF($K99="Ongoing",AX99,IF(RIGHT($K99,2)=RIGHT(BT$39,2),SUM($AV99:AX99),0)+IF(RIGHT(BT$39,2)>RIGHT($K99,2),AX99,0)) -> 0 | BU99: =+IF($K99="Ongoing",AY99,IF(RIGHT($K99,2)=RIGHT(BU$39,2),SUM($AV99:AY99),0)+IF(RIGHT(BU$39,2)>RIGHT($K99,2),AY99,0)) -> 0 | BV99: =+IF($K99="Ongoing",AZ99,IF(RIGHT($K99,2)=RIGHT(BV$39,2),SUM($AV99:AZ99),0)+IF(RIGHT(BV$39,2)>RIGHT($K99,2),AZ99,0)) -> 0 | BW99: =+IF($K99="Ongoing",BA99,IF(RIGHT($K99,2)=RIGHT(BW$39,2),SUM($AV99:BA99),0)+IF(RIGHT(BW$39,2)>RIGHT($K99,2),BA99,0)) -> 0 | BX99: =+IF($K99="Ongoing",BB99,IF(RIGHT($K99,2)=RIGHT(BX$39,2),SUM($AV99:BB99),0)+IF(RIGHT(BX$39,2)>RIGHT($K99,2),BB99,0)) -> 0 | BY99: =+IF($K99="Ongoing",BC99,IF(RIGHT($K99,2)=RIGHT(BY$39,2),SUM($AV99:BC99),0)+IF(RIGHT(BY$39,2)>RIGHT($K99,2),BC99,0)) -> 0 | BZ99: =+IF($K99="Ongoing",BD99,IF(RIGHT($K99,2)=RIGHT(BZ$39,2),SUM($AV99:BD99),0)+IF(RIGHT(BZ$39,2)>RIGHT($K99,2),BD99,0)) -> 0 | CA99: =+IF($K99="Ongoing",BE99,IF(RIGHT($K99,2)=RIGHT(CA$39,2),SUM($AV99:BE99),0)+IF(RIGHT(CA$39,2)>RIGHT($K99,2),BE99,0)) -> 0 | CC99: =+O99*KeyAssumptionsPriceControl_FO!X$15 -> 0.01044745911 | CD99: =+P99*KeyAssumptionsPriceControl_FO!Y$15 -> 0 | CE99: =+Q99*KeyAssumptionsPriceControl_FO!Z$15 -> 0 | CF99: =+R99*KeyAssumptionsPriceControl_FO!AA$15 -> 0 | CG99: =+S99*KeyAssumptionsPriceControl_FO!AB$15 -> 0 | CH99: =+T99*KeyAssumptionsPriceControl_FO!AC$15 -> 0 | CI99: =+U99*KeyAssumptionsPriceControl_FO!AD$15 -> 0 | CJ99: =+V99*KeyAssumptionsPriceControl_FO!AE$15 -> 0 | CK99: =+W99*KeyAssumptionsPriceControl_FO!AF$15 -> 0 | CL99: =+X99*KeyAssumptionsPriceControl_FO!AG$15 -> 0 | CN99: 0.0001044745911 | CO99: 0.0002089491822 | CP99: 0.0002089491822 | CQ99: 0.0002089491822 | CR99: 0.0002089491822 | CS99: 0.0002089491822 | CT99: 0.0002089491822 | CU99: 0.0002089491822 | CV99: 0.0002089491822 | CW99: 0.0002089491822
C100: Geelong Pressure Management Program | E100: Water | F100: Improvements / Compliance | G100: Pipelines/network | H100: Capital Programs / Allocation | J100: Straight line | K100: Ongoing | L100: 70 | M100: 50 | O100: 1.399122 | P100: 0.05106285 | Q100: 1.399122 | R100: 0.05106285 | S100: 1.399122 | T100: 1.45018484 | U100: 0 | V100: 1.45018484 | W100: 0 | X100: 1.45018484 | Z100: 0 | AA100: 0 | AB100: 0 | AC100: 0 | AD100: 0 | AE100: 0 | AF100: 0 | AG100: 0 | AH100: 0 | AI100: 0 | AK100: 0 | AL100: 0 | AM100: 0 | AN100: 0 | AO100: 0 | AP100: 0 | AQ100: 0 | AR100: 0 | AS100: 0 | AT100: 0 | AV100: 1.399122 | AW100: 0.05106285 | AX100: 1.399122 | AY100: 0.05106285 | AZ100: 1.399122 | BA100: 1.45018484 | BB100: 0 | BC100: 1.45018484 | BD100: 0 | BE100: 1.45018484 | BG100: 0.009993728571 | BH100: 0.02035219179 | BI100: 0.030710655 | BJ100: 0.04106911821 | BK100: 0.05142758143 | BL100: 0.07177977314 | BM100: 0.08213823629 | BN100: 0.09249669943 | BO100: 0.1028551626 | BP100: 0.1132136257 | BR100: =+IF($K100="Ongoing",AV100,IF(RIGHT($K100,2)=RIGHT(BR$39,2),SUM($AV100:AV100),0)+IF(RIGHT(BR$39,2)>RIGHT($K100,2),AV100,0)) -> 1.399122 | BS100: =+IF($K100="Ongoing",AW100,IF(RIGHT($K100,2)=RIGHT(BS$39,2),SUM($AV100:AW100),0)+IF(RIGHT(BS$39,2)>RIGHT($K100,2),AW100,0)) -> 0.05106285 | BT100: =+IF($K100="Ongoing",AX100,IF(RIGHT($K100,2)=RIGHT(BT$39,2),SUM($AV100:AX100),0)+IF(RIGHT(BT$39,2)>RIGHT($K100,2),AX100,0)) -> 1.399122 | BU100: =+IF($K100="Ongoing",AY100,IF(RIGHT($K100,2)=RIGHT(BU$39,2),SUM($AV100:AY100),0)+IF(RIGHT(BU$39,2)>RIGHT($K100,2),AY100,0)) -> 0.05106285 | BV100: =+IF($K100="Ongoing",AZ100,IF(RIGHT($K100,2)=RIGHT(BV$39,2),SUM($AV100:AZ100),0)+IF(RIGHT(BV$39,2)>RIGHT($K100,2),AZ100,0)) -> 1.399122 | BW100: =+IF($K100="Ongoing",BA100,IF(RIGHT($K100,2)=RIGHT(BW$39,2),SUM($AV100:BA100),0)+IF(RIGHT(BW$39,2)>RIGHT($K100,2),BA100,0)) -> 1.45018484 | BX100: =+IF($K100="Ongoing",BB100,IF(RIGHT($K100,2)=RIGHT(BX$39,2),SUM($AV100:BB100),0)+IF(RIGHT(BX$39,2)>RIGHT($K100,2),BB100,0)) -> 0 | BY100: =+IF($K100="Ongoing",BC100,IF(RIGHT($K100,2)=RIGHT(BY$39,2),SUM($AV100:BC100),0)+IF(RIGHT(BY$39,2)>RIGHT($K100,2),BC100,0)) -> 1.45018484 | BZ100: =+IF($K100="Ongoing",BD100,IF(RIGHT($K100,2)=RIGHT(BZ$39,2),SUM($AV100:BD100),0)+IF(RIGHT(BZ$39,2)>RIGHT($K100,2),BD100,0)) -> 0 | CA100: =+IF($K100="Ongoing",BE100,IF(RIGHT($K100,2)=RIGHT(CA$39,2),SUM($AV100:BE100),0)+IF(RIGHT(CA$39,2)>RIGHT($K100,2),BE100,0)) -> 1.45018484 | CC100: =+O100*KeyAssumptionsPriceControl_FO!X$15 -> 1.431301806 | CD100: =+P100*KeyAssumptionsPriceControl_FO!Y$15 -> 0.05343875335 | CE100: =+Q100*KeyAssumptionsPriceControl_FO!Z$15 -> 1.497898848 | CF100: =+R100*KeyAssumptionsPriceControl_FO!AA$15 -> 0.0559252051 | CG100: =+S100*KeyAssumptionsPriceControl_FO!AB$15 -> 1.567594583 | CH100: =+T100*KeyAssumptionsPriceControl_FO!AC$15 -> 1.662176596 | CI100: =+U100*KeyAssumptionsPriceControl_FO!AD$15 -> 0 | CJ100: =+V100*KeyAssumptionsPriceControl_FO!AE$15 -> 1.739516011 | CK100: =+W100*KeyAssumptionsPriceControl_FO!AF$15 -> 0 | CL100: =+X100*KeyAssumptionsPriceControl_FO!AG$15 -> 1.820453951 | CN100: 0.01431301806 | CO100: 0.02916042365 | CP100: 0.04467379966 | CQ100: 0.06021204019 | CR100: 0.07644723808 | CS100: 0.1087449499 | CT100: 0.1253667158 | CU100: 0.1427618759 | CV100: 0.1601570361 | CW100: 0.1783615756
C101: Great Ocean Road Water Main Relocations | E101: Water | F101: Renewals | G101: Pipelines/network | H101: Other Capital expenditure | J101: Straight line | K101: 2024-25 | L101: 70 | M101: 50 | O101: 0 | P101: 0 | Q101: 0 | R101: 0 | S101: 0 | T101: 0 | U101: 0.42220293 | V101: 0 | W101: 0 | X101: 0 | Z101: 0 | AA101: 0 | AB101: 0 | AC101: 0 | AD101: 0 | AE101: 0 | AF101: 0 | AG101: 0 | AH101: 0 | AI101: 0 | AK101: 0 | AL101: 0 | AM101: 0 | AN101: 0 | AO101: 0 | AP101: 0 | AQ101: 0 | AR101: 0 | AS101: 0 | AT101: 0 | AV101: 0 | AW101: 0 | AX101: 0 | AY101: 0 | AZ101: 0 | BA101: 0 | BB101: 0.42220293 | BC101: 0 | BD101: 0 | BE101: 0 | BG101: 0 | BH101: 0 | BI101: 0 | BJ101: 0 | BK101: 0 | BL101: 0 | BM101: 0.003015735214 | BN101: 0.006031470429 | BO101: 0.006031470429 | BP101: 0.006031470429 | BR101: =+IF($K101="Ongoing",AV101,IF(RIGHT($K101,2)=RIGHT(BR$39,2),SUM($AV101:AV101),0)+IF(RIGHT(BR$39,2)>RIGHT($K101,2),AV101,0)) -> 0 | BS101: =+IF($K101="Ongoing",AW101,IF(RIGHT($K101,2)=RIGHT(BS$39,2),SUM($AV101:AW101),0)+IF(RIGHT(BS$39,2)>RIGHT($K101,2),AW101,0)) -> 0 | BT101: =+IF($K101="Ongoing",AX101,IF(RIGHT($K101,2)=RIGHT(BT$39,2),SUM($AV101:AX101),0)+IF(RIGHT(BT$39,2)>RIGHT($K101,2),AX101,0)) -> 0 | BU101: =+IF($K101="Ongoing",AY101,IF(RIGHT($K101,2)=RIGHT(BU$39,2),SUM($AV101:AY101),0)+IF(RIGHT(BU$39,2)>RIGHT($K101,2),AY101,0)) -> 0 | BV101: =+IF($K101="Ongoing",AZ101,IF(RIGHT($K101,2)=RIGHT(BV$39,2),SUM($AV101:AZ101),0)+IF(RIGHT(BV$39,2)>RIGHT($K101,2),AZ101,0)) -> 0 | BW101: =+IF($K101="Ongoing",BA101,IF(RIGHT($K101,2)=RIGHT(BW$39,2),SUM($AV101:BA101),0)+IF(RIGHT(BW$39,2)>RIGHT($K101,2),BA101,0)) -> 0 | BX101: =+IF($K101="Ongoing",BB101,IF(RIGHT($K101,2)=RIGHT(BX$39,2),SUM($AV101:BB101),0)+IF(RIGHT(BX$39,2)>RIGHT($K101,2),BB101,0)) -> 0.42220293 | BY101: =+IF($K101="Ongoing",BC101,IF(RIGHT($K101,2)=RIGHT(BY$39,2),SUM($AV101:BC101),0)+IF(RIGHT(BY$39,2)>RIGHT($K101,2),BC101,0)) -> 0 | BZ101: =+IF($K101="Ongoing",BD101,IF(RIGHT($K101,2)=RIGHT(BZ$39,2),SUM($AV101:BD101),0)+IF(RIGHT(BZ$39,2)>RIGHT($K101,2),BD101,0)) -> 0 | CA101: =+IF($K101="Ongoing",BE101,IF(RIGHT($K101,2)=RIGHT(CA$39,2),SUM($AV101:BE101),0)+IF(RIGHT(CA$39,2)>RIGHT($K101,2),BE101,0)) -> 0 | CC101: =+O101*KeyAssumptionsPriceControl_FO!X$15 -> 0 | CD101: =+P101*KeyAssumptionsPriceControl_FO!Y$15 -> 0 | CE101: =+Q101*KeyAssumptionsPriceControl_FO!Z$15 -> 0 | CF101: =+R101*KeyAssumptionsPriceControl_FO!AA$15 -> 0 | CG101: =+S101*KeyAssumptionsPriceControl_FO!AB$15 -> 0 | CH101: =+T101*KeyAssumptionsPriceControl_FO!AC$15 -> 0 | CI101: =+U101*KeyAssumptionsPriceControl_FO!AD$15 -> 0.4950518398 | CJ101: =+V101*KeyAssumptionsPriceControl_FO!AE$15 -> 0 | CK101: =+W101*KeyAssumptionsPriceControl_FO!AF$15 -> 0 | CL101: =+X101*KeyAssumptionsPriceControl_FO!AG$15 -> 0 | CN101: 0 | CO101: 0 | CP101: 0 | CQ101: 0 | CR101: 0 | CS101: 0 | CT101: 0.004950518398 | CU101: 0.009901036797 | CV101: 0.009901036797 | CW101: 0.009901036797
C102: Highton High High Level Reticulation Imp | E102: Water | F102: Improvements / Compliance | G102: Pipelines/network | H102: Other Capital expenditure | J102: Straight line | K102: 2021-22 | L102: 70 | M102: 50 | O102: 0.12765604 | P102: 0.12765604 | Q102: 0.12765604 | R102: 0.04467961 | S102: 0 | T102: 0 | U102: 0 | V102: 0 | W102: 0 | X102: 0 | Z102: 0 | AA102: 0 | AB102: 0 | AC102: 0 | AD102: 0 | AE102: 0 | AF102: 0 | AG102: 0 | AH102: 0 | AI102: 0 | AK102: 0 | AL102: 0 | AM102: 0 | AN102: 0 | AO102: 0 | AP102: 0 | AQ102: 0 | AR102: 0 | AS102: 0 | AT102: 0 | AV102: 0.12765604 | AW102: 0.12765604 | AX102: 0.12765604 | AY102: 0.04467961 | AZ102: 0 | BA102: 0 | BB102: 0 | BC102: 0 | BD102: 0 | BE102: 0 | BG102: 0 | BH102: 0 | BI102: 0 | BJ102: 0.003054626643 | BK102: 0.006109253286 | BL102: 0.006109253286 | BM102: 0.006109253286 | BN102: 0.006109253286 | BO102: 0.006109253286 | BP102: 0.006109253286 | BR102: =+IF($K102="Ongoing",AV102,IF(RIGHT($K102,2)=RIGHT(BR$39,2),SUM($AV102:AV102),0)+IF(RIGHT(BR$39,2)>RIGHT($K102,2),AV102,0)) -> 0 | BS102: =+IF($K102="Ongoing",AW102,IF(RIGHT($K102,2)=RIGHT(BS$39,2),SUM($AV102:AW102),0)+IF(RIGHT(BS$39,2)>RIGHT($K102,2),AW102,0)) -> 0 | BT102: =+IF($K102="Ongoing",AX102,IF(RIGHT($K102,2)=RIGHT(BT$39,2),SUM($AV102:AX102),0)+IF(RIGHT(BT$39,2)>RIGHT($K102,2),AX102,0)) -> 0 | BU102: =+IF($K102="Ongoing",AY102,IF(RIGHT($K102,2)=RIGHT(BU$39,2),SUM($AV102:AY102),0)+IF(RIGHT(BU$39,2)>RIGHT($K102,2),AY102,0)) -> 0.42764773 | BV102: =+IF($K102="Ongoing",AZ102,IF(RIGHT($K102,2)=RIGHT(BV$39,2),SUM($AV102:AZ102),0)+IF(RIGHT(BV$39,2)>RIGHT($K102,2),AZ102,0)) -> 0 | BW102: =+IF($K102="Ongoing",BA102,IF(RIGHT($K102,2)=RIGHT(BW$39,2),SUM($AV102:BA102),0)+IF(RIGHT(BW$39,2)>RIGHT($K102,2),BA102,0)) -> 0 | BX102: =+IF($K102="Ongoing",BB102,IF(RIGHT($K102,2)=RIGHT(BX$39,2),SUM($AV102:BB102),0)+IF(RIGHT(BX$39,2)>RIGHT($K102,2),BB102,0)) -> 0 | BY102: =+IF($K102="Ongoing",BC102,IF(RIGHT($K102,2)=RIGHT(BY$39,2),SUM($AV102:BC102),0)+IF(RIGHT(BY$39,2)>RIGHT($K102,2),BC102,0)) -> 0 | BZ102: =+IF($K102="Ongoing",BD102,IF(RIGHT($K102,2)=RIGHT(BZ$39,2),SUM($AV102:BD102),0)+IF(RIGHT(BZ$39,2)>RIGHT($K102,2),BD102,0)) -> 0 | CA102: =+IF($K102="Ongoing",BE102,IF(RIGHT($K102,2)=RIGHT(CA$39,2),SUM($AV102:BE102),0)+IF(RIGHT(CA$39,2)>RIGHT($K102,2),BE102,0)) -> 0 | CC102: =+O102*KeyAssumptionsPriceControl_FO!X$15 -> 0.1305921289 | CD102: =+P102*KeyAssumptionsPriceControl_FO!Y$15 -> 0.1335957479 | CE102: =+Q102*KeyAssumptionsPriceControl_FO!Z$15 -> 0.1366684501 | CF102: =+R102*KeyAssumptionsPriceControl_FO!AA$15 -> 0.04893413417 | CG102: =+S102*KeyAssumptionsPriceControl_FO!AB$15 -> 0 | CH102: =+T102*KeyAssumptionsPriceControl_FO!AC$15 -> 0 | CI102: =+U102*KeyAssumptionsPriceControl_FO!AD$15 -> 0 | CJ102: =+V102*KeyAssumptionsPriceControl_FO!AE$15 -> 0 | CK102: =+W102*KeyAssumptionsPriceControl_FO!AF$15 -> 0 | CL102: =+X102*KeyAssumptionsPriceControl_FO!AG$15 -> 0 | CN102: 0.001305921289 | CO102: 0.003947800057 | CP102: 0.006650442037 | CQ102: 0.00850646788 | CR102: 0.008995809221 | CS102: 0.008995809221 | CT102: 0.008995809221 | CU102: 0.008995809221 | CV102: 0.008995809221 | CW102: 0.008995809221
C103: Highton High Level Reticulation Stage 2 | E103: Water | F103: Growth | G103: Pipelines/network | H103: Other Capital expenditure | J103: Straight line | K103: 2021-22 | L103: 70 | M103: 50 | O103: 0 | P103: 0 | Q103: 0.06052877 | R103: 0.24211509 | S103: 0 | T103: 0 | U103: 0 | V103: 0 | W103: 0 | X103: 0 | Z103: 0 | AA103: 0 | AB103: 0 | AC103: 0 | AD103: 0 | AE103: 0 | AF103: 0 | AG103: 0 | AH103: 0 | AI103: 0 | AK103: 0 | AL103: 0 | AM103: 0.05020989924 | AN103: 0.1803459933 | AO103: 0 | AP103: 0 | AQ103: 0 | AR103: 0 | AS103: 0 | AT103: 0 | AV103: 0 | AW103: 0 | AX103: 0.01031887076 | AY103: 0.06176909666 | AZ103: 0 | BA103: 0 | BB103: 0 | BC103: 0 | BD103: 0 | BE103: 0 | BG103: 0 | BH103: 0 | BI103: 0 | BJ103: 0.000514914053 | BK103: 0.001029828106 | BL103: 0.001029828106 | BM103: 0.001029828106 | BN103: 0.001029828106 | BO103: 0.001029828106 | BP103: 0.001029828106 | BR103: =+IF($K103="Ongoing",AV103,IF(RIGHT($K103,2)=RIGHT(BR$39,2),SUM($AV103:AV103),0)+IF(RIGHT(BR$39,2)>RIGHT($K103,2),AV103,0)) -> 0 | BS103: =+IF($K103="Ongoing",AW103,IF(RIGHT($K103,2)=RIGHT(BS$39,2),SUM($AV103:AW103),0)+IF(RIGHT(BS$39,2)>RIGHT($K103,2),AW103,0)) -> 0 | BT103: =+IF($K103="Ongoing",AX103,IF(RIGHT($K103,2)=RIGHT(BT$39,2),SUM($AV103:AX103),0)+IF(RIGHT(BT$39,2)>RIGHT($K103,2),AX103,0)) -> 0 | BU103: =+IF($K103="Ongoing",AY103,IF(RIGHT($K103,2)=RIGHT(BU$39,2),SUM($AV103:AY103),0)+IF(RIGHT(BU$39,2)>RIGHT($K103,2),AY103,0)) -> 0.07208796742 | BV103: =+IF($K103="Ongoing",AZ103,IF(RIGHT($K103,2)=RIGHT(BV$39,2),SUM($AV103:AZ103),0)+IF(RIGHT(BV$39,2)>RIGHT($K103,2),AZ103,0)) -> 0 | BW103: =+IF($K103="Ongoing",BA103,IF(RIGHT($K103,2)=RIGHT(BW$39,2),SUM($AV103:BA103),0)+IF(RIGHT(BW$39,2)>RIGHT($K103,2),BA103,0)) -> 0 | BX103: =+IF($K103="Ongoing",BB103,IF(RIGHT($K103,2)=RIGHT(BX$39,2),SUM($AV103:BB103),0)+IF(RIGHT(BX$39,2)>RIGHT($K103,2),BB103,0)) -> 0 | BY103: =+IF($K103="Ongoing",BC103,IF(RIGHT($K103,2)=RIGHT(BY$39,2),SUM($AV103:BC103),0)+IF(RIGHT(BY$39,2)>RIGHT($K103,2),BC103,0)) -> 0 | BZ103: =+IF($K103="Ongoing",BD103,IF(RIGHT($K103,2)=RIGHT(BZ$39,2),SUM($AV103:BD103),0)+IF(RIGHT(BZ$39,2)>RIGHT($K103,2),BD103,0)) -> 0 | CA103: =+IF($K103="Ongoing",BE103,IF(RIGHT($K103,2)=RIGHT(CA$39,2),SUM($AV103:BE103),0)+IF(RIGHT(CA$39,2)>RIGHT($K103,2),BE103,0)) -> 0 | CC103: =+O103*KeyAssumptionsPriceControl_FO!X$15 -> 0 | CD103: =+P103*KeyAssumptionsPriceControl_FO!Y$15 -> 0 | CE103: =+Q103*KeyAssumptionsPriceControl_FO!Z$15 -> 0.06480205074 | CF103: =+R103*KeyAssumptionsPriceControl_FO!AA$15 -> 0.2651700026 | CG103: =+S103*KeyAssumptionsPriceControl_FO!AB$15 -> 0 | CH103: =+T103*KeyAssumptionsPriceControl_FO!AC$15 -> 0 | CI103: =+U103*KeyAssumptionsPriceControl_FO!AD$15 -> 0 | CJ103: =+V103*KeyAssumptionsPriceControl_FO!AE$15 -> 0 | CK103: =+W103*KeyAssumptionsPriceControl_FO!AF$15 -> 0 | CL103: =+X103*KeyAssumptionsPriceControl_FO!AG$15 -> 0 | CN103: 0 | CO103: 0 | CP103: 0.0006480205074 | CQ103: 0.003947741041 | CR103: 0.006599441067 | CS103: 0.006599441067 | CT103: 0.006599441067 | CU103: 0.006599441067 | CV103: 0.006599441067 | CW103: 0.006599441067
C104: Highton North Water Supply Improvements | E104: Water | F104: Improvements / Compliance | G104: Pipelines/network | H104: Other Capital expenditure | J104: Straight line | K104: 2024-25 | L104: 70 | M104: 50 | O104: 0 | P104: 0 | Q104: 0 | R104: 0 | S104: 0 | T104: 0 | U104: 0.73148855 | V104: 0 | W104: 0 | X104: 0 | Z104: 0 | AA104: 0 | AB104: 0 | AC104: 0 | AD104: 0 | AE104: 0 | AF104: 0 | AG104: 0 | AH104: 0 | AI104: 0 | AK104: 0 | AL104: 0 | AM104: 0 | AN104: 0 | AO104: 0 | AP104: 0 | AQ104: 0 | AR104: 0 | AS104: 0 | AT104: 0 | AV104: 0 | AW104: 0 | AX104: 0 | AY104: 0 | AZ104: 0 | BA104: 0 | BB104: 0.73148855 | BC104: 0 | BD104: 0 | BE104: 0 | BG104: 0 | BH104: 0 | BI104: 0 | BJ104: 0 | BK104: 0 | BL104: 0 | BM104: 0.005224918214 | BN104: 0.01044983643 | BO104: 0.01044983643 | BP104: 0.01044983643 | BR104: =+IF($K104="Ongoing",AV104,IF(RIGHT($K104,2)=RIGHT(BR$39,2),SUM($AV104:AV104),0)+IF(RIGHT(BR$39,2)>RIGHT($K104,2),AV104,0)) -> 0 | BS104: =+IF($K104="Ongoing",AW104,IF(RIGHT($K104,2)=RIGHT(BS$39,2),SUM($AV104:AW104),0)+IF(RIGHT(BS$39,2)>RIGHT($K104,2),AW104,0)) -> 0 | BT104: =+IF($K104="Ongoing",AX104,IF(RIGHT($K104,2)=RIGHT(BT$39,2),SUM($AV104:AX104),0)+IF(RIGHT(BT$39,2)>RIGHT($K104,2),AX104,0)) -> 0 | BU104: =+IF($K104="Ongoing",AY104,IF(RIGHT($K104,2)=RIGHT(BU$39,2),SUM($AV104:AY104),0)+IF(RIGHT(BU$39,2)>RIGHT($K104,2),AY104,0)) -> 0 | BV104: =+IF($K104="Ongoing",AZ104,IF(RIGHT($K104,2)=RIGHT(BV$39,2),SUM($AV104:AZ104),0)+IF(RIGHT(BV$39,2)>RIGHT($K104,2),AZ104,0)) -> 0 | BW104: =+IF($K104="Ongoing",BA104,IF(RIGHT($K104,2)=RIGHT(BW$39,2),SUM($AV104:BA104),0)+IF(RIGHT(BW$39,2)>RIGHT($K104,2),BA104,0)) -> 0 | BX104: =+IF($K104="Ongoing",BB104,IF(RIGHT($K104,2)=RIGHT(BX$39,2),SUM($AV104:BB104),0)+IF(RIGHT(BX$39,2)>RIGHT($K104,2),BB104,0)) -> 0.73148855 | BY104: =+IF($K104="Ongoing",BC104,IF(RIGHT($K104,2)=RIGHT(BY$39,2),SUM($AV104:BC104),0)+IF(RIGHT(BY$39,2)>RIGHT($K104,2),BC104,0)) -> 0 | BZ104: =+IF($K104="Ongoing",BD104,IF(RIGHT($K104,2)=RIGHT(BZ$39,2),SUM($AV104:BD104),0)+IF(RIGHT(BZ$39,2)>RIGHT($K104,2),BD104,0)) -> 0 | CA104: =+IF($K104="Ongoing",BE104,IF(RIGHT($K104,2)=RIGHT(CA$39,2),SUM($AV104:BE104),0)+IF(RIGHT(CA$39,2)>RIGHT($K104,2),BE104,0)) -> 0 | CC104: =+O104*KeyAssumptionsPriceControl_FO!X$15 -> 0 | CD104: =+P104*KeyAssumptionsPriceControl_FO!Y$15 -> 0 | CE104: =+Q104*KeyAssumptionsPriceControl_FO!Z$15 -> 0 | CF104: =+R104*KeyAssumptionsPriceControl_FO!AA$15 -> 0 | CG104: =+S104*KeyAssumptionsPriceControl_FO!AB$15 -> 0 | CH104: =+T104*KeyAssumptionsPriceControl_FO!AC$15 -> 0 | CI104: =+U104*KeyAssumptionsPriceControl_FO!AD$15 -> 0.8577030777 | CJ104: =+V104*KeyAssumptionsPriceControl_FO!AE$15 -> 0 | CK104: =+W104*KeyAssumptionsPriceControl_FO!AF$15 -> 0 | CL104: =+X104*KeyAssumptionsPriceControl_FO!AG$15 -> 0 | CN104: 0 | CO104: 0 | CP104: 0 | CQ104: 0 | CR104: 0 | CS104: 0 | CT104: 0.008577030777 | CU104: 0.01715406155 | CV104: 0.01715406155 | CW104: 0.01715406155
C105: Holburn Rise Water Sup Imprmt (ZV Reloc) | E105: Water | F105: Improvements / Compliance | G105: Pipelines/network | H105: Other Capital expenditure | J105: Straight line | K105: 2022-23 | L105: 70 | M105: 50 | O105: 0 | P105: 0 | Q105: 0 | R105: 0.02519192 | S105: 0.09769549 | T105: 0 | U105: 0 | V105: 0 | W105: 0 | X105: 0 | Z105: 0 | AA105: 0 | AB105: 0 | AC105: 0 | AD105: 0 | AE105: 0 | AF105: 0 | AG105: 0 | AH105: 0 | AI105: 0 | AK105: 0 | AL105: 0 | AM105: 0 | AN105: 0 | AO105: 0 | AP105: 0 | AQ105: 0 | AR105: 0 | AS105: 0 | AT105: 0 | AV105: 0 | AW105: 0 | AX105: 0 | AY105: 0.02519192 | AZ105: 0.09769549 | BA105: 0 | BB105: 0 | BC105: 0 | BD105: 0 | BE105: 0 | BG105: 0 | BH105: 0 | BI105: 0 | BJ105: 0 | BK105: 0.0008777672143 | BL105: 0.001755534429 | BM105: 0.001755534429 | BN105: 0.001755534429 | BO105: 0.001755534429 | BP105: 0.001755534429 | BR105: =+IF($K105="Ongoing",AV105,IF(RIGHT($K105,2)=RIGHT(BR$39,2),SUM($AV105:AV105),0)+IF(RIGHT(BR$39,2)>RIGHT($K105,2),AV105,0)) -> 0 | BS105: =+IF($K105="Ongoing",AW105,IF(RIGHT($K105,2)=RIGHT(BS$39,2),SUM($AV105:AW105),0)+IF(RIGHT(BS$39,2)>RIGHT($K105,2),AW105,0)) -> 0 | BT105: =+IF($K105="Ongoing",AX105,IF(RIGHT($K105,2)=RIGHT(BT$39,2),SUM($AV105:AX105),0)+IF(RIGHT(BT$39,2)>RIGHT($K105,2),AX105,0)) -> 0 | BU105: =+IF($K105="Ongoing",AY105,IF(RIGHT($K105,2)=RIGHT(BU$39,2),SUM($AV105:AY105),0)+IF(RIGHT(BU$39,2)>RIGHT($K105,2),AY105,0)) -> 0 | BV105: =+IF($K105="Ongoing",AZ105,IF(RIGHT($K105,2)=RIGHT(BV$39,2),SUM($AV105:AZ105),0)+IF(RIGHT(BV$39,2)>RIGHT($K105,2),AZ105,0)) -> 0.12288741 | BW105: =+IF($K105="Ongoing",BA105,IF(RIGHT($K105,2)=RIGHT(BW$39,2),SUM($AV105:BA105),0)+IF(RIGHT(BW$39,2)>RIGHT($K105,2),BA105,0)) -> 0 | BX105: =+IF($K105="Ongoing",BB105,IF(RIGHT($K105,2)=RIGHT(BX$39,2),SUM($AV105:BB105),0)+IF(RIGHT(BX$39,2)>RIGHT($K105,2),BB105,0)) -> 0 | BY105: =+IF($K105="Ongoing",BC105,IF(RIGHT($K105,2)=RIGHT(BY$39,2),SUM($AV105:BC105),0)+IF(RIGHT(BY$39,2)>RIGHT($K105,2),BC105,0)) -> 0 | BZ105: =+IF($K105="Ongoing",BD105,IF(RIGHT($K105,2)=RIGHT(BZ$39,2),SUM($AV105:BD105),0)+IF(RIGHT(BZ$39,2)>RIGHT($K105,2),BD105,0)) -> 0 | CA105: =+IF($K105="Ongoing",BE105,IF(RIGHT($K105,2)=RIGHT(CA$39,2),SUM($AV105:BE105),0)+IF(RIGHT(CA$39,2)>RIGHT($K105,2),BE105,0)) -> 0 | CC105: =+O105*KeyAssumptionsPriceControl_FO!X$15 -> 0 | CD105: =+P105*KeyAssumptionsPriceControl_FO!Y$15 -> 0 | CE105: =+Q105*KeyAssumptionsPriceControl_FO!Z$15 -> 0 | CF105: =+R105*KeyAssumptionsPriceControl_FO!AA$15 -> 0.02759076888 | CG105: =+S105*KeyAssumptionsPriceControl_FO!AB$15 -> 0.1094593044 | CH105: =+T105*KeyAssumptionsPriceControl_FO!AC$15 -> 0 | CI105: =+U105*KeyAssumptionsPriceControl_FO!AD$15 -> 0 | CJ105: =+V105*KeyAssumptionsPriceControl_FO!AE$15 -> 0 | CK105: =+W105*KeyAssumptionsPriceControl_FO!AF$15 -> 0 | CL105: =+X105*KeyAssumptionsPriceControl_FO!AG$15 -> 0 | CN105: 0 | CO105: 0 | CP105: 0 | CQ105: 0.0002759076888 | CR105: 0.001646408422 | CS105: 0.002741001466 | CT105: 0.002741001466 | CU105: 0.002741001466 | CV105: 0.002741001466 | CW105: 0.002741001466
C106: Jan Juc Low Lvl Water Supply Improvments | E106: Water | F106: Improvements / Compliance | G106: Pipelines/network | H106: Other Capital expenditure | J106: Straight line | K106: 2022-23 | L106: 70 | M106: 50 | O106: 0 | P106: 0 | Q106: 0 | R106: 0 | S106: 0.27664473 | T106: 0 | U106: 0 | V106: 0 | W106: 0 | X106: 0 | Z106: 0 | AA106: 0 | AB106: 0 | AC106: 0 | AD106: 0 | AE106: 0 | AF106: 0 | AG106: 0 | AH106: 0 | AI106: 0 | AK106: 0 | AL106: 0 | AM106: 0 | AN106: 0 | AO106: 0 | AP106: 0 | AQ106: 0 | AR106: 0 | AS106: 0 | AT106: 0 | AV106: 0 | AW106: 0 | AX106: 0 | AY106: 0 | AZ106: 0.27664473 | BA106: 0 | BB106: 0 | BC106: 0 | BD106: 0 | BE106: 0 | BG106: 0 | BH106: 0 | BI106: 0 | BJ106: 0 | BK106: 0.001976033786 | BL106: 0.003952067571 | BM106: 0.003952067571 | BN106: 0.003952067571 | BO106: 0.003952067571 | BP106: 0.003952067571 | BR106: =+IF($K106="Ongoing",AV106,IF(RIGHT($K106,2)=RIGHT(BR$39,2),SUM($AV106:AV106),0)+IF(RIGHT(BR$39,2)>RIGHT($K106,2),AV106,0)) -> 0 | BS106: =+IF($K106="Ongoing",AW106,IF(RIGHT($K106,2)=RIGHT(BS$39,2),SUM($AV106:AW106),0)+IF(RIGHT(BS$39,2)>RIGHT($K106,2),AW106,0)) -> 0 | BT106: =+IF($K106="Ongoing",AX106,IF(RIGHT($K106,2)=RIGHT(BT$39,2),SUM($AV106:AX106),0)+IF(RIGHT(BT$39,2)>RIGHT($K106,2),AX106,0)) -> 0 | BU106: =+IF($K106="Ongoing",AY106,IF(RIGHT($K106,2)=RIGHT(BU$39,2),SUM($AV106:AY106),0)+IF(RIGHT(BU$39,2)>RIGHT($K106,2),AY106,0)) -> 0 | BV106: =+IF($K106="Ongoing",AZ106,IF(RIGHT($K106,2)=RIGHT(BV$39,2),SUM($AV106:AZ106),0)+IF(RIGHT(BV$39,2)>RIGHT($K106,2),AZ106,0)) -> 0.27664473 | BW106: =+IF($K106="Ongoing",BA106,IF(RIGHT($K106,2)=RIGHT(BW$39,2),SUM($AV106:BA106),0)+IF(RIGHT(BW$39,2)>RIGHT($K106,2),BA106,0)) -> 0 | BX106: =+IF($K106="Ongoing",BB106,IF(RIGHT($K106,2)=RIGHT(BX$39,2),SUM($AV106:BB106),0)+IF(RIGHT(BX$39,2)>RIGHT($K106,2),BB106,0)) -> 0 | BY106: =+IF($K106="Ongoing",BC106,IF(RIGHT($K106,2)=RIGHT(BY$39,2),SUM($AV106:BC106),0)+IF(RIGHT(BY$39,2)>RIGHT($K106,2),BC106,0)) -> 0 | BZ106: =+IF($K106="Ongoing",BD106,IF(RIGHT($K106,2)=RIGHT(BZ$39,2),SUM($AV106:BD106),0)+IF(RIGHT(BZ$39,2)>RIGHT($K106,2),BD106,0)) -> 0 | CA106: =+IF($K106="Ongoing",BE106,IF(RIGHT($K106,2)=RIGHT(CA$39,2),SUM($AV106:BE106),0)+IF(RIGHT(CA$39,2)>RIGHT($K106,2),BE106,0)) -> 0 | CC106: =+O106*KeyAssumptionsPriceControl_FO!X$15 -> 0 | CD106: =+P106*KeyAssumptionsPriceControl_FO!Y$15 -> 0 | CE106: =+Q106*KeyAssumptionsPriceControl_FO!Z$15 -> 0 | CF106: =+R106*KeyAssumptionsPriceControl_FO!AA$15 -> 0 | CG106: =+S106*KeyAssumptionsPriceControl_FO!AB$15 -> 0.3099563728 | CH106: =+T106*KeyAssumptionsPriceControl_FO!AC$15 -> 0 | CI106: =+U106*KeyAssumptionsPriceControl_FO!AD$15 -> 0 | CJ106: =+V106*KeyAssumptionsPriceControl_FO!AE$15 -> 0 | CK106: =+W106*KeyAssumptionsPriceControl_FO!AF$15 -> 0 | CL106: =+X106*KeyAssumptionsPriceControl_FO!AG$15 -> 0 | CN106: 0 | CO106: 0 | CP106: 0 | CQ106: 0 | CR106: 0.003099563728 | CS106: 0.006199127456 | CT106: 0.006199127456 | CU106: 0.006199127456 | CV106: 0.006199127456 | CW106: 0.006199127456
C107: Jetty Road Feeder Mains Stage 4 | E107: Water | F107: Growth | G107: Pipelines/network | H107: Other Capital expenditure | J107: Straight line | K107: 2019-20 | L107: 70 | M107: 50 | O107: 0.05233942 | P107: 0.05233942 | Q107: 0 | R107: 0 | S107: 0 | T107: 0 | U107: 0 | V107: 0 | W107: 0 | X107: 0 | Z107: 0 | AA107: 0 | AB107: 0 | AC107: 0 | AD107: 0 | AE107: 0 | AF107: 0 | AG107: 0 | AH107: 0 | AI107: 0 | AK107: 0.03644220403 | AL107: 0.02707941107 | AM107: 0 | AN107: 0 | AO107: 0 | AP107: 0 | AQ107: 0 | AR107: 0 | AS107: 0 | AT107: 0 | AV107: 0.01589721597 | AW107: 0.02526000893 | AX107: 0 | AY107: 0 | AZ107: 0 | BA107: 0 | BB107: 0 | BC107: 0 | BD107: 0 | BE107: 0 | BG107: =IF($L107=0,0, IF($L107<=0.5,BR107, IF($J107="straight line", IF((LEFT(BG$39,4)*1)-INT($L107)<LEFT($BG$39,4)*1,0,((OFFSET(BR107,0,-INT($L107+0.5),1,1))/$L107)*(IF($L107-INT($L107)>0.5,$L107-0.5-INT($L107),IF($L107-INT($L107)<=0.5,$L107-0.5-INT($L107)+1,0)))) +BR107/$L107*0.5, IF($J107="Declining Balance",-$BG$38,0)))) -> 0 | BH107: 0.0002939801778 | BI107: 0.0005879603557 | BJ107: 0.0005879603557 | BK107: 0.0005879603557 | BL107: 0.0005879603557 | BM107: 0.0005879603557 | BN107: 0.0005879603557 | BO107: 0.0005879603557 | BP107: 0.0005879603557 | BR107: =+IF($K107="Ongoing",AV107,IF(RIGHT($K107,2)=RIGHT(BR$39,2),SUM($AV107:AV107),0)+IF(RIGHT(BR$39,2)>RIGHT($K107,2),AV107,0)) -> 0 | BS107: =+IF($K107="Ongoing",AW107,IF(RIGHT($K107,2)=RIGHT(BS$39,2),SUM($AV107:AW107),0)+IF(RIGHT(BS$39,2)>RIGHT($K107,2),AW107,0)) -> 0.0411572249 | BT107: =+IF($K107="Ongoing",AX107,IF(RIGHT($K107,2)=RIGHT(BT$39,2),SUM($AV107:AX107),0)+IF(RIGHT(BT$39,2)>RIGHT($K107,2),AX107,0)) -> 0 | BU107: =+IF($K107="Ongoing",AY107,IF(RIGHT($K107,2)=RIGHT(BU$39,2),SUM($AV107:AY107),0)+IF(RIGHT(BU$39,2)>RIGHT($K107,2),AY107,0)) -> 0 | BV107: =+IF($K107="Ongoing",AZ107,IF(RIGHT($K107,2)=RIGHT(BV$39,2),SUM($AV107:AZ107),0)+IF(RIGHT(BV$39,2)>RIGHT($K107,2),AZ107,0)) -> 0 | BW107: =+IF($K107="Ongoing",BA107,IF(RIGHT($K107,2)=RIGHT(BW$39,2),SUM($AV107:BA107),0)+IF(RIGHT(BW$39,2)>RIGHT($K107,2),BA107,0)) -> 0 | BX107: =+IF($K107="Ongoing",BB107,IF(RIGHT($K107,2)=RIGHT(BX$39,2),SUM($AV107:BB107),0)+IF(RIGHT(BX$39,2)>RIGHT($K107,2),BB107,0)) -> 0 | BY107: =+IF($K107="Ongoing",BC107,IF(RIGHT($K107,2)=RIGHT(BY$39,2),SUM($AV107:BC107),0)+IF(RIGHT(BY$39,2)>RIGHT($K107,2),BC107,0)) -> 0 | BZ107: =+IF($K107="Ongoing",BD107,IF(RIGHT($K107,2)=RIGHT(BZ$39,2),SUM($AV107:BD107),0)+IF(RIGHT(BZ$39,2)>RIGHT($K107,2),BD107,0)) -> 0 | CA107: =+IF($K107="Ongoing",BE107,IF(RIGHT($K107,2)=RIGHT(CA$39,2),SUM($AV107:BE107),0)+IF(RIGHT(CA$39,2)>RIGHT($K107,2),BE107,0)) -> 0 | CC107: =+O107*KeyAssumptionsPriceControl_FO!X$15 -> 0.05354322666 | CD107: =+P107*KeyAssumptionsPriceControl_FO!Y$15 -> 0.05477472087 | CE107: =+Q107*KeyAssumptionsPriceControl_FO!Z$15 -> 0 | CF107: =+R107*KeyAssumptionsPriceControl_FO!AA$15 -> 0 | CG107: =+S107*KeyAssumptionsPriceControl_FO!AB$15 -> 0 | CH107: =+T107*KeyAssumptionsPriceControl_FO!AC$15 -> 0 | CI107: =+U107*KeyAssumptionsPriceControl_FO!AD$15 -> 0 | CJ107: =+V107*KeyAssumptionsPriceControl_FO!AE$15 -> 0 | CK107: =+W107*KeyAssumptionsPriceControl_FO!AF$15 -> 0 | CL107: =+X107*KeyAssumptionsPriceControl_FO!AG$15 -> 0 | CN107: =IF($M107=0,0, IF($M107<=0.5,CC107, IF($J107="straight line", IF((LEFT(CN$39,4)*1)-INT($M107)<LEFT($CN$39,4)*1,0,((OFFSET(CC107,0,-INT($M107+0.5),1,1))/$M107)*(IF($M107-INT($M107)>0.5,$M107-0.5-INT($M107),IF($M107-INT($M107)<=0.5,$M107-0.5-INT($M107)+1,0)))) +CC107/$M107*0.5, IF($J107="Declining Balance",-$CN$38,0)))) -> 0.0005354322666 | CO107: 0.001618611742 | CP107: 0.002166358951 | CQ107: 0.002166358951 | CR107: 0.002166358951 | CS107: 0.002166358951 | CT107: 0.002166358951 | CU107: 0.002166358951 | CV107: 0.002166358951 | CW107: 0.002166358951
C108: Jetty Road Feeder Mains Stage 5 | E108: Water | F108: Growth | G108: Pipelines/network | H108: Other Capital expenditure | J108: Straight line | K108: 2028-29 | L108: 70 | M108: 50 | O108: 0 | P108: 0 | Q108: 0.22778625 | R108: 0.22778625 | S108: 0.22778625 | T108: 0.68335774 | U108: 0.68335774 | V108: 1.13892937 | W108: 0.45557175 | X108: 0.45557175 | Z108: 0 | AA108: 0 | AB108: 0 | AC108: 0 | AD108: 0 | AE108: 0 | AF108: 0 | AG108: 0 | AH108: 0 | AI108: 0 | AK108: 0 | AL108: 0 | AM108: 0.1889535284 | AN108: 0.1696727681 | AO108: 0.1782478393 | AP108: 0.1782478393 | AQ108: 0.1782478393 | AR108: 0.1782478393 | AS108: 0.1782478393 | AT108: 0.1782478393 | AV108: 0 | AW108: 0 | AX108: 0.0388327216 | AY108: 0.05811348187 | AZ108: 0.04953841074 | BA108: 0.5051099007 | BB108: 0.5051099007 | BC108: 0.9606815307 | BD108: 0.2773239107 | BE108: 0.2773239107 | BG108: 0 | BH108: 0 | BI108: 0 | BJ108: 0 | BK108: 0 | BL108: 0 | BM108: 0 | BN108: 0 | BO108: 0 | BP108: 0 | BR108: =+IF($K108="Ongoing",AV108,IF(RIGHT($K108,2)=RIGHT(BR$39,2),SUM($AV108:AV108),0)+IF(RIGHT(BR$39,2)>RIGHT($K108,2),AV108,0)) -> 0 | BS108: =+IF($K108="Ongoing",AW108,IF(RIGHT($K108,2)=RIGHT(BS$39,2),SUM($AV108:AW108),0)+IF(RIGHT(BS$39,2)>RIGHT($K108,2),AW108,0)) -> 0 | BT108: =+IF($K108="Ongoing",AX108,IF(RIGHT($K108,2)=RIGHT(BT$39,2),SUM($AV108:AX108),0)+IF(RIGHT(BT$39,2)>RIGHT($K108,2),AX108,0)) -> 0 | BU108: =+IF($K108="Ongoing",AY108,IF(RIGHT($K108,2)=RIGHT(BU$39,2),SUM($AV108:AY108),0)+IF(RIGHT(BU$39,2)>RIGHT($K108,2),AY108,0)) -> 0 | BV108: =+IF($K108="Ongoing",AZ108,IF(RIGHT($K108,2)=RIGHT(BV$39,2),SUM($AV108:AZ108),0)+IF(RIGHT(BV$39,2)>RIGHT($K108,2),AZ108,0)) -> 0 | BW108: =+IF($K108="Ongoing",BA108,IF(RIGHT($K108,2)=RIGHT(BW$39,2),SUM($AV108:BA108),0)+IF(RIGHT(BW$39,2)>RIGHT($K108,2),BA108,0)) -> 0 | BX108: =+IF($K108="Ongoing",BB108,IF(RIGHT($K108,2)=RIGHT(BX$39,2),SUM($AV108:BB108),0)+IF(RIGHT(BX$39,2)>RIGHT($K108,2),BB108,0)) -> 0 | BY108: =+IF($K108="Ongoing",BC108,IF(RIGHT($K108,2)=RIGHT(BY$39,2),SUM($AV108:BC108),0)+IF(RIGHT(BY$39,2)>RIGHT($K108,2),BC108,0)) -> 0 | BZ108: =+IF($K108="Ongoing",BD108,IF(RIGHT($K108,2)=RIGHT(BZ$39,2),SUM($AV108:BD108),0)+IF(RIGHT(BZ$39,2)>RIGHT($K108,2),BD108,0)) -> 0 | CA108: =+IF($K108="Ongoing",BE108,IF(RIGHT($K108,2)=RIGHT(CA$39,2),SUM($AV108:BE108),0)+IF(RIGHT(CA$39,2)>RIGHT($K108,2),BE108,0)) -> 0 | CC108: =+O108*KeyAssumptionsPriceControl_FO!X$15 -> 0 | CD108: =+P108*KeyAssumptionsPriceControl_FO!Y$15 -> 0 | CE108: =+Q108*KeyAssumptionsPriceControl_FO!Z$15 -> 0.2438677695 | CF108: =+R108*KeyAssumptionsPriceControl_FO!AA$15 -> 0.2494767282 | CG108: =+S108*KeyAssumptionsPriceControl_FO!AB$15 -> 0.255214693 | CH108: =+T108*KeyAssumptionsPriceControl_FO!AC$15 -> 0.783252735 | CI108: =+U108*KeyAssumptionsPriceControl_FO!AD$15 -> 0.8012675479 | CJ108: =+V108*KeyAssumptionsPriceControl_FO!AE$15 -> 1.366160933 | CK108: =+W108*KeyAssumptionsPriceControl_FO!AF$15 -> 0.5590330564 | CL108: =+X108*KeyAssumptionsPriceControl_FO!AG$15 -> 0.5718908167 | CN108: 0 | CO108: 0 | CP108: 0.002438677695 | CQ108: 0.007372122672 | CR108: 0.01241903688 | CS108: 0.02280371116 | CT108: 0.03864891399 | CU108: 0.06032319881 | CV108: 0.0795751387 | CW108: 0.09088437743
C109: Lara West Feeder Main Stage 1B (300DN) | E109: Water | F109: Growth | G109: Pipelines/network | H109: Other Capital expenditure | J109: Straight line | K109: 2028-29 | L109: 70 | M109: 50 | O109: 0 | P109: 0 | Q109: 0 | R109: 0 | S109: 0 | T109: 0 | U109: 0 | V109: 0 | W109: 0.13275219 | X109: 0.13275219 | Z109: 0 | AA109: 0 | AB109: 0 | AC109: 0 | AD109: 0 | AE109: 0 | AF109: 0 | AG109: 0 | AH109: 0 | AI109: 0 | AK109: 0 | AL109: 0 | AM109: 0 | AN109: 0 | AO109: 0 | AP109: 0 | AQ109: 0 | AR109: 0 | AS109: 0 | AT109: 0 | AV109: 0 | AW109: 0 | AX109: 0 | AY109: 0 | AZ109: 0 | BA109: 0 | BB109: 0 | BC109: 0 | BD109: 0.13275219 | BE109: 0.13275219 | BG109: 0 | BH109: 0 | BI109: 0 | BJ109: 0 | BK109: 0 | BL109: 0 | BM109: 0 | BN109: 0 | BO109: 0 | BP109: 0 | BR109: =+IF($K109="Ongoing",AV109,IF(RIGHT($K109,2)=RIGHT(BR$39,2),SUM($AV109:AV109),0)+IF(RIGHT(BR$39,2)>RIGHT($K109,2),AV109,0)) -> 0 | BS109: =+IF($K109="Ongoing",AW109,IF(RIGHT($K109,2)=RIGHT(BS$39,2),SUM($AV109:AW109),0)+IF(RIGHT(BS$39,2)>RIGHT($K109,2),AW109,0)) -> 0 | BT109: =+IF($K109="Ongoing",AX109,IF(RIGHT($K109,2)=RIGHT(BT$39,2),SUM($AV109:AX109),0)+IF(RIGHT(BT$39,2)>RIGHT($K109,2),AX109,0)) -> 0 | BU109: =+IF($K109="Ongoing",AY109,IF(RIGHT($K109,2)=RIGHT(BU$39,2),SUM($AV109:AY109),0)+IF(RIGHT(BU$39,2)>RIGHT($K109,2),AY109,0)) -> 0 | BV109: =+IF($K109="Ongoing",AZ109,IF(RIGHT($K109,2)=RIGHT(BV$39,2),SUM($AV109:AZ109),0)+IF(RIGHT(BV$39,2)>RIGHT($K109,2),AZ109,0)) -> 0 | BW109: =+IF($K109="Ongoing",BA109,IF(RIGHT($K109,2)=RIGHT(BW$39,2),SUM($AV109:BA109),0)+IF(RIGHT(BW$39,2)>RIGHT($K109,2),BA109,0)) -> 0 | BX109: =+IF($K109="Ongoing",BB109,IF(RIGHT($K109,2)=RIGHT(BX$39,2),SUM($AV109:BB109),0)+IF(RIGHT(BX$39,2)>RIGHT($K109,2),BB109,0)) -> 0 | BY109: =+IF($K109="Ongoing",BC109,IF(RIGHT($K109,2)=RIGHT(BY$39,2),SUM($AV109:BC109),0)+IF(RIGHT(BY$39,2)>RIGHT($K109,2),BC109,0)) -> 0 | BZ109: =+IF($K109="Ongoing",BD109,IF(RIGHT($K109,2)=RIGHT(BZ$39,2),SUM($AV109:BD109),0)+IF(RIGHT(BZ$39,2)>RIGHT($K109,2),BD109,0)) -> 0 | CA109: =+IF($K109="Ongoing",BE109,IF(RIGHT($K109,2)=RIGHT(CA$39,2),SUM($AV109:BE109),0)+IF(RIGHT(CA$39,2)>RIGHT($K109,2),BE109,0)) -> 0 | CC109: =+O109*KeyAssumptionsPriceControl_FO!X$15 -> 0 | CD109: =+P109*KeyAssumptionsPriceControl_FO!Y$15 -> 0 | CE109: =+Q109*KeyAssumptionsPriceControl_FO!Z$15 -> 0 | CF109: =+R109*KeyAssumptionsPriceControl_FO!AA$15 -> 0 | CG109: =+S109*KeyAssumptionsPriceControl_FO!AB$15 -> 0 | CH109: =+T109*KeyAssumptionsPriceControl_FO!AC$15 -> 0 | CI109: =+U109*KeyAssumptionsPriceControl_FO!AD$15 -> 0 | CJ109: =+V109*KeyAssumptionsPriceControl_FO!AE$15 -> 0 | CK109: =+W109*KeyAssumptionsPriceControl_FO!AF$15 -> 0.1629004927 | CL109: =+X109*KeyAssumptionsPriceControl_FO!AG$15 -> 0.166647204 | CN109: 0 | CO109: 0 | CP109: 0 | CQ109: 0 | CR109: 0 | CS109: 0 | CT109: 0 | CU109: 0 | CV109: 0.001629004927 | CW109: 0.004924481893
C110: Lara West Feeder Mains Stage 2 (225DN) | E110: Water | F110: Growth | G110: Pipelines/network | H110: Other Capital expenditure | J110: Straight line | K110: 2028-29 | L110: 70 | M110: 50 | O110: 0 | P110: 0.12997667 | Q110: 0.12997667 | R110: 0.12997667 | S110: 0.12997667 | T110: 0.12997667 | U110: 0.12997667 | V110: 0.12997667 | W110: 0.12997667 | X110: 0.12997667 | Z110: 0 | AA110: 0 | AB110: 0 | AC110: 0 | AD110: 0 | AE110: 0 | AF110: 0 | AG110: 0 | AH110: 0 | AI110: 0 | AK110: 0 | AL110: 0.06724743371 | AM110: 0.1078184061 | AN110: 0.0968166489 | AO110: 0.1017096536 | AP110: 0.1017096536 | AQ110: 0.1017096536 | AR110: 0.1017096536 | AS110: 0.1017096536 | AT110: 0.1017096536 | AV110: 0 | AW110: 0.06272923629 | AX110: 0.0221582639 | AY110: 0.0331600211 | AZ110: =+S110-AD110-AO110 -> 0.0282670164 | BA110: 0.0282670164 | BB110: 0.0282670164 | BC110: 0.0282670164 | BD110: 0.0282670164 | BE110: 0.0282670164 | BG110: 0 | BH110: 0 | BI110: 0 | BJ110: 0 | BK110: 0 | BL110: 0 | BM110: 0 | BN110: 0 | BO110: 0 | BP110: 0 | BR110: =+IF($K110="Ongoing",AV110,IF(RIGHT($K110,2)=RIGHT(BR$39,2),SUM($AV110:AV110),0)+IF(RIGHT(BR$39,2)>RIGHT($K110,2),AV110,0)) -> 0 | BS110: =+IF($K110="Ongoing",AW110,IF(RIGHT($K110,2)=RIGHT(BS$39,2),SUM($AV110:AW110),0)+IF(RIGHT(BS$39,2)>RIGHT($K110,2),AW110,0)) -> 0 | BT110: =+IF($K110="Ongoing",AX110,IF(RIGHT($K110,2)=RIGHT(BT$39,2),SUM($AV110:AX110),0)+IF(RIGHT(BT$39,2)>RIGHT($K110,2),AX110,0)) -> 0 | BU110: =+IF($K110="Ongoing",AY110,IF(RIGHT($K110,2)=RIGHT(BU$39,2),SUM($AV110:AY110),0)+IF(RIGHT(BU$39,2)>RIGHT($K110,2),AY110,0)) -> 0 | BV110: =+IF($K110="Ongoing",AZ110,IF(RIGHT($K110,2)=RIGHT(BV$39,2),SUM($AV110:AZ110),0)+IF(RIGHT(BV$39,2)>RIGHT($K110,2),AZ110,0)) -> 0 | BW110: =+IF($K110="Ongoing",BA110,IF(RIGHT($K110,2)=RIGHT(BW$39,2),SUM($AV110:BA110),0)+IF(RIGHT(BW$39,2)>RIGHT($K110,2),BA110,0)) -> 0 | BX110: =+IF($K110="Ongoing",BB110,IF(RIGHT($K110,2)=RIGHT(BX$39,2),SUM($AV110:BB110),0)+IF(RIGHT(BX$39,2)>RIGHT($K110,2),BB110,0)) -> 0 | BY110: =+IF($K110="Ongoing",BC110,IF(RIGHT($K110,2)=RIGHT(BY$39,2),SUM($AV110:BC110),0)+IF(RIGHT(BY$39,2)>RIGHT($K110,2),BC110,0)) -> 0 | BZ110: =+IF($K110="Ongoing",BD110,IF(RIGHT($K110,2)=RIGHT(BZ$39,2),SUM($AV110:BD110),0)+IF(RIGHT(BZ$39,2)>RIGHT($K110,2),BD110,0)) -> 0 | CA110: =+IF($K110="Ongoing",BE110,IF(RIGHT($K110,2)=RIGHT(CA$39,2),SUM($AV110:BE110),0)+IF(RIGHT(CA$39,2)>RIGHT($K110,2),BE110,0)) -> 0 | CC110: =+O110*KeyAssumptionsPriceControl_FO!X$15 -> 0 | CD110: =+P110*KeyAssumptionsPriceControl_FO!Y$15 -> 0.1360243545 | CE110: =+Q110*KeyAssumptionsPriceControl_FO!Z$15 -> 0.1391529146 | CF110: =+R110*KeyAssumptionsPriceControl_FO!AA$15 -> 0.1423534317 | CG110: =+S110*KeyAssumptionsPriceControl_FO!AB$15 -> 0.1456275606 | CH110: =+T110*KeyAssumptionsPriceControl_FO!AC$15 -> 0.1489769945 | CI110: =+U110*KeyAssumptionsPriceControl_FO!AD$15 -> 0.1524034654 | CJ110: =+V110*KeyAssumptionsPriceControl_FO!AE$15 -> 0.1559087451 | CK110: =+W110*KeyAssumptionsPriceControl_FO!AF$15 -> 0.1594946462 | CL110: =+X110*KeyAssumptionsPriceControl_FO!AG$15 -> 0.1631630231 | CN110: 0 | CO110: 0.001360243545 | CP110: 0.004112016236 | CQ110: 0.006927079699 | CR110: 0.009806889622 | CS110: 0.01275293517 | CT110: 0.01576673977 | CU110: 0.01884986188 | CV110: 0.02200389579 | CW110: 0.02523047248
C111: Lara West Feeder Mains Stg 3 (Manzeene) | E111: Water | F111: Growth | G111: Pipelines/network | H111: Other Capital expenditure | J111: Straight line | K111: 2023-24 | L111: 70 | M111: 50 | O111: 0 | P111: 0.10490668 | Q111: 0 | R111: 0.20981337 | S111: 0.06993779 | T111: 0.06993779 | U111: 0 | V111: 0 | W111: 0 | X111: 0 | Z111: 0 | AA111: 0 | AB111: 0 | AC111: 0 | AD111: 0 | AE111: 0 | AF111: 0 | AG111: 0 | AH111: 0 | AI111: 0 | AK111: 0 | AL111: 0.05427670219 | AM111: 0 | AN111: 0.1562851809 | AO111: 0.05472788612 | AP111: 0.05472788612 | AQ111: 0.05472788612 | AR111: 0.05472788612 | AS111: 0.05472788612 | AT111: 0.05472788612 | AV111: 0 | AW111: 0.05062997781 | AX111: 0 | AY111: 0.05352818914 | AZ111: 0.01520990388 | BA111: 0.01520990388 | BB111: -0.05472788612 | BC111: -0.05472788612 | BD111: -0.05472788612 | BE111: -0.05472788612 | BG111: 0 | BH111: 0 | BI111: 0 | BJ111: 0 | BK111: 0 | BL111: 0.000961271248 | BM111: 0.001531629024 | BN111: 0.000749802079 | BO111: -3.202486555e-05 | BP111: -0.0008138518101 | BR111: =+IF($K111="Ongoing",AV111,IF(RIGHT($K111,2)=RIGHT(BR$39,2),SUM($AV111:AV111),0)+IF(RIGHT(BR$39,2)>RIGHT($K111,2),AV111,0)) -> 0 | BS111: =+IF($K111="Ongoing",AW111,IF(RIGHT($K111,2)=RIGHT(BS$39,2),SUM($AV111:AW111),0)+IF(RIGHT(BS$39,2)>RIGHT($K111,2),AW111,0)) -> 0 | BT111: =+IF($K111="Ongoing",AX111,IF(RIGHT($K111,2)=RIGHT(BT$39,2),SUM($AV111:AX111),0)+IF(RIGHT(BT$39,2)>RIGHT($K111,2),AX111,0)) -> 0 | BU111: =+IF($K111="Ongoing",AY111,IF(RIGHT($K111,2)=RIGHT(BU$39,2),SUM($AV111:AY111),0)+IF(RIGHT(BU$39,2)>RIGHT($K111,2),AY111,0)) -> 0 | BV111: =+IF($K111="Ongoing",AZ111,IF(RIGHT($K111,2)=RIGHT(BV$39,2),SUM($AV111:AZ111),0)+IF(RIGHT(BV$39,2)>RIGHT($K111,2),AZ111,0)) -> 0 | BW111: =+IF($K111="Ongoing",BA111,IF(RIGHT($K111,2)=RIGHT(BW$39,2),SUM($AV111:BA111),0)+IF(RIGHT(BW$39,2)>RIGHT($K111,2),BA111,0)) -> 0.1345779747 | BX111: =+IF($K111="Ongoing",BB111,IF(RIGHT($K111,2)=RIGHT(BX$39,2),SUM($AV111:BB111),0)+IF(RIGHT(BX$39,2)>RIGHT($K111,2),BB111,0)) -> -0.05472788612 | BY111: =+IF($K111="Ongoing",BC111,IF(RIGHT($K111,2)=RIGHT(BY$39,2),SUM($AV111:BC111),0)+IF(RIGHT(BY$39,2)>RIGHT($K111,2),BC111,0)) -> -0.05472788612 | BZ111: =+IF($K111="Ongoing",BD111,IF(RIGHT($K111,2)=RIGHT(BZ$39,2),SUM($AV111:BD111),0)+IF(RIGHT(BZ$39,2)>RIGHT($K111,2),BD111,0)) -> -0.05472788612 | CA111: =+IF($K111="Ongoing",BE111,IF(RIGHT($K111,2)=RIGHT(CA$39,2),SUM($AV111:BE111),0)+IF(RIGHT(CA$39,2)>RIGHT($K111,2),BE111,0)) -> -0.05472788612 | CC111: =+O111*KeyAssumptionsPriceControl_FO!X$15 -> 0 | CD111: =+P111*KeyAssumptionsPriceControl_FO!Y$15 -> 0.1097878829 | CE111: =+Q111*KeyAssumptionsPriceControl_FO!Z$15 -> 0 | CF111: =+R111*KeyAssumptionsPriceControl_FO!AA$15 -> 0.2297924176 | CG111: =+S111*KeyAssumptionsPriceControl_FO!AB$15 -> 0.0783592144 | CH111: =+T111*KeyAssumptionsPriceControl_FO!AC$15 -> 0.08016147633 | CI111: =+U111*KeyAssumptionsPriceControl_FO!AD$15 -> 0 | CJ111: =+V111*KeyAssumptionsPriceControl_FO!AE$15 -> 0 | CK111: =+W111*KeyAssumptionsPriceControl_FO!AF$15 -> 0 | CL111: =+X111*KeyAssumptionsPriceControl_FO!AG$15 -> 0 | CN111: 0 | CO111: 0.001097878829 | CP111: 0.002195757658 | CQ111: 0.004493681834 | CR111: 0.007575198154 | CS111: 0.009160405061 | CT111: 0.009962019825 | CU111: 0.009962019825 | CV111: 0.009962019825 | CW111: 0.009962019825
C112: Leopold High Level Feeder Main Stage 1 | E112: Water | F112: Growth | G112: Pipelines/network | H112: Other Capital expenditure | J112: Straight line | K112: 2022-23 | L112: 70 | M112: 50 | O112: 0.5115476 | P112: 0.15346428 | Q112: 0.58462568 | R112: 0.07307808 | S112: 0.07307808 | T112: 0 | U112: 0 | V112: 0 | W112: 0 | X112: 0 | Z112: 0 | AA112: 0 | AB112: 0 | AC112: 0 | AD112: 0 | AE112: 0 | AF112: 0 | AG112: 0 | AH112: 0 | AI112: 0 | AK112: 0.3561736452 | AL112: 0.0793994722 | AM112: 0.4849594084 | AN112: 0.05443419049 | AO112: 0.05718523334 | AP112: 0.05718523334 | AQ112: 0.05718523334 | AR112: 0.05718523334 | AS112: 0.05718523334 | AT112: 0.05718523334 | AV112: 0.1553739548 | AW112: 0.0740648078 | AX112: 0.09966627165 | AY112: 0.01864388951 | AZ112: 0.01589284666 | BA112: -0.05718523334 | BB112: -0.05718523334 | BC112: -0.05718523334 | BD112: -0.05718523334 | BE112: -0.05718523334 | BG112: 0 | BH112: 0 | BI112: 0 | BJ112: 0 | BK112: 0.002597441217 | BL112: 0.004786416482 | BM112: 0.003969484577 | BN112: 0.003152552672 | BO112: 0.002335620767 | BP112: 0.001518688862 | BR112: =+IF($K112="Ongoing",AV112,IF(RIGHT($K112,2)=RIGHT(BR$39,2),SUM($AV112:AV112),0)+IF(RIGHT(BR$39,2)>RIGHT($K112,2),AV112,0)) -> 0 | BS112: =+IF($K112="Ongoing",AW112,IF(RIGHT($K112,2)=RIGHT(BS$39,2),SUM($AV112:AW112),0)+IF(RIGHT(BS$39,2)>RIGHT($K112,2),AW112,0)) -> 0 | BT112: =+IF($K112="Ongoing",AX112,IF(RIGHT($K112,2)=RIGHT(BT$39,2),SUM($AV112:AX112),0)+IF(RIGHT(BT$39,2)>RIGHT($K112,2),AX112,0)) -> 0 | BU112: =+IF($K112="Ongoing",AY112,IF(RIGHT($K112,2)=RIGHT(BU$39,2),SUM($AV112:AY112),0)+IF(RIGHT(BU$39,2)>RIGHT($K112,2),AY112,0)) -> 0 | BV112: =+IF($K112="Ongoing",AZ112,IF(RIGHT($K112,2)=RIGHT(BV$39,2),SUM($AV112:AZ112),0)+IF(RIGHT(BV$39,2)>RIGHT($K112,2),AZ112,0)) -> 0.3636417704 | BW112: =+IF($K112="Ongoing",BA112,IF(RIGHT($K112,2)=RIGHT(BW$39,2),SUM($AV112:BA112),0)+IF(RIGHT(BW$39,2)>RIGHT($K112,2),BA112,0)) -> -0.05718523334 | BX112: =+IF($K112="Ongoing",BB112,IF(RIGHT($K112,2)=RIGHT(BX$39,2),SUM($AV112:BB112),0)+IF(RIGHT(BX$39,2)>RIGHT($K112,2),BB112,0)) -> -0.05718523334 | BY112: =+IF($K112="Ongoing",BC112,IF(RIGHT($K112,2)=RIGHT(BY$39,2),SUM($AV112:BC112),0)+IF(RIGHT(BY$39,2)>RIGHT($K112,2),BC112,0)) -> -0.05718523334 | BZ112: =+IF($K112="Ongoing",BD112,IF(RIGHT($K112,2)=RIGHT(BZ$39,2),SUM($AV112:BD112),0)+IF(RIGHT(BZ$39,2)>RIGHT($K112,2),BD112,0)) -> -0.05718523334 | CA112: =+IF($K112="Ongoing",BE112,IF(RIGHT($K112,2)=RIGHT(CA$39,2),SUM($AV112:BE112),0)+IF(RIGHT(CA$39,2)>RIGHT($K112,2),BE112,0)) -> -0.05718523334 | CC112: =+O112*KeyAssumptionsPriceControl_FO!X$15 -> 0.5233131948 | CD112: =+P112*KeyAssumptionsPriceControl_FO!Y$15 -> 0.1606048195 | CE112: =+Q112*KeyAssumptionsPriceControl_FO!Z$15 -> 0.625899766 | CF112: =+R112*KeyAssumptionsPriceControl_FO!AA$15 -> 0.0800367902 | CG112: =+S112*KeyAssumptionsPriceControl_FO!AB$15 -> 0.08187763637 | CH112: =+T112*KeyAssumptionsPriceControl_FO!AC$15 -> 0 | CI112: =+U112*KeyAssumptionsPriceControl_FO!AD$15 -> 0 | CJ112: =+V112*KeyAssumptionsPriceControl_FO!AE$15 -> 0 | CK112: =+W112*KeyAssumptionsPriceControl_FO!AF$15 -> 0 | CL112: =+X112*KeyAssumptionsPriceControl_FO!AG$15 -> 0 | CN112: 0.005233131948 | CO112: 0.01207231209 | CP112: 0.01993735795 | CQ112: 0.02699672351 | CR112: 0.02861586777 | CS112: 0.02943464414 | CT112: 0.02943464414 | CU112: 0.02943464414 | CV112: 0.02943464414 | CW112: 0.02943464414
C113: Lethbridge Break Pressure Tank Replace | E113: Water | F113: Improvements / Compliance | G113: Pipelines/network | H113: Other Capital expenditure | J113: Straight line | K113: 2024-25 | L113: 70 | M113: 50 | O113: 0 | P113: 0 | Q113: 0 | R113: 0 | S113: 0 | T113: 0 | U113: 0.53310429 | V113: 0 | W113: 0 | X113: 0 | Z113: 0 | AA113: 0 | AB113: 0 | AC113: 0 | AD113: 0 | AE113: 0 | AF113: 0 | AG113: 0 | AH113: 0 | AI113: 0 | AK113: 0 | AL113: 0 | AM113: 0 | AN113: 0 | AO113: 0 | AP113: 0 | AQ113: 0 | AR113: 0 | AS113: 0 | AT113: 0 | AV113: 0 | AW113: 0 | AX113: 0 | AY113: 0 | AZ113: 0 | BA113: 0 | BB113: 0.53310429 | BC113: 0 | BD113: 0 | BE113: 0 | BG113: 0 | BH113: 0 | BI113: 0 | BJ113: 0 | BK113: 0 | BL113: 0 | BM113: 0.003807887786 | BN113: 0.007615775571 | BO113: 0.007615775571 | BP113: 0.007615775571 | BR113: =+IF($K113="Ongoing",AV113,IF(RIGHT($K113,2)=RIGHT(BR$39,2),SUM($AV113:AV113),0)+IF(RIGHT(BR$39,2)>RIGHT($K113,2),AV113,0)) -> 0 | BS113: =+IF($K113="Ongoing",AW113,IF(RIGHT($K113,2)=RIGHT(BS$39,2),SUM($AV113:AW113),0)+IF(RIGHT(BS$39,2)>RIGHT($K113,2),AW113,0)) -> 0 | BT113: =+IF($K113="Ongoing",AX113,IF(RIGHT($K113,2)=RIGHT(BT$39,2),SUM($AV113:AX113),0)+IF(RIGHT(BT$39,2)>RIGHT($K113,2),AX113,0)) -> 0 | BU113: =+IF($K113="Ongoing",AY113,IF(RIGHT($K113,2)=RIGHT(BU$39,2),SUM($AV113:AY113),0)+IF(RIGHT(BU$39,2)>RIGHT($K113,2),AY113,0)) -> 0 | BV113: =+IF($K113="Ongoing",AZ113,IF(RIGHT($K113,2)=RIGHT(BV$39,2),SUM($AV113:AZ113),0)+IF(RIGHT(BV$39,2)>RIGHT($K113,2),AZ113,0)) -> 0 | BW113: =+IF($K113="Ongoing",BA113,IF(RIGHT($K113,2)=RIGHT(BW$39,2),SUM($AV113:BA113),0)+IF(RIGHT(BW$39,2)>RIGHT($K113,2),BA113,0)) -> 0 | BX113: =+IF($K113="Ongoing",BB113,IF(RIGHT($K113,2)=RIGHT(BX$39,2),SUM($AV113:BB113),0)+IF(RIGHT(BX$39,2)>RIGHT($K113,2),BB113,0)) -> 0.53310429 | BY113: =+IF($K113="Ongoing",BC113,IF(RIGHT($K113,2)=RIGHT(BY$39,2),SUM($AV113:BC113),0)+IF(RIGHT(BY$39,2)>RIGHT($K113,2),BC113,0)) -> 0 | BZ113: =+IF($K113="Ongoing",BD113,IF(RIGHT($K113,2)=RIGHT(BZ$39,2),SUM($AV113:BD113),0)+IF(RIGHT(BZ$39,2)>RIGHT($K113,2),BD113,0)) -> 0 | CA113: =+IF($K113="Ongoing",BE113,IF(RIGHT($K113,2)=RIGHT(CA$39,2),SUM($AV113:BE113),0)+IF(RIGHT(CA$39,2)>RIGHT($K113,2),BE113,0)) -> 0 | CC113: =+O113*KeyAssumptionsPriceControl_FO!X$15 -> 0 | CD113: =+P113*KeyAssumptionsPriceControl_FO!Y$15 -> 0 | CE113: =+Q113*KeyAssumptionsPriceControl_FO!Z$15 -> 0 | CF113: =+R113*KeyAssumptionsPriceControl_FO!AA$15 -> 0 | CG113: =+S113*KeyAssumptionsPriceControl_FO!AB$15 -> 0 | CH113: =+T113*KeyAssumptionsPriceControl_FO!AC$15 -> 0 | CI113: =+U113*KeyAssumptionsPriceControl_FO!AD$15 -> 0.6250886501 | CJ113: =+V113*KeyAssumptionsPriceControl_FO!AE$15 -> 0 | CK113: =+W113*KeyAssumptionsPriceControl_FO!AF$15 -> 0 | CL113: =+X113*KeyAssumptionsPriceControl_FO!AG$15 -> 0 | CN113: 0 | CO113: 0 | CP113: 0 | CQ113: 0 | CR113: 0 | CS113: 0 | CT113: 0.006250886501 | CU113: 0.012501773 | CV113: 0.012501773 | CW113: 0.012501773
